Workbook

Sheet ENERO
A1: ASOCIACION DE USUARIOS DISTRITO DE ADECUACION DE TIERRAS DE GRAN ESCALA DEL RIO ZULIA ASOZULIA NIT 800,168,858-6 | AJ1: CODIGO: DTE-OPER-FR-01
AJ2: VERSION: 01
A3: CONTROL DIARIO DE RIEGO POR PREDIO Y CANAL | AJ3: FECHA: 16/06/2023
A5: ZONA | B5: RESTAURACIÓN | E5: AUXILIAR DE RIEGO | J5: EDWIN JAIR ZAMORA CHACON | S5: CANAL | AF5: MES | AG5: ENERO | AK5: AÑO | AL5: 2023
A6: CAUDAL DIARIO DERIVADO | E6: DIAS | F6: 1 | G6: 2 | H6: 3 | I6: 4 | J6: 5 | K6: 6 | L6: 7 | M6: 8 | N6: 9 | O6: 10 | P6: 11 | Q6: 12 | R6: 13 | S6: 14 | T6: 15 | U6: 16 | V6: 17 | W6: 18 | X6: 19 | Y6: 20 | Z6: 21 | AA6: 22 | AB6: 23 | AC6: 24 | AD6: 25 | AE6: 26 | AF6: 27 | AG6: 28 | AH6: 29 | AI6: 30 | AJ6: 31 | AK6: TOTAL DIAS | AL6: TOTAL M3
A7: CODIGO | B7: RAMAL | C7: USUARIO | D7: T.CULT | E7: AREA
A8: 4F300 | B8: PR | C8: BELTRAN GARCIA | D8: CA | E8: 30.00 | F8: =+IF(ISNUMBER(F9),$E8*1.5,IF(F9="","",F9)) ->  | G8: =+IF(ISNUMBER(G9),$E8*1.5,IF(G9="","",G9)) -> IC | H8: FR | I8: 45.0 | J8: 45.0 | K8: 45.0 | L8: 45.0 | M8: 45.0 | N8: IC | Q8: =+IF(ISNUMBER(Q9),$E8*1.5,IF(Q9="","",Q9)) ->  | AK8: =+SUM(F9:AJ9)/24 -> 0.83 | AL8: =+AK8*E8*1.5*86.4 -> 3240.00 | AN8: FC
C9: LUIS | G9: IC | H9: FR | I9: 1 | J9: 2 | K9: 3 | L9: 4 | M9: 10 | N9: IC | AK9: LT= | AL9: =+E8*1.5 -> 45.00 | AN9: IC
A10: 4F350 | B10: PR | C10: VILLARREAL OSORIO | E10: 17.53 | F10: =+IF(ISNUMBER(F11),$E10*1.5,IF(F11="","",F11)) ->  | AK10: =+SUM(F11:AJ11)/24 -> 0.00 | AL10: =+AK10*E10*1.5*86.4 -> 0.00 | AN10: FR
C11: CLEMENTE | AK11: LT= | AL11: =+E10*1.5 -> 26.30 | AN11: IR
A12: 4F340 | B12: PR | C12: SANTANA CORTES | E12: 8.00 | F12: =+IF(ISNUMBER(F13),$E12*1.5,IF(F13="","",F13)) ->  | X12: 12.0 | Y12: 12.0 | Z12: 12.0 | AA12: FC | AC12: IC1 | AK12: =+SUM(F13:AJ13)/24 -> 1.25 | AL12: =+AK12*E12*1.5*86.4 -> 1296.00 | AN12: SR
C13: JOSE DOMINGO | X13: 10 | Y13: 10 | Z13: 10 | AA13: FC | AC13: IC1 | AK13: LT= | AL13: =+E12*1.5 -> 12.00 | AN13: RR
A14: 4F338 | B14: PR | C14: RIOS SUESCUN | E14: 8.75 | F14: =+IF(ISNUMBER(F15),$E14*1.5,IF(F15="","",F15)) ->  | AK14: =+SUM(F15:AJ15)/24 -> 0.00 | AL14: =+AK14*E14*1.5*86.4 -> 0.00 | AN14: ID
C15: MARIA LUCIA | AK15: LT= | AL15: =+E14*1.5 -> 13.13 | AN15: IC1
A16: 4F330 | B16: PR | C16: RIAÑO RAMIREZ | E16: 12.06 | F16: =+IF(ISNUMBER(F17),$E16*1.5,IF(F17="","",F17)) ->  | AK16: =+SUM(F17:AJ17)/24 -> 0.00 | AL16: =+AK16*E16*1.5*86.4 -> 0.00
C17: MARIA VICTORIA | AK17: LT= | AL17: =+E16*1.5 -> 18.09
A18: 4F320 | B18: PR | C18: RIAÑO VALDERRAMA | E18: 5.29 | F18: =+IF(ISNUMBER(F19),$E18*1.5,IF(F19="","",F19)) ->  | AK18: =+SUM(F19:AJ19)/24 -> 0.00 | AL18: =+AK18*E18*1.5*86.4 -> 0.00
C19: FREDDY ALEXANDER | AK19: LT= | AL19: =+E18*1.5 -> 7.94
A20: 4F320A | B20: PR | C20: RIAÑO VALDERRAMA | E20: 5.29 | F20: =+IF(ISNUMBER(F21),$E20*1.5,IF(F21="","",F21)) ->  | AK20: =+SUM(F21:AJ21)/24 -> 0.00 | AL20: =+AK20*E20*1.5*86.4 -> 0.00
C21: JENNY MARITZA | AK21: LT= | AL21: =+E20*1.5 -> 7.94
A22: 4F320B | B22: PR | C22: RIAÑO VALDERRAMA | E22: 4.14 | F22: =+IF(ISNUMBER(F23),$E22*1.5,IF(F23="","",F23)) ->  | AK22: =+SUM(F23:AJ23)/24 -> 0.00 | AL22: =+AK22*E22*1.5*86.4 -> 0.00
C23: FLOR LILIANA | AK23: LT= | AL23: =+E22*1.5 -> 6.21
A24: 4F320C | B24: PR | C24: RIAÑO VALDERRAMA | E24: 4.14 | F24: =+IF(ISNUMBER(F25),$E24*1.5,IF(F25="","",F25)) ->  | AK24: =+SUM(F25:AJ25)/24 -> 0.00 | AL24: =+AK24*E24*1.5*86.4 -> 0.00
C25: CIRO PASTOR | AK25: LT= | AL25: =+E24*1.5 -> 6.21
A26: 4F341 | B26: PR | C26: ORTEGA MORA | E26: 8.46 | F26: =+IF(ISNUMBER(F27),$E26*1.5,IF(F27="","",F27)) ->  | AK26: =+SUM(F27:AJ27)/24 -> 0.00 | AL26: =+AK26*E26*1.5*86.4 -> 0.00
C27: JOSE DEL CARMEN | AK27: LT= | AL27: =+E26*1.5 -> 12.69
A28: 4F319 | B28: PR | C28: SANTANA CORTES | E28: 26.50 | F28: =+IF(ISNUMBER(F29),$E28*1.5,IF(F29="","",F29)) ->  | AK28: =+SUM(F29:AJ29)/24 -> 0.00 | AL28: =+AK28*E28*1.5*86.4 -> 0.00
C29: ELVIA Y OTROS | AK29: LT= | AL29: =+E28*1.5 -> 39.75
A30: 4F314 | B30: PR | C30: GONZALEZ GIRON | E30: 3.00 | F30: =+IF(ISNUMBER(F31),$E30*1.5,IF(F31="","",F31)) ->  | AK30: =+SUM(F31:AJ31)/24 -> 0.00 | AL30: =+AK30*E30*1.5*86.4 -> 0.00
C31: EVELIO | AK31: LT= | AL31: =+E30*1.5 -> 4.50
A32: 4F035 | B32: PR | C32: VALDERRAMA CARDENAS | E32: 11.54 | F32: =+IF(ISNUMBER(F33),$E32*1.5,IF(F33="","",F33)) ->  | AK32: =+SUM(F33:AJ33)/24 -> 0.00 | AL32: =+AK32*E32*1.5*86.4 -> 0.00
C33: GUILLERMO Y OTROS | AK33: LT= | AL33: =+E32*1.5 -> 17.31
A34: 4F329B | B34: PR | C34: MARIN ZAPATA | E34: 7.00 | F34: =+IF(ISNUMBER(F35),$E34*1.5,IF(F35="","",F35)) ->  | AK34: =+SUM(F35:AJ35)/24 -> 0.00 | AL34: =+AK34*E34*1.5*86.4 -> 0.00
C35: ABELARDO ANTONIO | AK35: LT= | AL35: =+E34*1.5 -> 10.50
A36: 4F346 | B36: PR | C36: CASTELLANOS TARAZONA | E36: 10.00 | F36: =+IF(ISNUMBER(F37),$E36*1.5,IF(F37="","",F37)) ->  | AK36: =+SUM(F37:AJ37)/24 -> 0.00 | AL36: =+AK36*E36*1.5*86.4 -> 0.00
C37: JOSE DARIO | AK37: LT= | AL37: =+E36*1.5 -> 15.00
A38: 4F315 | B38: PR | C38: VILLARREAL OSORIO | E38: 12.23 | F38: =+IF(ISNUMBER(F39),$E38*1.5,IF(F39="","",F39)) ->  | AK38: =+SUM(F39:AJ39)/24 -> 0.00 | AL38: =+AK38*E38*1.5*86.4 -> 0.00
C39: EDILSON | AK39: LT= | AL39: =+E38*1.5 -> 18.35
A40: 4F001A | B40: L2 | C40: MARQUEZ CARDENAS | E40: 12.00 | F40: =+IF(ISNUMBER(F41),$E40*1.5,IF(F41="","",F41)) ->  | AK40: =+SUM(F41:AJ41)/24 -> 0.00 | AL40: =+AK40*E40*1.5*86.4 -> 0.00
C41: MARTHA CECILIA | AK41: LT= | AL41: =+E40*1.5 -> 18.00
A42: 4F001 | B42: L2 | C42: MARQUEZ CARDENAS | E42: 13.00 | F42: =+IF(ISNUMBER(F43),$E42*1.5,IF(F43="","",F43)) ->  | AK42: =+SUM(F43:AJ43)/24 -> 0.00 | AL42: =+AK42*E42*1.5*86.4 -> 0.00
C43: MARTHA CECILIA | AK43: LT= | AL43: =+E42*1.5 -> 19.50
A44: 4F031 | B44: L2 | C44: LERMA DIAZ | E44: 4.70 | F44: =+IF(ISNUMBER(F45),$E44*1.5,IF(F45="","",F45)) ->  | AK44: =+SUM(F45:AJ45)/24 -> 0.00 | AL44: =+AK44*E44*1.5*86.4 -> 0.00
C45: RAFAEL JULIO | AK45: LT= | AL45: =+E44*1.5 -> 7.05
A46: 4F031A | B46: L2 | C46: RIAÑO RAMIREZ | E46: 2.90 | F46: =+IF(ISNUMBER(F47),$E46*1.5,IF(F47="","",F47)) ->  | AK46: =+SUM(F47:AJ47)/24 -> 0.00 | AL46: =+AK46*E46*1.5*86.4 -> 0.00
C47: MARIA VICTORIA | AK47: LT= | AL47: =+E46*1.5 -> 4.35
A48: 4F031B | B48: L2 | C48: AREVALO ACEVEDO | E48: 2.30 | F48: =+IF(ISNUMBER(F49),$E48*1.5,IF(F49="","",F49)) ->  | AK48: =+SUM(F49:AJ49)/24 -> 0.00 | AL48: =+AK48*E48*1.5*86.4 -> 0.00
C49: RAMIRO Y OTRO | AK49: LT= | AL49: =+E48*1.5 -> 3.45
A50: 4F031C | B50: L2 | C50: BUSTAMANTE | E50: 3.20 | F50: =+IF(ISNUMBER(F51),$E50*1.5,IF(F51="","",F51)) ->  | AK50: =+SUM(F51:AJ51)/24 -> 0.00 | AL50: =+AK50*E50*1.5*86.4 -> 0.00
C51: JAIME DE J. Y OTRO | AK51: LT= | AL51: =+E50*1.5 -> 4.80
A52: 4F031D | B52: L2 | C52: AREVALO ACEVEDO | E52: 2.80 | F52: =+IF(ISNUMBER(F53),$E52*1.5,IF(F53="","",F53)) ->  | AK52: =+SUM(F53:AJ53)/24 -> 0.00 | AL52: =+AK52*E52*1.5*86.4 -> 0.00
C53: RAMIRO Y OTRO | AK53: LT= | AL53: =+E52*1.5 -> 4.20
A54: 4F031E | B54: L2 | C54: VILLAMIZAR | E54: 2.60 | F54: =+IF(ISNUMBER(F55),$E54*1.5,IF(F55="","",F55)) ->  | AK54: =+SUM(F55:AJ55)/24 -> 0.00 | AL54: =+AK54*E54*1.5*86.4 -> 0.00
C55: MARITZA | AK55: LT= | AL55: =+E54*1.5 -> 3.90
A56: 4F031F | B56: L2 | C56: VILLAMIZAR | E56: 1.50 | F56: =+IF(ISNUMBER(F57),$E56*1.5,IF(F57="","",F57)) ->  | AK56: =+SUM(F57:AJ57)/24 -> 0.00 | AL56: =+AK56*E56*1.5*86.4 -> 0.00
C57: MARITZA | AK57: LT= | AL57: =+E56*1.5 -> 2.25
A58: 4F031G | B58: L2 | C58: SANABRIA | E58: 0.58 | F58: =+IF(ISNUMBER(F59),$E58*1.5,IF(F59="","",F59)) ->  | AK58: =+SUM(F59:AJ59)/24 -> 0.00 | AL58: =+AK58*E58*1.5*86.4 -> 0.00
C59: MIGUEL ANTONIO | AK59: LT= | AL59: =+E58*1.5 -> 0.87
A60: 4F031H | B60: L2 | C60: DIAZ LERMA | E60: 4.00 | F60: =+IF(ISNUMBER(F61),$E60*1.5,IF(F61="","",F61)) ->  | AK60: =+SUM(F61:AJ61)/24 -> 0.00 | AL60: =+AK60*E60*1.5*86.4 -> 0.00
C61: LUIS ADAN | AK61: LT= | AL61: =+E60*1.5 -> 6.00
A62: 4F031I | B62: L2 | C62: CAICEDO GALVIS | E62: 8.60 | F62: =+IF(ISNUMBER(F63),$E62*1.5,IF(F63="","",F63)) ->  | AK62: =+SUM(F63:AJ63)/24 -> 0.00 | AL62: =+AK62*E62*1.5*86.4 -> 0.00
C63: ELIECER Y OTROS | AK63: LT= | AL63: =+E62*1.5 -> 12.90
A64: 4F003 | B64: L2 | C64: MENESES | E64: 9.46 | F64: =+IF(ISNUMBER(F65),$E64*1.5,IF(F65="","",F65)) ->  | AK64: =+SUM(F65:AJ65)/24 -> 0.00 | AL64: =+AK64*E64*1.5*86.4 -> 0.00
C65: POLICARPO | AK65: LT= | AL65: =+E64*1.5 -> 14.19
A66: 4F003A | B66: L2 | C66: ORTEGA RIVERA | E66: 8.26 | F66: =+IF(ISNUMBER(F67),$E66*1.5,IF(F67="","",F67)) ->  | AK66: =+SUM(F67:AJ67)/24 -> 0.00 | AL66: =+AK66*E66*1.5*86.4 -> 0.00
C67: PEDRO MIGUEL | AK67: LT= | AL67: =+E66*1.5 -> 12.39
A68: 4F329A | B68: PR | C68: DIAZ | E68: 3.80 | F68: =+IF(ISNUMBER(F69),$E68*1.5,IF(F69="","",F69)) ->  | AK68: =+SUM(F69:AJ69)/24 -> 0.00 | AL68: =+AK68*E68*1.5*86.4 -> 0.00
C69: ROSALBINA | AK69: LT= | AL69: =+E68*1.5 -> 5.70
A70: 4F329A | B70: PR | C70: DIAZ | E70: 2.00 | F70: =+IF(ISNUMBER(F71),$E70*1.5,IF(F71="","",F71)) ->  | AK70: =+SUM(F71:AJ71)/24 -> 0.00 | AL70: =+AK70*E70*1.5*86.4 -> 0.00
C71: ROSALBINA | AK71: LT= | AL71: =+E70*1.5 -> 3.00
A72: 4F329D | B72: PR | C72: RUBIO | E72: 7.24 | F72: =+IF(ISNUMBER(F73),$E72*1.5,IF(F73="","",F73)) ->  | AK72: =+SUM(F73:AJ73)/24 -> 0.00 | AL72: =+AK72*E72*1.5*86.4 -> 0.00
C73: MARIA EDELMIRA | AK73: LT= | AL73: =+E72*1.5 -> 10.86
A74: 4F329C | B74: PR | C74: MARTINEZ ALARCON | E74: 6.00 | F74: =+IF(ISNUMBER(F75),$E74*1.5,IF(F75="","",F75)) ->  | AK74: =+SUM(F75:AJ75)/24 -> 0.00 | AL74: =+AK74*E74*1.5*86.4 -> 0.00
C75: LUIS ALBERTO | AK75: LT= | AL75: =+E74*1.5 -> 9.00
A76: 4F004D | B76: PR | C76: DUARTE ACEVEDO | E76: 8.33 | F76: =+IF(ISNUMBER(F77),$E76*1.5,IF(F77="","",F77)) ->  | AK76: =+SUM(F77:AJ77)/24 -> 0.00 | AL76: =+AK76*E76*1.5*86.4 -> 0.00
C77: PEDRO Y OTROS | AK77: LT= | AL77: =+E76*1.5 -> 12.50
A78: 4F004A | B78: PR | C78: GARCIA CHONA | E78: 8.92 | F78: =+IF(ISNUMBER(F79),$E78*1.5,IF(F79="","",F79)) ->  | AK78: =+SUM(F79:AJ79)/24 -> 0.00 | AL78: =+AK78*E78*1.5*86.4 -> 0.00
C79: CRUZ DELINA | AK79: LT= | AL79: =+E78*1.5 -> 13.38
A80: 4F004E | B80: PR | C80: ROZO RICO | E80: 5.35 | F80: =+IF(ISNUMBER(F81),$E80*1.5,IF(F81="","",F81)) ->  | AK80: =+SUM(F81:AJ81)/24 -> 0.00 | AL80: =+AK80*E80*1.5*86.4 -> 0.00
C81: JOSE RAMON | AK81: LT= | AL81: =+E80*1.5 -> 8.03
A82: 4F004 | B82: PR | C82: QUINTERO M. | E82: 4.09 | F82: =+IF(ISNUMBER(F83),$E82*1.5,IF(F83="","",F83)) ->  | AK82: =+SUM(F83:AJ83)/24 -> 0.00 | AL82: =+AK82*E82*1.5*86.4 -> 0.00
C83: MIGUEL ANGEL/ OTRO | AK83: LT= | AL83: =+E82*1.5 -> 6.14
A84: 4F004C | B84: PR | C84: MARTINEZ RUBIO | E84: 9.74 | F84: =+IF(ISNUMBER(F85),$E84*1.5,IF(F85="","",F85)) ->  | AK84: =+SUM(F85:AJ85)/24 -> 0.00 | AL84: =+AK84*E84*1.5*86.4 -> 0.00
C85: JOSE LEONSO | AK85: LT= | AL85: =+E84*1.5 -> 14.61
A86: 4F328 | B86: PR | C86: GARCIA CHONA | E86: 9.65 | F86: =+IF(ISNUMBER(F87),$E86*1.5,IF(F87="","",F87)) ->  | AK86: =+SUM(F87:AJ87)/24 -> 0.00 | AL86: =+AK86*E86*1.5*86.4 -> 0.00
C87: CRUZ DELINA | AK87: LT= | AL87: =+E86*1.5 -> 14.48
A88: 4F004B | B88: L2A | C88: PAVA | E88: 8.90 | F88: =+IF(ISNUMBER(F89),$E88*1.5,IF(F89="","",F89)) ->  | AK88: =+SUM(F89:AJ89)/24 -> 0.00 | AL88: =+AK88*E88*1.5*86.4 -> 0.00
C89: LUIS JAVIER Y OTRO | AK89: LT= | AL89: =+E88*1.5 -> 13.35
A90: 4F006 | B90: L2A | C90: GARCIA | E90: 4.00 | F90: =+IF(ISNUMBER(F91),$E90*1.5,IF(F91="","",F91)) ->  | AK90: =+SUM(F91:AJ91)/24 -> 0.00 | AL90: =+AK90*E90*1.5*86.4 -> 0.00
C91: LINA ROSA Y OTROS | AK91: LT= | AL91: =+E90*1.5 -> 6.00
A92: 4F006A | B92: L2A | C92: CARDENAS HEREDIA | E92: 5.00 | F92: =+IF(ISNUMBER(F93),$E92*1.5,IF(F93="","",F93)) ->  | AK92: =+SUM(F93:AJ93)/24 -> 0.00 | AL92: =+AK92*E92*1.5*86.4 -> 0.00
C93: PAULINO | AK93: LT= | AL93: =+E92*1.5 -> 7.50
A94: 4F006B | B94: L2A | C94: RAMIREZ MAYORGA | E94: 5.08 | F94: =+IF(ISNUMBER(F95),$E94*1.5,IF(F95="","",F95)) ->  | AK94: =+SUM(F95:AJ95)/24 -> 0.00 | AL94: =+AK94*E94*1.5*86.4 -> 0.00
C95: CRISTINIANO | AK95: LT= | AL95: =+E94*1.5 -> 7.62
A96: 4F006C | B96: L2A | C96: ATUESTA ORTEGA | E96: 5.00 | F96: =+IF(ISNUMBER(F97),$E96*1.5,IF(F97="","",F97)) ->  | AK96: =+SUM(F97:AJ97)/24 -> 0.00 | AL96: =+AK96*E96*1.5*86.4 -> 0.00
C97: MIGUEL ANGEL | AK97: LT= | AL97: =+E96*1.5 -> 7.50
A98: 4F006D | B98: L2A | C98: SERNA GARCIA | E98: 5.00 | F98: =+IF(ISNUMBER(F99),$E98*1.5,IF(F99="","",F99)) ->  | AK98: =+SUM(F99:AJ99)/24 -> 0.00 | AL98: =+AK98*E98*1.5*86.4 -> 0.00
C99: CESARIO ANTONIO | AK99: LT= | AL99: =+E98*1.5 -> 7.50
A100: 4F006E | B100: L2A | C100: SERNA GARCIA | E100: 5.00 | F100: =+IF(ISNUMBER(F101),$E100*1.5,IF(F101="","",F101)) ->  | AK100: =+SUM(F101:AJ101)/24 -> 0.00 | AL100: =+AK100*E100*1.5*86.4 -> 0.00
C101: CESARIO ANTONIO | AK101: LT= | AL101: =+E100*1.5 -> 7.50
A102: 4F006F | B102: L2A | C102: CAICEDO GALVIS | E102: 5.00 | F102: =+IF(ISNUMBER(F103),$E102*1.5,IF(F103="","",F103)) ->  | AK102: =+SUM(F103:AJ103)/24 -> 0.00 | AL102: =+AK102*E102*1.5*86.4 -> 0.00
C103: ELIECER Y OTRO | AK103: LT= | AL103: =+E102*1.5 -> 7.50
A104: 4F006G | B104: L2A | C104: GARCIA | E104: 5.00 | F104: =+IF(ISNUMBER(F105),$E104*1.5,IF(F105="","",F105)) ->  | AK104: =+SUM(F105:AJ105)/24 -> 0.00 | AL104: =+AK104*E104*1.5*86.4 -> 0.00
C105: LINA ROSA Y OTROS | AK105: LT= | AL105: =+E104*1.5 -> 7.50
A106: 4F006H | B106: L2A | C106: VALENCIA MEJIA | E106: 4.50 | F106: =+IF(ISNUMBER(F107),$E106*1.5,IF(F107="","",F107)) ->  | AK106: =+SUM(F107:AJ107)/24 -> 0.00 | AL106: =+AK106*E106*1.5*86.4 -> 0.00
C107: WILSON | AK107: LT= | AL107: =+E106*1.5 -> 6.75
A108: 4F006I | B108: L2A | C108: BALLESTEROS | E108: 4.70 | F108: =+IF(ISNUMBER(F109),$E108*1.5,IF(F109="","",F109)) ->  | AK108: =+SUM(F109:AJ109)/24 -> 0.00 | AL108: =+AK108*E108*1.5*86.4 -> 0.00
C109: LUCIANO | AK109: LT= | AL109: =+E108*1.5 -> 7.05
A110: 4F006J | B110: L2A | C110: CUERO PEREZ | E110: 5.00 | F110: =+IF(ISNUMBER(F111),$E110*1.5,IF(F111="","",F111)) ->  | AK110: =+SUM(F111:AJ111)/24 -> 0.00 | AL110: =+AK110*E110*1.5*86.4 -> 0.00
C111: YESENIA | AK111: LT= | AL111: =+E110*1.5 -> 7.50
A112: 4F006L | B112: L2A | C112: FLOREZ FLOREZ | E112: 4.75 | F112: =+IF(ISNUMBER(F113),$E112*1.5,IF(F113="","",F113)) ->  | AK112: =+SUM(F113:AJ113)/24 -> 0.00 | AL112: =+AK112*E112*1.5*86.4 -> 0.00
C113: MANUEL | AK113: LT= | AL113: =+E112*1.5 -> 7.13
A114: 4F006K | B114: L2A | C114: GUARIN | E114: 5.00 | F114: =+IF(ISNUMBER(F115),$E114*1.5,IF(F115="","",F115)) ->  | AK114: =+SUM(F115:AJ115)/24 -> 0.00 | AL114: =+AK114*E114*1.5*86.4 -> 0.00
C115: LUIS ENRIQUE | AK115: LT= | AL115: =+E114*1.5 -> 7.50
A116: 4F006N | B116: L2A | C116: ATUESTA ORTEGA | E116: 5.00 | F116: =+IF(ISNUMBER(F117),$E116*1.5,IF(F117="","",F117)) ->  | AK116: =+SUM(F117:AJ117)/24 -> 0.00 | AL116: =+AK116*E116*1.5*86.4 -> 0.00
C117: MIGUEL ANGEL | AK117: LT= | AL117: =+E116*1.5 -> 7.50
A118: 4F006O | B118: L2A | C118: GUZMAN NIETO | E118: 5.18 | F118: =+IF(ISNUMBER(F119),$E118*1.5,IF(F119="","",F119)) ->  | AK118: =+SUM(F119:AJ119)/24 -> 0.00 | AL118: =+AK118*E118*1.5*86.4 -> 0.00
C119: JULIO CESAR | AK119: LT= | AL119: =+E118*1.5 -> 7.77
A120: 4F006M | B120: L2A | C120: FIGUEROA PINZON | E120: 5.00 | F120: =+IF(ISNUMBER(F121),$E120*1.5,IF(F121="","",F121)) ->  | AK120: =+SUM(F121:AJ121)/24 -> 0.00 | AL120: =+AK120*E120*1.5*86.4 -> 0.00
C121: FLORENTINO | AK121: LT= | AL121: =+E120*1.5 -> 7.50
A122: 4F008A | B122: L2A | C122: RIVERA MORENO | E122: 8.25 | F122: =+IF(ISNUMBER(F123),$E122*1.5,IF(F123="","",F123)) ->  | AK122: =+SUM(F123:AJ123)/24 -> 0.00 | AL122: =+AK122*E122*1.5*86.4 -> 0.00
C123: VICTOR EDUARDO | AK123: LT= | AL123: =+E122*1.5 -> 12.38
A124: 4F008C | B124: L2A | C124: GARCIA CACERES | E124: 9.00 | F124: =+IF(ISNUMBER(F125),$E124*1.5,IF(F125="","",F125)) ->  | AK124: =+SUM(F125:AJ125)/24 -> 0.00 | AL124: =+AK124*E124*1.5*86.4 -> 0.00
C125: PEDRO ENOG | AK125: LT= | AL125: =+E124*1.5 -> 13.50
A126: 4F008F | B126: L2A | C126: ENCINALES ACOSTA | E126: 5.00 | F126: =+IF(ISNUMBER(F127),$E126*1.5,IF(F127="","",F127)) ->  | AK126: =+SUM(F127:AJ127)/24 -> 0.00 | AL126: =+AK126*E126*1.5*86.4 -> 0.00
C127: STELLA | AK127: LT= | AL127: =+E126*1.5 -> 7.50
A128: 4F008E | B128: L2A | C128: CASTILLO ARIAS | E128: 3.28 | F128: =+IF(ISNUMBER(F129),$E128*1.5,IF(F129="","",F129)) ->  | AK128: =+SUM(F129:AJ129)/24 -> 0.00 | AL128: =+AK128*E128*1.5*86.4 -> 0.00
C129: GLADYS ELENA | AK129: LT= | AL129: =+E128*1.5 -> 4.92
A130: 4F008D | B130: L2A | C130: SILVA CARRILLO | E130: 8.00 | F130: =+IF(ISNUMBER(F131),$E130*1.5,IF(F131="","",F131)) ->  | AK130: =+SUM(F131:AJ131)/24 -> 0.00 | AL130: =+AK130*E130*1.5*86.4 -> 0.00
C131: DORA BETTY | AK131: LT= | AL131: =+E130*1.5 -> 12.00
A132: 4F008B | B132: L2A | C132: OBESO VARGAS | E132: 6.50 | F132: =+IF(ISNUMBER(F133),$E132*1.5,IF(F133="","",F133)) ->  | AK132: =+SUM(F133:AJ133)/24 -> 0.00 | AL132: =+AK132*E132*1.5*86.4 -> 0.00
C133: BENJAMIN Y OTRO | AK133: LT= | AL133: =+E132*1.5 -> 9.75
A134: 4F008G | B134: L2A | C134: OBESO VARGAS | E134: 2.50 | F134: =+IF(ISNUMBER(F135),$E134*1.5,IF(F135="","",F135)) ->  | AK134: =+SUM(F135:AJ135)/24 -> 0.00 | AL134: =+AK134*E134*1.5*86.4 -> 0.00
C135: BENJAMIN Y OTRO | AK135: LT= | AL135: =+E134*1.5 -> 3.75
A136: 4F005 | B136: PR | C136: CONTRERAS MONTES | E136: 10.00 | F136: =+IF(ISNUMBER(F137),$E136*1.5,IF(F137="","",F137)) ->  | AK136: =+SUM(F137:AJ137)/24 -> 0.00 | AL136: =+AK136*E136*1.5*86.4 -> 0.00
C137: ANIANO | AK137: LT= | AL137: =+E136*1.5 -> 15.00
A138: 4F366 | B138: PR | C138: OROZCO ALTAMIRANDA | E138: 7.00 | F138: =+IF(ISNUMBER(F139),$E138*1.5,IF(F139="","",F139)) ->  | AK138: =+SUM(F139:AJ139)/24 -> 0.00 | AL138: =+AK138*E138*1.5*86.4 -> 0.00
C139: ALBERTO E. | AK139: LT= | AL139: =+E138*1.5 -> 10.50
A140: 4F009 | B140: PR | C140: ANAYA VARGAS | E140: 11.23 | F140: =+IF(ISNUMBER(F141),$E140*1.5,IF(F141="","",F141)) ->  | AK140: =+SUM(F141:AJ141)/24 -> 0.00 | AL140: =+AK140*E140*1.5*86.4 -> 0.00
C141: FERMINA | AK141: LT= | AL141: =+E140*1.5 -> 16.85
A142: 4F009C | B142: PR | C142: ORDUZ LANDINEZ | E142: 11.00 | F142: =+IF(ISNUMBER(F143),$E142*1.5,IF(F143="","",F143)) ->  | AK142: =+SUM(F143:AJ143)/24 -> 0.00 | AL142: =+AK142*E142*1.5*86.4 -> 0.00
C143: EVELIA | AK143: LT= | AL143: =+E142*1.5 -> 16.50
A144: 4F009A | B144: PR | C144: VALENCIA MEJIA | E144: 11.13 | F144: =+IF(ISNUMBER(F145),$E144*1.5,IF(F145="","",F145)) ->  | AK144: =+SUM(F145:AJ145)/24 -> 0.00 | AL144: =+AK144*E144*1.5*86.4 -> 0.00
C145: WILSON | AK145: LT= | AL145: =+E144*1.5 -> 16.70
A146: 4F009B | B146: PR | C146: CONTRERAS ORTEGA | E146: 11.12 | F146: =+IF(ISNUMBER(F147),$E146*1.5,IF(F147="","",F147)) ->  | AK146: =+SUM(F147:AJ147)/24 -> 0.00 | AL146: =+AK146*E146*1.5*86.4 -> 0.00
C147: PEDRO ANTONIO | AK147: LT= | AL147: =+E146*1.5 -> 16.68
A148: 4F361 | B148: PR | C148: OROZCO ALTAMIRANDA | E148: 7.27 | F148: =+IF(ISNUMBER(F149),$E148*1.5,IF(F149="","",F149)) ->  | AK148: =+SUM(F149:AJ149)/24 -> 0.00 | AL148: =+AK148*E148*1.5*86.4 -> 0.00
C149: ALBERTO E. | AK149: LT= | AL149: =+E148*1.5 -> 10.91
A150: 4F013 | B150: PR | C150: CONTRERAS | E150: 17.30 | F150: =+IF(ISNUMBER(F151),$E150*1.5,IF(F151="","",F151)) ->  | AK150: =+SUM(F151:AJ151)/24 -> 0.00 | AL150: =+AK150*E150*1.5*86.4 -> 0.00
A151: E | C151: MONTES ANIANO | AK151: LT= | AL151: =+E150*1.5 -> 25.95
A152: 4F014C | B152: L3 | C152: AGUILAR REYES | E152: 7.00 | F152: =+IF(ISNUMBER(F153),$E152*1.5,IF(F153="","",F153)) ->  | AK152: =+SUM(F153:AJ153)/24 -> 0.00 | AL152: =+AK152*E152*1.5*86.4 -> 0.00
C153: DANIEL ALEXANDER | AK153: LT= | AL153: =+E152*1.5 -> 10.50
A154: 4F014A | B154: L3 | C154: UMAÑA PEREZ | E154: 8.58 | F154: =+IF(ISNUMBER(F155),$E154*1.5,IF(F155="","",F155)) ->  | AK154: =+SUM(F155:AJ155)/24 -> 0.00 | AL154: =+AK154*E154*1.5*86.4 -> 0.00
C155: CESAR AUGUSTO | AK155: LT= | AL155: =+E154*1.5 -> 12.87
A156: 4F010 | B156: L3 | C156: CARRILLO MARTINEZ | E156: 20.00 | F156: =+IF(ISNUMBER(F157),$E156*1.5,IF(F157="","",F157)) ->  | AK156: =+SUM(F157:AJ157)/24 -> 0.00 | AL156: =+AK156*E156*1.5*86.4 -> 0.00
C157: SAMUEL | AK157: LT= | AL157: =+E156*1.5 -> 30.00
A158: 4F010A | B158: L3 | C158: CARRILLO MARTINEZ | E158: 11.00 | F158: =+IF(ISNUMBER(F159),$E158*1.5,IF(F159="","",F159)) ->  | AK158: =+SUM(F159:AJ159)/24 -> 0.00 | AL158: =+AK158*E158*1.5*86.4 -> 0.00
C159: SAMUEL | AK159: LT= | AL159: =+E158*1.5 -> 16.50
A160: 4F010A | B160: L3 | C160: CARRILLO MARTINEZ | E160: 11.10 | F160: =+IF(ISNUMBER(F161),$E160*1.5,IF(F161="","",F161)) ->  | AK160: =+SUM(F161:AJ161)/24 -> 0.00 | AL160: =+AK160*E160*1.5*86.4 -> 0.00
C161: SAMUEL | AK161: LT= | AL161: =+E160*1.5 -> 16.65
A162: 4F014D | B162: L3 | C162: AGUILAR BARRIENTOS | E162: 7.00 | F162: =+IF(ISNUMBER(F163),$E162*1.5,IF(F163="","",F163)) ->  | AK162: =+SUM(F163:AJ163)/24 -> 0.00 | AL162: =+AK162*E162*1.5*86.4 -> 0.00
C163: OMAR | AK163: LT= | AL163: =+E162*1.5 -> 10.50
A164: 4F014B | B164: L3 | C164: BABILONIA RAMOS | E164: 8.00 | F164: =+IF(ISNUMBER(F165),$E164*1.5,IF(F165="","",F165)) ->  | AK164: =+SUM(F165:AJ165)/24 -> 0.00 | AL164: =+AK164*E164*1.5*86.4 -> 0.00
C165: INDULFO MANUEL | AK165: LT= | AL165: =+E164*1.5 -> 12.00
A166: 4F011 | B166: L3 | C166: PALENCIA DE GARCIA | E166: 7.00 | F166: =+IF(ISNUMBER(F167),$E166*1.5,IF(F167="","",F167)) ->  | AK166: =+SUM(F167:AJ167)/24 -> 0.00 | AL166: =+AK166*E166*1.5*86.4 -> 0.00
C167: ALIX MARIA | AK167: LT= | AL167: =+E166*1.5 -> 10.50
A168: 4F011A | B168: L3 | C168: PALENCIA DE GARCIA | E168: 33.00 | F168: =+IF(ISNUMBER(F169),$E168*1.5,IF(F169="","",F169)) ->  | AK168: =+SUM(F169:AJ169)/24 -> 0.00 | AL168: =+AK168*E168*1.5*86.4 -> 0.00
C169: ALIX MARIA | AK169: LT= | AL169: =+E168*1.5 -> 49.50
A170: 4F014E | B170: L3 | C170: FORI MONCADA | E170: 6.90 | F170: =+IF(ISNUMBER(F171),$E170*1.5,IF(F171="","",F171)) ->  | AK170: =+SUM(F171:AJ171)/24 -> 0.00 | AL170: =+AK170*E170*1.5*86.4 -> 0.00
C171: JOSE ALFREDO Y OT | AK171: LT= | AL171: =+E170*1.5 -> 10.35
A172: 4F029 | B172: L3 | C172: RUIZ RAMIREZ | E172: 18.63 | F172: =+IF(ISNUMBER(F173),$E172*1.5,IF(F173="","",F173)) ->  | AK172: =+SUM(F173:AJ173)/24 -> 0.00 | AL172: =+AK172*E172*1.5*86.4 -> 0.00
C173: NELSON ENRRIQUE | AK173: LT= | AL173: =+E172*1.5 -> 27.95
A174: 4F014F | B174: L3 | C174: RIVERO GONZALEZ | E174: 1.00 | F174: =+IF(ISNUMBER(F175),$E174*1.5,IF(F175="","",F175)) ->  | AK174: =+SUM(F175:AJ175)/24 -> 0.00 | AL174: =+AK174*E174*1.5*86.4 -> 0.00
C175: HERIBERTO | AK175: LT= | AL175: =+E174*1.5 -> 1.50
A176: 4F030 | B176: L3 | C176: VARGAS RIVERA | E176: 4.96 | F176: =+IF(ISNUMBER(F177),$E176*1.5,IF(F177="","",F177)) ->  | AK176: =+SUM(F177:AJ177)/24 -> 0.00 | AL176: =+AK176*E176*1.5*86.4 -> 0.00
C177: RAMIRO ANTONIO | AK177: LT= | AL177: =+E176*1.5 -> 7.44
A178: 4F015 | B178: L3 | C178: PALENCIA DE GARCIA | E178: 25.00 | F178: =+IF(ISNUMBER(F179),$E178*1.5,IF(F179="","",F179)) ->  | AK178: =+SUM(F179:AJ179)/24 -> 0.00 | AL178: =+AK178*E178*1.5*86.4 -> 0.00
C179: ALIX MARIA | AK179: LT= | AL179: =+E178*1.5 -> 37.50
A180: 4F015A | B180: L3 | C180: PALENCIA DE GARCIA | E180: 31.00 | F180: =+IF(ISNUMBER(F181),$E180*1.5,IF(F181="","",F181)) ->  | AK180: =+SUM(F181:AJ181)/24 -> 0.00 | AL180: =+AK180*E180*1.5*86.4 -> 0.00
C181: ALIX MARIA | AK181: LT= | AL181: =+E180*1.5 -> 46.50
A182: 4F012A | B182: L3 | C182: GOMEZ AGREDO | E182: 7.12 | F182: =+IF(ISNUMBER(F183),$E182*1.5,IF(F183="","",F183)) ->  | AK182: =+SUM(F183:AJ183)/24 -> 0.00 | AL182: =+AK182*E182*1.5*86.4 -> 0.00
C183: HERIBERTO | AK183: LT= | AL183: =+E182*1.5 -> 10.68
A184: 4F012C | B184: L3 | C184: CONTRERAS ROJAS | E184: 7.33 | F184: =+IF(ISNUMBER(F185),$E184*1.5,IF(F185="","",F185)) ->  | AK184: =+SUM(F185:AJ185)/24 -> 0.00 | AL184: =+AK184*E184*1.5*86.4 -> 0.00
C185: CARMEN | AK185: LT= | AL185: =+E184*1.5 -> 11.00
A186: 4F012B | B186: L3 | C186: ROJAS SANTOS | E186: 6.00 | F186: =+IF(ISNUMBER(F187),$E186*1.5,IF(F187="","",F187)) ->  | AK186: =+SUM(F187:AJ187)/24 -> 0.00 | AL186: =+AK186*E186*1.5*86.4 -> 0.00
C187: ELIODORO | AK187: LT= | AL187: =+E186*1.5 -> 9.00
A188: 4F020 | B188: L3A | C188: OROZCO ALTAMIRANDA | E188: 10.46 | F188: =+IF(ISNUMBER(F189),$E188*1.5,IF(F189="","",F189)) ->  | AK188: =+SUM(F189:AJ189)/24 -> 0.00 | AL188: =+AK188*E188*1.5*86.4 -> 0.00
C189: ALBERTO E. | AK189: LT= | AL189: =+E188*1.5 -> 15.69
A190: 4F019 | B190: L3A | C190: RUIZ RAMIREZ | E190: 10.25 | F190: =+IF(ISNUMBER(F191),$E190*1.5,IF(F191="","",F191)) ->  | AK190: =+SUM(F191:AJ191)/24 -> 0.00 | AL190: =+AK190*E190*1.5*86.4 -> 0.00
C191: NELSON ENRRIQUE | AK191: LT= | AL191: =+E190*1.5 -> 15.38
A192: 4F017 | B192: L3A | C192: BAUTISTA OSORIO | E192: 10.60 | F192: =+IF(ISNUMBER(F193),$E192*1.5,IF(F193="","",F193)) ->  | AK192: =+SUM(F193:AJ193)/24 -> 0.00 | AL192: =+AK192*E192*1.5*86.4 -> 0.00
C193: GLADYS CECILIA | AK193: LT= | AL193: =+E192*1.5 -> 15.90
A194: 4F028 | B194: L3A | C194: MARQUEZ CARDENAS | E194: 13.06 | F194: =+IF(ISNUMBER(F195),$E194*1.5,IF(F195="","",F195)) ->  | AK194: =+SUM(F195:AJ195)/24 -> 0.00 | AL194: =+AK194*E194*1.5*86.4 -> 0.00
C195: MARTHA CECILIA | AK195: LT= | AL195: =+E194*1.5 -> 19.59
A196: 4F027 | B196: L3A | C196: REYES VILLALTA | E196: 6.00 | F196: =+IF(ISNUMBER(F197),$E196*1.5,IF(F197="","",F197)) ->  | AK196: =+SUM(F197:AJ197)/24 -> 0.00 | AL196: =+AK196*E196*1.5*86.4 -> 0.00
C197: MARIELA | AK197: LT= | AL197: =+E196*1.5 -> 9.00
A198: 4F027A | B198: L3A | C198: REYES VILLALTA | E198: 8.36 | F198: =+IF(ISNUMBER(F199),$E198*1.5,IF(F199="","",F199)) ->  | AK198: =+SUM(F199:AJ199)/24 -> 0.00 | AL198: =+AK198*E198*1.5*86.4 -> 0.00
C199: MARIELA | AK199: LT= | AL199: =+E198*1.5 -> 12.54
A200: 4F036 | B200: PR | C200: SANABRIA OMAÑA | E200: 0.50 | F200: =+IF(ISNUMBER(F201),$E200*1.5,IF(F201="","",F201)) ->  | AK200: =+SUM(F201:AJ201)/24 -> 0.00 | AL200: =+AK200*E200*1.5*86.4 -> 0.00
C201: MARIA DEL ROSARIO | AK201: LT= | AL201: =+E200*1.5 -> 0.75
... 46 more rows

Sheet FEBRERO
A1: ASOCIACION DE USUARIOS DISTRITO DE ADECUACION DE TIERRAS DE GRAN ESCALA DEL RIO ZULIA ASOZULIA NIT 800,168,858-6 | AG1: CODIGO: DTE-OPER-FR-01
AG2: VERSION: 01
A3: CONTROL DIARIO DE RIEGO POR PREDIO Y CANAL | AG3: FECHA: 16/06/2023
A5: ZONA | B5: RESTAURACIÓN | E5: AUXILIAR DE RIEGO | J5: EDWIN JAIR ZAMORA CHACON | S5: CANAL | AF5: MES | AH5: AÑO | AI5: 2023
A6: CAUDAL DIARIO DERIVADO | E6: DIAS | F6: 1 | G6: 2 | H6: 3 | I6: 4 | J6: 5 | K6: 6 | L6: 7 | M6: 8 | N6: 9 | O6: 10 | P6: 11 | Q6: 12 | R6: 13 | S6: 14 | T6: 15 | U6: 16 | V6: 17 | W6: 18 | X6: 19 | Y6: 20 | Z6: 21 | AA6: 22 | AB6: 23 | AC6: 24 | AD6: 25 | AE6: 26 | AF6: 27 | AG6: 28 | AH6: TOTAL DIAS | AI6: TOTAL M3
A7: CODIGO | B7: RAMAL | C7: USUARIO | D7: T.CULT | E7: AREA
A8: 4F300 | B8: PR | C8: BELTRAN GARCIA | D8: CA | E8: 30.00 | F8: =+IF(ISNUMBER(F9),$E8*1.5,IF(F9="","",F9)) ->  | G8: =+IF(ISNUMBER(G9),$E8*1.5,IF(G9="","",G9)) ->  | H8: FR | I8: 45.0 | J8: 45.0 | K8: 45.0 | L8: 45.0 | M8: 45.0 | N8: IC | Q8: =+IF(ISNUMBER(Q9),$E8*1.5,IF(Q9="","",Q9)) ->  | AH8: =+SUM(F9:AG9)/24 -> 0.83 | AI8: =+AH8*E8*1.5*86.4 -> 3240.00 | AK8: FC
C9: LUIS | H9: FR | I9: 1 | J9: 2 | K9: 3 | L9: 4 | M9: 10 | N9: IC | AH9: LT= | AI9: =+E8*1.5 -> 45.00 | AK9: IC
A10: 4F350 | B10: PR | C10: VILLARREAL OSORIO | E10: 17.53 | F10: =+IF(ISNUMBER(F11),$E10*1.5,IF(F11="","",F11)) ->  | AH10: =+SUM(F11:AG11)/24 -> 0.00 | AI10: =+AH10*E10*1.5*86.4 -> 0.00 | AK10: FR
C11: CLEMENTE | AH11: LT= | AI11: =+E10*1.5 -> 26.30 | AK11: IR
A12: 4F340 | B12: PR | C12: SANTANA CORTES | E12: 8.00 | F12: =+IF(ISNUMBER(F13),$E12*1.5,IF(F13="","",F13)) ->  | X12: 12.0 | Y12: 12.0 | Z12: 12.0 | AA12: FC | AC12: IC1 | AH12: =+SUM(F13:AG13)/24 -> 1.25 | AI12: =+AH12*E12*1.5*86.4 -> 1296.00 | AK12: SR
C13: JOSE DOMINGO | X13: 10 | Y13: 10 | Z13: 10 | AA13: FC | AC13: IC1 | AH13: LT= | AI13: =+E12*1.5 -> 12.00 | AK13: RR
A14: 4F338 | B14: PR | C14: RIOS SUESCUN | E14: 8.75 | F14: =+IF(ISNUMBER(F15),$E14*1.5,IF(F15="","",F15)) ->  | AH14: =+SUM(F15:AG15)/24 -> 0.00 | AI14: =+AH14*E14*1.5*86.4 -> 0.00 | AK14: ID
C15: MARIA LUCIA | AH15: LT= | AI15: =+E14*1.5 -> 13.13 | AK15: IC1
A16: 4F330 | B16: PR | C16: RIAÑO RAMIREZ | E16: 12.06 | F16: =+IF(ISNUMBER(F17),$E16*1.5,IF(F17="","",F17)) ->  | AH16: =+SUM(F17:AG17)/24 -> 0.00 | AI16: =+AH16*E16*1.5*86.4 -> 0.00
C17: MARIA VICTORIA | AH17: LT= | AI17: =+E16*1.5 -> 18.09
A18: 4F320 | B18: PR | C18: RIAÑO VALDERRAMA | E18: 5.29 | F18: =+IF(ISNUMBER(F19),$E18*1.5,IF(F19="","",F19)) ->  | AH18: =+SUM(F19:AG19)/24 -> 0.00 | AI18: =+AH18*E18*1.5*86.4 -> 0.00
C19: FREDDY ALEXANDER | AH19: LT= | AI19: =+E18*1.5 -> 7.94
A20: 4F320A | B20: PR | C20: RIAÑO VALDERRAMA | E20: 5.29 | F20: =+IF(ISNUMBER(F21),$E20*1.5,IF(F21="","",F21)) ->  | AH20: =+SUM(F21:AG21)/24 -> 0.00 | AI20: =+AH20*E20*1.5*86.4 -> 0.00
C21: JENNY MARITZA | AH21: LT= | AI21: =+E20*1.5 -> 7.94
A22: 4F320B | B22: PR | C22: RIAÑO VALDERRAMA | E22: 4.14 | F22: =+IF(ISNUMBER(F23),$E22*1.5,IF(F23="","",F23)) ->  | AH22: =+SUM(F23:AG23)/24 -> 0.00 | AI22: =+AH22*E22*1.5*86.4 -> 0.00
C23: FLOR LILIANA | AH23: LT= | AI23: =+E22*1.5 -> 6.21
A24: 4F320C | B24: PR | C24: RIAÑO VALDERRAMA | E24: 4.14 | F24: =+IF(ISNUMBER(F25),$E24*1.5,IF(F25="","",F25)) ->  | AH24: =+SUM(F25:AG25)/24 -> 0.00 | AI24: =+AH24*E24*1.5*86.4 -> 0.00
C25: CIRO PASTOR | AH25: LT= | AI25: =+E24*1.5 -> 6.21
A26: 4F341 | B26: PR | C26: ORTEGA MORA | E26: 8.46 | F26: =+IF(ISNUMBER(F27),$E26*1.5,IF(F27="","",F27)) ->  | AH26: =+SUM(F27:AG27)/24 -> 0.00 | AI26: =+AH26*E26*1.5*86.4 -> 0.00
C27: JOSE DEL CARMEN | AH27: LT= | AI27: =+E26*1.5 -> 12.69
A28: 4F319 | B28: PR | C28: SANTANA CORTES | E28: 26.50 | F28: =+IF(ISNUMBER(F29),$E28*1.5,IF(F29="","",F29)) ->  | AH28: =+SUM(F29:AG29)/24 -> 0.00 | AI28: =+AH28*E28*1.5*86.4 -> 0.00
C29: ELVIA Y OTROS | AH29: LT= | AI29: =+E28*1.5 -> 39.75
A30: 4F314 | B30: PR | C30: GONZALEZ GIRON | E30: 3.00 | F30: =+IF(ISNUMBER(F31),$E30*1.5,IF(F31="","",F31)) ->  | AH30: =+SUM(F31:AG31)/24 -> 0.00 | AI30: =+AH30*E30*1.5*86.4 -> 0.00
C31: EVELIO | AH31: LT= | AI31: =+E30*1.5 -> 4.50
A32: 4F035 | B32: PR | C32: VALDERRAMA CARDENAS | E32: 11.54 | F32: =+IF(ISNUMBER(F33),$E32*1.5,IF(F33="","",F33)) ->  | AH32: =+SUM(F33:AG33)/24 -> 0.00 | AI32: =+AH32*E32*1.5*86.4 -> 0.00
C33: GUILLERMO Y OTROS | AH33: LT= | AI33: =+E32*1.5 -> 17.31
A34: 4F329B | B34: PR | C34: MARIN ZAPATA | E34: 7.00 | F34: =+IF(ISNUMBER(F35),$E34*1.5,IF(F35="","",F35)) ->  | AH34: =+SUM(F35:AG35)/24 -> 0.00 | AI34: =+AH34*E34*1.5*86.4 -> 0.00
C35: ABELARDO ANTONIO | AH35: LT= | AI35: =+E34*1.5 -> 10.50
A36: 4F346 | B36: PR | C36: CASTELLANOS TARAZONA | E36: 10.00 | F36: =+IF(ISNUMBER(F37),$E36*1.5,IF(F37="","",F37)) ->  | AH36: =+SUM(F37:AG37)/24 -> 0.00 | AI36: =+AH36*E36*1.5*86.4 -> 0.00
C37: JOSE DARIO | AH37: LT= | AI37: =+E36*1.5 -> 15.00
A38: 4F315 | B38: PR | C38: VILLARREAL OSORIO | E38: 12.23 | F38: =+IF(ISNUMBER(F39),$E38*1.5,IF(F39="","",F39)) ->  | AH38: =+SUM(F39:AG39)/24 -> 0.00 | AI38: =+AH38*E38*1.5*86.4 -> 0.00
C39: EDILSON | AH39: LT= | AI39: =+E38*1.5 -> 18.35
A40: 4F001A | B40: L2 | C40: MARQUEZ CARDENAS | E40: 12.00 | F40: =+IF(ISNUMBER(F41),$E40*1.5,IF(F41="","",F41)) ->  | AH40: =+SUM(F41:AG41)/24 -> 0.00 | AI40: =+AH40*E40*1.5*86.4 -> 0.00
C41: MARTHA CECILIA | AH41: LT= | AI41: =+E40*1.5 -> 18.00
A42: 4F001 | B42: L2 | C42: MARQUEZ CARDENAS | E42: 13.00 | F42: =+IF(ISNUMBER(F43),$E42*1.5,IF(F43="","",F43)) ->  | AH42: =+SUM(F43:AG43)/24 -> 0.00 | AI42: =+AH42*E42*1.5*86.4 -> 0.00
C43: MARTHA CECILIA | AH43: LT= | AI43: =+E42*1.5 -> 19.50
A44: 4F031 | B44: L2 | C44: LERMA DIAZ | E44: 4.70 | F44: =+IF(ISNUMBER(F45),$E44*1.5,IF(F45="","",F45)) ->  | AH44: =+SUM(F45:AG45)/24 -> 0.00 | AI44: =+AH44*E44*1.5*86.4 -> 0.00
C45: RAFAEL JULIO | AH45: LT= | AI45: =+E44*1.5 -> 7.05
A46: 4F031A | B46: L2 | C46: RIAÑO RAMIREZ | E46: 2.90 | F46: =+IF(ISNUMBER(F47),$E46*1.5,IF(F47="","",F47)) ->  | AH46: =+SUM(F47:AG47)/24 -> 0.00 | AI46: =+AH46*E46*1.5*86.4 -> 0.00
C47: MARIA VICTORIA | AH47: LT= | AI47: =+E46*1.5 -> 4.35
A48: 4F031B | B48: L2 | C48: AREVALO ACEVEDO | E48: 2.30 | F48: =+IF(ISNUMBER(F49),$E48*1.5,IF(F49="","",F49)) ->  | AH48: =+SUM(F49:AG49)/24 -> 0.00 | AI48: =+AH48*E48*1.5*86.4 -> 0.00
C49: RAMIRO Y OTRO | AH49: LT= | AI49: =+E48*1.5 -> 3.45
A50: 4F031C | B50: L2 | C50: BUSTAMANTE | E50: 3.20 | F50: =+IF(ISNUMBER(F51),$E50*1.5,IF(F51="","",F51)) ->  | AH50: =+SUM(F51:AG51)/24 -> 0.00 | AI50: =+AH50*E50*1.5*86.4 -> 0.00
C51: JAIME DE J. Y OTRO | AH51: LT= | AI51: =+E50*1.5 -> 4.80
A52: 4F031D | B52: L2 | C52: AREVALO ACEVEDO | E52: 2.80 | F52: =+IF(ISNUMBER(F53),$E52*1.5,IF(F53="","",F53)) ->  | AH52: =+SUM(F53:AG53)/24 -> 0.00 | AI52: =+AH52*E52*1.5*86.4 -> 0.00
C53: RAMIRO Y OTRO | AH53: LT= | AI53: =+E52*1.5 -> 4.20
A54: 4F031E | B54: L2 | C54: VILLAMIZAR | E54: 2.60 | F54: =+IF(ISNUMBER(F55),$E54*1.5,IF(F55="","",F55)) ->  | AH54: =+SUM(F55:AG55)/24 -> 0.00 | AI54: =+AH54*E54*1.5*86.4 -> 0.00
C55: MARITZA | AH55: LT= | AI55: =+E54*1.5 -> 3.90
A56: 4F031F | B56: L2 | C56: VILLAMIZAR | E56: 1.50 | F56: =+IF(ISNUMBER(F57),$E56*1.5,IF(F57="","",F57)) ->  | AH56: =+SUM(F57:AG57)/24 -> 0.00 | AI56: =+AH56*E56*1.5*86.4 -> 0.00
C57: MARITZA | AH57: LT= | AI57: =+E56*1.5 -> 2.25
A58: 4F031G | B58: L2 | C58: SANABRIA | E58: 0.58 | F58: =+IF(ISNUMBER(F59),$E58*1.5,IF(F59="","",F59)) ->  | AH58: =+SUM(F59:AG59)/24 -> 0.00 | AI58: =+AH58*E58*1.5*86.4 -> 0.00
C59: MIGUEL ANTONIO | AH59: LT= | AI59: =+E58*1.5 -> 0.87
A60: 4F031H | B60: L2 | C60: DIAZ LERMA | E60: 4.00 | F60: =+IF(ISNUMBER(F61),$E60*1.5,IF(F61="","",F61)) ->  | AH60: =+SUM(F61:AG61)/24 -> 0.00 | AI60: =+AH60*E60*1.5*86.4 -> 0.00
C61: LUIS ADAN | AH61: LT= | AI61: =+E60*1.5 -> 6.00
A62: 4F031I | B62: L2 | C62: CAICEDO GALVIS | E62: 8.60 | F62: =+IF(ISNUMBER(F63),$E62*1.5,IF(F63="","",F63)) ->  | AH62: =+SUM(F63:AG63)/24 -> 0.00 | AI62: =+AH62*E62*1.5*86.4 -> 0.00
C63: ELIECER Y OTROS | AH63: LT= | AI63: =+E62*1.5 -> 12.90
A64: 4F003 | B64: L2 | C64: MENESES | E64: 9.46 | F64: =+IF(ISNUMBER(F65),$E64*1.5,IF(F65="","",F65)) ->  | AH64: =+SUM(F65:AG65)/24 -> 0.00 | AI64: =+AH64*E64*1.5*86.4 -> 0.00
C65: POLICARPO | AH65: LT= | AI65: =+E64*1.5 -> 14.19
A66: 4F003A | B66: L2 | C66: ORTEGA RIVERA | E66: 8.26 | F66: =+IF(ISNUMBER(F67),$E66*1.5,IF(F67="","",F67)) ->  | AH66: =+SUM(F67:AG67)/24 -> 0.00 | AI66: =+AH66*E66*1.5*86.4 -> 0.00
C67: PEDRO MIGUEL | AH67: LT= | AI67: =+E66*1.5 -> 12.39
A68: 4F329A | B68: PR | C68: DIAZ | E68: 3.80 | F68: =+IF(ISNUMBER(F69),$E68*1.5,IF(F69="","",F69)) ->  | AH68: =+SUM(F69:AG69)/24 -> 0.00 | AI68: =+AH68*E68*1.5*86.4 -> 0.00
C69: ROSALBINA | AH69: LT= | AI69: =+E68*1.5 -> 5.70
A70: 4F329A | B70: PR | C70: DIAZ | E70: 2.00 | F70: =+IF(ISNUMBER(F71),$E70*1.5,IF(F71="","",F71)) ->  | AH70: =+SUM(F71:AG71)/24 -> 0.00 | AI70: =+AH70*E70*1.5*86.4 -> 0.00
C71: ROSALBINA | AH71: LT= | AI71: =+E70*1.5 -> 3.00
A72: 4F329D | B72: PR | C72: RUBIO | E72: 7.24 | F72: =+IF(ISNUMBER(F73),$E72*1.5,IF(F73="","",F73)) ->  | AH72: =+SUM(F73:AG73)/24 -> 0.00 | AI72: =+AH72*E72*1.5*86.4 -> 0.00
C73: MARIA EDELMIRA | AH73: LT= | AI73: =+E72*1.5 -> 10.86
A74: 4F329C | B74: PR | C74: MARTINEZ ALARCON | E74: 6.00 | F74: =+IF(ISNUMBER(F75),$E74*1.5,IF(F75="","",F75)) ->  | AH74: =+SUM(F75:AG75)/24 -> 0.00 | AI74: =+AH74*E74*1.5*86.4 -> 0.00
C75: LUIS ALBERTO | AH75: LT= | AI75: =+E74*1.5 -> 9.00
A76: 4F004D | B76: PR | C76: DUARTE ACEVEDO | E76: 8.33 | F76: =+IF(ISNUMBER(F77),$E76*1.5,IF(F77="","",F77)) ->  | AH76: =+SUM(F77:AG77)/24 -> 0.00 | AI76: =+AH76*E76*1.5*86.4 -> 0.00
C77: PEDRO Y OTROS | AH77: LT= | AI77: =+E76*1.5 -> 12.50
A78: 4F004A | B78: PR | C78: GARCIA CHONA | E78: 8.92 | F78: =+IF(ISNUMBER(F79),$E78*1.5,IF(F79="","",F79)) ->  | AH78: =+SUM(F79:AG79)/24 -> 0.00 | AI78: =+AH78*E78*1.5*86.4 -> 0.00
C79: CRUZ DELINA | AH79: LT= | AI79: =+E78*1.5 -> 13.38
A80: 4F004E | B80: PR | C80: ROZO RICO | E80: 5.35 | F80: =+IF(ISNUMBER(F81),$E80*1.5,IF(F81="","",F81)) ->  | AH80: =+SUM(F81:AG81)/24 -> 0.00 | AI80: =+AH80*E80*1.5*86.4 -> 0.00
C81: JOSE RAMON | AH81: LT= | AI81: =+E80*1.5 -> 8.03
A82: 4F004 | B82: PR | C82: QUINTERO M. | E82: 4.09 | F82: =+IF(ISNUMBER(F83),$E82*1.5,IF(F83="","",F83)) ->  | AH82: =+SUM(F83:AG83)/24 -> 0.00 | AI82: =+AH82*E82*1.5*86.4 -> 0.00
C83: MIGUEL ANGEL/ OTRO | AH83: LT= | AI83: =+E82*1.5 -> 6.14
A84: 4F004C | B84: PR | C84: MARTINEZ RUBIO | E84: 9.74 | F84: =+IF(ISNUMBER(F85),$E84*1.5,IF(F85="","",F85)) ->  | AH84: =+SUM(F85:AG85)/24 -> 0.00 | AI84: =+AH84*E84*1.5*86.4 -> 0.00
C85: JOSE LEONSO | AH85: LT= | AI85: =+E84*1.5 -> 14.61
A86: 4F328 | B86: PR | C86: GARCIA CHONA | E86: 9.65 | F86: =+IF(ISNUMBER(F87),$E86*1.5,IF(F87="","",F87)) ->  | AH86: =+SUM(F87:AG87)/24 -> 0.00 | AI86: =+AH86*E86*1.5*86.4 -> 0.00
C87: CRUZ DELINA | AH87: LT= | AI87: =+E86*1.5 -> 14.48
A88: 4F004B | B88: L2A | C88: PAVA | E88: 8.90 | F88: =+IF(ISNUMBER(F89),$E88*1.5,IF(F89="","",F89)) ->  | AH88: =+SUM(F89:AG89)/24 -> 0.00 | AI88: =+AH88*E88*1.5*86.4 -> 0.00
C89: LUIS JAVIER Y OTRO | AH89: LT= | AI89: =+E88*1.5 -> 13.35
A90: 4F006 | B90: L2A | C90: GARCIA | E90: 4.00 | F90: =+IF(ISNUMBER(F91),$E90*1.5,IF(F91="","",F91)) ->  | AH90: =+SUM(F91:AG91)/24 -> 0.00 | AI90: =+AH90*E90*1.5*86.4 -> 0.00
C91: LINA ROSA Y OTROS | AH91: LT= | AI91: =+E90*1.5 -> 6.00
A92: 4F006A | B92: L2A | C92: CARDENAS HEREDIA | E92: 5.00 | F92: =+IF(ISNUMBER(F93),$E92*1.5,IF(F93="","",F93)) ->  | AH92: =+SUM(F93:AG93)/24 -> 0.00 | AI92: =+AH92*E92*1.5*86.4 -> 0.00
C93: PAULINO | AH93: LT= | AI93: =+E92*1.5 -> 7.50
A94: 4F006B | B94: L2A | C94: RAMIREZ MAYORGA | E94: 5.08 | F94: =+IF(ISNUMBER(F95),$E94*1.5,IF(F95="","",F95)) ->  | AH94: =+SUM(F95:AG95)/24 -> 0.00 | AI94: =+AH94*E94*1.5*86.4 -> 0.00
C95: CRISTINIANO | AH95: LT= | AI95: =+E94*1.5 -> 7.62
A96: 4F006C | B96: L2A | C96: ATUESTA ORTEGA | E96: 5.00 | F96: =+IF(ISNUMBER(F97),$E96*1.5,IF(F97="","",F97)) ->  | AH96: =+SUM(F97:AG97)/24 -> 0.00 | AI96: =+AH96*E96*1.5*86.4 -> 0.00
C97: MIGUEL ANGEL | AH97: LT= | AI97: =+E96*1.5 -> 7.50
A98: 4F006D | B98: L2A | C98: SERNA GARCIA | E98: 5.00 | F98: =+IF(ISNUMBER(F99),$E98*1.5,IF(F99="","",F99)) ->  | AH98: =+SUM(F99:AG99)/24 -> 0.00 | AI98: =+AH98*E98*1.5*86.4 -> 0.00
C99: CESARIO ANTONIO | AH99: LT= | AI99: =+E98*1.5 -> 7.50
A100: 4F006E | B100: L2A | C100: SERNA GARCIA | E100: 5.00 | F100: =+IF(ISNUMBER(F101),$E100*1.5,IF(F101="","",F101)) ->  | AH100: =+SUM(F101:AG101)/24 -> 0.00 | AI100: =+AH100*E100*1.5*86.4 -> 0.00
C101: CESARIO ANTONIO | AH101: LT= | AI101: =+E100*1.5 -> 7.50
A102: 4F006F | B102: L2A | C102: CAICEDO GALVIS | E102: 5.00 | F102: =+IF(ISNUMBER(F103),$E102*1.5,IF(F103="","",F103)) ->  | AH102: =+SUM(F103:AG103)/24 -> 0.00 | AI102: =+AH102*E102*1.5*86.4 -> 0.00
C103: ELIECER Y OTRO | AH103: LT= | AI103: =+E102*1.5 -> 7.50
A104: 4F006G | B104: L2A | C104: GARCIA | E104: 5.00 | F104: =+IF(ISNUMBER(F105),$E104*1.5,IF(F105="","",F105)) ->  | AH104: =+SUM(F105:AG105)/24 -> 0.00 | AI104: =+AH104*E104*1.5*86.4 -> 0.00
C105: LINA ROSA Y OTROS | AH105: LT= | AI105: =+E104*1.5 -> 7.50
A106: 4F006H | B106: L2A | C106: VALENCIA MEJIA | E106: 4.50 | F106: =+IF(ISNUMBER(F107),$E106*1.5,IF(F107="","",F107)) ->  | AH106: =+SUM(F107:AG107)/24 -> 0.00 | AI106: =+AH106*E106*1.5*86.4 -> 0.00
C107: WILSON | AH107: LT= | AI107: =+E106*1.5 -> 6.75
A108: 4F006I | B108: L2A | C108: BALLESTEROS | E108: 4.70 | F108: =+IF(ISNUMBER(F109),$E108*1.5,IF(F109="","",F109)) ->  | AH108: =+SUM(F109:AG109)/24 -> 0.00 | AI108: =+AH108*E108*1.5*86.4 -> 0.00
C109: LUCIANO | AH109: LT= | AI109: =+E108*1.5 -> 7.05
A110: 4F006J | B110: L2A | C110: CUERO PEREZ | E110: 5.00 | F110: =+IF(ISNUMBER(F111),$E110*1.5,IF(F111="","",F111)) ->  | AH110: =+SUM(F111:AG111)/24 -> 0.00 | AI110: =+AH110*E110*1.5*86.4 -> 0.00
C111: YESENIA | AH111: LT= | AI111: =+E110*1.5 -> 7.50
A112: 4F006L | B112: L2A | C112: FLOREZ FLOREZ | E112: 4.75 | F112: =+IF(ISNUMBER(F113),$E112*1.5,IF(F113="","",F113)) ->  | AH112: =+SUM(F113:AG113)/24 -> 0.00 | AI112: =+AH112*E112*1.5*86.4 -> 0.00
C113: MANUEL | AH113: LT= | AI113: =+E112*1.5 -> 7.13
A114: 4F006K | B114: L2A | C114: GUARIN | E114: 5.00 | F114: =+IF(ISNUMBER(F115),$E114*1.5,IF(F115="","",F115)) ->  | AH114: =+SUM(F115:AG115)/24 -> 0.00 | AI114: =+AH114*E114*1.5*86.4 -> 0.00
C115: LUIS ENRIQUE | AH115: LT= | AI115: =+E114*1.5 -> 7.50
A116: 4F006N | B116: L2A | C116: ATUESTA ORTEGA | E116: 5.00 | F116: =+IF(ISNUMBER(F117),$E116*1.5,IF(F117="","",F117)) ->  | AH116: =+SUM(F117:AG117)/24 -> 0.00 | AI116: =+AH116*E116*1.5*86.4 -> 0.00
C117: MIGUEL ANGEL | AH117: LT= | AI117: =+E116*1.5 -> 7.50
A118: 4F006O | B118: L2A | C118: GUZMAN NIETO | E118: 5.18 | F118: =+IF(ISNUMBER(F119),$E118*1.5,IF(F119="","",F119)) ->  | AH118: =+SUM(F119:AG119)/24 -> 0.00 | AI118: =+AH118*E118*1.5*86.4 -> 0.00
C119: JULIO CESAR | AH119: LT= | AI119: =+E118*1.5 -> 7.77
A120: 4F006M | B120: L2A | C120: FIGUEROA PINZON | E120: 5.00 | F120: =+IF(ISNUMBER(F121),$E120*1.5,IF(F121="","",F121)) ->  | AH120: =+SUM(F121:AG121)/24 -> 0.00 | AI120: =+AH120*E120*1.5*86.4 -> 0.00
C121: FLORENTINO | AH121: LT= | AI121: =+E120*1.5 -> 7.50
A122: 4F008A | B122: L2A | C122: RIVERA MORENO | E122: 8.25 | F122: =+IF(ISNUMBER(F123),$E122*1.5,IF(F123="","",F123)) ->  | AH122: =+SUM(F123:AG123)/24 -> 0.00 | AI122: =+AH122*E122*1.5*86.4 -> 0.00
C123: VICTOR EDUARDO | AH123: LT= | AI123: =+E122*1.5 -> 12.38
A124: 4F008C | B124: L2A | C124: GARCIA CACERES | E124: 9.00 | F124: =+IF(ISNUMBER(F125),$E124*1.5,IF(F125="","",F125)) ->  | AH124: =+SUM(F125:AG125)/24 -> 0.00 | AI124: =+AH124*E124*1.5*86.4 -> 0.00
C125: PEDRO ENOG | AH125: LT= | AI125: =+E124*1.5 -> 13.50
A126: 4F008F | B126: L2A | C126: ENCINALES ACOSTA | E126: 5.00 | F126: =+IF(ISNUMBER(F127),$E126*1.5,IF(F127="","",F127)) ->  | AH126: =+SUM(F127:AG127)/24 -> 0.00 | AI126: =+AH126*E126*1.5*86.4 -> 0.00
C127: STELLA | AH127: LT= | AI127: =+E126*1.5 -> 7.50
A128: 4F008E | B128: L2A | C128: CASTILLO ARIAS | E128: 3.28 | F128: =+IF(ISNUMBER(F129),$E128*1.5,IF(F129="","",F129)) ->  | AH128: =+SUM(F129:AG129)/24 -> 0.00 | AI128: =+AH128*E128*1.5*86.4 -> 0.00
C129: GLADYS ELENA | AH129: LT= | AI129: =+E128*1.5 -> 4.92
A130: 4F008D | B130: L2A | C130: SILVA CARRILLO | E130: 8.00 | F130: =+IF(ISNUMBER(F131),$E130*1.5,IF(F131="","",F131)) ->  | AH130: =+SUM(F131:AG131)/24 -> 0.00 | AI130: =+AH130*E130*1.5*86.4 -> 0.00
C131: DORA BETTY | AH131: LT= | AI131: =+E130*1.5 -> 12.00
A132: 4F008B | B132: L2A | C132: OBESO VARGAS | E132: 6.50 | F132: =+IF(ISNUMBER(F133),$E132*1.5,IF(F133="","",F133)) ->  | AH132: =+SUM(F133:AG133)/24 -> 0.00 | AI132: =+AH132*E132*1.5*86.4 -> 0.00
C133: BENJAMIN Y OTRO | AH133: LT= | AI133: =+E132*1.5 -> 9.75
A134: 4F008G | B134: L2A | C134: OBESO VARGAS | E134: 2.50 | F134: =+IF(ISNUMBER(F135),$E134*1.5,IF(F135="","",F135)) ->  | AH134: =+SUM(F135:AG135)/24 -> 0.00 | AI134: =+AH134*E134*1.5*86.4 -> 0.00
C135: BENJAMIN Y OTRO | AH135: LT= | AI135: =+E134*1.5 -> 3.75
A136: 4F005 | B136: PR | C136: CONTRERAS MONTES | E136: 10.00 | F136: =+IF(ISNUMBER(F137),$E136*1.5,IF(F137="","",F137)) ->  | AH136: =+SUM(F137:AG137)/24 -> 0.00 | AI136: =+AH136*E136*1.5*86.4 -> 0.00
C137: ANIANO | AH137: LT= | AI137: =+E136*1.5 -> 15.00
A138: 4F366 | B138: PR | C138: OROZCO ALTAMIRANDA | E138: 7.00 | F138: =+IF(ISNUMBER(F139),$E138*1.5,IF(F139="","",F139)) ->  | AH138: =+SUM(F139:AG139)/24 -> 0.00 | AI138: =+AH138*E138*1.5*86.4 -> 0.00
C139: ALBERTO E. | AH139: LT= | AI139: =+E138*1.5 -> 10.50
A140: 4F009 | B140: PR | C140: ANAYA VARGAS | E140: 11.23 | F140: =+IF(ISNUMBER(F141),$E140*1.5,IF(F141="","",F141)) ->  | AH140: =+SUM(F141:AG141)/24 -> 0.00 | AI140: =+AH140*E140*1.5*86.4 -> 0.00
C141: FERMINA | AH141: LT= | AI141: =+E140*1.5 -> 16.85
A142: 4F009C | B142: PR | C142: ORDUZ LANDINEZ | E142: 11.00 | F142: =+IF(ISNUMBER(F143),$E142*1.5,IF(F143="","",F143)) ->  | AH142: =+SUM(F143:AG143)/24 -> 0.00 | AI142: =+AH142*E142*1.5*86.4 -> 0.00
C143: EVELIA | AH143: LT= | AI143: =+E142*1.5 -> 16.50
A144: 4F009A | B144: PR | C144: VALENCIA MEJIA | E144: 11.13 | F144: =+IF(ISNUMBER(F145),$E144*1.5,IF(F145="","",F145)) ->  | AH144: =+SUM(F145:AG145)/24 -> 0.00 | AI144: =+AH144*E144*1.5*86.4 -> 0.00
C145: WILSON | AH145: LT= | AI145: =+E144*1.5 -> 16.70
A146: 4F009B | B146: PR | C146: CONTRERAS ORTEGA | E146: 11.12 | F146: =+IF(ISNUMBER(F147),$E146*1.5,IF(F147="","",F147)) ->  | AH146: =+SUM(F147:AG147)/24 -> 0.00 | AI146: =+AH146*E146*1.5*86.4 -> 0.00
C147: PEDRO ANTONIO | AH147: LT= | AI147: =+E146*1.5 -> 16.68
A148: 4F361 | B148: PR | C148: OROZCO ALTAMIRANDA | E148: 7.27 | F148: =+IF(ISNUMBER(F149),$E148*1.5,IF(F149="","",F149)) ->  | AH148: =+SUM(F149:AG149)/24 -> 0.00 | AI148: =+AH148*E148*1.5*86.4 -> 0.00
C149: ALBERTO E. | AH149: LT= | AI149: =+E148*1.5 -> 10.91
A150: 4F013 | B150: PR | C150: CONTRERAS | E150: 17.30 | F150: =+IF(ISNUMBER(F151),$E150*1.5,IF(F151="","",F151)) ->  | AH150: =+SUM(F151:AG151)/24 -> 0.00 | AI150: =+AH150*E150*1.5*86.4 -> 0.00
A151: E | C151: MONTES ANIANO | AH151: LT= | AI151: =+E150*1.5 -> 25.95
A152: 4F014C | B152: L3 | C152: AGUILAR REYES | E152: 7.00 | F152: =+IF(ISNUMBER(F153),$E152*1.5,IF(F153="","",F153)) ->  | AH152: =+SUM(F153:AG153)/24 -> 0.00 | AI152: =+AH152*E152*1.5*86.4 -> 0.00
C153: DANIEL ALEXANDER | AH153: LT= | AI153: =+E152*1.5 -> 10.50
A154: 4F014A | B154: L3 | C154: UMAÑA PEREZ | E154: 8.58 | F154: =+IF(ISNUMBER(F155),$E154*1.5,IF(F155="","",F155)) ->  | AH154: =+SUM(F155:AG155)/24 -> 0.00 | AI154: =+AH154*E154*1.5*86.4 -> 0.00
C155: CESAR AUGUSTO | AH155: LT= | AI155: =+E154*1.5 -> 12.87
A156: 4F010 | B156: L3 | C156: CARRILLO MARTINEZ | E156: 20.00 | F156: =+IF(ISNUMBER(F157),$E156*1.5,IF(F157="","",F157)) ->  | AH156: =+SUM(F157:AG157)/24 -> 0.00 | AI156: =+AH156*E156*1.5*86.4 -> 0.00
C157: SAMUEL | AH157: LT= | AI157: =+E156*1.5 -> 30.00
A158: 4F010A | B158: L3 | C158: CARRILLO MARTINEZ | E158: 11.00 | F158: =+IF(ISNUMBER(F159),$E158*1.5,IF(F159="","",F159)) ->  | AH158: =+SUM(F159:AG159)/24 -> 0.00 | AI158: =+AH158*E158*1.5*86.4 -> 0.00
C159: SAMUEL | AH159: LT= | AI159: =+E158*1.5 -> 16.50
A160: 4F010A | B160: L3 | C160: CARRILLO MARTINEZ | E160: 11.10 | F160: =+IF(ISNUMBER(F161),$E160*1.5,IF(F161="","",F161)) ->  | AH160: =+SUM(F161:AG161)/24 -> 0.00 | AI160: =+AH160*E160*1.5*86.4 -> 0.00
C161: SAMUEL | AH161: LT= | AI161: =+E160*1.5 -> 16.65
A162: 4F014D | B162: L3 | C162: AGUILAR BARRIENTOS | E162: 7.00 | F162: =+IF(ISNUMBER(F163),$E162*1.5,IF(F163="","",F163)) ->  | AH162: =+SUM(F163:AG163)/24 -> 0.00 | AI162: =+AH162*E162*1.5*86.4 -> 0.00
C163: OMAR | AH163: LT= | AI163: =+E162*1.5 -> 10.50
A164: 4F014B | B164: L3 | C164: BABILONIA RAMOS | E164: 8.00 | F164: =+IF(ISNUMBER(F165),$E164*1.5,IF(F165="","",F165)) ->  | AH164: =+SUM(F165:AG165)/24 -> 0.00 | AI164: =+AH164*E164*1.5*86.4 -> 0.00
C165: INDULFO MANUEL | AH165: LT= | AI165: =+E164*1.5 -> 12.00
A166: 4F011 | B166: L3 | C166: PALENCIA DE GARCIA | E166: 7.00 | F166: =+IF(ISNUMBER(F167),$E166*1.5,IF(F167="","",F167)) ->  | AH166: =+SUM(F167:AG167)/24 -> 0.00 | AI166: =+AH166*E166*1.5*86.4 -> 0.00
C167: ALIX MARIA | AH167: LT= | AI167: =+E166*1.5 -> 10.50
A168: 4F011A | B168: L3 | C168: PALENCIA DE GARCIA | E168: 33.00 | F168: =+IF(ISNUMBER(F169),$E168*1.5,IF(F169="","",F169)) ->  | AH168: =+SUM(F169:AG169)/24 -> 0.00 | AI168: =+AH168*E168*1.5*86.4 -> 0.00
C169: ALIX MARIA | AH169: LT= | AI169: =+E168*1.5 -> 49.50
A170: 4F014E | B170: L3 | C170: FORI MONCADA | E170: 6.90 | F170: =+IF(ISNUMBER(F171),$E170*1.5,IF(F171="","",F171)) ->  | AH170: =+SUM(F171:AG171)/24 -> 0.00 | AI170: =+AH170*E170*1.5*86.4 -> 0.00
C171: JOSE ALFREDO Y OT | AH171: LT= | AI171: =+E170*1.5 -> 10.35
A172: 4F029 | B172: L3 | C172: RUIZ RAMIREZ | E172: 18.63 | F172: =+IF(ISNUMBER(F173),$E172*1.5,IF(F173="","",F173)) ->  | AH172: =+SUM(F173:AG173)/24 -> 0.00 | AI172: =+AH172*E172*1.5*86.4 -> 0.00
C173: NELSON ENRRIQUE | AH173: LT= | AI173: =+E172*1.5 -> 27.95
A174: 4F014F | B174: L3 | C174: RIVERO GONZALEZ | E174: 1.00 | F174: =+IF(ISNUMBER(F175),$E174*1.5,IF(F175="","",F175)) ->  | AH174: =+SUM(F175:AG175)/24 -> 0.00 | AI174: =+AH174*E174*1.5*86.4 -> 0.00
C175: HERIBERTO | AH175: LT= | AI175: =+E174*1.5 -> 1.50
A176: 4F030 | B176: L3 | C176: VARGAS RIVERA | E176: 4.96 | F176: =+IF(ISNUMBER(F177),$E176*1.5,IF(F177="","",F177)) ->  | AH176: =+SUM(F177:AG177)/24 -> 0.00 | AI176: =+AH176*E176*1.5*86.4 -> 0.00
C177: RAMIRO ANTONIO | AH177: LT= | AI177: =+E176*1.5 -> 7.44
A178: 4F015 | B178: L3 | C178: PALENCIA DE GARCIA | E178: 25.00 | F178: =+IF(ISNUMBER(F179),$E178*1.5,IF(F179="","",F179)) ->  | AH178: =+SUM(F179:AG179)/24 -> 0.00 | AI178: =+AH178*E178*1.5*86.4 -> 0.00
C179: ALIX MARIA | AH179: LT= | AI179: =+E178*1.5 -> 37.50
A180: 4F015A | B180: L3 | C180: PALENCIA DE GARCIA | E180: 31.00 | F180: =+IF(ISNUMBER(F181),$E180*1.5,IF(F181="","",F181)) ->  | AH180: =+SUM(F181:AG181)/24 -> 0.00 | AI180: =+AH180*E180*1.5*86.4 -> 0.00
C181: ALIX MARIA | AH181: LT= | AI181: =+E180*1.5 -> 46.50
A182: 4F012A | B182: L3 | C182: GOMEZ AGREDO | E182: 7.12 | F182: =+IF(ISNUMBER(F183),$E182*1.5,IF(F183="","",F183)) ->  | AH182: =+SUM(F183:AG183)/24 -> 0.00 | AI182: =+AH182*E182*1.5*86.4 -> 0.00
C183: HERIBERTO | AH183: LT= | AI183: =+E182*1.5 -> 10.68
A184: 4F012C | B184: L3 | C184: CONTRERAS ROJAS | E184: 7.33 | F184: =+IF(ISNUMBER(F185),$E184*1.5,IF(F185="","",F185)) ->  | AH184: =+SUM(F185:AG185)/24 -> 0.00 | AI184: =+AH184*E184*1.5*86.4 -> 0.00
C185: CARMEN | AH185: LT= | AI185: =+E184*1.5 -> 11.00
A186: 4F012B | B186: L3 | C186: ROJAS SANTOS | E186: 6.00 | F186: =+IF(ISNUMBER(F187),$E186*1.5,IF(F187="","",F187)) ->  | AH186: =+SUM(F187:AG187)/24 -> 0.00 | AI186: =+AH186*E186*1.5*86.4 -> 0.00
C187: ELIODORO | AH187: LT= | AI187: =+E186*1.5 -> 9.00
A188: 4F020 | B188: L3A | C188: OROZCO ALTAMIRANDA | E188: 10.46 | F188: =+IF(ISNUMBER(F189),$E188*1.5,IF(F189="","",F189)) ->  | AH188: =+SUM(F189:AG189)/24 -> 0.00 | AI188: =+AH188*E188*1.5*86.4 -> 0.00
C189: ALBERTO E. | AH189: LT= | AI189: =+E188*1.5 -> 15.69
A190: 4F019 | B190: L3A | C190: RUIZ RAMIREZ | E190: 10.25 | F190: =+IF(ISNUMBER(F191),$E190*1.5,IF(F191="","",F191)) ->  | AH190: =+SUM(F191:AG191)/24 -> 0.00 | AI190: =+AH190*E190*1.5*86.4 -> 0.00
C191: NELSON ENRRIQUE | AH191: LT= | AI191: =+E190*1.5 -> 15.38
A192: 4F017 | B192: L3A | C192: BAUTISTA OSORIO | E192: 10.60 | F192: =+IF(ISNUMBER(F193),$E192*1.5,IF(F193="","",F193)) ->  | AH192: =+SUM(F193:AG193)/24 -> 0.00 | AI192: =+AH192*E192*1.5*86.4 -> 0.00
C193: GLADYS CECILIA | AH193: LT= | AI193: =+E192*1.5 -> 15.90
A194: 4F028 | B194: L3A | C194: MARQUEZ CARDENAS | E194: 13.06 | F194: =+IF(ISNUMBER(F195),$E194*1.5,IF(F195="","",F195)) ->  | AH194: =+SUM(F195:AG195)/24 -> 0.00 | AI194: =+AH194*E194*1.5*86.4 -> 0.00
C195: MARTHA CECILIA | AH195: LT= | AI195: =+E194*1.5 -> 19.59
A196: 4F027 | B196: L3A | C196: REYES VILLALTA | E196: 6.00 | F196: =+IF(ISNUMBER(F197),$E196*1.5,IF(F197="","",F197)) ->  | AH196: =+SUM(F197:AG197)/24 -> 0.00 | AI196: =+AH196*E196*1.5*86.4 -> 0.00
C197: MARIELA | AH197: LT= | AI197: =+E196*1.5 -> 9.00
A198: 4F027A | B198: L3A | C198: REYES VILLALTA | E198: 8.36 | F198: =+IF(ISNUMBER(F199),$E198*1.5,IF(F199="","",F199)) ->  | AH198: =+SUM(F199:AG199)/24 -> 0.00 | AI198: =+AH198*E198*1.5*86.4 -> 0.00
C199: MARIELA | AH199: LT= | AI199: =+E198*1.5 -> 12.54
A200: 4F036 | B200: PR | C200: SANABRIA OMAÑA | E200: 0.50 | F200: =+IF(ISNUMBER(F201),$E200*1.5,IF(F201="","",F201)) ->  | AH200: =+SUM(F201:AG201)/24 -> 0.00 | AI200: =+AH200*E200*1.5*86.4 -> 0.00
C201: MARIA DEL ROSARIO | AH201: LT= | AI201: =+E200*1.5 -> 0.75
... 46 more rows

Sheet MARZO
A1: ASOCIACION DE USUARIOS DISTRITO DE ADECUACION DE TIERRAS DE GRAN ESCALA DEL RIO ZULIA ASOZULIA NIT 800,168,858-6 | AJ1: CODIGO: DTE-OPER-FR-01
AJ2: VERSION: 01
A3: CONTROL DIARIO DE RIEGO POR PREDIO Y CANAL | AJ3: FECHA: 16/06/2023
A5: ZONA | B5: RESTAURACIÓN | E5: AUXILIAR DE RIEGO | J5: EDWIN JAIR ZAMORA CHACON | S5: CANAL | AF5: MES | AG5: MARZO | AK5: AÑO | AL5: 2023
A6: CAUDAL DIARIO DERIVADO | E6: DIAS | F6: 1 | G6: 2 | H6: 3 | I6: 4 | J6: 5 | K6: 6 | L6: 7 | M6: 8 | N6: 9 | O6: 10 | P6: 11 | Q6: 12 | R6: 13 | S6: 14 | T6: 15 | U6: 16 | V6: 17 | W6: 18 | X6: 19 | Y6: 20 | Z6: 21 | AA6: 22 | AB6: 23 | AC6: 24 | AD6: 25 | AE6: 26 | AF6: 27 | AG6: 28 | AH6: 29 | AI6: 30 | AJ6: 31 | AK6: TOTAL DIAS | AL6: TOTAL M3
A7: CODIGO | B7: RAMAL | C7: USUARIO | D7: T.CULT | E7: AREA
A8: 4F300 | B8: PR | C8: BELTRAN GARCIA | D8: CA | E8: 30.00 | F8: =+IF(ISNUMBER(F9),$E8*1.5,IF(F9="","",F9)) ->  | G8: =+IF(ISNUMBER(G9),$E8*1.5,IF(G9="","",G9)) ->  | H8: FR | I8: 45.0 | J8: 45.0 | K8: 45.0 | L8: 45.0 | M8: 45.0 | N8: IC | Q8: =+IF(ISNUMBER(Q9),$E8*1.5,IF(Q9="","",Q9)) ->  | AK8: =+SUM(F9:AJ9)/24 -> 0.83 | AL8: =+AK8*E8*1.5*86.4 -> 3240.00 | AN8: FC
C9: LUIS | H9: FR | I9: 1 | J9: 2 | K9: 3 | L9: 4 | M9: 10 | N9: IC | AK9: LT= | AL9: =+E8*1.5 -> 45.00 | AN9: IC
A10: 4F350 | B10: PR | C10: VILLARREAL OSORIO | E10: 17.53 | F10: =+IF(ISNUMBER(F11),$E10*1.5,IF(F11="","",F11)) ->  | AK10: =+SUM(F11:AJ11)/24 -> 0.00 | AL10: =+AK10*E10*1.5*86.4 -> 0.00 | AN10: FR
C11: CLEMENTE | AK11: LT= | AL11: =+E10*1.5 -> 26.30 | AN11: IR
A12: 4F340 | B12: PR | C12: SANTANA CORTES | E12: 8.00 | F12: =+IF(ISNUMBER(F13),$E12*1.5,IF(F13="","",F13)) ->  | X12: 12.0 | Y12: 12.0 | Z12: 12.0 | AA12: FC | AC12: IC1 | AK12: =+SUM(F13:AJ13)/24 -> 1.25 | AL12: =+AK12*E12*1.5*86.4 -> 1296.00 | AN12: SR
C13: JOSE DOMINGO | X13: 10 | Y13: 10 | Z13: 10 | AA13: FC | AC13: IC1 | AK13: LT= | AL13: =+E12*1.5 -> 12.00 | AN13: RR
A14: 4F338 | B14: PR | C14: RIOS SUESCUN | E14: 8.75 | F14: =+IF(ISNUMBER(F15),$E14*1.5,IF(F15="","",F15)) ->  | AK14: =+SUM(F15:AJ15)/24 -> 0.00 | AL14: =+AK14*E14*1.5*86.4 -> 0.00 | AN14: ID
C15: MARIA LUCIA | AK15: LT= | AL15: =+E14*1.5 -> 13.13 | AN15: IC1
A16: 4F330 | B16: PR | C16: RIAÑO RAMIREZ | E16: 12.06 | F16: =+IF(ISNUMBER(F17),$E16*1.5,IF(F17="","",F17)) ->  | AK16: =+SUM(F17:AJ17)/24 -> 0.00 | AL16: =+AK16*E16*1.5*86.4 -> 0.00
C17: MARIA VICTORIA | AK17: LT= | AL17: =+E16*1.5 -> 18.09
A18: 4F320 | B18: PR | C18: RIAÑO VALDERRAMA | E18: 5.29 | F18: =+IF(ISNUMBER(F19),$E18*1.5,IF(F19="","",F19)) ->  | AK18: =+SUM(F19:AJ19)/24 -> 0.00 | AL18: =+AK18*E18*1.5*86.4 -> 0.00
C19: FREDDY ALEXANDER | AK19: LT= | AL19: =+E18*1.5 -> 7.94
A20: 4F320A | B20: PR | C20: RIAÑO VALDERRAMA | E20: 5.29 | F20: =+IF(ISNUMBER(F21),$E20*1.5,IF(F21="","",F21)) ->  | AK20: =+SUM(F21:AJ21)/24 -> 0.00 | AL20: =+AK20*E20*1.5*86.4 -> 0.00
C21: JENNY MARITZA | AK21: LT= | AL21: =+E20*1.5 -> 7.94
A22: 4F320B | B22: PR | C22: RIAÑO VALDERRAMA | E22: 4.14 | F22: =+IF(ISNUMBER(F23),$E22*1.5,IF(F23="","",F23)) ->  | AK22: =+SUM(F23:AJ23)/24 -> 0.00 | AL22: =+AK22*E22*1.5*86.4 -> 0.00
C23: FLOR LILIANA | AK23: LT= | AL23: =+E22*1.5 -> 6.21
A24: 4F320C | B24: PR | C24: RIAÑO VALDERRAMA | E24: 4.14 | F24: =+IF(ISNUMBER(F25),$E24*1.5,IF(F25="","",F25)) ->  | AK24: =+SUM(F25:AJ25)/24 -> 0.00 | AL24: =+AK24*E24*1.5*86.4 -> 0.00
C25: CIRO PASTOR | AK25: LT= | AL25: =+E24*1.5 -> 6.21
A26: 4F341 | B26: PR | C26: ORTEGA MORA | E26: 8.46 | F26: =+IF(ISNUMBER(F27),$E26*1.5,IF(F27="","",F27)) ->  | AK26: =+SUM(F27:AJ27)/24 -> 0.00 | AL26: =+AK26*E26*1.5*86.4 -> 0.00
C27: JOSE DEL CARMEN | AK27: LT= | AL27: =+E26*1.5 -> 12.69
A28: 4F319 | B28: PR | C28: SANTANA CORTES | E28: 26.50 | F28: =+IF(ISNUMBER(F29),$E28*1.5,IF(F29="","",F29)) ->  | AK28: =+SUM(F29:AJ29)/24 -> 0.00 | AL28: =+AK28*E28*1.5*86.4 -> 0.00
C29: ELVIA Y OTROS | AK29: LT= | AL29: =+E28*1.5 -> 39.75
A30: 4F314 | B30: PR | C30: GONZALEZ GIRON | E30: 3.00 | F30: =+IF(ISNUMBER(F31),$E30*1.5,IF(F31="","",F31)) ->  | AK30: =+SUM(F31:AJ31)/24 -> 0.00 | AL30: =+AK30*E30*1.5*86.4 -> 0.00
C31: EVELIO | AK31: LT= | AL31: =+E30*1.5 -> 4.50
A32: 4F035 | B32: PR | C32: VALDERRAMA CARDENAS | E32: 11.54 | F32: =+IF(ISNUMBER(F33),$E32*1.5,IF(F33="","",F33)) ->  | AK32: =+SUM(F33:AJ33)/24 -> 0.00 | AL32: =+AK32*E32*1.5*86.4 -> 0.00
C33: GUILLERMO Y OTROS | AK33: LT= | AL33: =+E32*1.5 -> 17.31
A34: 4F329B | B34: PR | C34: MARIN ZAPATA | E34: 7.00 | F34: =+IF(ISNUMBER(F35),$E34*1.5,IF(F35="","",F35)) ->  | AK34: =+SUM(F35:AJ35)/24 -> 0.00 | AL34: =+AK34*E34*1.5*86.4 -> 0.00
C35: ABELARDO ANTONIO | AK35: LT= | AL35: =+E34*1.5 -> 10.50
A36: 4F346 | B36: PR | C36: CASTELLANOS TARAZONA | E36: 10.00 | F36: =+IF(ISNUMBER(F37),$E36*1.5,IF(F37="","",F37)) ->  | AK36: =+SUM(F37:AJ37)/24 -> 0.00 | AL36: =+AK36*E36*1.5*86.4 -> 0.00
C37: JOSE DARIO | AK37: LT= | AL37: =+E36*1.5 -> 15.00
A38: 4F315 | B38: PR | C38: VILLARREAL OSORIO | E38: 12.23 | F38: =+IF(ISNUMBER(F39),$E38*1.5,IF(F39="","",F39)) ->  | AK38: =+SUM(F39:AJ39)/24 -> 0.00 | AL38: =+AK38*E38*1.5*86.4 -> 0.00
C39: EDILSON | AK39: LT= | AL39: =+E38*1.5 -> 18.35
A40: 4F001A | B40: L2 | C40: MARQUEZ CARDENAS | E40: 12.00 | F40: =+IF(ISNUMBER(F41),$E40*1.5,IF(F41="","",F41)) ->  | AK40: =+SUM(F41:AJ41)/24 -> 0.00 | AL40: =+AK40*E40*1.5*86.4 -> 0.00
C41: MARTHA CECILIA | AK41: LT= | AL41: =+E40*1.5 -> 18.00
A42: 4F001 | B42: L2 | C42: MARQUEZ CARDENAS | E42: 13.00 | F42: =+IF(ISNUMBER(F43),$E42*1.5,IF(F43="","",F43)) ->  | AK42: =+SUM(F43:AJ43)/24 -> 0.00 | AL42: =+AK42*E42*1.5*86.4 -> 0.00
C43: MARTHA CECILIA | AK43: LT= | AL43: =+E42*1.5 -> 19.50
A44: 4F031 | B44: L2 | C44: LERMA DIAZ | E44: 4.70 | F44: =+IF(ISNUMBER(F45),$E44*1.5,IF(F45="","",F45)) ->  | AK44: =+SUM(F45:AJ45)/24 -> 0.00 | AL44: =+AK44*E44*1.5*86.4 -> 0.00
C45: RAFAEL JULIO | AK45: LT= | AL45: =+E44*1.5 -> 7.05
A46: 4F031A | B46: L2 | C46: RIAÑO RAMIREZ | E46: 2.90 | F46: =+IF(ISNUMBER(F47),$E46*1.5,IF(F47="","",F47)) ->  | AK46: =+SUM(F47:AJ47)/24 -> 0.00 | AL46: =+AK46*E46*1.5*86.4 -> 0.00
C47: MARIA VICTORIA | AK47: LT= | AL47: =+E46*1.5 -> 4.35
A48: 4F031B | B48: L2 | C48: AREVALO ACEVEDO | E48: 2.30 | F48: =+IF(ISNUMBER(F49),$E48*1.5,IF(F49="","",F49)) ->  | AK48: =+SUM(F49:AJ49)/24 -> 0.00 | AL48: =+AK48*E48*1.5*86.4 -> 0.00
C49: RAMIRO Y OTRO | AK49: LT= | AL49: =+E48*1.5 -> 3.45
A50: 4F031C | B50: L2 | C50: BUSTAMANTE | E50: 3.20 | F50: =+IF(ISNUMBER(F51),$E50*1.5,IF(F51="","",F51)) ->  | AK50: =+SUM(F51:AJ51)/24 -> 0.00 | AL50: =+AK50*E50*1.5*86.4 -> 0.00
C51: JAIME DE J. Y OTRO | AK51: LT= | AL51: =+E50*1.5 -> 4.80
A52: 4F031D | B52: L2 | C52: AREVALO ACEVEDO | E52: 2.80 | F52: =+IF(ISNUMBER(F53),$E52*1.5,IF(F53="","",F53)) ->  | AK52: =+SUM(F53:AJ53)/24 -> 0.00 | AL52: =+AK52*E52*1.5*86.4 -> 0.00
C53: RAMIRO Y OTRO | AK53: LT= | AL53: =+E52*1.5 -> 4.20
A54: 4F031E | B54: L2 | C54: VILLAMIZAR | E54: 2.60 | F54: =+IF(ISNUMBER(F55),$E54*1.5,IF(F55="","",F55)) ->  | AK54: =+SUM(F55:AJ55)/24 -> 0.00 | AL54: =+AK54*E54*1.5*86.4 -> 0.00
C55: MARITZA | AK55: LT= | AL55: =+E54*1.5 -> 3.90
A56: 4F031F | B56: L2 | C56: VILLAMIZAR | E56: 1.50 | F56: =+IF(ISNUMBER(F57),$E56*1.5,IF(F57="","",F57)) ->  | AK56: =+SUM(F57:AJ57)/24 -> 0.00 | AL56: =+AK56*E56*1.5*86.4 -> 0.00
C57: MARITZA | AK57: LT= | AL57: =+E56*1.5 -> 2.25
A58: 4F031G | B58: L2 | C58: SANABRIA | E58: 0.58 | F58: =+IF(ISNUMBER(F59),$E58*1.5,IF(F59="","",F59)) ->  | AK58: =+SUM(F59:AJ59)/24 -> 0.00 | AL58: =+AK58*E58*1.5*86.4 -> 0.00
C59: MIGUEL ANTONIO | AK59: LT= | AL59: =+E58*1.5 -> 0.87
A60: 4F031H | B60: L2 | C60: DIAZ LERMA | E60: 4.00 | F60: =+IF(ISNUMBER(F61),$E60*1.5,IF(F61="","",F61)) ->  | AK60: =+SUM(F61:AJ61)/24 -> 0.00 | AL60: =+AK60*E60*1.5*86.4 -> 0.00
C61: LUIS ADAN | AK61: LT= | AL61: =+E60*1.5 -> 6.00
A62: 4F031I | B62: L2 | C62: CAICEDO GALVIS | E62: 8.60 | F62: =+IF(ISNUMBER(F63),$E62*1.5,IF(F63="","",F63)) ->  | AK62: =+SUM(F63:AJ63)/24 -> 0.00 | AL62: =+AK62*E62*1.5*86.4 -> 0.00
C63: ELIECER Y OTROS | AK63: LT= | AL63: =+E62*1.5 -> 12.90
A64: 4F003 | B64: L2 | C64: MENESES | E64: 9.46 | F64: =+IF(ISNUMBER(F65),$E64*1.5,IF(F65="","",F65)) ->  | AK64: =+SUM(F65:AJ65)/24 -> 0.00 | AL64: =+AK64*E64*1.5*86.4 -> 0.00
C65: POLICARPO | AK65: LT= | AL65: =+E64*1.5 -> 14.19
A66: 4F003A | B66: L2 | C66: ORTEGA RIVERA | E66: 8.26 | F66: =+IF(ISNUMBER(F67),$E66*1.5,IF(F67="","",F67)) ->  | AK66: =+SUM(F67:AJ67)/24 -> 0.00 | AL66: =+AK66*E66*1.5*86.4 -> 0.00
C67: PEDRO MIGUEL | AK67: LT= | AL67: =+E66*1.5 -> 12.39
A68: 4F329A | B68: PR | C68: DIAZ | E68: 3.80 | F68: =+IF(ISNUMBER(F69),$E68*1.5,IF(F69="","",F69)) ->  | AK68: =+SUM(F69:AJ69)/24 -> 0.00 | AL68: =+AK68*E68*1.5*86.4 -> 0.00
C69: ROSALBINA | AK69: LT= | AL69: =+E68*1.5 -> 5.70
A70: 4F329A | B70: PR | C70: DIAZ | E70: 2.00 | F70: =+IF(ISNUMBER(F71),$E70*1.5,IF(F71="","",F71)) ->  | AK70: =+SUM(F71:AJ71)/24 -> 0.00 | AL70: =+AK70*E70*1.5*86.4 -> 0.00
C71: ROSALBINA | AK71: LT= | AL71: =+E70*1.5 -> 3.00
A72: 4F329D | B72: PR | C72: RUBIO | E72: 7.24 | F72: =+IF(ISNUMBER(F73),$E72*1.5,IF(F73="","",F73)) ->  | AK72: =+SUM(F73:AJ73)/24 -> 0.00 | AL72: =+AK72*E72*1.5*86.4 -> 0.00
C73: MARIA EDELMIRA | AK73: LT= | AL73: =+E72*1.5 -> 10.86
A74: 4F329C | B74: PR | C74: MARTINEZ ALARCON | E74: 6.00 | F74: =+IF(ISNUMBER(F75),$E74*1.5,IF(F75="","",F75)) ->  | AK74: =+SUM(F75:AJ75)/24 -> 0.00 | AL74: =+AK74*E74*1.5*86.4 -> 0.00
C75: LUIS ALBERTO | AK75: LT= | AL75: =+E74*1.5 -> 9.00
A76: 4F004D | B76: PR | C76: DUARTE ACEVEDO | E76: 8.33 | F76: =+IF(ISNUMBER(F77),$E76*1.5,IF(F77="","",F77)) ->  | AK76: =+SUM(F77:AJ77)/24 -> 0.00 | AL76: =+AK76*E76*1.5*86.4 -> 0.00
C77: PEDRO Y OTROS | AK77: LT= | AL77: =+E76*1.5 -> 12.50
A78: 4F004A | B78: PR | C78: GARCIA CHONA | E78: 8.92 | F78: =+IF(ISNUMBER(F79),$E78*1.5,IF(F79="","",F79)) ->  | AK78: =+SUM(F79:AJ79)/24 -> 0.00 | AL78: =+AK78*E78*1.5*86.4 -> 0.00
C79: CRUZ DELINA | AK79: LT= | AL79: =+E78*1.5 -> 13.38
A80: 4F004E | B80: PR | C80: ROZO RICO | E80: 5.35 | F80: =+IF(ISNUMBER(F81),$E80*1.5,IF(F81="","",F81)) ->  | AK80: =+SUM(F81:AJ81)/24 -> 0.00 | AL80: =+AK80*E80*1.5*86.4 -> 0.00
C81: JOSE RAMON | AK81: LT= | AL81: =+E80*1.5 -> 8.03
A82: 4F004 | B82: PR | C82: QUINTERO M. | E82: 4.09 | F82: =+IF(ISNUMBER(F83),$E82*1.5,IF(F83="","",F83)) ->  | AK82: =+SUM(F83:AJ83)/24 -> 0.00 | AL82: =+AK82*E82*1.5*86.4 -> 0.00
C83: MIGUEL ANGEL/ OTRO | AK83: LT= | AL83: =+E82*1.5 -> 6.14
A84: 4F004C | B84: PR | C84: MARTINEZ RUBIO | E84: 9.74 | F84: =+IF(ISNUMBER(F85),$E84*1.5,IF(F85="","",F85)) ->  | AK84: =+SUM(F85:AJ85)/24 -> 0.00 | AL84: =+AK84*E84*1.5*86.4 -> 0.00
C85: JOSE LEONSO | AK85: LT= | AL85: =+E84*1.5 -> 14.61
A86: 4F328 | B86: PR | C86: GARCIA CHONA | E86: 9.65 | F86: =+IF(ISNUMBER(F87),$E86*1.5,IF(F87="","",F87)) ->  | AK86: =+SUM(F87:AJ87)/24 -> 0.00 | AL86: =+AK86*E86*1.5*86.4 -> 0.00
C87: CRUZ DELINA | AK87: LT= | AL87: =+E86*1.5 -> 14.48
A88: 4F004B | B88: L2A | C88: PAVA | E88: 8.90 | F88: =+IF(ISNUMBER(F89),$E88*1.5,IF(F89="","",F89)) ->  | AK88: =+SUM(F89:AJ89)/24 -> 0.00 | AL88: =+AK88*E88*1.5*86.4 -> 0.00
C89: LUIS JAVIER Y OTRO | AK89: LT= | AL89: =+E88*1.5 -> 13.35
A90: 4F006 | B90: L2A | C90: GARCIA | E90: 4.00 | F90: =+IF(ISNUMBER(F91),$E90*1.5,IF(F91="","",F91)) ->  | AK90: =+SUM(F91:AJ91)/24 -> 0.00 | AL90: =+AK90*E90*1.5*86.4 -> 0.00
C91: LINA ROSA Y OTROS | AK91: LT= | AL91: =+E90*1.5 -> 6.00
A92: 4F006A | B92: L2A | C92: CARDENAS HEREDIA | E92: 5.00 | F92: =+IF(ISNUMBER(F93),$E92*1.5,IF(F93="","",F93)) ->  | AK92: =+SUM(F93:AJ93)/24 -> 0.00 | AL92: =+AK92*E92*1.5*86.4 -> 0.00
C93: PAULINO | AK93: LT= | AL93: =+E92*1.5 -> 7.50
A94: 4F006B | B94: L2A | C94: RAMIREZ MAYORGA | E94: 5.08 | F94: =+IF(ISNUMBER(F95),$E94*1.5,IF(F95="","",F95)) ->  | AK94: =+SUM(F95:AJ95)/24 -> 0.00 | AL94: =+AK94*E94*1.5*86.4 -> 0.00
C95: CRISTINIANO | AK95: LT= | AL95: =+E94*1.5 -> 7.62
A96: 4F006C | B96: L2A | C96: ATUESTA ORTEGA | E96: 5.00 | F96: =+IF(ISNUMBER(F97),$E96*1.5,IF(F97="","",F97)) ->  | AK96: =+SUM(F97:AJ97)/24 -> 0.00 | AL96: =+AK96*E96*1.5*86.4 -> 0.00
C97: MIGUEL ANGEL | AK97: LT= | AL97: =+E96*1.5 -> 7.50
A98: 4F006D | B98: L2A | C98: SERNA GARCIA | E98: 5.00 | F98: =+IF(ISNUMBER(F99),$E98*1.5,IF(F99="","",F99)) ->  | AK98: =+SUM(F99:AJ99)/24 -> 0.00 | AL98: =+AK98*E98*1.5*86.4 -> 0.00
C99: CESARIO ANTONIO | AK99: LT= | AL99: =+E98*1.5 -> 7.50
A100: 4F006E | B100: L2A | C100: SERNA GARCIA | E100: 5.00 | F100: =+IF(ISNUMBER(F101),$E100*1.5,IF(F101="","",F101)) ->  | AK100: =+SUM(F101:AJ101)/24 -> 0.00 | AL100: =+AK100*E100*1.5*86.4 -> 0.00
C101: CESARIO ANTONIO | AK101: LT= | AL101: =+E100*1.5 -> 7.50
A102: 4F006F | B102: L2A | C102: CAICEDO GALVIS | E102: 5.00 | F102: =+IF(ISNUMBER(F103),$E102*1.5,IF(F103="","",F103)) ->  | AK102: =+SUM(F103:AJ103)/24 -> 0.00 | AL102: =+AK102*E102*1.5*86.4 -> 0.00
C103: ELIECER Y OTRO | AK103: LT= | AL103: =+E102*1.5 -> 7.50
A104: 4F006G | B104: L2A | C104: GARCIA | E104: 5.00 | F104: =+IF(ISNUMBER(F105),$E104*1.5,IF(F105="","",F105)) ->  | AK104: =+SUM(F105:AJ105)/24 -> 0.00 | AL104: =+AK104*E104*1.5*86.4 -> 0.00
C105: LINA ROSA Y OTROS | AK105: LT= | AL105: =+E104*1.5 -> 7.50
A106: 4F006H | B106: L2A | C106: VALENCIA MEJIA | E106: 4.50 | F106: =+IF(ISNUMBER(F107),$E106*1.5,IF(F107="","",F107)) ->  | AK106: =+SUM(F107:AJ107)/24 -> 0.00 | AL106: =+AK106*E106*1.5*86.4 -> 0.00
C107: WILSON | AK107: LT= | AL107: =+E106*1.5 -> 6.75
A108: 4F006I | B108: L2A | C108: BALLESTEROS | E108: 4.70 | F108: =+IF(ISNUMBER(F109),$E108*1.5,IF(F109="","",F109)) ->  | AK108: =+SUM(F109:AJ109)/24 -> 0.00 | AL108: =+AK108*E108*1.5*86.4 -> 0.00
C109: LUCIANO | AK109: LT= | AL109: =+E108*1.5 -> 7.05
A110: 4F006J | B110: L2A | C110: CUERO PEREZ | E110: 5.00 | F110: =+IF(ISNUMBER(F111),$E110*1.5,IF(F111="","",F111)) ->  | AK110: =+SUM(F111:AJ111)/24 -> 0.00 | AL110: =+AK110*E110*1.5*86.4 -> 0.00
C111: YESENIA | AK111: LT= | AL111: =+E110*1.5 -> 7.50
A112: 4F006L | B112: L2A | C112: FLOREZ FLOREZ | E112: 4.75 | F112: =+IF(ISNUMBER(F113),$E112*1.5,IF(F113="","",F113)) ->  | AK112: =+SUM(F113:AJ113)/24 -> 0.00 | AL112: =+AK112*E112*1.5*86.4 -> 0.00
C113: MANUEL | AK113: LT= | AL113: =+E112*1.5 -> 7.13
A114: 4F006K | B114: L2A | C114: GUARIN | E114: 5.00 | F114: =+IF(ISNUMBER(F115),$E114*1.5,IF(F115="","",F115)) ->  | AK114: =+SUM(F115:AJ115)/24 -> 0.00 | AL114: =+AK114*E114*1.5*86.4 -> 0.00
C115: LUIS ENRIQUE | AK115: LT= | AL115: =+E114*1.5 -> 7.50
A116: 4F006N | B116: L2A | C116: ATUESTA ORTEGA | E116: 5.00 | F116: =+IF(ISNUMBER(F117),$E116*1.5,IF(F117="","",F117)) ->  | AK116: =+SUM(F117:AJ117)/24 -> 0.00 | AL116: =+AK116*E116*1.5*86.4 -> 0.00
C117: MIGUEL ANGEL | AK117: LT= | AL117: =+E116*1.5 -> 7.50
A118: 4F006O | B118: L2A | C118: GUZMAN NIETO | E118: 5.18 | F118: =+IF(ISNUMBER(F119),$E118*1.5,IF(F119="","",F119)) ->  | AK118: =+SUM(F119:AJ119)/24 -> 0.00 | AL118: =+AK118*E118*1.5*86.4 -> 0.00
C119: JULIO CESAR | AK119: LT= | AL119: =+E118*1.5 -> 7.77
A120: 4F006M | B120: L2A | C120: FIGUEROA PINZON | E120: 5.00 | F120: =+IF(ISNUMBER(F121),$E120*1.5,IF(F121="","",F121)) ->  | AK120: =+SUM(F121:AJ121)/24 -> 0.00 | AL120: =+AK120*E120*1.5*86.4 -> 0.00
C121: FLORENTINO | AK121: LT= | AL121: =+E120*1.5 -> 7.50
A122: 4F008A | B122: L2A | C122: RIVERA MORENO | E122: 8.25 | F122: =+IF(ISNUMBER(F123),$E122*1.5,IF(F123="","",F123)) ->  | AK122: =+SUM(F123:AJ123)/24 -> 0.00 | AL122: =+AK122*E122*1.5*86.4 -> 0.00
C123: VICTOR EDUARDO | AK123: LT= | AL123: =+E122*1.5 -> 12.38
A124: 4F008C | B124: L2A | C124: GARCIA CACERES | E124: 9.00 | F124: =+IF(ISNUMBER(F125),$E124*1.5,IF(F125="","",F125)) ->  | AK124: =+SUM(F125:AJ125)/24 -> 0.00 | AL124: =+AK124*E124*1.5*86.4 -> 0.00
C125: PEDRO ENOG | AK125: LT= | AL125: =+E124*1.5 -> 13.50
A126: 4F008F | B126: L2A | C126: ENCINALES ACOSTA | E126: 5.00 | F126: =+IF(ISNUMBER(F127),$E126*1.5,IF(F127="","",F127)) ->  | AK126: =+SUM(F127:AJ127)/24 -> 0.00 | AL126: =+AK126*E126*1.5*86.4 -> 0.00
C127: STELLA | AK127: LT= | AL127: =+E126*1.5 -> 7.50
A128: 4F008E | B128: L2A | C128: CASTILLO ARIAS | E128: 3.28 | F128: =+IF(ISNUMBER(F129),$E128*1.5,IF(F129="","",F129)) ->  | AK128: =+SUM(F129:AJ129)/24 -> 0.00 | AL128: =+AK128*E128*1.5*86.4 -> 0.00
C129: GLADYS ELENA | AK129: LT= | AL129: =+E128*1.5 -> 4.92
A130: 4F008D | B130: L2A | C130: SILVA CARRILLO | E130: 8.00 | F130: =+IF(ISNUMBER(F131),$E130*1.5,IF(F131="","",F131)) ->  | AK130: =+SUM(F131:AJ131)/24 -> 0.00 | AL130: =+AK130*E130*1.5*86.4 -> 0.00
C131: DORA BETTY | AK131: LT= | AL131: =+E130*1.5 -> 12.00
A132: 4F008B | B132: L2A | C132: OBESO VARGAS | E132: 6.50 | F132: =+IF(ISNUMBER(F133),$E132*1.5,IF(F133="","",F133)) ->  | AK132: =+SUM(F133:AJ133)/24 -> 0.00 | AL132: =+AK132*E132*1.5*86.4 -> 0.00
C133: BENJAMIN Y OTRO | AK133: LT= | AL133: =+E132*1.5 -> 9.75
A134: 4F008G | B134: L2A | C134: OBESO VARGAS | E134: 2.50 | F134: =+IF(ISNUMBER(F135),$E134*1.5,IF(F135="","",F135)) ->  | AK134: =+SUM(F135:AJ135)/24 -> 0.00 | AL134: =+AK134*E134*1.5*86.4 -> 0.00
C135: BENJAMIN Y OTRO | AK135: LT= | AL135: =+E134*1.5 -> 3.75
A136: 4F005 | B136: PR | C136: CONTRERAS MONTES | E136: 10.00 | F136: =+IF(ISNUMBER(F137),$E136*1.5,IF(F137="","",F137)) ->  | AK136: =+SUM(F137:AJ137)/24 -> 0.00 | AL136: =+AK136*E136*1.5*86.4 -> 0.00
C137: ANIANO | AK137: LT= | AL137: =+E136*1.5 -> 15.00
A138: 4F366 | B138: PR | C138: OROZCO ALTAMIRANDA | E138: 7.00 | F138: =+IF(ISNUMBER(F139),$E138*1.5,IF(F139="","",F139)) ->  | AK138: =+SUM(F139:AJ139)/24 -> 0.00 | AL138: =+AK138*E138*1.5*86.4 -> 0.00
C139: ALBERTO E. | AK139: LT= | AL139: =+E138*1.5 -> 10.50
A140: 4F009 | B140: PR | C140: ANAYA VARGAS | E140: 11.23 | F140: =+IF(ISNUMBER(F141),$E140*1.5,IF(F141="","",F141)) ->  | AK140: =+SUM(F141:AJ141)/24 -> 0.00 | AL140: =+AK140*E140*1.5*86.4 -> 0.00
C141: FERMINA | AK141: LT= | AL141: =+E140*1.5 -> 16.85
A142: 4F009C | B142: PR | C142: ORDUZ LANDINEZ | E142: 11.00 | F142: =+IF(ISNUMBER(F143),$E142*1.5,IF(F143="","",F143)) ->  | AK142: =+SUM(F143:AJ143)/24 -> 0.00 | AL142: =+AK142*E142*1.5*86.4 -> 0.00
C143: EVELIA | AK143: LT= | AL143: =+E142*1.5 -> 16.50
A144: 4F009A | B144: PR | C144: VALENCIA MEJIA | E144: 11.13 | F144: =+IF(ISNUMBER(F145),$E144*1.5,IF(F145="","",F145)) ->  | AK144: =+SUM(F145:AJ145)/24 -> 0.00 | AL144: =+AK144*E144*1.5*86.4 -> 0.00
C145: WILSON | AK145: LT= | AL145: =+E144*1.5 -> 16.70
A146: 4F009B | B146: PR | C146: CONTRERAS ORTEGA | E146: 11.12 | F146: =+IF(ISNUMBER(F147),$E146*1.5,IF(F147="","",F147)) ->  | AK146: =+SUM(F147:AJ147)/24 -> 0.00 | AL146: =+AK146*E146*1.5*86.4 -> 0.00
C147: PEDRO ANTONIO | AK147: LT= | AL147: =+E146*1.5 -> 16.68
A148: 4F361 | B148: PR | C148: OROZCO ALTAMIRANDA | E148: 7.27 | F148: =+IF(ISNUMBER(F149),$E148*1.5,IF(F149="","",F149)) ->  | AK148: =+SUM(F149:AJ149)/24 -> 0.00 | AL148: =+AK148*E148*1.5*86.4 -> 0.00
C149: ALBERTO E. | AK149: LT= | AL149: =+E148*1.5 -> 10.91
A150: 4F013 | B150: PR | C150: CONTRERAS | E150: 17.30 | F150: =+IF(ISNUMBER(F151),$E150*1.5,IF(F151="","",F151)) ->  | AK150: =+SUM(F151:AJ151)/24 -> 0.00 | AL150: =+AK150*E150*1.5*86.4 -> 0.00
A151: E | C151: MONTES ANIANO | AK151: LT= | AL151: =+E150*1.5 -> 25.95
A152: 4F014C | B152: L3 | C152: AGUILAR REYES | E152: 7.00 | F152: =+IF(ISNUMBER(F153),$E152*1.5,IF(F153="","",F153)) ->  | AK152: =+SUM(F153:AJ153)/24 -> 0.00 | AL152: =+AK152*E152*1.5*86.4 -> 0.00
C153: DANIEL ALEXANDER | AK153: LT= | AL153: =+E152*1.5 -> 10.50
A154: 4F014A | B154: L3 | C154: UMAÑA PEREZ | E154: 8.58 | F154: =+IF(ISNUMBER(F155),$E154*1.5,IF(F155="","",F155)) ->  | AK154: =+SUM(F155:AJ155)/24 -> 0.00 | AL154: =+AK154*E154*1.5*86.4 -> 0.00
C155: CESAR AUGUSTO | AK155: LT= | AL155: =+E154*1.5 -> 12.87
A156: 4F010 | B156: L3 | C156: CARRILLO MARTINEZ | E156: 20.00 | F156: =+IF(ISNUMBER(F157),$E156*1.5,IF(F157="","",F157)) ->  | AK156: =+SUM(F157:AJ157)/24 -> 0.00 | AL156: =+AK156*E156*1.5*86.4 -> 0.00
C157: SAMUEL | AK157: LT= | AL157: =+E156*1.5 -> 30.00
A158: 4F010A | B158: L3 | C158: CARRILLO MARTINEZ | E158: 11.00 | F158: =+IF(ISNUMBER(F159),$E158*1.5,IF(F159="","",F159)) ->  | AK158: =+SUM(F159:AJ159)/24 -> 0.00 | AL158: =+AK158*E158*1.5*86.4 -> 0.00
C159: SAMUEL | AK159: LT= | AL159: =+E158*1.5 -> 16.50
A160: 4F010A | B160: L3 | C160: CARRILLO MARTINEZ | E160: 11.10 | F160: =+IF(ISNUMBER(F161),$E160*1.5,IF(F161="","",F161)) ->  | AK160: =+SUM(F161:AJ161)/24 -> 0.00 | AL160: =+AK160*E160*1.5*86.4 -> 0.00
C161: SAMUEL | AK161: LT= | AL161: =+E160*1.5 -> 16.65
A162: 4F014D | B162: L3 | C162: AGUILAR BARRIENTOS | E162: 7.00 | F162: =+IF(ISNUMBER(F163),$E162*1.5,IF(F163="","",F163)) ->  | AK162: =+SUM(F163:AJ163)/24 -> 0.00 | AL162: =+AK162*E162*1.5*86.4 -> 0.00
C163: OMAR | AK163: LT= | AL163: =+E162*1.5 -> 10.50
A164: 4F014B | B164: L3 | C164: BABILONIA RAMOS | E164: 8.00 | F164: =+IF(ISNUMBER(F165),$E164*1.5,IF(F165="","",F165)) ->  | AK164: =+SUM(F165:AJ165)/24 -> 0.00 | AL164: =+AK164*E164*1.5*86.4 -> 0.00
C165: INDULFO MANUEL | AK165: LT= | AL165: =+E164*1.5 -> 12.00
A166: 4F011 | B166: L3 | C166: PALENCIA DE GARCIA | E166: 7.00 | F166: =+IF(ISNUMBER(F167),$E166*1.5,IF(F167="","",F167)) ->  | AK166: =+SUM(F167:AJ167)/24 -> 0.00 | AL166: =+AK166*E166*1.5*86.4 -> 0.00
C167: ALIX MARIA | AK167: LT= | AL167: =+E166*1.5 -> 10.50
A168: 4F011A | B168: L3 | C168: PALENCIA DE GARCIA | E168: 33.00 | F168: =+IF(ISNUMBER(F169),$E168*1.5,IF(F169="","",F169)) ->  | AK168: =+SUM(F169:AJ169)/24 -> 0.00 | AL168: =+AK168*E168*1.5*86.4 -> 0.00
C169: ALIX MARIA | AK169: LT= | AL169: =+E168*1.5 -> 49.50
A170: 4F014E | B170: L3 | C170: FORI MONCADA | E170: 6.90 | F170: =+IF(ISNUMBER(F171),$E170*1.5,IF(F171="","",F171)) ->  | AK170: =+SUM(F171:AJ171)/24 -> 0.00 | AL170: =+AK170*E170*1.5*86.4 -> 0.00
C171: JOSE ALFREDO Y OT | AK171: LT= | AL171: =+E170*1.5 -> 10.35
A172: 4F029 | B172: L3 | C172: RUIZ RAMIREZ | E172: 18.63 | F172: =+IF(ISNUMBER(F173),$E172*1.5,IF(F173="","",F173)) ->  | AK172: =+SUM(F173:AJ173)/24 -> 0.00 | AL172: =+AK172*E172*1.5*86.4 -> 0.00
C173: NELSON ENRRIQUE | AK173: LT= | AL173: =+E172*1.5 -> 27.95
A174: 4F014F | B174: L3 | C174: RIVERO GONZALEZ | E174: 1.00 | F174: =+IF(ISNUMBER(F175),$E174*1.5,IF(F175="","",F175)) ->  | AK174: =+SUM(F175:AJ175)/24 -> 0.00 | AL174: =+AK174*E174*1.5*86.4 -> 0.00
C175: HERIBERTO | AK175: LT= | AL175: =+E174*1.5 -> 1.50
A176: 4F030 | B176: L3 | C176: VARGAS RIVERA | E176: 4.96 | F176: =+IF(ISNUMBER(F177),$E176*1.5,IF(F177="","",F177)) ->  | AK176: =+SUM(F177:AJ177)/24 -> 0.00 | AL176: =+AK176*E176*1.5*86.4 -> 0.00
C177: RAMIRO ANTONIO | AK177: LT= | AL177: =+E176*1.5 -> 7.44
A178: 4F015 | B178: L3 | C178: PALENCIA DE GARCIA | E178: 25.00 | F178: =+IF(ISNUMBER(F179),$E178*1.5,IF(F179="","",F179)) ->  | AK178: =+SUM(F179:AJ179)/24 -> 0.00 | AL178: =+AK178*E178*1.5*86.4 -> 0.00
C179: ALIX MARIA | AK179: LT= | AL179: =+E178*1.5 -> 37.50
A180: 4F015A | B180: L3 | C180: PALENCIA DE GARCIA | E180: 31.00 | F180: =+IF(ISNUMBER(F181),$E180*1.5,IF(F181="","",F181)) ->  | AK180: =+SUM(F181:AJ181)/24 -> 0.00 | AL180: =+AK180*E180*1.5*86.4 -> 0.00
C181: ALIX MARIA | AK181: LT= | AL181: =+E180*1.5 -> 46.50
A182: 4F012A | B182: L3 | C182: GOMEZ AGREDO | E182: 7.12 | F182: =+IF(ISNUMBER(F183),$E182*1.5,IF(F183="","",F183)) ->  | AK182: =+SUM(F183:AJ183)/24 -> 0.00 | AL182: =+AK182*E182*1.5*86.4 -> 0.00
C183: HERIBERTO | AK183: LT= | AL183: =+E182*1.5 -> 10.68
A184: 4F012C | B184: L3 | C184: CONTRERAS ROJAS | E184: 7.33 | F184: =+IF(ISNUMBER(F185),$E184*1.5,IF(F185="","",F185)) ->  | AK184: =+SUM(F185:AJ185)/24 -> 0.00 | AL184: =+AK184*E184*1.5*86.4 -> 0.00
C185: CARMEN | AK185: LT= | AL185: =+E184*1.5 -> 11.00
A186: 4F012B | B186: L3 | C186: ROJAS SANTOS | E186: 6.00 | F186: =+IF(ISNUMBER(F187),$E186*1.5,IF(F187="","",F187)) ->  | AK186: =+SUM(F187:AJ187)/24 -> 0.00 | AL186: =+AK186*E186*1.5*86.4 -> 0.00
C187: ELIODORO | AK187: LT= | AL187: =+E186*1.5 -> 9.00
A188: 4F020 | B188: L3A | C188: OROZCO ALTAMIRANDA | E188: 10.46 | F188: =+IF(ISNUMBER(F189),$E188*1.5,IF(F189="","",F189)) ->  | AK188: =+SUM(F189:AJ189)/24 -> 0.00 | AL188: =+AK188*E188*1.5*86.4 -> 0.00
C189: ALBERTO E. | AK189: LT= | AL189: =+E188*1.5 -> 15.69
A190: 4F019 | B190: L3A | C190: RUIZ RAMIREZ | E190: 10.25 | F190: =+IF(ISNUMBER(F191),$E190*1.5,IF(F191="","",F191)) ->  | AK190: =+SUM(F191:AJ191)/24 -> 0.00 | AL190: =+AK190*E190*1.5*86.4 -> 0.00
C191: NELSON ENRRIQUE | AK191: LT= | AL191: =+E190*1.5 -> 15.38
A192: 4F017 | B192: L3A | C192: BAUTISTA OSORIO | E192: 10.60 | F192: =+IF(ISNUMBER(F193),$E192*1.5,IF(F193="","",F193)) ->  | AK192: =+SUM(F193:AJ193)/24 -> 0.00 | AL192: =+AK192*E192*1.5*86.4 -> 0.00
C193: GLADYS CECILIA | AK193: LT= | AL193: =+E192*1.5 -> 15.90
A194: 4F028 | B194: L3A | C194: MARQUEZ CARDENAS | E194: 13.06 | F194: =+IF(ISNUMBER(F195),$E194*1.5,IF(F195="","",F195)) ->  | AK194: =+SUM(F195:AJ195)/24 -> 0.00 | AL194: =+AK194*E194*1.5*86.4 -> 0.00
C195: MARTHA CECILIA | AK195: LT= | AL195: =+E194*1.5 -> 19.59
A196: 4F027 | B196: L3A | C196: REYES VILLALTA | E196: 6.00 | F196: =+IF(ISNUMBER(F197),$E196*1.5,IF(F197="","",F197)) ->  | AK196: =+SUM(F197:AJ197)/24 -> 0.00 | AL196: =+AK196*E196*1.5*86.4 -> 0.00
C197: MARIELA | AK197: LT= | AL197: =+E196*1.5 -> 9.00
A198: 4F027A | B198: L3A | C198: REYES VILLALTA | E198: 8.36 | F198: =+IF(ISNUMBER(F199),$E198*1.5,IF(F199="","",F199)) ->  | AK198: =+SUM(F199:AJ199)/24 -> 0.00 | AL198: =+AK198*E198*1.5*86.4 -> 0.00
C199: MARIELA | AK199: LT= | AL199: =+E198*1.5 -> 12.54
A200: 4F036 | B200: PR | C200: SANABRIA OMAÑA | E200: 0.50 | F200: =+IF(ISNUMBER(F201),$E200*1.5,IF(F201="","",F201)) ->  | AK200: =+SUM(F201:AJ201)/24 -> 0.00 | AL200: =+AK200*E200*1.5*86.4 -> 0.00
C201: MARIA DEL ROSARIO | AK201: LT= | AL201: =+E200*1.5 -> 0.75
... 46 more rows

Sheet ABRIL
A1: ASOCIACION DE USUARIOS DISTRITO DE ADECUACION DE TIERRAS DE GRAN ESCALA DEL RIO ZULIA ASOZULIA NIT 800,168,858-6 | AI1: CODIGO: DTE-OPER-FR-01
AI2: VERSION: 01
A3: CONTROL DIARIO DE RIEGO POR PREDIO Y CANAL | AI3: FECHA: 16/06/2023
A5: ZONA | B5: RESTAURACIÓN | E5: AUXILIAR DE RIEGO | J5: EDWIN JAIR ZAMORA CHACON | S5: CANAL | AF5: MES | AG5: ABRIL | AJ5: AÑO | AK5: 2023
A6: CAUDAL DIARIO DERIVADO | E6: DIAS | F6: 1 | G6: 2 | H6: 3 | I6: 4 | J6: 5 | K6: 6 | L6: 7 | M6: 8 | N6: 9 | O6: 10 | P6: 11 | Q6: 12 | R6: 13 | S6: 14 | T6: 15 | U6: 16 | V6: 17 | W6: 18 | X6: 19 | Y6: 20 | Z6: 21 | AA6: 22 | AB6: 23 | AC6: 24 | AD6: 25 | AE6: 26 | AF6: 27 | AG6: 28 | AH6: 29 | AI6: 30 | AJ6: TOTAL DIAS | AK6: TOTAL M3
A7: CODIGO | B7: RAMAL | C7: USUARIO | D7: T.CULT | E7: AREA
A8: 4F300 | B8: PR | C8: BELTRAN GARCIA | D8: CA | E8: 30.00 | F8: =+IF(ISNUMBER(F9),$E8*1.5,IF(F9="","",F9)) ->  | G8: =+IF(ISNUMBER(G9),$E8*1.5,IF(G9="","",G9)) ->  | H8: FR | I8: 45.0 | J8: 45.0 | K8: 45.0 | L8: 45.0 | M8: 45.0 | N8: IC | Q8: =+IF(ISNUMBER(Q9),$E8*1.5,IF(Q9="","",Q9)) ->  | AJ8: =+SUM(F9:AI9)/24 -> 0.83 | AK8: =+AJ8*E8*1.5*86.4 -> 3240.00 | AM8: FC
C9: LUIS | H9: FR | I9: 1 | J9: 2 | K9: 3 | L9: 4 | M9: 10 | N9: IC | AJ9: LT= | AK9: =+E8*1.5 -> 45.00 | AM9: IC
A10: 4F350 | B10: PR | C10: VILLARREAL OSORIO | E10: 17.53 | F10: =+IF(ISNUMBER(F11),$E10*1.5,IF(F11="","",F11)) ->  | AJ10: =+SUM(F11:AI11)/24 -> 0.00 | AK10: =+AJ10*E10*1.5*86.4 -> 0.00 | AM10: FR
C11: CLEMENTE | AJ11: LT= | AK11: =+E10*1.5 -> 26.30 | AM11: IR
A12: 4F340 | B12: PR | C12: SANTANA CORTES | E12: 8.00 | F12: =+IF(ISNUMBER(F13),$E12*1.5,IF(F13="","",F13)) ->  | X12: 12.0 | Y12: 12.0 | Z12: 12.0 | AA12: FC | AC12: IC1 | AJ12: =+SUM(F13:AI13)/24 -> 1.25 | AK12: =+AJ12*E12*1.5*86.4 -> 1296.00 | AM12: SR
C13: JOSE DOMINGO | X13: 10 | Y13: 10 | Z13: 10 | AA13: FC | AC13: IC1 | AJ13: LT= | AK13: =+E12*1.5 -> 12.00 | AM13: RR
A14: 4F338 | B14: PR | C14: RIOS SUESCUN | E14: 8.75 | F14: =+IF(ISNUMBER(F15),$E14*1.5,IF(F15="","",F15)) ->  | AJ14: =+SUM(F15:AI15)/24 -> 0.00 | AK14: =+AJ14*E14*1.5*86.4 -> 0.00 | AM14: ID
C15: MARIA LUCIA | AJ15: LT= | AK15: =+E14*1.5 -> 13.13 | AM15: IC1
A16: 4F330 | B16: PR | C16: RIAÑO RAMIREZ | E16: 12.06 | F16: =+IF(ISNUMBER(F17),$E16*1.5,IF(F17="","",F17)) ->  | AJ16: =+SUM(F17:AI17)/24 -> 0.00 | AK16: =+AJ16*E16*1.5*86.4 -> 0.00
C17: MARIA VICTORIA | AJ17: LT= | AK17: =+E16*1.5 -> 18.09
A18: 4F320 | B18: PR | C18: RIAÑO VALDERRAMA | E18: 5.29 | F18: =+IF(ISNUMBER(F19),$E18*1.5,IF(F19="","",F19)) ->  | AJ18: =+SUM(F19:AI19)/24 -> 0.00 | AK18: =+AJ18*E18*1.5*86.4 -> 0.00
C19: FREDDY ALEXANDER | AJ19: LT= | AK19: =+E18*1.5 -> 7.94
A20: 4F320A | B20: PR | C20: RIAÑO VALDERRAMA | E20: 5.29 | F20: =+IF(ISNUMBER(F21),$E20*1.5,IF(F21="","",F21)) ->  | AJ20: =+SUM(F21:AI21)/24 -> 0.00 | AK20: =+AJ20*E20*1.5*86.4 -> 0.00
C21: JENNY MARITZA | AJ21: LT= | AK21: =+E20*1.5 -> 7.94
A22: 4F320B | B22: PR | C22: RIAÑO VALDERRAMA | E22: 4.14 | F22: =+IF(ISNUMBER(F23),$E22*1.5,IF(F23="","",F23)) ->  | AJ22: =+SUM(F23:AI23)/24 -> 0.00 | AK22: =+AJ22*E22*1.5*86.4 -> 0.00
C23: FLOR LILIANA | AJ23: LT= | AK23: =+E22*1.5 -> 6.21
A24: 4F320C | B24: PR | C24: RIAÑO VALDERRAMA | E24: 4.14 | F24: =+IF(ISNUMBER(F25),$E24*1.5,IF(F25="","",F25)) ->  | AJ24: =+SUM(F25:AI25)/24 -> 0.00 | AK24: =+AJ24*E24*1.5*86.4 -> 0.00
C25: CIRO PASTOR | AJ25: LT= | AK25: =+E24*1.5 -> 6.21
A26: 4F341 | B26: PR | C26: ORTEGA MORA | E26: 8.46 | F26: =+IF(ISNUMBER(F27),$E26*1.5,IF(F27="","",F27)) ->  | AJ26: =+SUM(F27:AI27)/24 -> 0.00 | AK26: =+AJ26*E26*1.5*86.4 -> 0.00
C27: JOSE DEL CARMEN | AJ27: LT= | AK27: =+E26*1.5 -> 12.69
A28: 4F319 | B28: PR | C28: SANTANA CORTES | E28: 26.50 | F28: =+IF(ISNUMBER(F29),$E28*1.5,IF(F29="","",F29)) ->  | AJ28: =+SUM(F29:AI29)/24 -> 0.00 | AK28: =+AJ28*E28*1.5*86.4 -> 0.00
C29: ELVIA Y OTROS | AJ29: LT= | AK29: =+E28*1.5 -> 39.75
A30: 4F314 | B30: PR | C30: GONZALEZ GIRON | E30: 3.00 | F30: =+IF(ISNUMBER(F31),$E30*1.5,IF(F31="","",F31)) ->  | AJ30: =+SUM(F31:AI31)/24 -> 0.00 | AK30: =+AJ30*E30*1.5*86.4 -> 0.00
C31: EVELIO | AJ31: LT= | AK31: =+E30*1.5 -> 4.50
A32: 4F035 | B32: PR | C32: VALDERRAMA CARDENAS | E32: 11.54 | F32: =+IF(ISNUMBER(F33),$E32*1.5,IF(F33="","",F33)) ->  | AJ32: =+SUM(F33:AI33)/24 -> 0.00 | AK32: =+AJ32*E32*1.5*86.4 -> 0.00
C33: GUILLERMO Y OTROS | AJ33: LT= | AK33: =+E32*1.5 -> 17.31
A34: 4F329B | B34: PR | C34: MARIN ZAPATA | E34: 7.00 | F34: =+IF(ISNUMBER(F35),$E34*1.5,IF(F35="","",F35)) ->  | AJ34: =+SUM(F35:AI35)/24 -> 0.00 | AK34: =+AJ34*E34*1.5*86.4 -> 0.00
C35: ABELARDO ANTONIO | AJ35: LT= | AK35: =+E34*1.5 -> 10.50
A36: 4F346 | B36: PR | C36: CASTELLANOS TARAZONA | E36: 10.00 | F36: =+IF(ISNUMBER(F37),$E36*1.5,IF(F37="","",F37)) ->  | AJ36: =+SUM(F37:AI37)/24 -> 0.00 | AK36: =+AJ36*E36*1.5*86.4 -> 0.00
C37: JOSE DARIO | AJ37: LT= | AK37: =+E36*1.5 -> 15.00
A38: 4F315 | B38: PR | C38: VILLARREAL OSORIO | E38: 12.23 | F38: =+IF(ISNUMBER(F39),$E38*1.5,IF(F39="","",F39)) ->  | AJ38: =+SUM(F39:AI39)/24 -> 0.00 | AK38: =+AJ38*E38*1.5*86.4 -> 0.00
C39: EDILSON | AJ39: LT= | AK39: =+E38*1.5 -> 18.35
A40: 4F001A | B40: L2 | C40: MARQUEZ CARDENAS | E40: 12.00 | F40: =+IF(ISNUMBER(F41),$E40*1.5,IF(F41="","",F41)) ->  | AJ40: =+SUM(F41:AI41)/24 -> 0.00 | AK40: =+AJ40*E40*1.5*86.4 -> 0.00
C41: MARTHA CECILIA | AJ41: LT= | AK41: =+E40*1.5 -> 18.00
A42: 4F001 | B42: L2 | C42: MARQUEZ CARDENAS | E42: 13.00 | F42: =+IF(ISNUMBER(F43),$E42*1.5,IF(F43="","",F43)) ->  | AJ42: =+SUM(F43:AI43)/24 -> 0.00 | AK42: =+AJ42*E42*1.5*86.4 -> 0.00
C43: MARTHA CECILIA | AJ43: LT= | AK43: =+E42*1.5 -> 19.50
A44: 4F031 | B44: L2 | C44: LERMA DIAZ | E44: 4.70 | F44: =+IF(ISNUMBER(F45),$E44*1.5,IF(F45="","",F45)) ->  | AJ44: =+SUM(F45:AI45)/24 -> 0.00 | AK44: =+AJ44*E44*1.5*86.4 -> 0.00
C45: RAFAEL JULIO | AJ45: LT= | AK45: =+E44*1.5 -> 7.05
A46: 4F031A | B46: L2 | C46: RIAÑO RAMIREZ | E46: 2.90 | F46: =+IF(ISNUMBER(F47),$E46*1.5,IF(F47="","",F47)) ->  | AJ46: =+SUM(F47:AI47)/24 -> 0.00 | AK46: =+AJ46*E46*1.5*86.4 -> 0.00
C47: MARIA VICTORIA | AJ47: LT= | AK47: =+E46*1.5 -> 4.35
A48: 4F031B | B48: L2 | C48: AREVALO ACEVEDO | E48: 2.30 | F48: =+IF(ISNUMBER(F49),$E48*1.5,IF(F49="","",F49)) ->  | AJ48: =+SUM(F49:AI49)/24 -> 0.00 | AK48: =+AJ48*E48*1.5*86.4 -> 0.00
C49: RAMIRO Y OTRO | AJ49: LT= | AK49: =+E48*1.5 -> 3.45
A50: 4F031C | B50: L2 | C50: BUSTAMANTE | E50: 3.20 | F50: =+IF(ISNUMBER(F51),$E50*1.5,IF(F51="","",F51)) ->  | AJ50: =+SUM(F51:AI51)/24 -> 0.00 | AK50: =+AJ50*E50*1.5*86.4 -> 0.00
C51: JAIME DE J. Y OTRO | AJ51: LT= | AK51: =+E50*1.5 -> 4.80
A52: 4F031D | B52: L2 | C52: AREVALO ACEVEDO | E52: 2.80 | F52: =+IF(ISNUMBER(F53),$E52*1.5,IF(F53="","",F53)) ->  | AJ52: =+SUM(F53:AI53)/24 -> 0.00 | AK52: =+AJ52*E52*1.5*86.4 -> 0.00
C53: RAMIRO Y OTRO | AJ53: LT= | AK53: =+E52*1.5 -> 4.20
A54: 4F031E | B54: L2 | C54: VILLAMIZAR | E54: 2.60 | F54: =+IF(ISNUMBER(F55),$E54*1.5,IF(F55="","",F55)) ->  | AJ54: =+SUM(F55:AI55)/24 -> 0.00 | AK54: =+AJ54*E54*1.5*86.4 -> 0.00
C55: MARITZA | AJ55: LT= | AK55: =+E54*1.5 -> 3.90
A56: 4F031F | B56: L2 | C56: VILLAMIZAR | E56: 1.50 | F56: =+IF(ISNUMBER(F57),$E56*1.5,IF(F57="","",F57)) ->  | AJ56: =+SUM(F57:AI57)/24 -> 0.00 | AK56: =+AJ56*E56*1.5*86.4 -> 0.00
C57: MARITZA | AJ57: LT= | AK57: =+E56*1.5 -> 2.25
A58: 4F031G | B58: L2 | C58: SANABRIA | E58: 0.58 | F58: =+IF(ISNUMBER(F59),$E58*1.5,IF(F59="","",F59)) ->  | AJ58: =+SUM(F59:AI59)/24 -> 0.00 | AK58: =+AJ58*E58*1.5*86.4 -> 0.00
C59: MIGUEL ANTONIO | AJ59: LT= | AK59: =+E58*1.5 -> 0.87
A60: 4F031H | B60: L2 | C60: DIAZ LERMA | E60: 4.00 | F60: =+IF(ISNUMBER(F61),$E60*1.5,IF(F61="","",F61)) ->  | AJ60: =+SUM(F61:AI61)/24 -> 0.00 | AK60: =+AJ60*E60*1.5*86.4 -> 0.00
C61: LUIS ADAN | AJ61: LT= | AK61: =+E60*1.5 -> 6.00
A62: 4F031I | B62: L2 | C62: CAICEDO GALVIS | E62: 8.60 | F62: =+IF(ISNUMBER(F63),$E62*1.5,IF(F63="","",F63)) ->  | AJ62: =+SUM(F63:AI63)/24 -> 0.00 | AK62: =+AJ62*E62*1.5*86.4 -> 0.00
C63: ELIECER Y OTROS | AJ63: LT= | AK63: =+E62*1.5 -> 12.90
A64: 4F003 | B64: L2 | C64: MENESES | E64: 9.46 | F64: =+IF(ISNUMBER(F65),$E64*1.5,IF(F65="","",F65)) ->  | AJ64: =+SUM(F65:AI65)/24 -> 0.00 | AK64: =+AJ64*E64*1.5*86.4 -> 0.00
C65: POLICARPO | AJ65: LT= | AK65: =+E64*1.5 -> 14.19
A66: 4F003A | B66: L2 | C66: ORTEGA RIVERA | E66: 8.26 | F66: =+IF(ISNUMBER(F67),$E66*1.5,IF(F67="","",F67)) ->  | AJ66: =+SUM(F67:AI67)/24 -> 0.00 | AK66: =+AJ66*E66*1.5*86.4 -> 0.00
C67: PEDRO MIGUEL | AJ67: LT= | AK67: =+E66*1.5 -> 12.39
A68: 4F329A | B68: PR | C68: DIAZ | E68: 3.80 | F68: =+IF(ISNUMBER(F69),$E68*1.5,IF(F69="","",F69)) ->  | AJ68: =+SUM(F69:AI69)/24 -> 0.00 | AK68: =+AJ68*E68*1.5*86.4 -> 0.00
C69: ROSALBINA | AJ69: LT= | AK69: =+E68*1.5 -> 5.70
A70: 4F329A | B70: PR | C70: DIAZ | E70: 2.00 | F70: =+IF(ISNUMBER(F71),$E70*1.5,IF(F71="","",F71)) ->  | AJ70: =+SUM(F71:AI71)/24 -> 0.00 | AK70: =+AJ70*E70*1.5*86.4 -> 0.00
C71: ROSALBINA | AJ71: LT= | AK71: =+E70*1.5 -> 3.00
A72: 4F329D | B72: PR | C72: RUBIO | E72: 7.24 | F72: =+IF(ISNUMBER(F73),$E72*1.5,IF(F73="","",F73)) ->  | AJ72: =+SUM(F73:AI73)/24 -> 0.00 | AK72: =+AJ72*E72*1.5*86.4 -> 0.00
C73: MARIA EDELMIRA | AJ73: LT= | AK73: =+E72*1.5 -> 10.86
A74: 4F329C | B74: PR | C74: MARTINEZ ALARCON | E74: 6.00 | F74: =+IF(ISNUMBER(F75),$E74*1.5,IF(F75="","",F75)) ->  | AJ74: =+SUM(F75:AI75)/24 -> 0.00 | AK74: =+AJ74*E74*1.5*86.4 -> 0.00
C75: LUIS ALBERTO | AJ75: LT= | AK75: =+E74*1.5 -> 9.00
A76: 4F004D | B76: PR | C76: DUARTE ACEVEDO | E76: 8.33 | F76: =+IF(ISNUMBER(F77),$E76*1.5,IF(F77="","",F77)) ->  | AJ76: =+SUM(F77:AI77)/24 -> 0.00 | AK76: =+AJ76*E76*1.5*86.4 -> 0.00
C77: PEDRO Y OTROS | AJ77: LT= | AK77: =+E76*1.5 -> 12.50
A78: 4F004A | B78: PR | C78: GARCIA CHONA | E78: 8.92 | F78: =+IF(ISNUMBER(F79),$E78*1.5,IF(F79="","",F79)) ->  | AJ78: =+SUM(F79:AI79)/24 -> 0.00 | AK78: =+AJ78*E78*1.5*86.4 -> 0.00
C79: CRUZ DELINA | AJ79: LT= | AK79: =+E78*1.5 -> 13.38
A80: 4F004E | B80: PR | C80: ROZO RICO | E80: 5.35 | F80: =+IF(ISNUMBER(F81),$E80*1.5,IF(F81="","",F81)) ->  | AJ80: =+SUM(F81:AI81)/24 -> 0.00 | AK80: =+AJ80*E80*1.5*86.4 -> 0.00
C81: JOSE RAMON | AJ81: LT= | AK81: =+E80*1.5 -> 8.03
A82: 4F004 | B82: PR | C82: QUINTERO M. | E82: 4.09 | F82: =+IF(ISNUMBER(F83),$E82*1.5,IF(F83="","",F83)) ->  | AJ82: =+SUM(F83:AI83)/24 -> 0.00 | AK82: =+AJ82*E82*1.5*86.4 -> 0.00
C83: MIGUEL ANGEL/ OTRO | AJ83: LT= | AK83: =+E82*1.5 -> 6.14
A84: 4F004C | B84: PR | C84: MARTINEZ RUBIO | E84: 9.74 | F84: =+IF(ISNUMBER(F85),$E84*1.5,IF(F85="","",F85)) ->  | AJ84: =+SUM(F85:AI85)/24 -> 0.00 | AK84: =+AJ84*E84*1.5*86.4 -> 0.00
C85: JOSE LEONSO | AJ85: LT= | AK85: =+E84*1.5 -> 14.61
A86: 4F328 | B86: PR | C86: GARCIA CHONA | E86: 9.65 | F86: =+IF(ISNUMBER(F87),$E86*1.5,IF(F87="","",F87)) ->  | AJ86: =+SUM(F87:AI87)/24 -> 0.00 | AK86: =+AJ86*E86*1.5*86.4 -> 0.00
C87: CRUZ DELINA | AJ87: LT= | AK87: =+E86*1.5 -> 14.48
A88: 4F004B | B88: L2A | C88: PAVA | E88: 8.90 | F88: =+IF(ISNUMBER(F89),$E88*1.5,IF(F89="","",F89)) ->  | AJ88: =+SUM(F89:AI89)/24 -> 0.00 | AK88: =+AJ88*E88*1.5*86.4 -> 0.00
C89: LUIS JAVIER Y OTRO | AJ89: LT= | AK89: =+E88*1.5 -> 13.35
A90: 4F006 | B90: L2A | C90: GARCIA | E90: 4.00 | F90: =+IF(ISNUMBER(F91),$E90*1.5,IF(F91="","",F91)) ->  | AJ90: =+SUM(F91:AI91)/24 -> 0.00 | AK90: =+AJ90*E90*1.5*86.4 -> 0.00
C91: LINA ROSA Y OTROS | AJ91: LT= | AK91: =+E90*1.5 -> 6.00
A92: 4F006A | B92: L2A | C92: CARDENAS HEREDIA | E92: 5.00 | F92: =+IF(ISNUMBER(F93),$E92*1.5,IF(F93="","",F93)) ->  | AJ92: =+SUM(F93:AI93)/24 -> 0.00 | AK92: =+AJ92*E92*1.5*86.4 -> 0.00
C93: PAULINO | AJ93: LT= | AK93: =+E92*1.5 -> 7.50
A94: 4F006B | B94: L2A | C94: RAMIREZ MAYORGA | E94: 5.08 | F94: =+IF(ISNUMBER(F95),$E94*1.5,IF(F95="","",F95)) ->  | AJ94: =+SUM(F95:AI95)/24 -> 0.00 | AK94: =+AJ94*E94*1.5*86.4 -> 0.00
C95: CRISTINIANO | AJ95: LT= | AK95: =+E94*1.5 -> 7.62
A96: 4F006C | B96: L2A | C96: ATUESTA ORTEGA | E96: 5.00 | F96: =+IF(ISNUMBER(F97),$E96*1.5,IF(F97="","",F97)) ->  | AJ96: =+SUM(F97:AI97)/24 -> 0.00 | AK96: =+AJ96*E96*1.5*86.4 -> 0.00
C97: MIGUEL ANGEL | AJ97: LT= | AK97: =+E96*1.5 -> 7.50
A98: 4F006D | B98: L2A | C98: SERNA GARCIA | E98: 5.00 | F98: =+IF(ISNUMBER(F99),$E98*1.5,IF(F99="","",F99)) ->  | AJ98: =+SUM(F99:AI99)/24 -> 0.00 | AK98: =+AJ98*E98*1.5*86.4 -> 0.00
C99: CESARIO ANTONIO | AJ99: LT= | AK99: =+E98*1.5 -> 7.50
A100: 4F006E | B100: L2A | C100: SERNA GARCIA | E100: 5.00 | F100: =+IF(ISNUMBER(F101),$E100*1.5,IF(F101="","",F101)) ->  | AJ100: =+SUM(F101:AI101)/24 -> 0.00 | AK100: =+AJ100*E100*1.5*86.4 -> 0.00
C101: CESARIO ANTONIO | AJ101: LT= | AK101: =+E100*1.5 -> 7.50
A102: 4F006F | B102: L2A | C102: CAICEDO GALVIS | E102: 5.00 | F102: =+IF(ISNUMBER(F103),$E102*1.5,IF(F103="","",F103)) ->  | AJ102: =+SUM(F103:AI103)/24 -> 0.00 | AK102: =+AJ102*E102*1.5*86.4 -> 0.00
C103: ELIECER Y OTRO | AJ103: LT= | AK103: =+E102*1.5 -> 7.50
A104: 4F006G | B104: L2A | C104: GARCIA | E104: 5.00 | F104: =+IF(ISNUMBER(F105),$E104*1.5,IF(F105="","",F105)) ->  | AJ104: =+SUM(F105:AI105)/24 -> 0.00 | AK104: =+AJ104*E104*1.5*86.4 -> 0.00
C105: LINA ROSA Y OTROS | AJ105: LT= | AK105: =+E104*1.5 -> 7.50
A106: 4F006H | B106: L2A | C106: VALENCIA MEJIA | E106: 4.50 | F106: =+IF(ISNUMBER(F107),$E106*1.5,IF(F107="","",F107)) ->  | AJ106: =+SUM(F107:AI107)/24 -> 0.00 | AK106: =+AJ106*E106*1.5*86.4 -> 0.00
C107: WILSON | AJ107: LT= | AK107: =+E106*1.5 -> 6.75
A108: 4F006I | B108: L2A | C108: BALLESTEROS | E108: 4.70 | F108: =+IF(ISNUMBER(F109),$E108*1.5,IF(F109="","",F109)) ->  | AJ108: =+SUM(F109:AI109)/24 -> 0.00 | AK108: =+AJ108*E108*1.5*86.4 -> 0.00
C109: LUCIANO | AJ109: LT= | AK109: =+E108*1.5 -> 7.05
A110: 4F006J | B110: L2A | C110: CUERO PEREZ | E110: 5.00 | F110: =+IF(ISNUMBER(F111),$E110*1.5,IF(F111="","",F111)) ->  | AJ110: =+SUM(F111:AI111)/24 -> 0.00 | AK110: =+AJ110*E110*1.5*86.4 -> 0.00
C111: YESENIA | AJ111: LT= | AK111: =+E110*1.5 -> 7.50
A112: 4F006L | B112: L2A | C112: FLOREZ FLOREZ | E112: 4.75 | F112: =+IF(ISNUMBER(F113),$E112*1.5,IF(F113="","",F113)) ->  | AJ112: =+SUM(F113:AI113)/24 -> 0.00 | AK112: =+AJ112*E112*1.5*86.4 -> 0.00
C113: MANUEL | AJ113: LT= | AK113: =+E112*1.5 -> 7.13
A114: 4F006K | B114: L2A | C114: GUARIN | E114: 5.00 | F114: =+IF(ISNUMBER(F115),$E114*1.5,IF(F115="","",F115)) ->  | AJ114: =+SUM(F115:AI115)/24 -> 0.00 | AK114: =+AJ114*E114*1.5*86.4 -> 0.00
C115: LUIS ENRIQUE | AJ115: LT= | AK115: =+E114*1.5 -> 7.50
A116: 4F006N | B116: L2A | C116: ATUESTA ORTEGA | E116: 5.00 | F116: =+IF(ISNUMBER(F117),$E116*1.5,IF(F117="","",F117)) ->  | AJ116: =+SUM(F117:AI117)/24 -> 0.00 | AK116: =+AJ116*E116*1.5*86.4 -> 0.00
C117: MIGUEL ANGEL | AJ117: LT= | AK117: =+E116*1.5 -> 7.50
A118: 4F006O | B118: L2A | C118: GUZMAN NIETO | E118: 5.18 | F118: =+IF(ISNUMBER(F119),$E118*1.5,IF(F119="","",F119)) ->  | AJ118: =+SUM(F119:AI119)/24 -> 0.00 | AK118: =+AJ118*E118*1.5*86.4 -> 0.00
C119: JULIO CESAR | AJ119: LT= | AK119: =+E118*1.5 -> 7.77
A120: 4F006M | B120: L2A | C120: FIGUEROA PINZON | E120: 5.00 | F120: =+IF(ISNUMBER(F121),$E120*1.5,IF(F121="","",F121)) ->  | AJ120: =+SUM(F121:AI121)/24 -> 0.00 | AK120: =+AJ120*E120*1.5*86.4 -> 0.00
C121: FLORENTINO | AJ121: LT= | AK121: =+E120*1.5 -> 7.50
A122: 4F008A | B122: L2A | C122: RIVERA MORENO | E122: 8.25 | F122: =+IF(ISNUMBER(F123),$E122*1.5,IF(F123="","",F123)) ->  | AJ122: =+SUM(F123:AI123)/24 -> 0.00 | AK122: =+AJ122*E122*1.5*86.4 -> 0.00
C123: VICTOR EDUARDO | AJ123: LT= | AK123: =+E122*1.5 -> 12.38
A124: 4F008C | B124: L2A | C124: GARCIA CACERES | E124: 9.00 | F124: =+IF(ISNUMBER(F125),$E124*1.5,IF(F125="","",F125)) ->  | AJ124: =+SUM(F125:AI125)/24 -> 0.00 | AK124: =+AJ124*E124*1.5*86.4 -> 0.00
C125: PEDRO ENOG | AJ125: LT= | AK125: =+E124*1.5 -> 13.50
A126: 4F008F | B126: L2A | C126: ENCINALES ACOSTA | E126: 5.00 | F126: =+IF(ISNUMBER(F127),$E126*1.5,IF(F127="","",F127)) ->  | AJ126: =+SUM(F127:AI127)/24 -> 0.00 | AK126: =+AJ126*E126*1.5*86.4 -> 0.00
C127: STELLA | AJ127: LT= | AK127: =+E126*1.5 -> 7.50
A128: 4F008E | B128: L2A | C128: CASTILLO ARIAS | E128: 3.28 | F128: =+IF(ISNUMBER(F129),$E128*1.5,IF(F129="","",F129)) ->  | AJ128: =+SUM(F129:AI129)/24 -> 0.00 | AK128: =+AJ128*E128*1.5*86.4 -> 0.00
C129: GLADYS ELENA | AJ129: LT= | AK129: =+E128*1.5 -> 4.92
A130: 4F008D | B130: L2A | C130: SILVA CARRILLO | E130: 8.00 | F130: =+IF(ISNUMBER(F131),$E130*1.5,IF(F131="","",F131)) ->  | AJ130: =+SUM(F131:AI131)/24 -> 0.00 | AK130: =+AJ130*E130*1.5*86.4 -> 0.00
C131: DORA BETTY | AJ131: LT= | AK131: =+E130*1.5 -> 12.00
A132: 4F008B | B132: L2A | C132: OBESO VARGAS | E132: 6.50 | F132: =+IF(ISNUMBER(F133),$E132*1.5,IF(F133="","",F133)) ->  | AJ132: =+SUM(F133:AI133)/24 -> 0.00 | AK132: =+AJ132*E132*1.5*86.4 -> 0.00
C133: BENJAMIN Y OTRO | AJ133: LT= | AK133: =+E132*1.5 -> 9.75
A134: 4F008G | B134: L2A | C134: OBESO VARGAS | E134: 2.50 | F134: =+IF(ISNUMBER(F135),$E134*1.5,IF(F135="","",F135)) ->  | AJ134: =+SUM(F135:AI135)/24 -> 0.00 | AK134: =+AJ134*E134*1.5*86.4 -> 0.00
C135: BENJAMIN Y OTRO | AJ135: LT= | AK135: =+E134*1.5 -> 3.75
A136: 4F005 | B136: PR | C136: CONTRERAS MONTES | E136: 10.00 | F136: =+IF(ISNUMBER(F137),$E136*1.5,IF(F137="","",F137)) ->  | AJ136: =+SUM(F137:AI137)/24 -> 0.00 | AK136: =+AJ136*E136*1.5*86.4 -> 0.00
C137: ANIANO | AJ137: LT= | AK137: =+E136*1.5 -> 15.00
A138: 4F366 | B138: PR | C138: OROZCO ALTAMIRANDA | E138: 7.00 | F138: =+IF(ISNUMBER(F139),$E138*1.5,IF(F139="","",F139)) ->  | AJ138: =+SUM(F139:AI139)/24 -> 0.00 | AK138: =+AJ138*E138*1.5*86.4 -> 0.00
C139: ALBERTO E. | AJ139: LT= | AK139: =+E138*1.5 -> 10.50
A140: 4F009 | B140: PR | C140: ANAYA VARGAS | E140: 11.23 | F140: =+IF(ISNUMBER(F141),$E140*1.5,IF(F141="","",F141)) ->  | AJ140: =+SUM(F141:AI141)/24 -> 0.00 | AK140: =+AJ140*E140*1.5*86.4 -> 0.00
C141: FERMINA | AJ141: LT= | AK141: =+E140*1.5 -> 16.85
A142: 4F009C | B142: PR | C142: ORDUZ LANDINEZ | E142: 11.00 | F142: =+IF(ISNUMBER(F143),$E142*1.5,IF(F143="","",F143)) ->  | AJ142: =+SUM(F143:AI143)/24 -> 0.00 | AK142: =+AJ142*E142*1.5*86.4 -> 0.00
C143: EVELIA | AJ143: LT= | AK143: =+E142*1.5 -> 16.50
A144: 4F009A | B144: PR | C144: VALENCIA MEJIA | E144: 11.13 | F144: =+IF(ISNUMBER(F145),$E144*1.5,IF(F145="","",F145)) ->  | AJ144: =+SUM(F145:AI145)/24 -> 0.00 | AK144: =+AJ144*E144*1.5*86.4 -> 0.00
C145: WILSON | AJ145: LT= | AK145: =+E144*1.5 -> 16.70
A146: 4F009B | B146: PR | C146: CONTRERAS ORTEGA | E146: 11.12 | F146: =+IF(ISNUMBER(F147),$E146*1.5,IF(F147="","",F147)) ->  | AJ146: =+SUM(F147:AI147)/24 -> 0.00 | AK146: =+AJ146*E146*1.5*86.4 -> 0.00
C147: PEDRO ANTONIO | AJ147: LT= | AK147: =+E146*1.5 -> 16.68
A148: 4F361 | B148: PR | C148: OROZCO ALTAMIRANDA | E148: 7.27 | F148: =+IF(ISNUMBER(F149),$E148*1.5,IF(F149="","",F149)) ->  | AJ148: =+SUM(F149:AI149)/24 -> 0.00 | AK148: =+AJ148*E148*1.5*86.4 -> 0.00
C149: ALBERTO E. | AJ149: LT= | AK149: =+E148*1.5 -> 10.91
A150: 4F013 | B150: PR | C150: CONTRERAS | E150: 17.30 | F150: =+IF(ISNUMBER(F151),$E150*1.5,IF(F151="","",F151)) ->  | AJ150: =+SUM(F151:AI151)/24 -> 0.00 | AK150: =+AJ150*E150*1.5*86.4 -> 0.00
A151: E | C151: MONTES ANIANO | AJ151: LT= | AK151: =+E150*1.5 -> 25.95
A152: 4F014C | B152: L3 | C152: AGUILAR REYES | E152: 7.00 | F152: =+IF(ISNUMBER(F153),$E152*1.5,IF(F153="","",F153)) ->  | AJ152: =+SUM(F153:AI153)/24 -> 0.00 | AK152: =+AJ152*E152*1.5*86.4 -> 0.00
C153: DANIEL ALEXANDER | AJ153: LT= | AK153: =+E152*1.5 -> 10.50
A154: 4F014A | B154: L3 | C154: UMAÑA PEREZ | E154: 8.58 | F154: =+IF(ISNUMBER(F155),$E154*1.5,IF(F155="","",F155)) ->  | AJ154: =+SUM(F155:AI155)/24 -> 0.00 | AK154: =+AJ154*E154*1.5*86.4 -> 0.00
C155: CESAR AUGUSTO | AJ155: LT= | AK155: =+E154*1.5 -> 12.87
A156: 4F010 | B156: L3 | C156: CARRILLO MARTINEZ | E156: 20.00 | F156: =+IF(ISNUMBER(F157),$E156*1.5,IF(F157="","",F157)) ->  | AJ156: =+SUM(F157:AI157)/24 -> 0.00 | AK156: =+AJ156*E156*1.5*86.4 -> 0.00
C157: SAMUEL | AJ157: LT= | AK157: =+E156*1.5 -> 30.00
A158: 4F010A | B158: L3 | C158: CARRILLO MARTINEZ | E158: 11.00 | F158: =+IF(ISNUMBER(F159),$E158*1.5,IF(F159="","",F159)) ->  | AJ158: =+SUM(F159:AI159)/24 -> 0.00 | AK158: =+AJ158*E158*1.5*86.4 -> 0.00
C159: SAMUEL | AJ159: LT= | AK159: =+E158*1.5 -> 16.50
A160: 4F010A | B160: L3 | C160: CARRILLO MARTINEZ | E160: 11.10 | F160: =+IF(ISNUMBER(F161),$E160*1.5,IF(F161="","",F161)) ->  | AJ160: =+SUM(F161:AI161)/24 -> 0.00 | AK160: =+AJ160*E160*1.5*86.4 -> 0.00
C161: SAMUEL | AJ161: LT= | AK161: =+E160*1.5 -> 16.65
A162: 4F014D | B162: L3 | C162: AGUILAR BARRIENTOS | E162: 7.00 | F162: =+IF(ISNUMBER(F163),$E162*1.5,IF(F163="","",F163)) ->  | AJ162: =+SUM(F163:AI163)/24 -> 0.00 | AK162: =+AJ162*E162*1.5*86.4 -> 0.00
C163: OMAR | AJ163: LT= | AK163: =+E162*1.5 -> 10.50
A164: 4F014B | B164: L3 | C164: BABILONIA RAMOS | E164: 8.00 | F164: =+IF(ISNUMBER(F165),$E164*1.5,IF(F165="","",F165)) ->  | AJ164: =+SUM(F165:AI165)/24 -> 0.00 | AK164: =+AJ164*E164*1.5*86.4 -> 0.00
C165: INDULFO MANUEL | AJ165: LT= | AK165: =+E164*1.5 -> 12.00
A166: 4F011 | B166: L3 | C166: PALENCIA DE GARCIA | E166: 7.00 | F166: =+IF(ISNUMBER(F167),$E166*1.5,IF(F167="","",F167)) ->  | AJ166: =+SUM(F167:AI167)/24 -> 0.00 | AK166: =+AJ166*E166*1.5*86.4 -> 0.00
C167: ALIX MARIA | AJ167: LT= | AK167: =+E166*1.5 -> 10.50
A168: 4F011A | B168: L3 | C168: PALENCIA DE GARCIA | E168: 33.00 | F168: =+IF(ISNUMBER(F169),$E168*1.5,IF(F169="","",F169)) ->  | AJ168: =+SUM(F169:AI169)/24 -> 0.00 | AK168: =+AJ168*E168*1.5*86.4 -> 0.00
C169: ALIX MARIA | AJ169: LT= | AK169: =+E168*1.5 -> 49.50
A170: 4F014E | B170: L3 | C170: FORI MONCADA | E170: 6.90 | F170: =+IF(ISNUMBER(F171),$E170*1.5,IF(F171="","",F171)) ->  | AJ170: =+SUM(F171:AI171)/24 -> 0.00 | AK170: =+AJ170*E170*1.5*86.4 -> 0.00
C171: JOSE ALFREDO Y OT | AJ171: LT= | AK171: =+E170*1.5 -> 10.35
A172: 4F029 | B172: L3 | C172: RUIZ RAMIREZ | E172: 18.63 | F172: =+IF(ISNUMBER(F173),$E172*1.5,IF(F173="","",F173)) ->  | AJ172: =+SUM(F173:AI173)/24 -> 0.00 | AK172: =+AJ172*E172*1.5*86.4 -> 0.00
C173: NELSON ENRRIQUE | AJ173: LT= | AK173: =+E172*1.5 -> 27.95
A174: 4F014F | B174: L3 | C174: RIVERO GONZALEZ | E174: 1.00 | F174: =+IF(ISNUMBER(F175),$E174*1.5,IF(F175="","",F175)) ->  | AJ174: =+SUM(F175:AI175)/24 -> 0.00 | AK174: =+AJ174*E174*1.5*86.4 -> 0.00
C175: HERIBERTO | AJ175: LT= | AK175: =+E174*1.5 -> 1.50
A176: 4F030 | B176: L3 | C176: VARGAS RIVERA | E176: 4.96 | F176: =+IF(ISNUMBER(F177),$E176*1.5,IF(F177="","",F177)) ->  | AJ176: =+SUM(F177:AI177)/24 -> 0.00 | AK176: =+AJ176*E176*1.5*86.4 -> 0.00
C177: RAMIRO ANTONIO | AJ177: LT= | AK177: =+E176*1.5 -> 7.44
A178: 4F015 | B178: L3 | C178: PALENCIA DE GARCIA | E178: 25.00 | F178: =+IF(ISNUMBER(F179),$E178*1.5,IF(F179="","",F179)) ->  | AJ178: =+SUM(F179:AI179)/24 -> 0.00 | AK178: =+AJ178*E178*1.5*86.4 -> 0.00
C179: ALIX MARIA | AJ179: LT= | AK179: =+E178*1.5 -> 37.50
A180: 4F015A | B180: L3 | C180: PALENCIA DE GARCIA | E180: 31.00 | F180: =+IF(ISNUMBER(F181),$E180*1.5,IF(F181="","",F181)) ->  | AJ180: =+SUM(F181:AI181)/24 -> 0.00 | AK180: =+AJ180*E180*1.5*86.4 -> 0.00
C181: ALIX MARIA | AJ181: LT= | AK181: =+E180*1.5 -> 46.50
A182: 4F012A | B182: L3 | C182: GOMEZ AGREDO | E182: 7.12 | F182: =+IF(ISNUMBER(F183),$E182*1.5,IF(F183="","",F183)) ->  | AJ182: =+SUM(F183:AI183)/24 -> 0.00 | AK182: =+AJ182*E182*1.5*86.4 -> 0.00
C183: HERIBERTO | AJ183: LT= | AK183: =+E182*1.5 -> 10.68
A184: 4F012C | B184: L3 | C184: CONTRERAS ROJAS | E184: 7.33 | F184: =+IF(ISNUMBER(F185),$E184*1.5,IF(F185="","",F185)) ->  | AJ184: =+SUM(F185:AI185)/24 -> 0.00 | AK184: =+AJ184*E184*1.5*86.4 -> 0.00
C185: CARMEN | AJ185: LT= | AK185: =+E184*1.5 -> 11.00
A186: 4F012B | B186: L3 | C186: ROJAS SANTOS | E186: 6.00 | F186: =+IF(ISNUMBER(F187),$E186*1.5,IF(F187="","",F187)) ->  | AJ186: =+SUM(F187:AI187)/24 -> 0.00 | AK186: =+AJ186*E186*1.5*86.4 -> 0.00
C187: ELIODORO | AJ187: LT= | AK187: =+E186*1.5 -> 9.00
A188: 4F020 | B188: L3A | C188: OROZCO ALTAMIRANDA | E188: 10.46 | F188: =+IF(ISNUMBER(F189),$E188*1.5,IF(F189="","",F189)) ->  | AJ188: =+SUM(F189:AI189)/24 -> 0.00 | AK188: =+AJ188*E188*1.5*86.4 -> 0.00
C189: ALBERTO E. | AJ189: LT= | AK189: =+E188*1.5 -> 15.69
A190: 4F019 | B190: L3A | C190: RUIZ RAMIREZ | E190: 10.25 | F190: =+IF(ISNUMBER(F191),$E190*1.5,IF(F191="","",F191)) ->  | AJ190: =+SUM(F191:AI191)/24 -> 0.00 | AK190: =+AJ190*E190*1.5*86.4 -> 0.00
C191: NELSON ENRRIQUE | AJ191: LT= | AK191: =+E190*1.5 -> 15.38
A192: 4F017 | B192: L3A | C192: BAUTISTA OSORIO | E192: 10.60 | F192: =+IF(ISNUMBER(F193),$E192*1.5,IF(F193="","",F193)) ->  | AJ192: =+SUM(F193:AI193)/24 -> 0.00 | AK192: =+AJ192*E192*1.5*86.4 -> 0.00
C193: GLADYS CECILIA | AJ193: LT= | AK193: =+E192*1.5 -> 15.90
A194: 4F028 | B194: L3A | C194: MARQUEZ CARDENAS | E194: 13.06 | F194: =+IF(ISNUMBER(F195),$E194*1.5,IF(F195="","",F195)) ->  | AJ194: =+SUM(F195:AI195)/24 -> 0.00 | AK194: =+AJ194*E194*1.5*86.4 -> 0.00
C195: MARTHA CECILIA | AJ195: LT= | AK195: =+E194*1.5 -> 19.59
A196: 4F027 | B196: L3A | C196: REYES VILLALTA | E196: 6.00 | F196: =+IF(ISNUMBER(F197),$E196*1.5,IF(F197="","",F197)) ->  | AJ196: =+SUM(F197:AI197)/24 -> 0.00 | AK196: =+AJ196*E196*1.5*86.4 -> 0.00
C197: MARIELA | AJ197: LT= | AK197: =+E196*1.5 -> 9.00
A198: 4F027A | B198: L3A | C198: REYES VILLALTA | E198: 8.36 | F198: =+IF(ISNUMBER(F199),$E198*1.5,IF(F199="","",F199)) ->  | AJ198: =+SUM(F199:AI199)/24 -> 0.00 | AK198: =+AJ198*E198*1.5*86.4 -> 0.00
C199: MARIELA | AJ199: LT= | AK199: =+E198*1.5 -> 12.54
A200: 4F036 | B200: PR | C200: SANABRIA OMAÑA | E200: 0.50 | F200: =+IF(ISNUMBER(F201),$E200*1.5,IF(F201="","",F201)) ->  | AJ200: =+SUM(F201:AI201)/24 -> 0.00 | AK200: =+AJ200*E200*1.5*86.4 -> 0.00
C201: MARIA DEL ROSARIO | AJ201: LT= | AK201: =+E200*1.5 -> 0.75
... 46 more rows

Sheet MAYO
A1: ASOCIACION DE USUARIOS DISTRITO DE ADECUACION DE TIERRAS DE GRAN ESCALA DEL RIO ZULIA ASOZULIA NIT 800,168,858-6 | AJ1: CODIGO: DTE-OPER-FR-01
AJ2: VERSION: 01
A3: CONTROL DIARIO DE RIEGO POR PREDIO Y CANAL | AJ3: FECHA: 16/06/2023
A5: ZONA | B5: RESTAURACIÓN | E5: AUXILIAR DE RIEGO | J5: EDWIN JAIR ZAMORA CHACON | S5: CANAL | AF5: MES | AG5: MAYO | AK5: AÑO | AL5: 2023
A6: CAUDAL DIARIO DERIVADO | E6: DIAS | F6: 1 | G6: 2 | H6: 3 | I6: 4 | J6: 5 | K6: 6 | L6: 7 | M6: 8 | N6: 9 | O6: 10 | P6: 11 | Q6: 12 | R6: 13 | S6: 14 | T6: 15 | U6: 16 | V6: 17 | W6: 18 | X6: 19 | Y6: 20 | Z6: 21 | AA6: 22 | AB6: 23 | AC6: 24 | AD6: 25 | AE6: 26 | AF6: 27 | AG6: 28 | AH6: 29 | AI6: 30 | AJ6: 31 | AK6: TOTAL DIAS | AL6: TOTAL M3
A7: CODIGO | B7: RAMAL | C7: USUARIO | D7: T.CULT | E7: AREA
A8: 4F300 | B8: PR | C8: BELTRAN GARCIA | D8: CA | E8: 30.00 | F8: =+IF(ISNUMBER(F9),$E8*1.5,IF(F9="","",F9)) ->  | G8: =+IF(ISNUMBER(G9),$E8*1.5,IF(G9="","",G9)) ->  | H8: FR | I8: 45.0 | J8: 45.0 | K8: 45.0 | L8: 45.0 | M8: 45.0 | N8: IC | Q8: =+IF(ISNUMBER(Q9),$E8*1.5,IF(Q9="","",Q9)) ->  | AK8: =+SUM(F9:AJ9)/24 -> 0.83 | AL8: =+AK8*E8*1.5*86.4 -> 3240.00 | AN8: FC
C9: LUIS | H9: FR | I9: 1 | J9: 2 | K9: 3 | L9: 4 | M9: 10 | N9: IC | AK9: LT= | AL9: =+E8*1.5 -> 45.00 | AN9: IC
A10: 4F350 | B10: PR | C10: VILLARREAL OSORIO | E10: 17.53 | F10: =+IF(ISNUMBER(F11),$E10*1.5,IF(F11="","",F11)) ->  | AK10: =+SUM(F11:AJ11)/24 -> 0.00 | AL10: =+AK10*E10*1.5*86.4 -> 0.00 | AN10: FR
C11: CLEMENTE | AK11: LT= | AL11: =+E10*1.5 -> 26.30 | AN11: IR
A12: 4F340 | B12: PR | C12: SANTANA CORTES | E12: 8.00 | F12: =+IF(ISNUMBER(F13),$E12*1.5,IF(F13="","",F13)) ->  | X12: 12.0 | Y12: 12.0 | Z12: 12.0 | AA12: FC | AC12: IC1 | AK12: =+SUM(F13:AJ13)/24 -> 1.25 | AL12: =+AK12*E12*1.5*86.4 -> 1296.00 | AN12: SR
C13: JOSE DOMINGO | X13: 10 | Y13: 10 | Z13: 10 | AA13: FC | AC13: IC1 | AK13: LT= | AL13: =+E12*1.5 -> 12.00 | AN13: RR
A14: 4F338 | B14: PR | C14: RIOS SUESCUN | E14: 8.75 | F14: =+IF(ISNUMBER(F15),$E14*1.5,IF(F15="","",F15)) ->  | AK14: =+SUM(F15:AJ15)/24 -> 0.00 | AL14: =+AK14*E14*1.5*86.4 -> 0.00 | AN14: ID
C15: MARIA LUCIA | AK15: LT= | AL15: =+E14*1.5 -> 13.13 | AN15: IC1
A16: 4F330 | B16: PR | C16: RIAÑO RAMIREZ | E16: 12.06 | F16: =+IF(ISNUMBER(F17),$E16*1.5,IF(F17="","",F17)) ->  | AK16: =+SUM(F17:AJ17)/24 -> 0.00 | AL16: =+AK16*E16*1.5*86.4 -> 0.00
C17: MARIA VICTORIA | AK17: LT= | AL17: =+E16*1.5 -> 18.09
A18: 4F320 | B18: PR | C18: RIAÑO VALDERRAMA | E18: 5.29 | F18: =+IF(ISNUMBER(F19),$E18*1.5,IF(F19="","",F19)) ->  | AK18: =+SUM(F19:AJ19)/24 -> 0.00 | AL18: =+AK18*E18*1.5*86.4 -> 0.00
C19: FREDDY ALEXANDER | AK19: LT= | AL19: =+E18*1.5 -> 7.94
A20: 4F320A | B20: PR | C20: RIAÑO VALDERRAMA | E20: 5.29 | F20: =+IF(ISNUMBER(F21),$E20*1.5,IF(F21="","",F21)) ->  | AK20: =+SUM(F21:AJ21)/24 -> 0.00 | AL20: =+AK20*E20*1.5*86.4 -> 0.00
C21: JENNY MARITZA | AK21: LT= | AL21: =+E20*1.5 -> 7.94
A22: 4F320B | B22: PR | C22: RIAÑO VALDERRAMA | E22: 4.14 | F22: =+IF(ISNUMBER(F23),$E22*1.5,IF(F23="","",F23)) ->  | AK22: =+SUM(F23:AJ23)/24 -> 0.00 | AL22: =+AK22*E22*1.5*86.4 -> 0.00
C23: FLOR LILIANA | AK23: LT= | AL23: =+E22*1.5 -> 6.21
A24: 4F320C | B24: PR | C24: RIAÑO VALDERRAMA | E24: 4.14 | F24: =+IF(ISNUMBER(F25),$E24*1.5,IF(F25="","",F25)) ->  | AK24: =+SUM(F25:AJ25)/24 -> 0.00 | AL24: =+AK24*E24*1.5*86.4 -> 0.00
C25: CIRO PASTOR | AK25: LT= | AL25: =+E24*1.5 -> 6.21
A26: 4F341 | B26: PR | C26: ORTEGA MORA | E26: 8.46 | F26: =+IF(ISNUMBER(F27),$E26*1.5,IF(F27="","",F27)) ->  | AK26: =+SUM(F27:AJ27)/24 -> 0.00 | AL26: =+AK26*E26*1.5*86.4 -> 0.00
C27: JOSE DEL CARMEN | AK27: LT= | AL27: =+E26*1.5 -> 12.69
A28: 4F319 | B28: PR | C28: SANTANA CORTES | E28: 26.50 | F28: =+IF(ISNUMBER(F29),$E28*1.5,IF(F29="","",F29)) ->  | AK28: =+SUM(F29:AJ29)/24 -> 0.00 | AL28: =+AK28*E28*1.5*86.4 -> 0.00
C29: ELVIA Y OTROS | AK29: LT= | AL29: =+E28*1.5 -> 39.75
A30: 4F314 | B30: PR | C30: GONZALEZ GIRON | E30: 3.00 | F30: =+IF(ISNUMBER(F31),$E30*1.5,IF(F31="","",F31)) ->  | AK30: =+SUM(F31:AJ31)/24 -> 0.00 | AL30: =+AK30*E30*1.5*86.4 -> 0.00
C31: EVELIO | AK31: LT= | AL31: =+E30*1.5 -> 4.50
A32: 4F035 | B32: PR | C32: VALDERRAMA CARDENAS | E32: 11.54 | F32: =+IF(ISNUMBER(F33),$E32*1.5,IF(F33="","",F33)) ->  | AK32: =+SUM(F33:AJ33)/24 -> 0.00 | AL32: =+AK32*E32*1.5*86.4 -> 0.00
C33: GUILLERMO Y OTROS | AK33: LT= | AL33: =+E32*1.5 -> 17.31
A34: 4F329B | B34: PR | C34: MARIN ZAPATA | E34: 7.00 | F34: =+IF(ISNUMBER(F35),$E34*1.5,IF(F35="","",F35)) ->  | AK34: =+SUM(F35:AJ35)/24 -> 0.00 | AL34: =+AK34*E34*1.5*86.4 -> 0.00
C35: ABELARDO ANTONIO | AK35: LT= | AL35: =+E34*1.5 -> 10.50
A36: 4F346 | B36: PR | C36: CASTELLANOS TARAZONA | E36: 10.00 | F36: =+IF(ISNUMBER(F37),$E36*1.5,IF(F37="","",F37)) ->  | AK36: =+SUM(F37:AJ37)/24 -> 0.00 | AL36: =+AK36*E36*1.5*86.4 -> 0.00
C37: JOSE DARIO | AK37: LT= | AL37: =+E36*1.5 -> 15.00
A38: 4F315 | B38: PR | C38: VILLARREAL OSORIO | E38: 12.23 | F38: =+IF(ISNUMBER(F39),$E38*1.5,IF(F39="","",F39)) ->  | AK38: =+SUM(F39:AJ39)/24 -> 0.00 | AL38: =+AK38*E38*1.5*86.4 -> 0.00
C39: EDILSON | AK39: LT= | AL39: =+E38*1.5 -> 18.35
A40: 4F001A | B40: L2 | C40: MARQUEZ CARDENAS | E40: 12.00 | F40: =+IF(ISNUMBER(F41),$E40*1.5,IF(F41="","",F41)) ->  | AK40: =+SUM(F41:AJ41)/24 -> 0.00 | AL40: =+AK40*E40*1.5*86.4 -> 0.00
C41: MARTHA CECILIA | AK41: LT= | AL41: =+E40*1.5 -> 18.00
A42: 4F001 | B42: L2 | C42: MARQUEZ CARDENAS | E42: 13.00 | F42: =+IF(ISNUMBER(F43),$E42*1.5,IF(F43="","",F43)) ->  | AK42: =+SUM(F43:AJ43)/24 -> 0.00 | AL42: =+AK42*E42*1.5*86.4 -> 0.00
C43: MARTHA CECILIA | AK43: LT= | AL43: =+E42*1.5 -> 19.50
A44: 4F031 | B44: L2 | C44: LERMA DIAZ | E44: 4.70 | F44: =+IF(ISNUMBER(F45),$E44*1.5,IF(F45="","",F45)) ->  | AK44: =+SUM(F45:AJ45)/24 -> 0.00 | AL44: =+AK44*E44*1.5*86.4 -> 0.00
C45: RAFAEL JULIO | AK45: LT= | AL45: =+E44*1.5 -> 7.05
A46: 4F031A | B46: L2 | C46: RIAÑO RAMIREZ | E46: 2.90 | F46: =+IF(ISNUMBER(F47),$E46*1.5,IF(F47="","",F47)) ->  | AK46: =+SUM(F47:AJ47)/24 -> 0.00 | AL46: =+AK46*E46*1.5*86.4 -> 0.00
C47: MARIA VICTORIA | AK47: LT= | AL47: =+E46*1.5 -> 4.35
A48: 4F031B | B48: L2 | C48: AREVALO ACEVEDO | E48: 2.30 | F48: =+IF(ISNUMBER(F49),$E48*1.5,IF(F49="","",F49)) ->  | AK48: =+SUM(F49:AJ49)/24 -> 0.00 | AL48: =+AK48*E48*1.5*86.4 -> 0.00
C49: RAMIRO Y OTRO | AK49: LT= | AL49: =+E48*1.5 -> 3.45
A50: 4F031C | B50: L2 | C50: BUSTAMANTE | E50: 3.20 | F50: =+IF(ISNUMBER(F51),$E50*1.5,IF(F51="","",F51)) ->  | AK50: =+SUM(F51:AJ51)/24 -> 0.00 | AL50: =+AK50*E50*1.5*86.4 -> 0.00
C51: JAIME DE J. Y OTRO | AK51: LT= | AL51: =+E50*1.5 -> 4.80
A52: 4F031D | B52: L2 | C52: AREVALO ACEVEDO | E52: 2.80 | F52: =+IF(ISNUMBER(F53),$E52*1.5,IF(F53="","",F53)) ->  | AK52: =+SUM(F53:AJ53)/24 -> 0.00 | AL52: =+AK52*E52*1.5*86.4 -> 0.00
C53: RAMIRO Y OTRO | AK53: LT= | AL53: =+E52*1.5 -> 4.20
A54: 4F031E | B54: L2 | C54: VILLAMIZAR | E54: 2.60 | F54: =+IF(ISNUMBER(F55),$E54*1.5,IF(F55="","",F55)) ->  | AK54: =+SUM(F55:AJ55)/24 -> 0.00 | AL54: =+AK54*E54*1.5*86.4 -> 0.00
C55: MARITZA | AK55: LT= | AL55: =+E54*1.5 -> 3.90
A56: 4F031F | B56: L2 | C56: VILLAMIZAR | E56: 1.50 | F56: =+IF(ISNUMBER(F57),$E56*1.5,IF(F57="","",F57)) ->  | AK56: =+SUM(F57:AJ57)/24 -> 0.00 | AL56: =+AK56*E56*1.5*86.4 -> 0.00
C57: MARITZA | AK57: LT= | AL57: =+E56*1.5 -> 2.25
A58: 4F031G | B58: L2 | C58: SANABRIA | E58: 0.58 | F58: =+IF(ISNUMBER(F59),$E58*1.5,IF(F59="","",F59)) ->  | AK58: =+SUM(F59:AJ59)/24 -> 0.00 | AL58: =+AK58*E58*1.5*86.4 -> 0.00
C59: MIGUEL ANTONIO | AK59: LT= | AL59: =+E58*1.5 -> 0.87
A60: 4F031H | B60: L2 | C60: DIAZ LERMA | E60: 4.00 | F60: =+IF(ISNUMBER(F61),$E60*1.5,IF(F61="","",F61)) ->  | AK60: =+SUM(F61:AJ61)/24 -> 0.00 | AL60: =+AK60*E60*1.5*86.4 -> 0.00
C61: LUIS ADAN | AK61: LT= | AL61: =+E60*1.5 -> 6.00
A62: 4F031I | B62: L2 | C62: CAICEDO GALVIS | E62: 8.60 | F62: =+IF(ISNUMBER(F63),$E62*1.5,IF(F63="","",F63)) ->  | AK62: =+SUM(F63:AJ63)/24 -> 0.00 | AL62: =+AK62*E62*1.5*86.4 -> 0.00
C63: ELIECER Y OTROS | AK63: LT= | AL63: =+E62*1.5 -> 12.90
A64: 4F003 | B64: L2 | C64: MENESES | E64: 9.46 | F64: =+IF(ISNUMBER(F65),$E64*1.5,IF(F65="","",F65)) ->  | AK64: =+SUM(F65:AJ65)/24 -> 0.00 | AL64: =+AK64*E64*1.5*86.4 -> 0.00
C65: POLICARPO | AK65: LT= | AL65: =+E64*1.5 -> 14.19
A66: 4F003A | B66: L2 | C66: ORTEGA RIVERA | E66: 8.26 | F66: =+IF(ISNUMBER(F67),$E66*1.5,IF(F67="","",F67)) ->  | AK66: =+SUM(F67:AJ67)/24 -> 0.00 | AL66: =+AK66*E66*1.5*86.4 -> 0.00
C67: PEDRO MIGUEL | AK67: LT= | AL67: =+E66*1.5 -> 12.39
A68: 4F329A | B68: PR | C68: DIAZ | E68: 3.80 | F68: =+IF(ISNUMBER(F69),$E68*1.5,IF(F69="","",F69)) ->  | AK68: =+SUM(F69:AJ69)/24 -> 0.00 | AL68: =+AK68*E68*1.5*86.4 -> 0.00
C69: ROSALBINA | AK69: LT= | AL69: =+E68*1.5 -> 5.70
A70: 4F329A | B70: PR | C70: DIAZ | E70: 2.00 | F70: =+IF(ISNUMBER(F71),$E70*1.5,IF(F71="","",F71)) ->  | AK70: =+SUM(F71:AJ71)/24 -> 0.00 | AL70: =+AK70*E70*1.5*86.4 -> 0.00
C71: ROSALBINA | AK71: LT= | AL71: =+E70*1.5 -> 3.00
A72: 4F329D | B72: PR | C72: RUBIO | E72: 7.24 | F72: =+IF(ISNUMBER(F73),$E72*1.5,IF(F73="","",F73)) ->  | AK72: =+SUM(F73:AJ73)/24 -> 0.00 | AL72: =+AK72*E72*1.5*86.4 -> 0.00
C73: MARIA EDELMIRA | AK73: LT= | AL73: =+E72*1.5 -> 10.86
A74: 4F329C | B74: PR | C74: MARTINEZ ALARCON | E74: 6.00 | F74: =+IF(ISNUMBER(F75),$E74*1.5,IF(F75="","",F75)) ->  | AK74: =+SUM(F75:AJ75)/24 -> 0.00 | AL74: =+AK74*E74*1.5*86.4 -> 0.00
C75: LUIS ALBERTO | AK75: LT= | AL75: =+E74*1.5 -> 9.00
A76: 4F004D | B76: PR | C76: DUARTE ACEVEDO | E76: 8.33 | F76: =+IF(ISNUMBER(F77),$E76*1.5,IF(F77="","",F77)) ->  | AK76: =+SUM(F77:AJ77)/24 -> 0.00 | AL76: =+AK76*E76*1.5*86.4 -> 0.00
C77: PEDRO Y OTROS | AK77: LT= | AL77: =+E76*1.5 -> 12.50
A78: 4F004A | B78: PR | C78: GARCIA CHONA | E78: 8.92 | F78: =+IF(ISNUMBER(F79),$E78*1.5,IF(F79="","",F79)) ->  | AK78: =+SUM(F79:AJ79)/24 -> 0.00 | AL78: =+AK78*E78*1.5*86.4 -> 0.00
C79: CRUZ DELINA | AK79: LT= | AL79: =+E78*1.5 -> 13.38
A80: 4F004E | B80: PR | C80: ROZO RICO | E80: 5.35 | F80: =+IF(ISNUMBER(F81),$E80*1.5,IF(F81="","",F81)) ->  | AK80: =+SUM(F81:AJ81)/24 -> 0.00 | AL80: =+AK80*E80*1.5*86.4 -> 0.00
C81: JOSE RAMON | AK81: LT= | AL81: =+E80*1.5 -> 8.03
A82: 4F004 | B82: PR | C82: QUINTERO M. | E82: 4.09 | F82: =+IF(ISNUMBER(F83),$E82*1.5,IF(F83="","",F83)) ->  | AK82: =+SUM(F83:AJ83)/24 -> 0.00 | AL82: =+AK82*E82*1.5*86.4 -> 0.00
C83: MIGUEL ANGEL/ OTRO | AK83: LT= | AL83: =+E82*1.5 -> 6.14
A84: 4F004C | B84: PR | C84: MARTINEZ RUBIO | E84: 9.74 | F84: =+IF(ISNUMBER(F85),$E84*1.5,IF(F85="","",F85)) ->  | AK84: =+SUM(F85:AJ85)/24 -> 0.00 | AL84: =+AK84*E84*1.5*86.4 -> 0.00
C85: JOSE LEONSO | AK85: LT= | AL85: =+E84*1.5 -> 14.61
A86: 4F328 | B86: PR | C86: GARCIA CHONA | E86: 9.65 | F86: =+IF(ISNUMBER(F87),$E86*1.5,IF(F87="","",F87)) ->  | AK86: =+SUM(F87:AJ87)/24 -> 0.00 | AL86: =+AK86*E86*1.5*86.4 -> 0.00
C87: CRUZ DELINA | AK87: LT= | AL87: =+E86*1.5 -> 14.48
A88: 4F004B | B88: L2A | C88: PAVA | E88: 8.90 | F88: =+IF(ISNUMBER(F89),$E88*1.5,IF(F89="","",F89)) ->  | AK88: =+SUM(F89:AJ89)/24 -> 0.00 | AL88: =+AK88*E88*1.5*86.4 -> 0.00
C89: LUIS JAVIER Y OTRO | AK89: LT= | AL89: =+E88*1.5 -> 13.35
A90: 4F006 | B90: L2A | C90: GARCIA | E90: 4.00 | F90: =+IF(ISNUMBER(F91),$E90*1.5,IF(F91="","",F91)) ->  | AK90: =+SUM(F91:AJ91)/24 -> 0.00 | AL90: =+AK90*E90*1.5*86.4 -> 0.00
C91: LINA ROSA Y OTROS | AK91: LT= | AL91: =+E90*1.5 -> 6.00
A92: 4F006A | B92: L2A | C92: CARDENAS HEREDIA | E92: 5.00 | F92: =+IF(ISNUMBER(F93),$E92*1.5,IF(F93="","",F93)) ->  | AK92: =+SUM(F93:AJ93)/24 -> 0.00 | AL92: =+AK92*E92*1.5*86.4 -> 0.00
C93: PAULINO | AK93: LT= | AL93: =+E92*1.5 -> 7.50
A94: 4F006B | B94: L2A | C94: RAMIREZ MAYORGA | E94: 5.08 | F94: =+IF(ISNUMBER(F95),$E94*1.5,IF(F95="","",F95)) ->  | AK94: =+SUM(F95:AJ95)/24 -> 0.00 | AL94: =+AK94*E94*1.5*86.4 -> 0.00
C95: CRISTINIANO | AK95: LT= | AL95: =+E94*1.5 -> 7.62
A96: 4F006C | B96: L2A | C96: ATUESTA ORTEGA | E96: 5.00 | F96: =+IF(ISNUMBER(F97),$E96*1.5,IF(F97="","",F97)) ->  | AK96: =+SUM(F97:AJ97)/24 -> 0.00 | AL96: =+AK96*E96*1.5*86.4 -> 0.00
C97: MIGUEL ANGEL | AK97: LT= | AL97: =+E96*1.5 -> 7.50
A98: 4F006D | B98: L2A | C98: SERNA GARCIA | E98: 5.00 | F98: =+IF(ISNUMBER(F99),$E98*1.5,IF(F99="","",F99)) ->  | AK98: =+SUM(F99:AJ99)/24 -> 0.00 | AL98: =+AK98*E98*1.5*86.4 -> 0.00
C99: CESARIO ANTONIO | AK99: LT= | AL99: =+E98*1.5 -> 7.50
A100: 4F006E | B100: L2A | C100: SERNA GARCIA | E100: 5.00 | F100: =+IF(ISNUMBER(F101),$E100*1.5,IF(F101="","",F101)) ->  | AK100: =+SUM(F101:AJ101)/24 -> 0.00 | AL100: =+AK100*E100*1.5*86.4 -> 0.00
C101: CESARIO ANTONIO | AK101: LT= | AL101: =+E100*1.5 -> 7.50
A102: 4F006F | B102: L2A | C102: CAICEDO GALVIS | E102: 5.00 | F102: =+IF(ISNUMBER(F103),$E102*1.5,IF(F103="","",F103)) ->  | AK102: =+SUM(F103:AJ103)/24 -> 0.00 | AL102: =+AK102*E102*1.5*86.4 -> 0.00
C103: ELIECER Y OTRO | AK103: LT= | AL103: =+E102*1.5 -> 7.50
A104: 4F006G | B104: L2A | C104: GARCIA | E104: 5.00 | F104: =+IF(ISNUMBER(F105),$E104*1.5,IF(F105="","",F105)) ->  | AK104: =+SUM(F105:AJ105)/24 -> 0.00 | AL104: =+AK104*E104*1.5*86.4 -> 0.00
C105: LINA ROSA Y OTROS | AK105: LT= | AL105: =+E104*1.5 -> 7.50
A106: 4F006H | B106: L2A | C106: VALENCIA MEJIA | E106: 4.50 | F106: =+IF(ISNUMBER(F107),$E106*1.5,IF(F107="","",F107)) ->  | AK106: =+SUM(F107:AJ107)/24 -> 0.00 | AL106: =+AK106*E106*1.5*86.4 -> 0.00
C107: WILSON | AK107: LT= | AL107: =+E106*1.5 -> 6.75
A108: 4F006I | B108: L2A | C108: BALLESTEROS | E108: 4.70 | F108: =+IF(ISNUMBER(F109),$E108*1.5,IF(F109="","",F109)) ->  | AK108: =+SUM(F109:AJ109)/24 -> 0.00 | AL108: =+AK108*E108*1.5*86.4 -> 0.00
C109: LUCIANO | AK109: LT= | AL109: =+E108*1.5 -> 7.05
A110: 4F006J | B110: L2A | C110: CUERO PEREZ | E110: 5.00 | F110: =+IF(ISNUMBER(F111),$E110*1.5,IF(F111="","",F111)) ->  | AK110: =+SUM(F111:AJ111)/24 -> 0.00 | AL110: =+AK110*E110*1.5*86.4 -> 0.00
C111: YESENIA | AK111: LT= | AL111: =+E110*1.5 -> 7.50
A112: 4F006L | B112: L2A | C112: FLOREZ FLOREZ | E112: 4.75 | F112: =+IF(ISNUMBER(F113),$E112*1.5,IF(F113="","",F113)) ->  | AK112: =+SUM(F113:AJ113)/24 -> 0.00 | AL112: =+AK112*E112*1.5*86.4 -> 0.00
C113: MANUEL | AK113: LT= | AL113: =+E112*1.5 -> 7.13
A114: 4F006K | B114: L2A | C114: GUARIN | E114: 5.00 | F114: =+IF(ISNUMBER(F115),$E114*1.5,IF(F115="","",F115)) ->  | AK114: =+SUM(F115:AJ115)/24 -> 0.00 | AL114: =+AK114*E114*1.5*86.4 -> 0.00
C115: LUIS ENRIQUE | AK115: LT= | AL115: =+E114*1.5 -> 7.50
A116: 4F006N | B116: L2A | C116: ATUESTA ORTEGA | E116: 5.00 | F116: =+IF(ISNUMBER(F117),$E116*1.5,IF(F117="","",F117)) ->  | AK116: =+SUM(F117:AJ117)/24 -> 0.00 | AL116: =+AK116*E116*1.5*86.4 -> 0.00
C117: MIGUEL ANGEL | AK117: LT= | AL117: =+E116*1.5 -> 7.50
A118: 4F006O | B118: L2A | C118: GUZMAN NIETO | E118: 5.18 | F118: =+IF(ISNUMBER(F119),$E118*1.5,IF(F119="","",F119)) ->  | AK118: =+SUM(F119:AJ119)/24 -> 0.00 | AL118: =+AK118*E118*1.5*86.4 -> 0.00
C119: JULIO CESAR | AK119: LT= | AL119: =+E118*1.5 -> 7.77
A120: 4F006M | B120: L2A | C120: FIGUEROA PINZON | E120: 5.00 | F120: =+IF(ISNUMBER(F121),$E120*1.5,IF(F121="","",F121)) ->  | AK120: =+SUM(F121:AJ121)/24 -> 0.00 | AL120: =+AK120*E120*1.5*86.4 -> 0.00
C121: FLORENTINO | AK121: LT= | AL121: =+E120*1.5 -> 7.50
A122: 4F008A | B122: L2A | C122: RIVERA MORENO | E122: 8.25 | F122: =+IF(ISNUMBER(F123),$E122*1.5,IF(F123="","",F123)) ->  | AK122: =+SUM(F123:AJ123)/24 -> 0.00 | AL122: =+AK122*E122*1.5*86.4 -> 0.00
C123: VICTOR EDUARDO | AK123: LT= | AL123: =+E122*1.5 -> 12.38
A124: 4F008C | B124: L2A | C124: GARCIA CACERES | E124: 9.00 | F124: =+IF(ISNUMBER(F125),$E124*1.5,IF(F125="","",F125)) ->  | AK124: =+SUM(F125:AJ125)/24 -> 0.00 | AL124: =+AK124*E124*1.5*86.4 -> 0.00
C125: PEDRO ENOG | AK125: LT= | AL125: =+E124*1.5 -> 13.50
A126: 4F008F | B126: L2A | C126: ENCINALES ACOSTA | E126: 5.00 | F126: =+IF(ISNUMBER(F127),$E126*1.5,IF(F127="","",F127)) ->  | AK126: =+SUM(F127:AJ127)/24 -> 0.00 | AL126: =+AK126*E126*1.5*86.4 -> 0.00
C127: STELLA | AK127: LT= | AL127: =+E126*1.5 -> 7.50
A128: 4F008E | B128: L2A | C128: CASTILLO ARIAS | E128: 3.28 | F128: =+IF(ISNUMBER(F129),$E128*1.5,IF(F129="","",F129)) ->  | AK128: =+SUM(F129:AJ129)/24 -> 0.00 | AL128: =+AK128*E128*1.5*86.4 -> 0.00
C129: GLADYS ELENA | AK129: LT= | AL129: =+E128*1.5 -> 4.92
A130: 4F008D | B130: L2A | C130: SILVA CARRILLO | E130: 8.00 | F130: =+IF(ISNUMBER(F131),$E130*1.5,IF(F131="","",F131)) ->  | AK130: =+SUM(F131:AJ131)/24 -> 0.00 | AL130: =+AK130*E130*1.5*86.4 -> 0.00
C131: DORA BETTY | AK131: LT= | AL131: =+E130*1.5 -> 12.00
A132: 4F008B | B132: L2A | C132: OBESO VARGAS | E132: 6.50 | F132: =+IF(ISNUMBER(F133),$E132*1.5,IF(F133="","",F133)) ->  | AK132: =+SUM(F133:AJ133)/24 -> 0.00 | AL132: =+AK132*E132*1.5*86.4 -> 0.00
C133: BENJAMIN Y OTRO | AK133: LT= | AL133: =+E132*1.5 -> 9.75
A134: 4F008G | B134: L2A | C134: OBESO VARGAS | E134: 2.50 | F134: =+IF(ISNUMBER(F135),$E134*1.5,IF(F135="","",F135)) ->  | AK134: =+SUM(F135:AJ135)/24 -> 0.00 | AL134: =+AK134*E134*1.5*86.4 -> 0.00
C135: BENJAMIN Y OTRO | AK135: LT= | AL135: =+E134*1.5 -> 3.75
A136: 4F005 | B136: PR | C136: CONTRERAS MONTES | E136: 10.00 | F136: =+IF(ISNUMBER(F137),$E136*1.5,IF(F137="","",F137)) ->  | AK136: =+SUM(F137:AJ137)/24 -> 0.00 | AL136: =+AK136*E136*1.5*86.4 -> 0.00
C137: ANIANO | AK137: LT= | AL137: =+E136*1.5 -> 15.00
A138: 4F366 | B138: PR | C138: OROZCO ALTAMIRANDA | E138: 7.00 | F138: =+IF(ISNUMBER(F139),$E138*1.5,IF(F139="","",F139)) ->  | AK138: =+SUM(F139:AJ139)/24 -> 0.00 | AL138: =+AK138*E138*1.5*86.4 -> 0.00
C139: ALBERTO E. | AK139: LT= | AL139: =+E138*1.5 -> 10.50
A140: 4F009 | B140: PR | C140: ANAYA VARGAS | E140: 11.23 | F140: =+IF(ISNUMBER(F141),$E140*1.5,IF(F141="","",F141)) ->  | AK140: =+SUM(F141:AJ141)/24 -> 0.00 | AL140: =+AK140*E140*1.5*86.4 -> 0.00
C141: FERMINA | AK141: LT= | AL141: =+E140*1.5 -> 16.85
A142: 4F009C | B142: PR | C142: ORDUZ LANDINEZ | E142: 11.00 | F142: =+IF(ISNUMBER(F143),$E142*1.5,IF(F143="","",F143)) ->  | AK142: =+SUM(F143:AJ143)/24 -> 0.00 | AL142: =+AK142*E142*1.5*86.4 -> 0.00
C143: EVELIA | AK143: LT= | AL143: =+E142*1.5 -> 16.50
A144: 4F009A | B144: PR | C144: VALENCIA MEJIA | E144: 11.13 | F144: =+IF(ISNUMBER(F145),$E144*1.5,IF(F145="","",F145)) ->  | AK144: =+SUM(F145:AJ145)/24 -> 0.00 | AL144: =+AK144*E144*1.5*86.4 -> 0.00
C145: WILSON | AK145: LT= | AL145: =+E144*1.5 -> 16.70
A146: 4F009B | B146: PR | C146: CONTRERAS ORTEGA | E146: 11.12 | F146: =+IF(ISNUMBER(F147),$E146*1.5,IF(F147="","",F147)) ->  | AK146: =+SUM(F147:AJ147)/24 -> 0.00 | AL146: =+AK146*E146*1.5*86.4 -> 0.00
C147: PEDRO ANTONIO | AK147: LT= | AL147: =+E146*1.5 -> 16.68
A148: 4F361 | B148: PR | C148: OROZCO ALTAMIRANDA | E148: 7.27 | F148: =+IF(ISNUMBER(F149),$E148*1.5,IF(F149="","",F149)) ->  | AK148: =+SUM(F149:AJ149)/24 -> 0.00 | AL148: =+AK148*E148*1.5*86.4 -> 0.00
C149: ALBERTO E. | AK149: LT= | AL149: =+E148*1.5 -> 10.91
A150: 4F013 | B150: PR | C150: CONTRERAS | E150: 17.30 | F150: =+IF(ISNUMBER(F151),$E150*1.5,IF(F151="","",F151)) ->  | AK150: =+SUM(F151:AJ151)/24 -> 0.00 | AL150: =+AK150*E150*1.5*86.4 -> 0.00
A151: E | C151: MONTES ANIANO | AK151: LT= | AL151: =+E150*1.5 -> 25.95
A152: 4F014C | B152: L3 | C152: AGUILAR REYES | E152: 7.00 | F152: =+IF(ISNUMBER(F153),$E152*1.5,IF(F153="","",F153)) ->  | AK152: =+SUM(F153:AJ153)/24 -> 0.00 | AL152: =+AK152*E152*1.5*86.4 -> 0.00
C153: DANIEL ALEXANDER | AK153: LT= | AL153: =+E152*1.5 -> 10.50
A154: 4F014A | B154: L3 | C154: UMAÑA PEREZ | E154: 8.58 | F154: =+IF(ISNUMBER(F155),$E154*1.5,IF(F155="","",F155)) ->  | AK154: =+SUM(F155:AJ155)/24 -> 0.00 | AL154: =+AK154*E154*1.5*86.4 -> 0.00
C155: CESAR AUGUSTO | AK155: LT= | AL155: =+E154*1.5 -> 12.87
A156: 4F010 | B156: L3 | C156: CARRILLO MARTINEZ | E156: 20.00 | F156: =+IF(ISNUMBER(F157),$E156*1.5,IF(F157="","",F157)) ->  | AK156: =+SUM(F157:AJ157)/24 -> 0.00 | AL156: =+AK156*E156*1.5*86.4 -> 0.00
C157: SAMUEL | AK157: LT= | AL157: =+E156*1.5 -> 30.00
A158: 4F010A | B158: L3 | C158: CARRILLO MARTINEZ | E158: 11.00 | F158: =+IF(ISNUMBER(F159),$E158*1.5,IF(F159="","",F159)) ->  | AK158: =+SUM(F159:AJ159)/24 -> 0.00 | AL158: =+AK158*E158*1.5*86.4 -> 0.00
C159: SAMUEL | AK159: LT= | AL159: =+E158*1.5 -> 16.50
A160: 4F010A | B160: L3 | C160: CARRILLO MARTINEZ | E160: 11.10 | F160: =+IF(ISNUMBER(F161),$E160*1.5,IF(F161="","",F161)) ->  | AK160: =+SUM(F161:AJ161)/24 -> 0.00 | AL160: =+AK160*E160*1.5*86.4 -> 0.00
C161: SAMUEL | AK161: LT= | AL161: =+E160*1.5 -> 16.65
A162: 4F014D | B162: L3 | C162: AGUILAR BARRIENTOS | E162: 7.00 | F162: =+IF(ISNUMBER(F163),$E162*1.5,IF(F163="","",F163)) ->  | AK162: =+SUM(F163:AJ163)/24 -> 0.00 | AL162: =+AK162*E162*1.5*86.4 -> 0.00
C163: OMAR | AK163: LT= | AL163: =+E162*1.5 -> 10.50
A164: 4F014B | B164: L3 | C164: BABILONIA RAMOS | E164: 8.00 | F164: =+IF(ISNUMBER(F165),$E164*1.5,IF(F165="","",F165)) ->  | AK164: =+SUM(F165:AJ165)/24 -> 0.00 | AL164: =+AK164*E164*1.5*86.4 -> 0.00
C165: INDULFO MANUEL | AK165: LT= | AL165: =+E164*1.5 -> 12.00
A166: 4F011 | B166: L3 | C166: PALENCIA DE GARCIA | E166: 7.00 | F166: =+IF(ISNUMBER(F167),$E166*1.5,IF(F167="","",F167)) ->  | AK166: =+SUM(F167:AJ167)/24 -> 0.00 | AL166: =+AK166*E166*1.5*86.4 -> 0.00
C167: ALIX MARIA | AK167: LT= | AL167: =+E166*1.5 -> 10.50
A168: 4F011A | B168: L3 | C168: PALENCIA DE GARCIA | E168: 33.00 | F168: =+IF(ISNUMBER(F169),$E168*1.5,IF(F169="","",F169)) ->  | AK168: =+SUM(F169:AJ169)/24 -> 0.00 | AL168: =+AK168*E168*1.5*86.4 -> 0.00
C169: ALIX MARIA | AK169: LT= | AL169: =+E168*1.5 -> 49.50
A170: 4F014E | B170: L3 | C170: FORI MONCADA | E170: 6.90 | F170: =+IF(ISNUMBER(F171),$E170*1.5,IF(F171="","",F171)) ->  | AK170: =+SUM(F171:AJ171)/24 -> 0.00 | AL170: =+AK170*E170*1.5*86.4 -> 0.00
C171: JOSE ALFREDO Y OT | AK171: LT= | AL171: =+E170*1.5 -> 10.35
A172: 4F029 | B172: L3 | C172: RUIZ RAMIREZ | E172: 18.63 | F172: =+IF(ISNUMBER(F173),$E172*1.5,IF(F173="","",F173)) ->  | AK172: =+SUM(F173:AJ173)/24 -> 0.00 | AL172: =+AK172*E172*1.5*86.4 -> 0.00
C173: NELSON ENRRIQUE | AK173: LT= | AL173: =+E172*1.5 -> 27.95
A174: 4F014F | B174: L3 | C174: RIVERO GONZALEZ | E174: 1.00 | F174: =+IF(ISNUMBER(F175),$E174*1.5,IF(F175="","",F175)) ->  | AK174: =+SUM(F175:AJ175)/24 -> 0.00 | AL174: =+AK174*E174*1.5*86.4 -> 0.00
C175: HERIBERTO | AK175: LT= | AL175: =+E174*1.5 -> 1.50
A176: 4F030 | B176: L3 | C176: VARGAS RIVERA | E176: 4.96 | F176: =+IF(ISNUMBER(F177),$E176*1.5,IF(F177="","",F177)) ->  | AK176: =+SUM(F177:AJ177)/24 -> 0.00 | AL176: =+AK176*E176*1.5*86.4 -> 0.00
C177: RAMIRO ANTONIO | AK177: LT= | AL177: =+E176*1.5 -> 7.44
A178: 4F015 | B178: L3 | C178: PALENCIA DE GARCIA | E178: 25.00 | F178: =+IF(ISNUMBER(F179),$E178*1.5,IF(F179="","",F179)) ->  | AK178: =+SUM(F179:AJ179)/24 -> 0.00 | AL178: =+AK178*E178*1.5*86.4 -> 0.00
C179: ALIX MARIA | AK179: LT= | AL179: =+E178*1.5 -> 37.50
A180: 4F015A | B180: L3 | C180: PALENCIA DE GARCIA | E180: 31.00 | F180: =+IF(ISNUMBER(F181),$E180*1.5,IF(F181="","",F181)) ->  | AK180: =+SUM(F181:AJ181)/24 -> 0.00 | AL180: =+AK180*E180*1.5*86.4 -> 0.00
C181: ALIX MARIA | AK181: LT= | AL181: =+E180*1.5 -> 46.50
A182: 4F012A | B182: L3 | C182: GOMEZ AGREDO | E182: 7.12 | F182: =+IF(ISNUMBER(F183),$E182*1.5,IF(F183="","",F183)) ->  | AK182: =+SUM(F183:AJ183)/24 -> 0.00 | AL182: =+AK182*E182*1.5*86.4 -> 0.00
C183: HERIBERTO | AK183: LT= | AL183: =+E182*1.5 -> 10.68
A184: 4F012C | B184: L3 | C184: CONTRERAS ROJAS | E184: 7.33 | F184: =+IF(ISNUMBER(F185),$E184*1.5,IF(F185="","",F185)) ->  | AK184: =+SUM(F185:AJ185)/24 -> 0.00 | AL184: =+AK184*E184*1.5*86.4 -> 0.00
C185: CARMEN | AK185: LT= | AL185: =+E184*1.5 -> 11.00
A186: 4F012B | B186: L3 | C186: ROJAS SANTOS | E186: 6.00 | F186: =+IF(ISNUMBER(F187),$E186*1.5,IF(F187="","",F187)) ->  | AK186: =+SUM(F187:AJ187)/24 -> 0.00 | AL186: =+AK186*E186*1.5*86.4 -> 0.00
C187: ELIODORO | AK187: LT= | AL187: =+E186*1.5 -> 9.00
A188: 4F020 | B188: L3A | C188: OROZCO ALTAMIRANDA | E188: 10.46 | F188: =+IF(ISNUMBER(F189),$E188*1.5,IF(F189="","",F189)) ->  | AK188: =+SUM(F189:AJ189)/24 -> 0.00 | AL188: =+AK188*E188*1.5*86.4 -> 0.00
C189: ALBERTO E. | AK189: LT= | AL189: =+E188*1.5 -> 15.69
A190: 4F019 | B190: L3A | C190: RUIZ RAMIREZ | E190: 10.25 | F190: =+IF(ISNUMBER(F191),$E190*1.5,IF(F191="","",F191)) ->  | AK190: =+SUM(F191:AJ191)/24 -> 0.00 | AL190: =+AK190*E190*1.5*86.4 -> 0.00
C191: NELSON ENRRIQUE | AK191: LT= | AL191: =+E190*1.5 -> 15.38
A192: 4F017 | B192: L3A | C192: BAUTISTA OSORIO | E192: 10.60 | F192: =+IF(ISNUMBER(F193),$E192*1.5,IF(F193="","",F193)) ->  | AK192: =+SUM(F193:AJ193)/24 -> 0.00 | AL192: =+AK192*E192*1.5*86.4 -> 0.00
C193: GLADYS CECILIA | AK193: LT= | AL193: =+E192*1.5 -> 15.90
A194: 4F028 | B194: L3A | C194: MARQUEZ CARDENAS | E194: 13.06 | F194: =+IF(ISNUMBER(F195),$E194*1.5,IF(F195="","",F195)) ->  | AK194: =+SUM(F195:AJ195)/24 -> 0.00 | AL194: =+AK194*E194*1.5*86.4 -> 0.00
C195: MARTHA CECILIA | AK195: LT= | AL195: =+E194*1.5 -> 19.59
A196: 4F027 | B196: L3A | C196: REYES VILLALTA | E196: 6.00 | F196: =+IF(ISNUMBER(F197),$E196*1.5,IF(F197="","",F197)) ->  | AK196: =+SUM(F197:AJ197)/24 -> 0.00 | AL196: =+AK196*E196*1.5*86.4 -> 0.00
C197: MARIELA | AK197: LT= | AL197: =+E196*1.5 -> 9.00
A198: 4F027A | B198: L3A | C198: REYES VILLALTA | E198: 8.36 | F198: =+IF(ISNUMBER(F199),$E198*1.5,IF(F199="","",F199)) ->  | AK198: =+SUM(F199:AJ199)/24 -> 0.00 | AL198: =+AK198*E198*1.5*86.4 -> 0.00
C199: MARIELA | AK199: LT= | AL199: =+E198*1.5 -> 12.54
A200: 4F036 | B200: PR | C200: SANABRIA OMAÑA | E200: 0.50 | F200: =+IF(ISNUMBER(F201),$E200*1.5,IF(F201="","",F201)) ->  | AK200: =+SUM(F201:AJ201)/24 -> 0.00 | AL200: =+AK200*E200*1.5*86.4 -> 0.00
C201: MARIA DEL ROSARIO | AK201: LT= | AL201: =+E200*1.5 -> 0.75
... 46 more rows

Sheet JUNIO
A1: ASOCIACION DE USUARIOS DISTRITO DE ADECUACION DE TIERRAS DE GRAN ESCALA DEL RIO ZULIA ASOZULIA NIT 800,168,858-6 | AI1: CODIGO: DTE-OPER-FR-01
AI2: VERSION: 01
A3: CONTROL DIARIO DE RIEGO POR PREDIO Y CANAL | AI3: FECHA: 16/06/2023
A5: ZONA | B5: RESTAURACIÓN | E5: AUXILIAR DE RIEGO | J5: EDWIN JAIR ZAMORA CHACON | S5: CANAL | AF5: MES | AG5: JUNIO | AJ5: AÑO | AK5: 2023
A6: CAUDAL DIARIO DERIVADO | E6: DIAS | F6: 1 | G6: 2 | H6: 3 | I6: 4 | J6: 5 | K6: 6 | L6: 7 | M6: 8 | N6: 9 | O6: 10 | P6: 11 | Q6: 12 | R6: 13 | S6: 14 | T6: 15 | U6: 16 | V6: 17 | W6: 18 | X6: 19 | Y6: 20 | Z6: 21 | AA6: 22 | AB6: 23 | AC6: 24 | AD6: 25 | AE6: 26 | AF6: 27 | AG6: 28 | AH6: 29 | AI6: 30 | AJ6: TOTAL DIAS | AK6: TOTAL M3
A7: CODIGO | B7: RAMAL | C7: USUARIO | D7: T.CULT | E7: AREA
A8: 4F300 | B8: PR | C8: BELTRAN GARCIA | D8: CA | E8: 30.00 | F8: =+IF(ISNUMBER(F9),$E8*1.5,IF(F9="","",F9)) ->  | G8: =+IF(ISNUMBER(G9),$E8*1.5,IF(G9="","",G9)) ->  | H8: FR | I8: 45.0 | J8: 45.0 | K8: 45.0 | L8: 45.0 | M8: 45.0 | N8: IC | Q8: =+IF(ISNUMBER(Q9),$E8*1.5,IF(Q9="","",Q9)) ->  | AJ8: =+SUM(F9:AI9)/24 -> 0.83 | AK8: =+AJ8*E8*1.5*86.4 -> 3240.00 | AM8: FC
C9: LUIS | H9: FR | I9: 1 | J9: 2 | K9: 3 | L9: 4 | M9: 10 | N9: IC | AJ9: LT= | AK9: =+E8*1.5 -> 45.00 | AM9: IC
A10: 4F350 | B10: PR | C10: VILLARREAL OSORIO | E10: 17.53 | F10: =+IF(ISNUMBER(F11),$E10*1.5,IF(F11="","",F11)) ->  | AJ10: =+SUM(F11:AI11)/24 -> 0.00 | AK10: =+AJ10*E10*1.5*86.4 -> 0.00 | AM10: FR
C11: CLEMENTE | AJ11: LT= | AK11: =+E10*1.5 -> 26.30 | AM11: IR
A12: 4F340 | B12: PR | C12: SANTANA CORTES | E12: 8.00 | F12: =+IF(ISNUMBER(F13),$E12*1.5,IF(F13="","",F13)) ->  | X12: 12.0 | Y12: 12.0 | Z12: 12.0 | AA12: FC | AC12: IC1 | AJ12: =+SUM(F13:AI13)/24 -> 1.25 | AK12: =+AJ12*E12*1.5*86.4 -> 1296.00 | AM12: SR
C13: JOSE DOMINGO | X13: 10 | Y13: 10 | Z13: 10 | AA13: FC | AC13: IC1 | AJ13: LT= | AK13: =+E12*1.5 -> 12.00 | AM13: RR
A14: 4F338 | B14: PR | C14: RIOS SUESCUN | E14: 8.75 | F14: =+IF(ISNUMBER(F15),$E14*1.5,IF(F15="","",F15)) ->  | AJ14: =+SUM(F15:AI15)/24 -> 0.00 | AK14: =+AJ14*E14*1.5*86.4 -> 0.00 | AM14: ID
C15: MARIA LUCIA | AJ15: LT= | AK15: =+E14*1.5 -> 13.13 | AM15: IC1
A16: 4F330 | B16: PR | C16: RIAÑO RAMIREZ | E16: 12.06 | F16: =+IF(ISNUMBER(F17),$E16*1.5,IF(F17="","",F17)) ->  | AJ16: =+SUM(F17:AI17)/24 -> 0.00 | AK16: =+AJ16*E16*1.5*86.4 -> 0.00
C17: MARIA VICTORIA | AJ17: LT= | AK17: =+E16*1.5 -> 18.09
A18: 4F320 | B18: PR | C18: RIAÑO VALDERRAMA | E18: 5.29 | F18: =+IF(ISNUMBER(F19),$E18*1.5,IF(F19="","",F19)) ->  | AJ18: =+SUM(F19:AI19)/24 -> 0.00 | AK18: =+AJ18*E18*1.5*86.4 -> 0.00
C19: FREDDY ALEXANDER | AJ19: LT= | AK19: =+E18*1.5 -> 7.94
A20: 4F320A | B20: PR | C20: RIAÑO VALDERRAMA | E20: 5.29 | F20: =+IF(ISNUMBER(F21),$E20*1.5,IF(F21="","",F21)) ->  | AJ20: =+SUM(F21:AI21)/24 -> 0.00 | AK20: =+AJ20*E20*1.5*86.4 -> 0.00
C21: JENNY MARITZA | AJ21: LT= | AK21: =+E20*1.5 -> 7.94
A22: 4F320B | B22: PR | C22: RIAÑO VALDERRAMA | E22: 4.14 | F22: =+IF(ISNUMBER(F23),$E22*1.5,IF(F23="","",F23)) ->  | AJ22: =+SUM(F23:AI23)/24 -> 0.00 | AK22: =+AJ22*E22*1.5*86.4 -> 0.00
C23: FLOR LILIANA | AJ23: LT= | AK23: =+E22*1.5 -> 6.21
A24: 4F320C | B24: PR | C24: RIAÑO VALDERRAMA | E24: 4.14 | F24: =+IF(ISNUMBER(F25),$E24*1.5,IF(F25="","",F25)) ->  | AJ24: =+SUM(F25:AI25)/24 -> 0.00 | AK24: =+AJ24*E24*1.5*86.4 -> 0.00
C25: CIRO PASTOR | AJ25: LT= | AK25: =+E24*1.5 -> 6.21
A26: 4F341 | B26: PR | C26: ORTEGA MORA | E26: 8.46 | F26: =+IF(ISNUMBER(F27),$E26*1.5,IF(F27="","",F27)) ->  | AJ26: =+SUM(F27:AI27)/24 -> 0.00 | AK26: =+AJ26*E26*1.5*86.4 -> 0.00
C27: JOSE DEL CARMEN | AJ27: LT= | AK27: =+E26*1.5 -> 12.69
A28: 4F319 | B28: PR | C28: SANTANA CORTES | E28: 26.50 | F28: =+IF(ISNUMBER(F29),$E28*1.5,IF(F29="","",F29)) ->  | AJ28: =+SUM(F29:AI29)/24 -> 0.00 | AK28: =+AJ28*E28*1.5*86.4 -> 0.00
C29: ELVIA Y OTROS | AJ29: LT= | AK29: =+E28*1.5 -> 39.75
A30: 4F314 | B30: PR | C30: GONZALEZ GIRON | E30: 3.00 | F30: =+IF(ISNUMBER(F31),$E30*1.5,IF(F31="","",F31)) ->  | AJ30: =+SUM(F31:AI31)/24 -> 0.00 | AK30: =+AJ30*E30*1.5*86.4 -> 0.00
C31: EVELIO | AJ31: LT= | AK31: =+E30*1.5 -> 4.50
A32: 4F035 | B32: PR | C32: VALDERRAMA CARDENAS | E32: 11.54 | F32: =+IF(ISNUMBER(F33),$E32*1.5,IF(F33="","",F33)) ->  | AJ32: =+SUM(F33:AI33)/24 -> 0.00 | AK32: =+AJ32*E32*1.5*86.4 -> 0.00
C33: GUILLERMO Y OTROS | AJ33: LT= | AK33: =+E32*1.5 -> 17.31
A34: 4F329B | B34: PR | C34: MARIN ZAPATA | E34: 7.00 | F34: =+IF(ISNUMBER(F35),$E34*1.5,IF(F35="","",F35)) ->  | AJ34: =+SUM(F35:AI35)/24 -> 0.00 | AK34: =+AJ34*E34*1.5*86.4 -> 0.00
C35: ABELARDO ANTONIO | AJ35: LT= | AK35: =+E34*1.5 -> 10.50
A36: 4F346 | B36: PR | C36: CASTELLANOS TARAZONA | E36: 10.00 | F36: =+IF(ISNUMBER(F37),$E36*1.5,IF(F37="","",F37)) ->  | AJ36: =+SUM(F37:AI37)/24 -> 0.00 | AK36: =+AJ36*E36*1.5*86.4 -> 0.00
C37: JOSE DARIO | AJ37: LT= | AK37: =+E36*1.5 -> 15.00
A38: 4F315 | B38: PR | C38: VILLARREAL OSORIO | E38: 12.23 | F38: =+IF(ISNUMBER(F39),$E38*1.5,IF(F39="","",F39)) ->  | AJ38: =+SUM(F39:AI39)/24 -> 0.00 | AK38: =+AJ38*E38*1.5*86.4 -> 0.00
C39: EDILSON | AJ39: LT= | AK39: =+E38*1.5 -> 18.35
A40: 4F001A | B40: L2 | C40: MARQUEZ CARDENAS | E40: 12.00 | F40: =+IF(ISNUMBER(F41),$E40*1.5,IF(F41="","",F41)) ->  | AJ40: =+SUM(F41:AI41)/24 -> 0.00 | AK40: =+AJ40*E40*1.5*86.4 -> 0.00
C41: MARTHA CECILIA | AJ41: LT= | AK41: =+E40*1.5 -> 18.00
A42: 4F001 | B42: L2 | C42: MARQUEZ CARDENAS | E42: 13.00 | F42: =+IF(ISNUMBER(F43),$E42*1.5,IF(F43="","",F43)) ->  | AJ42: =+SUM(F43:AI43)/24 -> 0.00 | AK42: =+AJ42*E42*1.5*86.4 -> 0.00
C43: MARTHA CECILIA | AJ43: LT= | AK43: =+E42*1.5 -> 19.50
A44: 4F031 | B44: L2 | C44: LERMA DIAZ | E44: 4.70 | F44: =+IF(ISNUMBER(F45),$E44*1.5,IF(F45="","",F45)) ->  | AJ44: =+SUM(F45:AI45)/24 -> 0.00 | AK44: =+AJ44*E44*1.5*86.4 -> 0.00
C45: RAFAEL JULIO | AJ45: LT= | AK45: =+E44*1.5 -> 7.05
A46: 4F031A | B46: L2 | C46: RIAÑO RAMIREZ | E46: 2.90 | F46: =+IF(ISNUMBER(F47),$E46*1.5,IF(F47="","",F47)) ->  | AJ46: =+SUM(F47:AI47)/24 -> 0.00 | AK46: =+AJ46*E46*1.5*86.4 -> 0.00
C47: MARIA VICTORIA | AJ47: LT= | AK47: =+E46*1.5 -> 4.35
A48: 4F031B | B48: L2 | C48: AREVALO ACEVEDO | E48: 2.30 | F48: =+IF(ISNUMBER(F49),$E48*1.5,IF(F49="","",F49)) ->  | AJ48: =+SUM(F49:AI49)/24 -> 0.00 | AK48: =+AJ48*E48*1.5*86.4 -> 0.00
C49: RAMIRO Y OTRO | AJ49: LT= | AK49: =+E48*1.5 -> 3.45
A50: 4F031C | B50: L2 | C50: BUSTAMANTE | E50: 3.20 | F50: =+IF(ISNUMBER(F51),$E50*1.5,IF(F51="","",F51)) ->  | AJ50: =+SUM(F51:AI51)/24 -> 0.00 | AK50: =+AJ50*E50*1.5*86.4 -> 0.00
C51: JAIME DE J. Y OTRO | AJ51: LT= | AK51: =+E50*1.5 -> 4.80
A52: 4F031D | B52: L2 | C52: AREVALO ACEVEDO | E52: 2.80 | F52: =+IF(ISNUMBER(F53),$E52*1.5,IF(F53="","",F53)) ->  | AJ52: =+SUM(F53:AI53)/24 -> 0.00 | AK52: =+AJ52*E52*1.5*86.4 -> 0.00
C53: RAMIRO Y OTRO | AJ53: LT= | AK53: =+E52*1.5 -> 4.20
A54: 4F031E | B54: L2 | C54: VILLAMIZAR | E54: 2.60 | F54: =+IF(ISNUMBER(F55),$E54*1.5,IF(F55="","",F55)) ->  | AJ54: =+SUM(F55:AI55)/24 -> 0.00 | AK54: =+AJ54*E54*1.5*86.4 -> 0.00
C55: MARITZA | AJ55: LT= | AK55: =+E54*1.5 -> 3.90
A56: 4F031F | B56: L2 | C56: VILLAMIZAR | E56: 1.50 | F56: =+IF(ISNUMBER(F57),$E56*1.5,IF(F57="","",F57)) ->  | AJ56: =+SUM(F57:AI57)/24 -> 0.00 | AK56: =+AJ56*E56*1.5*86.4 -> 0.00
C57: MARITZA | AJ57: LT= | AK57: =+E56*1.5 -> 2.25
A58: 4F031G | B58: L2 | C58: SANABRIA | E58: 0.58 | F58: =+IF(ISNUMBER(F59),$E58*1.5,IF(F59="","",F59)) ->  | AJ58: =+SUM(F59:AI59)/24 -> 0.00 | AK58: =+AJ58*E58*1.5*86.4 -> 0.00
C59: MIGUEL ANTONIO | AJ59: LT= | AK59: =+E58*1.5 -> 0.87
A60: 4F031H | B60: L2 | C60: DIAZ LERMA | E60: 4.00 | F60: =+IF(ISNUMBER(F61),$E60*1.5,IF(F61="","",F61)) ->  | AJ60: =+SUM(F61:AI61)/24 -> 0.00 | AK60: =+AJ60*E60*1.5*86.4 -> 0.00
C61: LUIS ADAN | AJ61: LT= | AK61: =+E60*1.5 -> 6.00
A62: 4F031I | B62: L2 | C62: CAICEDO GALVIS | E62: 8.60 | F62: =+IF(ISNUMBER(F63),$E62*1.5,IF(F63="","",F63)) ->  | AJ62: =+SUM(F63:AI63)/24 -> 0.00 | AK62: =+AJ62*E62*1.5*86.4 -> 0.00
C63: ELIECER Y OTROS | AJ63: LT= | AK63: =+E62*1.5 -> 12.90
A64: 4F003 | B64: L2 | C64: MENESES | E64: 9.46 | F64: =+IF(ISNUMBER(F65),$E64*1.5,IF(F65="","",F65)) ->  | AJ64: =+SUM(F65:AI65)/24 -> 0.00 | AK64: =+AJ64*E64*1.5*86.4 -> 0.00
C65: POLICARPO | AJ65: LT= | AK65: =+E64*1.5 -> 14.19
A66: 4F003A | B66: L2 | C66: ORTEGA RIVERA | E66: 8.26 | F66: =+IF(ISNUMBER(F67),$E66*1.5,IF(F67="","",F67)) ->  | AJ66: =+SUM(F67:AI67)/24 -> 0.00 | AK66: =+AJ66*E66*1.5*86.4 -> 0.00
C67: PEDRO MIGUEL | AJ67: LT= | AK67: =+E66*1.5 -> 12.39
A68: 4F329A | B68: PR | C68: DIAZ | E68: 3.80 | F68: =+IF(ISNUMBER(F69),$E68*1.5,IF(F69="","",F69)) ->  | AJ68: =+SUM(F69:AI69)/24 -> 0.00 | AK68: =+AJ68*E68*1.5*86.4 -> 0.00
C69: ROSALBINA | AJ69: LT= | AK69: =+E68*1.5 -> 5.70
A70: 4F329A | B70: PR | C70: DIAZ | E70: 2.00 | F70: =+IF(ISNUMBER(F71),$E70*1.5,IF(F71="","",F71)) ->  | AJ70: =+SUM(F71:AI71)/24 -> 0.00 | AK70: =+AJ70*E70*1.5*86.4 -> 0.00
C71: ROSALBINA | AJ71: LT= | AK71: =+E70*1.5 -> 3.00
A72: 4F329D | B72: PR | C72: RUBIO | E72: 7.24 | F72: =+IF(ISNUMBER(F73),$E72*1.5,IF(F73="","",F73)) ->  | AJ72: =+SUM(F73:AI73)/24 -> 0.00 | AK72: =+AJ72*E72*1.5*86.4 -> 0.00
C73: MARIA EDELMIRA | AJ73: LT= | AK73: =+E72*1.5 -> 10.86
A74: 4F329C | B74: PR | C74: MARTINEZ ALARCON | E74: 6.00 | F74: =+IF(ISNUMBER(F75),$E74*1.5,IF(F75="","",F75)) ->  | AJ74: =+SUM(F75:AI75)/24 -> 0.00 | AK74: =+AJ74*E74*1.5*86.4 -> 0.00
C75: LUIS ALBERTO | AJ75: LT= | AK75: =+E74*1.5 -> 9.00
A76: 4F004D | B76: PR | C76: DUARTE ACEVEDO | E76: 8.33 | F76: =+IF(ISNUMBER(F77),$E76*1.5,IF(F77="","",F77)) ->  | AJ76: =+SUM(F77:AI77)/24 -> 0.00 | AK76: =+AJ76*E76*1.5*86.4 -> 0.00
C77: PEDRO Y OTROS | AJ77: LT= | AK77: =+E76*1.5 -> 12.50
A78: 4F004A | B78: PR | C78: GARCIA CHONA | E78: 8.92 | F78: =+IF(ISNUMBER(F79),$E78*1.5,IF(F79="","",F79)) ->  | AJ78: =+SUM(F79:AI79)/24 -> 0.00 | AK78: =+AJ78*E78*1.5*86.4 -> 0.00
C79: CRUZ DELINA | AJ79: LT= | AK79: =+E78*1.5 -> 13.38
A80: 4F004E | B80: PR | C80: ROZO RICO | E80: 5.35 | F80: =+IF(ISNUMBER(F81),$E80*1.5,IF(F81="","",F81)) ->  | AJ80: =+SUM(F81:AI81)/24 -> 0.00 | AK80: =+AJ80*E80*1.5*86.4 -> 0.00
C81: JOSE RAMON | AJ81: LT= | AK81: =+E80*1.5 -> 8.03
A82: 4F004 | B82: PR | C82: QUINTERO M. | E82: 4.09 | F82: =+IF(ISNUMBER(F83),$E82*1.5,IF(F83="","",F83)) ->  | AJ82: =+SUM(F83:AI83)/24 -> 0.00 | AK82: =+AJ82*E82*1.5*86.4 -> 0.00
C83: MIGUEL ANGEL/ OTRO | AJ83: LT= | AK83: =+E82*1.5 -> 6.14
A84: 4F004C | B84: PR | C84: MARTINEZ RUBIO | E84: 9.74 | F84: =+IF(ISNUMBER(F85),$E84*1.5,IF(F85="","",F85)) ->  | AJ84: =+SUM(F85:AI85)/24 -> 0.00 | AK84: =+AJ84*E84*1.5*86.4 -> 0.00
C85: JOSE LEONSO | AJ85: LT= | AK85: =+E84*1.5 -> 14.61
A86: 4F328 | B86: PR | C86: GARCIA CHONA | E86: 9.65 | F86: =+IF(ISNUMBER(F87),$E86*1.5,IF(F87="","",F87)) ->  | AJ86: =+SUM(F87:AI87)/24 -> 0.00 | AK86: =+AJ86*E86*1.5*86.4 -> 0.00
C87: CRUZ DELINA | AJ87: LT= | AK87: =+E86*1.5 -> 14.48
A88: 4F004B | B88: L2A | C88: PAVA | E88: 8.90 | F88: =+IF(ISNUMBER(F89),$E88*1.5,IF(F89="","",F89)) ->  | AJ88: =+SUM(F89:AI89)/24 -> 0.00 | AK88: =+AJ88*E88*1.5*86.4 -> 0.00
C89: LUIS JAVIER Y OTRO | AJ89: LT= | AK89: =+E88*1.5 -> 13.35
A90: 4F006 | B90: L2A | C90: GARCIA | E90: 4.00 | F90: =+IF(ISNUMBER(F91),$E90*1.5,IF(F91="","",F91)) ->  | AJ90: =+SUM(F91:AI91)/24 -> 0.00 | AK90: =+AJ90*E90*1.5*86.4 -> 0.00
C91: LINA ROSA Y OTROS | AJ91: LT= | AK91: =+E90*1.5 -> 6.00
A92: 4F006A | B92: L2A | C92: CARDENAS HEREDIA | E92: 5.00 | F92: =+IF(ISNUMBER(F93),$E92*1.5,IF(F93="","",F93)) ->  | AJ92: =+SUM(F93:AI93)/24 -> 0.00 | AK92: =+AJ92*E92*1.5*86.4 -> 0.00
C93: PAULINO | AJ93: LT= | AK93: =+E92*1.5 -> 7.50
A94: 4F006B | B94: L2A | C94: RAMIREZ MAYORGA | E94: 5.08 | F94: =+IF(ISNUMBER(F95),$E94*1.5,IF(F95="","",F95)) ->  | AJ94: =+SUM(F95:AI95)/24 -> 0.00 | AK94: =+AJ94*E94*1.5*86.4 -> 0.00
C95: CRISTINIANO | AJ95: LT= | AK95: =+E94*1.5 -> 7.62
A96: 4F006C | B96: L2A | C96: ATUESTA ORTEGA | E96: 5.00 | F96: =+IF(ISNUMBER(F97),$E96*1.5,IF(F97="","",F97)) ->  | AJ96: =+SUM(F97:AI97)/24 -> 0.00 | AK96: =+AJ96*E96*1.5*86.4 -> 0.00
C97: MIGUEL ANGEL | AJ97: LT= | AK97: =+E96*1.5 -> 7.50
A98: 4F006D | B98: L2A | C98: SERNA GARCIA | E98: 5.00 | F98: =+IF(ISNUMBER(F99),$E98*1.5,IF(F99="","",F99)) ->  | AJ98: =+SUM(F99:AI99)/24 -> 0.00 | AK98: =+AJ98*E98*1.5*86.4 -> 0.00
C99: CESARIO ANTONIO | AJ99: LT= | AK99: =+E98*1.5 -> 7.50
A100: 4F006E | B100: L2A | C100: SERNA GARCIA | E100: 5.00 | F100: =+IF(ISNUMBER(F101),$E100*1.5,IF(F101="","",F101)) ->  | AJ100: =+SUM(F101:AI101)/24 -> 0.00 | AK100: =+AJ100*E100*1.5*86.4 -> 0.00
C101: CESARIO ANTONIO | AJ101: LT= | AK101: =+E100*1.5 -> 7.50
A102: 4F006F | B102: L2A | C102: CAICEDO GALVIS | E102: 5.00 | F102: =+IF(ISNUMBER(F103),$E102*1.5,IF(F103="","",F103)) ->  | AJ102: =+SUM(F103:AI103)/24 -> 0.00 | AK102: =+AJ102*E102*1.5*86.4 -> 0.00
C103: ELIECER Y OTRO | AJ103: LT= | AK103: =+E102*1.5 -> 7.50
A104: 4F006G | B104: L2A | C104: GARCIA | E104: 5.00 | F104: =+IF(ISNUMBER(F105),$E104*1.5,IF(F105="","",F105)) ->  | AJ104: =+SUM(F105:AI105)/24 -> 0.00 | AK104: =+AJ104*E104*1.5*86.4 -> 0.00
C105: LINA ROSA Y OTROS | AJ105: LT= | AK105: =+E104*1.5 -> 7.50
A106: 4F006H | B106: L2A | C106: VALENCIA MEJIA | E106: 4.50 | F106: =+IF(ISNUMBER(F107),$E106*1.5,IF(F107="","",F107)) ->  | AJ106: =+SUM(F107:AI107)/24 -> 0.00 | AK106: =+AJ106*E106*1.5*86.4 -> 0.00
C107: WILSON | AJ107: LT= | AK107: =+E106*1.5 -> 6.75
A108: 4F006I | B108: L2A | C108: BALLESTEROS | E108: 4.70 | F108: =+IF(ISNUMBER(F109),$E108*1.5,IF(F109="","",F109)) ->  | AJ108: =+SUM(F109:AI109)/24 -> 0.00 | AK108: =+AJ108*E108*1.5*86.4 -> 0.00
C109: LUCIANO | AJ109: LT= | AK109: =+E108*1.5 -> 7.05
A110: 4F006J | B110: L2A | C110: CUERO PEREZ | E110: 5.00 | F110: =+IF(ISNUMBER(F111),$E110*1.5,IF(F111="","",F111)) ->  | AJ110: =+SUM(F111:AI111)/24 -> 0.00 | AK110: =+AJ110*E110*1.5*86.4 -> 0.00
C111: YESENIA | AJ111: LT= | AK111: =+E110*1.5 -> 7.50
A112: 4F006L | B112: L2A | C112: FLOREZ FLOREZ | E112: 4.75 | F112: =+IF(ISNUMBER(F113),$E112*1.5,IF(F113="","",F113)) ->  | AJ112: =+SUM(F113:AI113)/24 -> 0.00 | AK112: =+AJ112*E112*1.5*86.4 -> 0.00
C113: MANUEL | AJ113: LT= | AK113: =+E112*1.5 -> 7.13
A114: 4F006K | B114: L2A | C114: GUARIN | E114: 5.00 | F114: =+IF(ISNUMBER(F115),$E114*1.5,IF(F115="","",F115)) ->  | AJ114: =+SUM(F115:AI115)/24 -> 0.00 | AK114: =+AJ114*E114*1.5*86.4 -> 0.00
C115: LUIS ENRIQUE | AJ115: LT= | AK115: =+E114*1.5 -> 7.50
A116: 4F006N | B116: L2A | C116: ATUESTA ORTEGA | E116: 5.00 | F116: =+IF(ISNUMBER(F117),$E116*1.5,IF(F117="","",F117)) ->  | AJ116: =+SUM(F117:AI117)/24 -> 0.00 | AK116: =+AJ116*E116*1.5*86.4 -> 0.00
C117: MIGUEL ANGEL | AJ117: LT= | AK117: =+E116*1.5 -> 7.50
A118: 4F006O | B118: L2A | C118: GUZMAN NIETO | E118: 5.18 | F118: =+IF(ISNUMBER(F119),$E118*1.5,IF(F119="","",F119)) ->  | AJ118: =+SUM(F119:AI119)/24 -> 0.00 | AK118: =+AJ118*E118*1.5*86.4 -> 0.00
C119: JULIO CESAR | AJ119: LT= | AK119: =+E118*1.5 -> 7.77
A120: 4F006M | B120: L2A | C120: FIGUEROA PINZON | E120: 5.00 | F120: =+IF(ISNUMBER(F121),$E120*1.5,IF(F121="","",F121)) ->  | AJ120: =+SUM(F121:AI121)/24 -> 0.00 | AK120: =+AJ120*E120*1.5*86.4 -> 0.00
C121: FLORENTINO | AJ121: LT= | AK121: =+E120*1.5 -> 7.50
A122: 4F008A | B122: L2A | C122: RIVERA MORENO | E122: 8.25 | F122: =+IF(ISNUMBER(F123),$E122*1.5,IF(F123="","",F123)) ->  | AJ122: =+SUM(F123:AI123)/24 -> 0.00 | AK122: =+AJ122*E122*1.5*86.4 -> 0.00
C123: VICTOR EDUARDO | AJ123: LT= | AK123: =+E122*1.5 -> 12.38
A124: 4F008C | B124: L2A | C124: GARCIA CACERES | E124: 9.00 | F124: =+IF(ISNUMBER(F125),$E124*1.5,IF(F125="","",F125)) ->  | AJ124: =+SUM(F125:AI125)/24 -> 0.00 | AK124: =+AJ124*E124*1.5*86.4 -> 0.00
C125: PEDRO ENOG | AJ125: LT= | AK125: =+E124*1.5 -> 13.50
A126: 4F008F | B126: L2A | C126: ENCINALES ACOSTA | E126: 5.00 | F126: =+IF(ISNUMBER(F127),$E126*1.5,IF(F127="","",F127)) ->  | AJ126: =+SUM(F127:AI127)/24 -> 0.00 | AK126: =+AJ126*E126*1.5*86.4 -> 0.00
C127: STELLA | AJ127: LT= | AK127: =+E126*1.5 -> 7.50
A128: 4F008E | B128: L2A | C128: CASTILLO ARIAS | E128: 3.28 | F128: =+IF(ISNUMBER(F129),$E128*1.5,IF(F129="","",F129)) ->  | AJ128: =+SUM(F129:AI129)/24 -> 0.00 | AK128: =+AJ128*E128*1.5*86.4 -> 0.00
C129: GLADYS ELENA | AJ129: LT= | AK129: =+E128*1.5 -> 4.92
A130: 4F008D | B130: L2A | C130: SILVA CARRILLO | E130: 8.00 | F130: =+IF(ISNUMBER(F131),$E130*1.5,IF(F131="","",F131)) ->  | AJ130: =+SUM(F131:AI131)/24 -> 0.00 | AK130: =+AJ130*E130*1.5*86.4 -> 0.00
C131: DORA BETTY | AJ131: LT= | AK131: =+E130*1.5 -> 12.00
A132: 4F008B | B132: L2A | C132: OBESO VARGAS | E132: 6.50 | F132: =+IF(ISNUMBER(F133),$E132*1.5,IF(F133="","",F133)) ->  | AJ132: =+SUM(F133:AI133)/24 -> 0.00 | AK132: =+AJ132*E132*1.5*86.4 -> 0.00
C133: BENJAMIN Y OTRO | AJ133: LT= | AK133: =+E132*1.5 -> 9.75
A134: 4F008G | B134: L2A | C134: OBESO VARGAS | E134: 2.50 | F134: =+IF(ISNUMBER(F135),$E134*1.5,IF(F135="","",F135)) ->  | AJ134: =+SUM(F135:AI135)/24 -> 0.00 | AK134: =+AJ134*E134*1.5*86.4 -> 0.00
C135: BENJAMIN Y OTRO | AJ135: LT= | AK135: =+E134*1.5 -> 3.75
A136: 4F005 | B136: PR | C136: CONTRERAS MONTES | E136: 10.00 | F136: =+IF(ISNUMBER(F137),$E136*1.5,IF(F137="","",F137)) ->  | AJ136: =+SUM(F137:AI137)/24 -> 0.00 | AK136: =+AJ136*E136*1.5*86.4 -> 0.00
C137: ANIANO | AJ137: LT= | AK137: =+E136*1.5 -> 15.00
A138: 4F366 | B138: PR | C138: OROZCO ALTAMIRANDA | E138: 7.00 | F138: =+IF(ISNUMBER(F139),$E138*1.5,IF(F139="","",F139)) ->  | AJ138: =+SUM(F139:AI139)/24 -> 0.00 | AK138: =+AJ138*E138*1.5*86.4 -> 0.00
C139: ALBERTO E. | AJ139: LT= | AK139: =+E138*1.5 -> 10.50
A140: 4F009 | B140: PR | C140: ANAYA VARGAS | E140: 11.23 | F140: =+IF(ISNUMBER(F141),$E140*1.5,IF(F141="","",F141)) ->  | AJ140: =+SUM(F141:AI141)/24 -> 0.00 | AK140: =+AJ140*E140*1.5*86.4 -> 0.00
C141: FERMINA | AJ141: LT= | AK141: =+E140*1.5 -> 16.85
A142: 4F009C | B142: PR | C142: ORDUZ LANDINEZ | E142: 11.00 | F142: =+IF(ISNUMBER(F143),$E142*1.5,IF(F143="","",F143)) ->  | AJ142: =+SUM(F143:AI143)/24 -> 0.00 | AK142: =+AJ142*E142*1.5*86.4 -> 0.00
C143: EVELIA | AJ143: LT= | AK143: =+E142*1.5 -> 16.50
A144: 4F009A | B144: PR | C144: VALENCIA MEJIA | E144: 11.13 | F144: =+IF(ISNUMBER(F145),$E144*1.5,IF(F145="","",F145)) ->  | AJ144: =+SUM(F145:AI145)/24 -> 0.00 | AK144: =+AJ144*E144*1.5*86.4 -> 0.00
C145: WILSON | AJ145: LT= | AK145: =+E144*1.5 -> 16.70
A146: 4F009B | B146: PR | C146: CONTRERAS ORTEGA | E146: 11.12 | F146: =+IF(ISNUMBER(F147),$E146*1.5,IF(F147="","",F147)) ->  | AJ146: =+SUM(F147:AI147)/24 -> 0.00 | AK146: =+AJ146*E146*1.5*86.4 -> 0.00
C147: PEDRO ANTONIO | AJ147: LT= | AK147: =+E146*1.5 -> 16.68
A148: 4F361 | B148: PR | C148: OROZCO ALTAMIRANDA | E148: 7.27 | F148: =+IF(ISNUMBER(F149),$E148*1.5,IF(F149="","",F149)) ->  | AJ148: =+SUM(F149:AI149)/24 -> 0.00 | AK148: =+AJ148*E148*1.5*86.4 -> 0.00
C149: ALBERTO E. | AJ149: LT= | AK149: =+E148*1.5 -> 10.91
A150: 4F013 | B150: PR | C150: CONTRERAS | E150: 17.30 | F150: =+IF(ISNUMBER(F151),$E150*1.5,IF(F151="","",F151)) ->  | AJ150: =+SUM(F151:AI151)/24 -> 0.00 | AK150: =+AJ150*E150*1.5*86.4 -> 0.00
A151: E | C151: MONTES ANIANO | AJ151: LT= | AK151: =+E150*1.5 -> 25.95
A152: 4F014C | B152: L3 | C152: AGUILAR REYES | E152: 7.00 | F152: =+IF(ISNUMBER(F153),$E152*1.5,IF(F153="","",F153)) ->  | AJ152: =+SUM(F153:AI153)/24 -> 0.00 | AK152: =+AJ152*E152*1.5*86.4 -> 0.00
C153: DANIEL ALEXANDER | AJ153: LT= | AK153: =+E152*1.5 -> 10.50
A154: 4F014A | B154: L3 | C154: UMAÑA PEREZ | E154: 8.58 | F154: =+IF(ISNUMBER(F155),$E154*1.5,IF(F155="","",F155)) ->  | AJ154: =+SUM(F155:AI155)/24 -> 0.00 | AK154: =+AJ154*E154*1.5*86.4 -> 0.00
C155: CESAR AUGUSTO | AJ155: LT= | AK155: =+E154*1.5 -> 12.87
A156: 4F010 | B156: L3 | C156: CARRILLO MARTINEZ | E156: 20.00 | F156: =+IF(ISNUMBER(F157),$E156*1.5,IF(F157="","",F157)) ->  | AJ156: =+SUM(F157:AI157)/24 -> 0.00 | AK156: =+AJ156*E156*1.5*86.4 -> 0.00
C157: SAMUEL | AJ157: LT= | AK157: =+E156*1.5 -> 30.00
A158: 4F010A | B158: L3 | C158: CARRILLO MARTINEZ | E158: 11.00 | F158: =+IF(ISNUMBER(F159),$E158*1.5,IF(F159="","",F159)) ->  | AJ158: =+SUM(F159:AI159)/24 -> 0.00 | AK158: =+AJ158*E158*1.5*86.4 -> 0.00
C159: SAMUEL | AJ159: LT= | AK159: =+E158*1.5 -> 16.50
A160: 4F010A | B160: L3 | C160: CARRILLO MARTINEZ | E160: 11.10 | F160: =+IF(ISNUMBER(F161),$E160*1.5,IF(F161="","",F161)) ->  | AJ160: =+SUM(F161:AI161)/24 -> 0.00 | AK160: =+AJ160*E160*1.5*86.4 -> 0.00
C161: SAMUEL | AJ161: LT= | AK161: =+E160*1.5 -> 16.65
A162: 4F014D | B162: L3 | C162: AGUILAR BARRIENTOS | E162: 7.00 | F162: =+IF(ISNUMBER(F163),$E162*1.5,IF(F163="","",F163)) ->  | AJ162: =+SUM(F163:AI163)/24 -> 0.00 | AK162: =+AJ162*E162*1.5*86.4 -> 0.00
C163: OMAR | AJ163: LT= | AK163: =+E162*1.5 -> 10.50
A164: 4F014B | B164: L3 | C164: BABILONIA RAMOS | E164: 8.00 | F164: =+IF(ISNUMBER(F165),$E164*1.5,IF(F165="","",F165)) ->  | AJ164: =+SUM(F165:AI165)/24 -> 0.00 | AK164: =+AJ164*E164*1.5*86.4 -> 0.00
C165: INDULFO MANUEL | AJ165: LT= | AK165: =+E164*1.5 -> 12.00
A166: 4F011 | B166: L3 | C166: PALENCIA DE GARCIA | E166: 7.00 | F166: =+IF(ISNUMBER(F167),$E166*1.5,IF(F167="","",F167)) ->  | AJ166: =+SUM(F167:AI167)/24 -> 0.00 | AK166: =+AJ166*E166*1.5*86.4 -> 0.00
C167: ALIX MARIA | AJ167: LT= | AK167: =+E166*1.5 -> 10.50
A168: 4F011A | B168: L3 | C168: PALENCIA DE GARCIA | E168: 33.00 | F168: =+IF(ISNUMBER(F169),$E168*1.5,IF(F169="","",F169)) ->  | AJ168: =+SUM(F169:AI169)/24 -> 0.00 | AK168: =+AJ168*E168*1.5*86.4 -> 0.00
C169: ALIX MARIA | AJ169: LT= | AK169: =+E168*1.5 -> 49.50
A170: 4F014E | B170: L3 | C170: FORI MONCADA | E170: 6.90 | F170: =+IF(ISNUMBER(F171),$E170*1.5,IF(F171="","",F171)) ->  | AJ170: =+SUM(F171:AI171)/24 -> 0.00 | AK170: =+AJ170*E170*1.5*86.4 -> 0.00
C171: JOSE ALFREDO Y OT | AJ171: LT= | AK171: =+E170*1.5 -> 10.35
A172: 4F029 | B172: L3 | C172: RUIZ RAMIREZ | E172: 18.63 | F172: =+IF(ISNUMBER(F173),$E172*1.5,IF(F173="","",F173)) ->  | AJ172: =+SUM(F173:AI173)/24 -> 0.00 | AK172: =+AJ172*E172*1.5*86.4 -> 0.00
C173: NELSON ENRRIQUE | AJ173: LT= | AK173: =+E172*1.5 -> 27.95
A174: 4F014F | B174: L3 | C174: RIVERO GONZALEZ | E174: 1.00 | F174: =+IF(ISNUMBER(F175),$E174*1.5,IF(F175="","",F175)) ->  | AJ174: =+SUM(F175:AI175)/24 -> 0.00 | AK174: =+AJ174*E174*1.5*86.4 -> 0.00
C175: HERIBERTO | AJ175: LT= | AK175: =+E174*1.5 -> 1.50
A176: 4F030 | B176: L3 | C176: VARGAS RIVERA | E176: 4.96 | F176: =+IF(ISNUMBER(F177),$E176*1.5,IF(F177="","",F177)) ->  | AJ176: =+SUM(F177:AI177)/24 -> 0.00 | AK176: =+AJ176*E176*1.5*86.4 -> 0.00
C177: RAMIRO ANTONIO | AJ177: LT= | AK177: =+E176*1.5 -> 7.44
A178: 4F015 | B178: L3 | C178: PALENCIA DE GARCIA | E178: 25.00 | F178: =+IF(ISNUMBER(F179),$E178*1.5,IF(F179="","",F179)) ->  | AJ178: =+SUM(F179:AI179)/24 -> 0.00 | AK178: =+AJ178*E178*1.5*86.4 -> 0.00
C179: ALIX MARIA | AJ179: LT= | AK179: =+E178*1.5 -> 37.50
A180: 4F015A | B180: L3 | C180: PALENCIA DE GARCIA | E180: 31.00 | F180: =+IF(ISNUMBER(F181),$E180*1.5,IF(F181="","",F181)) ->  | AJ180: =+SUM(F181:AI181)/24 -> 0.00 | AK180: =+AJ180*E180*1.5*86.4 -> 0.00
C181: ALIX MARIA | AJ181: LT= | AK181: =+E180*1.5 -> 46.50
A182: 4F012A | B182: L3 | C182: GOMEZ AGREDO | E182: 7.12 | F182: =+IF(ISNUMBER(F183),$E182*1.5,IF(F183="","",F183)) ->  | AJ182: =+SUM(F183:AI183)/24 -> 0.00 | AK182: =+AJ182*E182*1.5*86.4 -> 0.00
C183: HERIBERTO | AJ183: LT= | AK183: =+E182*1.5 -> 10.68
A184: 4F012C | B184: L3 | C184: CONTRERAS ROJAS | E184: 7.33 | F184: =+IF(ISNUMBER(F185),$E184*1.5,IF(F185="","",F185)) ->  | AJ184: =+SUM(F185:AI185)/24 -> 0.00 | AK184: =+AJ184*E184*1.5*86.4 -> 0.00
C185: CARMEN | AJ185: LT= | AK185: =+E184*1.5 -> 11.00
A186: 4F012B | B186: L3 | C186: ROJAS SANTOS | E186: 6.00 | F186: =+IF(ISNUMBER(F187),$E186*1.5,IF(F187="","",F187)) ->  | AJ186: =+SUM(F187:AI187)/24 -> 0.00 | AK186: =+AJ186*E186*1.5*86.4 -> 0.00
C187: ELIODORO | AJ187: LT= | AK187: =+E186*1.5 -> 9.00
A188: 4F020 | B188: L3A | C188: OROZCO ALTAMIRANDA | E188: 10.46 | F188: =+IF(ISNUMBER(F189),$E188*1.5,IF(F189="","",F189)) ->  | AJ188: =+SUM(F189:AI189)/24 -> 0.00 | AK188: =+AJ188*E188*1.5*86.4 -> 0.00
C189: ALBERTO E. | AJ189: LT= | AK189: =+E188*1.5 -> 15.69
A190: 4F019 | B190: L3A | C190: RUIZ RAMIREZ | E190: 10.25 | F190: =+IF(ISNUMBER(F191),$E190*1.5,IF(F191="","",F191)) ->  | AJ190: =+SUM(F191:AI191)/24 -> 0.00 | AK190: =+AJ190*E190*1.5*86.4 -> 0.00
C191: NELSON ENRRIQUE | AJ191: LT= | AK191: =+E190*1.5 -> 15.38
A192: 4F017 | B192: L3A | C192: BAUTISTA OSORIO | E192: 10.60 | F192: =+IF(ISNUMBER(F193),$E192*1.5,IF(F193="","",F193)) ->  | AJ192: =+SUM(F193:AI193)/24 -> 0.00 | AK192: =+AJ192*E192*1.5*86.4 -> 0.00
C193: GLADYS CECILIA | AJ193: LT= | AK193: =+E192*1.5 -> 15.90
A194: 4F028 | B194: L3A | C194: MARQUEZ CARDENAS | E194: 13.06 | F194: =+IF(ISNUMBER(F195),$E194*1.5,IF(F195="","",F195)) ->  | AJ194: =+SUM(F195:AI195)/24 -> 0.00 | AK194: =+AJ194*E194*1.5*86.4 -> 0.00
C195: MARTHA CECILIA | AJ195: LT= | AK195: =+E194*1.5 -> 19.59
A196: 4F027 | B196: L3A | C196: REYES VILLALTA | E196: 6.00 | F196: =+IF(ISNUMBER(F197),$E196*1.5,IF(F197="","",F197)) ->  | AJ196: =+SUM(F197:AI197)/24 -> 0.00 | AK196: =+AJ196*E196*1.5*86.4 -> 0.00
C197: MARIELA | AJ197: LT= | AK197: =+E196*1.5 -> 9.00
A198: 4F027A | B198: L3A | C198: REYES VILLALTA | E198: 8.36 | F198: =+IF(ISNUMBER(F199),$E198*1.5,IF(F199="","",F199)) ->  | AJ198: =+SUM(F199:AI199)/24 -> 0.00 | AK198: =+AJ198*E198*1.5*86.4 -> 0.00
C199: MARIELA | AJ199: LT= | AK199: =+E198*1.5 -> 12.54
A200: 4F036 | B200: PR | C200: SANABRIA OMAÑA | E200: 0.50 | F200: =+IF(ISNUMBER(F201),$E200*1.5,IF(F201="","",F201)) ->  | AJ200: =+SUM(F201:AI201)/24 -> 0.00 | AK200: =+AJ200*E200*1.5*86.4 -> 0.00
C201: MARIA DEL ROSARIO | AJ201: LT= | AK201: =+E200*1.5 -> 0.75
... 46 more rows

Sheet JULIO
A1: ASOCIACION DE USUARIOS DISTRITO DE ADECUACION DE TIERRAS DE GRAN ESCALA DEL RIO ZULIA ASOZULIA NIT 800,168,858-6 | AJ1: CODIGO: DTE-OPER-FR-01
AJ2: VERSION: 01
A3: CONTROL DIARIO DE RIEGO POR PREDIO Y CANAL | AJ3: FECHA: 16/06/2023
A5: ZONA | B5: RESTAURACIÓN | E5: AUXILIAR DE RIEGO | J5: EDWIN JAIR ZAMORA CHACON | S5: CANAL | AF5: MES | AG5: JULIO | AK5: AÑO | AL5: 2023
A6: CAUDAL DIARIO DERIVADO | E6: DIAS | F6: 1 | G6: 2 | H6: 3 | I6: 4 | J6: 5 | K6: 6 | L6: 7 | M6: 8 | N6: 9 | O6: 10 | P6: 11 | Q6: 12 | R6: 13 | S6: 14 | T6: 15 | U6: 16 | V6: 17 | W6: 18 | X6: 19 | Y6: 20 | Z6: 21 | AA6: 22 | AB6: 23 | AC6: 24 | AD6: 25 | AE6: 26 | AF6: 27 | AG6: 28 | AH6: 29 | AI6: 30 | AJ6: 31 | AK6: TOTAL DIAS | AL6: TOTAL M3
A7: CODIGO | B7: RAMAL | C7: USUARIO | D7: T.CULT | E7: AREA
A8: 4F300 | B8: PR | C8: BELTRAN GARCIA | D8: CA | E8: 30.00 | F8: =+IF(ISNUMBER(F9),$E8*1.5,IF(F9="","",F9)) ->  | G8: =+IF(ISNUMBER(G9),$E8*1.5,IF(G9="","",G9)) ->  | H8: FR | I8: 45.0 | J8: 45.0 | K8: 45.0 | L8: 45.0 | M8: 45.0 | N8: IC | Q8: =+IF(ISNUMBER(Q9),$E8*1.5,IF(Q9="","",Q9)) ->  | AK8: =+SUM(F9:AJ9)/24 -> 0.83 | AL8: =+AK8*E8*1.5*86.4 -> 3240.00 | AN8: FC
C9: LUIS | H9: FR | I9: 1 | J9: 2 | K9: 3 | L9: 4 | M9: 10 | N9: IC | AK9: LT= | AL9: =+E8*1.5 -> 45.00 | AN9: IC
A10: 4F350 | B10: PR | C10: VILLARREAL OSORIO | E10: 17.53 | F10: =+IF(ISNUMBER(F11),$E10*1.5,IF(F11="","",F11)) ->  | AK10: =+SUM(F11:AJ11)/24 -> 0.00 | AL10: =+AK10*E10*1.5*86.4 -> 0.00 | AN10: FR
C11: CLEMENTE | AK11: LT= | AL11: =+E10*1.5 -> 26.30 | AN11: IR
A12: 4F340 | B12: PR | C12: SANTANA CORTES | E12: 8.00 | F12: =+IF(ISNUMBER(F13),$E12*1.5,IF(F13="","",F13)) ->  | X12: 12.0 | Y12: 12.0 | Z12: 12.0 | AA12: FC | AC12: IC1 | AK12: =+SUM(F13:AJ13)/24 -> 1.25 | AL12: =+AK12*E12*1.5*86.4 -> 1296.00 | AN12: SR
C13: JOSE DOMINGO | X13: 10 | Y13: 10 | Z13: 10 | AA13: FC | AC13: IC1 | AK13: LT= | AL13: =+E12*1.5 -> 12.00 | AN13: RR
A14: 4F338 | B14: PR | C14: RIOS SUESCUN | E14: 8.75 | F14: =+IF(ISNUMBER(F15),$E14*1.5,IF(F15="","",F15)) ->  | AK14: =+SUM(F15:AJ15)/24 -> 0.00 | AL14: =+AK14*E14*1.5*86.4 -> 0.00 | AN14: ID
C15: MARIA LUCIA | AK15: LT= | AL15: =+E14*1.5 -> 13.13 | AN15: IC1
A16: 4F330 | B16: PR | C16: RIAÑO RAMIREZ | E16: 12.06 | F16: =+IF(ISNUMBER(F17),$E16*1.5,IF(F17="","",F17)) ->  | AK16: =+SUM(F17:AJ17)/24 -> 0.00 | AL16: =+AK16*E16*1.5*86.4 -> 0.00
C17: MARIA VICTORIA | AK17: LT= | AL17: =+E16*1.5 -> 18.09
A18: 4F320 | B18: PR | C18: RIAÑO VALDERRAMA | E18: 5.29 | F18: =+IF(ISNUMBER(F19),$E18*1.5,IF(F19="","",F19)) ->  | AK18: =+SUM(F19:AJ19)/24 -> 0.00 | AL18: =+AK18*E18*1.5*86.4 -> 0.00
C19: FREDDY ALEXANDER | AK19: LT= | AL19: =+E18*1.5 -> 7.94
A20: 4F320A | B20: PR | C20: RIAÑO VALDERRAMA | E20: 5.29 | F20: =+IF(ISNUMBER(F21),$E20*1.5,IF(F21="","",F21)) ->  | AK20: =+SUM(F21:AJ21)/24 -> 0.00 | AL20: =+AK20*E20*1.5*86.4 -> 0.00
C21: JENNY MARITZA | AK21: LT= | AL21: =+E20*1.5 -> 7.94
A22: 4F320B | B22: PR | C22: RIAÑO VALDERRAMA | E22: 4.14 | F22: =+IF(ISNUMBER(F23),$E22*1.5,IF(F23="","",F23)) ->  | AK22: =+SUM(F23:AJ23)/24 -> 0.00 | AL22: =+AK22*E22*1.5*86.4 -> 0.00
C23: FLOR LILIANA | AK23: LT= | AL23: =+E22*1.5 -> 6.21
A24: 4F320C | B24: PR | C24: RIAÑO VALDERRAMA | E24: 4.14 | F24: =+IF(ISNUMBER(F25),$E24*1.5,IF(F25="","",F25)) ->  | AK24: =+SUM(F25:AJ25)/24 -> 0.00 | AL24: =+AK24*E24*1.5*86.4 -> 0.00
C25: CIRO PASTOR | AK25: LT= | AL25: =+E24*1.5 -> 6.21
A26: 4F341 | B26: PR | C26: ORTEGA MORA | E26: 8.46 | F26: =+IF(ISNUMBER(F27),$E26*1.5,IF(F27="","",F27)) ->  | AK26: =+SUM(F27:AJ27)/24 -> 0.00 | AL26: =+AK26*E26*1.5*86.4 -> 0.00
C27: JOSE DEL CARMEN | AK27: LT= | AL27: =+E26*1.5 -> 12.69
A28: 4F319 | B28: PR | C28: SANTANA CORTES | E28: 26.50 | F28: =+IF(ISNUMBER(F29),$E28*1.5,IF(F29="","",F29)) ->  | AK28: =+SUM(F29:AJ29)/24 -> 0.00 | AL28: =+AK28*E28*1.5*86.4 -> 0.00
C29: ELVIA Y OTROS | AK29: LT= | AL29: =+E28*1.5 -> 39.75
A30: 4F314 | B30: PR | C30: GONZALEZ GIRON | E30: 3.00 | F30: =+IF(ISNUMBER(F31),$E30*1.5,IF(F31="","",F31)) ->  | AK30: =+SUM(F31:AJ31)/24 -> 0.00 | AL30: =+AK30*E30*1.5*86.4 -> 0.00
C31: EVELIO | AK31: LT= | AL31: =+E30*1.5 -> 4.50
A32: 4F035 | B32: PR | C32: VALDERRAMA CARDENAS | E32: 11.54 | F32: =+IF(ISNUMBER(F33),$E32*1.5,IF(F33="","",F33)) ->  | AK32: =+SUM(F33:AJ33)/24 -> 0.00 | AL32: =+AK32*E32*1.5*86.4 -> 0.00
C33: GUILLERMO Y OTROS | AK33: LT= | AL33: =+E32*1.5 -> 17.31
A34: 4F329B | B34: PR | C34: MARIN ZAPATA | E34: 7.00 | F34: =+IF(ISNUMBER(F35),$E34*1.5,IF(F35="","",F35)) ->  | AK34: =+SUM(F35:AJ35)/24 -> 0.00 | AL34: =+AK34*E34*1.5*86.4 -> 0.00
C35: ABELARDO ANTONIO | AK35: LT= | AL35: =+E34*1.5 -> 10.50
A36: 4F346 | B36: PR | C36: CASTELLANOS TARAZONA | E36: 10.00 | F36: =+IF(ISNUMBER(F37),$E36*1.5,IF(F37="","",F37)) ->  | AK36: =+SUM(F37:AJ37)/24 -> 0.00 | AL36: =+AK36*E36*1.5*86.4 -> 0.00
C37: JOSE DARIO | AK37: LT= | AL37: =+E36*1.5 -> 15.00
A38: 4F315 | B38: PR | C38: VILLARREAL OSORIO | E38: 12.23 | F38: =+IF(ISNUMBER(F39),$E38*1.5,IF(F39="","",F39)) ->  | AK38: =+SUM(F39:AJ39)/24 -> 0.00 | AL38: =+AK38*E38*1.5*86.4 -> 0.00
C39: EDILSON | AK39: LT= | AL39: =+E38*1.5 -> 18.35
A40: 4F001A | B40: L2 | C40: MARQUEZ CARDENAS | E40: 12.00 | F40: =+IF(ISNUMBER(F41),$E40*1.5,IF(F41="","",F41)) ->  | AK40: =+SUM(F41:AJ41)/24 -> 0.00 | AL40: =+AK40*E40*1.5*86.4 -> 0.00
C41: MARTHA CECILIA | AK41: LT= | AL41: =+E40*1.5 -> 18.00
A42: 4F001 | B42: L2 | C42: MARQUEZ CARDENAS | E42: 13.00 | F42: =+IF(ISNUMBER(F43),$E42*1.5,IF(F43="","",F43)) ->  | AK42: =+SUM(F43:AJ43)/24 -> 0.00 | AL42: =+AK42*E42*1.5*86.4 -> 0.00
C43: MARTHA CECILIA | AK43: LT= | AL43: =+E42*1.5 -> 19.50
A44: 4F031 | B44: L2 | C44: LERMA DIAZ | E44: 4.70 | F44: =+IF(ISNUMBER(F45),$E44*1.5,IF(F45="","",F45)) ->  | AK44: =+SUM(F45:AJ45)/24 -> 0.00 | AL44: =+AK44*E44*1.5*86.4 -> 0.00
C45: RAFAEL JULIO | AK45: LT= | AL45: =+E44*1.5 -> 7.05
A46: 4F031A | B46: L2 | C46: RIAÑO RAMIREZ | E46: 2.90 | F46: =+IF(ISNUMBER(F47),$E46*1.5,IF(F47="","",F47)) ->  | AK46: =+SUM(F47:AJ47)/24 -> 0.00 | AL46: =+AK46*E46*1.5*86.4 -> 0.00
C47: MARIA VICTORIA | AK47: LT= | AL47: =+E46*1.5 -> 4.35
A48: 4F031B | B48: L2 | C48: AREVALO ACEVEDO | E48: 2.30 | F48: =+IF(ISNUMBER(F49),$E48*1.5,IF(F49="","",F49)) ->  | AK48: =+SUM(F49:AJ49)/24 -> 0.00 | AL48: =+AK48*E48*1.5*86.4 -> 0.00
C49: RAMIRO Y OTRO | AK49: LT= | AL49: =+E48*1.5 -> 3.45
A50: 4F031C | B50: L2 | C50: BUSTAMANTE | E50: 3.20 | F50: =+IF(ISNUMBER(F51),$E50*1.5,IF(F51="","",F51)) ->  | AK50: =+SUM(F51:AJ51)/24 -> 0.00 | AL50: =+AK50*E50*1.5*86.4 -> 0.00
C51: JAIME DE J. Y OTRO | AK51: LT= | AL51: =+E50*1.5 -> 4.80
A52: 4F031D | B52: L2 | C52: AREVALO ACEVEDO | E52: 2.80 | F52: =+IF(ISNUMBER(F53),$E52*1.5,IF(F53="","",F53)) ->  | AK52: =+SUM(F53:AJ53)/24 -> 0.00 | AL52: =+AK52*E52*1.5*86.4 -> 0.00
C53: RAMIRO Y OTRO | AK53: LT= | AL53: =+E52*1.5 -> 4.20
A54: 4F031E | B54: L2 | C54: VILLAMIZAR | E54: 2.60 | F54: =+IF(ISNUMBER(F55),$E54*1.5,IF(F55="","",F55)) ->  | AK54: =+SUM(F55:AJ55)/24 -> 0.00 | AL54: =+AK54*E54*1.5*86.4 -> 0.00
C55: MARITZA | AK55: LT= | AL55: =+E54*1.5 -> 3.90
A56: 4F031F | B56: L2 | C56: VILLAMIZAR | E56: 1.50 | F56: =+IF(ISNUMBER(F57),$E56*1.5,IF(F57="","",F57)) ->  | AK56: =+SUM(F57:AJ57)/24 -> 0.00 | AL56: =+AK56*E56*1.5*86.4 -> 0.00
C57: MARITZA | AK57: LT= | AL57: =+E56*1.5 -> 2.25
A58: 4F031G | B58: L2 | C58: SANABRIA | E58: 0.58 | F58: =+IF(ISNUMBER(F59),$E58*1.5,IF(F59="","",F59)) ->  | AK58: =+SUM(F59:AJ59)/24 -> 0.00 | AL58: =+AK58*E58*1.5*86.4 -> 0.00
C59: MIGUEL ANTONIO | AK59: LT= | AL59: =+E58*1.5 -> 0.87
A60: 4F031H | B60: L2 | C60: DIAZ LERMA | E60: 4.00 | F60: =+IF(ISNUMBER(F61),$E60*1.5,IF(F61="","",F61)) ->  | AK60: =+SUM(F61:AJ61)/24 -> 0.00 | AL60: =+AK60*E60*1.5*86.4 -> 0.00
C61: LUIS ADAN | AK61: LT= | AL61: =+E60*1.5 -> 6.00
A62: 4F031I | B62: L2 | C62: CAICEDO GALVIS | E62: 8.60 | F62: =+IF(ISNUMBER(F63),$E62*1.5,IF(F63="","",F63)) ->  | AK62: =+SUM(F63:AJ63)/24 -> 0.00 | AL62: =+AK62*E62*1.5*86.4 -> 0.00
C63: ELIECER Y OTROS | AK63: LT= | AL63: =+E62*1.5 -> 12.90
A64: 4F003 | B64: L2 | C64: MENESES | E64: 9.46 | F64: =+IF(ISNUMBER(F65),$E64*1.5,IF(F65="","",F65)) ->  | AK64: =+SUM(F65:AJ65)/24 -> 0.00 | AL64: =+AK64*E64*1.5*86.4 -> 0.00
C65: POLICARPO | AK65: LT= | AL65: =+E64*1.5 -> 14.19
A66: 4F003A | B66: L2 | C66: ORTEGA RIVERA | E66: 8.26 | F66: =+IF(ISNUMBER(F67),$E66*1.5,IF(F67="","",F67)) ->  | AK66: =+SUM(F67:AJ67)/24 -> 0.00 | AL66: =+AK66*E66*1.5*86.4 -> 0.00
C67: PEDRO MIGUEL | AK67: LT= | AL67: =+E66*1.5 -> 12.39
A68: 4F329A | B68: PR | C68: DIAZ | E68: 3.80 | F68: =+IF(ISNUMBER(F69),$E68*1.5,IF(F69="","",F69)) ->  | AK68: =+SUM(F69:AJ69)/24 -> 0.00 | AL68: =+AK68*E68*1.5*86.4 -> 0.00
C69: ROSALBINA | AK69: LT= | AL69: =+E68*1.5 -> 5.70
A70: 4F329A | B70: PR | C70: DIAZ | E70: 2.00 | F70: =+IF(ISNUMBER(F71),$E70*1.5,IF(F71="","",F71)) ->  | AK70: =+SUM(F71:AJ71)/24 -> 0.00 | AL70: =+AK70*E70*1.5*86.4 -> 0.00
C71: ROSALBINA | AK71: LT= | AL71: =+E70*1.5 -> 3.00
A72: 4F329D | B72: PR | C72: RUBIO | E72: 7.24 | F72: =+IF(ISNUMBER(F73),$E72*1.5,IF(F73="","",F73)) ->  | AK72: =+SUM(F73:AJ73)/24 -> 0.00 | AL72: =+AK72*E72*1.5*86.4 -> 0.00
C73: MARIA EDELMIRA | AK73: LT= | AL73: =+E72*1.5 -> 10.86
A74: 4F329C | B74: PR | C74: MARTINEZ ALARCON | E74: 6.00 | F74: =+IF(ISNUMBER(F75),$E74*1.5,IF(F75="","",F75)) ->  | AK74: =+SUM(F75:AJ75)/24 -> 0.00 | AL74: =+AK74*E74*1.5*86.4 -> 0.00
C75: LUIS ALBERTO | AK75: LT= | AL75: =+E74*1.5 -> 9.00
A76: 4F004D | B76: PR | C76: DUARTE ACEVEDO | E76: 8.33 | F76: =+IF(ISNUMBER(F77),$E76*1.5,IF(F77="","",F77)) ->  | AK76: =+SUM(F77:AJ77)/24 -> 0.00 | AL76: =+AK76*E76*1.5*86.4 -> 0.00
C77: PEDRO Y OTROS | AK77: LT= | AL77: =+E76*1.5 -> 12.50
A78: 4F004A | B78: PR | C78: GARCIA CHONA | E78: 8.92 | F78: =+IF(ISNUMBER(F79),$E78*1.5,IF(F79="","",F79)) ->  | AK78: =+SUM(F79:AJ79)/24 -> 0.00 | AL78: =+AK78*E78*1.5*86.4 -> 0.00
C79: CRUZ DELINA | AK79: LT= | AL79: =+E78*1.5 -> 13.38
A80: 4F004E | B80: PR | C80: ROZO RICO | E80: 5.35 | F80: =+IF(ISNUMBER(F81),$E80*1.5,IF(F81="","",F81)) ->  | AK80: =+SUM(F81:AJ81)/24 -> 0.00 | AL80: =+AK80*E80*1.5*86.4 -> 0.00
C81: JOSE RAMON | AK81: LT= | AL81: =+E80*1.5 -> 8.03
A82: 4F004 | B82: PR | C82: QUINTERO M. | E82: 4.09 | F82: =+IF(ISNUMBER(F83),$E82*1.5,IF(F83="","",F83)) ->  | AK82: =+SUM(F83:AJ83)/24 -> 0.00 | AL82: =+AK82*E82*1.5*86.4 -> 0.00
C83: MIGUEL ANGEL/ OTRO | AK83: LT= | AL83: =+E82*1.5 -> 6.14
A84: 4F004C | B84: PR | C84: MARTINEZ RUBIO | E84: 9.74 | F84: =+IF(ISNUMBER(F85),$E84*1.5,IF(F85="","",F85)) ->  | AK84: =+SUM(F85:AJ85)/24 -> 0.00 | AL84: =+AK84*E84*1.5*86.4 -> 0.00
C85: JOSE LEONSO | AK85: LT= | AL85: =+E84*1.5 -> 14.61
A86: 4F328 | B86: PR | C86: GARCIA CHONA | E86: 9.65 | F86: =+IF(ISNUMBER(F87),$E86*1.5,IF(F87="","",F87)) ->  | AK86: =+SUM(F87:AJ87)/24 -> 0.00 | AL86: =+AK86*E86*1.5*86.4 -> 0.00
C87: CRUZ DELINA | AK87: LT= | AL87: =+E86*1.5 -> 14.48
A88: 4F004B | B88: L2A | C88: PAVA | E88: 8.90 | F88: =+IF(ISNUMBER(F89),$E88*1.5,IF(F89="","",F89)) ->  | AK88: =+SUM(F89:AJ89)/24 -> 0.00 | AL88: =+AK88*E88*1.5*86.4 -> 0.00
C89: LUIS JAVIER Y OTRO | AK89: LT= | AL89: =+E88*1.5 -> 13.35
A90: 4F006 | B90: L2A | C90: GARCIA | E90: 4.00 | F90: =+IF(ISNUMBER(F91),$E90*1.5,IF(F91="","",F91)) ->  | AK90: =+SUM(F91:AJ91)/24 -> 0.00 | AL90: =+AK90*E90*1.5*86.4 -> 0.00
C91: LINA ROSA Y OTROS | AK91: LT= | AL91: =+E90*1.5 -> 6.00
A92: 4F006A | B92: L2A | C92: CARDENAS HEREDIA | E92: 5.00 | F92: =+IF(ISNUMBER(F93),$E92*1.5,IF(F93="","",F93)) ->  | AK92: =+SUM(F93:AJ93)/24 -> 0.00 | AL92: =+AK92*E92*1.5*86.4 -> 0.00
C93: PAULINO | AK93: LT= | AL93: =+E92*1.5 -> 7.50
A94: 4F006B | B94: L2A | C94: RAMIREZ MAYORGA | E94: 5.08 | F94: =+IF(ISNUMBER(F95),$E94*1.5,IF(F95="","",F95)) ->  | AK94: =+SUM(F95:AJ95)/24 -> 0.00 | AL94: =+AK94*E94*1.5*86.4 -> 0.00
C95: CRISTINIANO | AK95: LT= | AL95: =+E94*1.5 -> 7.62
A96: 4F006C | B96: L2A | C96: ATUESTA ORTEGA | E96: 5.00 | F96: =+IF(ISNUMBER(F97),$E96*1.5,IF(F97="","",F97)) ->  | AK96: =+SUM(F97:AJ97)/24 -> 0.00 | AL96: =+AK96*E96*1.5*86.4 -> 0.00
C97: MIGUEL ANGEL | AK97: LT= | AL97: =+E96*1.5 -> 7.50
A98: 4F006D | B98: L2A | C98: SERNA GARCIA | E98: 5.00 | F98: =+IF(ISNUMBER(F99),$E98*1.5,IF(F99="","",F99)) ->  | AK98: =+SUM(F99:AJ99)/24 -> 0.00 | AL98: =+AK98*E98*1.5*86.4 -> 0.00
C99: CESARIO ANTONIO | AK99: LT= | AL99: =+E98*1.5 -> 7.50
A100: 4F006E | B100: L2A | C100: SERNA GARCIA | E100: 5.00 | F100: =+IF(ISNUMBER(F101),$E100*1.5,IF(F101="","",F101)) ->  | AK100: =+SUM(F101:AJ101)/24 -> 0.00 | AL100: =+AK100*E100*1.5*86.4 -> 0.00
C101: CESARIO ANTONIO | AK101: LT= | AL101: =+E100*1.5 -> 7.50
A102: 4F006F | B102: L2A | C102: CAICEDO GALVIS | E102: 5.00 | F102: =+IF(ISNUMBER(F103),$E102*1.5,IF(F103="","",F103)) ->  | AK102: =+SUM(F103:AJ103)/24 -> 0.00 | AL102: =+AK102*E102*1.5*86.4 -> 0.00
C103: ELIECER Y OTRO | AK103: LT= | AL103: =+E102*1.5 -> 7.50
A104: 4F006G | B104: L2A | C104: GARCIA | E104: 5.00 | F104: =+IF(ISNUMBER(F105),$E104*1.5,IF(F105="","",F105)) ->  | AK104: =+SUM(F105:AJ105)/24 -> 0.00 | AL104: =+AK104*E104*1.5*86.4 -> 0.00
C105: LINA ROSA Y OTROS | AK105: LT= | AL105: =+E104*1.5 -> 7.50
A106: 4F006H | B106: L2A | C106: VALENCIA MEJIA | E106: 4.50 | F106: =+IF(ISNUMBER(F107),$E106*1.5,IF(F107="","",F107)) ->  | AK106: =+SUM(F107:AJ107)/24 -> 0.00 | AL106: =+AK106*E106*1.5*86.4 -> 0.00
C107: WILSON | AK107: LT= | AL107: =+E106*1.5 -> 6.75
A108: 4F006I | B108: L2A | C108: BALLESTEROS | E108: 4.70 | F108: =+IF(ISNUMBER(F109),$E108*1.5,IF(F109="","",F109)) ->  | AK108: =+SUM(F109:AJ109)/24 -> 0.00 | AL108: =+AK108*E108*1.5*86.4 -> 0.00
C109: LUCIANO | AK109: LT= | AL109: =+E108*1.5 -> 7.05
A110: 4F006J | B110: L2A | C110: CUERO PEREZ | E110: 5.00 | F110: =+IF(ISNUMBER(F111),$E110*1.5,IF(F111="","",F111)) ->  | AK110: =+SUM(F111:AJ111)/24 -> 0.00 | AL110: =+AK110*E110*1.5*86.4 -> 0.00
C111: YESENIA | AK111: LT= | AL111: =+E110*1.5 -> 7.50
A112: 4F006L | B112: L2A | C112: FLOREZ FLOREZ | E112: 4.75 | F112: =+IF(ISNUMBER(F113),$E112*1.5,IF(F113="","",F113)) ->  | AK112: =+SUM(F113:AJ113)/24 -> 0.00 | AL112: =+AK112*E112*1.5*86.4 -> 0.00
C113: MANUEL | AK113: LT= | AL113: =+E112*1.5 -> 7.13
A114: 4F006K | B114: L2A | C114: GUARIN | E114: 5.00 | F114: =+IF(ISNUMBER(F115),$E114*1.5,IF(F115="","",F115)) ->  | AK114: =+SUM(F115:AJ115)/24 -> 0.00 | AL114: =+AK114*E114*1.5*86.4 -> 0.00
C115: LUIS ENRIQUE | AK115: LT= | AL115: =+E114*1.5 -> 7.50
A116: 4F006N | B116: L2A | C116: ATUESTA ORTEGA | E116: 5.00 | F116: =+IF(ISNUMBER(F117),$E116*1.5,IF(F117="","",F117)) ->  | AK116: =+SUM(F117:AJ117)/24 -> 0.00 | AL116: =+AK116*E116*1.5*86.4 -> 0.00
C117: MIGUEL ANGEL | AK117: LT= | AL117: =+E116*1.5 -> 7.50
A118: 4F006O | B118: L2A | C118: GUZMAN NIETO | E118: 5.18 | F118: =+IF(ISNUMBER(F119),$E118*1.5,IF(F119="","",F119)) ->  | AK118: =+SUM(F119:AJ119)/24 -> 0.00 | AL118: =+AK118*E118*1.5*86.4 -> 0.00
C119: JULIO CESAR | AK119: LT= | AL119: =+E118*1.5 -> 7.77
A120: 4F006M | B120: L2A | C120: FIGUEROA PINZON | E120: 5.00 | F120: =+IF(ISNUMBER(F121),$E120*1.5,IF(F121="","",F121)) ->  | AK120: =+SUM(F121:AJ121)/24 -> 0.00 | AL120: =+AK120*E120*1.5*86.4 -> 0.00
C121: FLORENTINO | AK121: LT= | AL121: =+E120*1.5 -> 7.50
A122: 4F008A | B122: L2A | C122: RIVERA MORENO | E122: 8.25 | F122: =+IF(ISNUMBER(F123),$E122*1.5,IF(F123="","",F123)) ->  | AK122: =+SUM(F123:AJ123)/24 -> 0.00 | AL122: =+AK122*E122*1.5*86.4 -> 0.00
C123: VICTOR EDUARDO | AK123: LT= | AL123: =+E122*1.5 -> 12.38
A124: 4F008C | B124: L2A | C124: GARCIA CACERES | E124: 9.00 | F124: =+IF(ISNUMBER(F125),$E124*1.5,IF(F125="","",F125)) ->  | AK124: =+SUM(F125:AJ125)/24 -> 0.00 | AL124: =+AK124*E124*1.5*86.4 -> 0.00
C125: PEDRO ENOG | AK125: LT= | AL125: =+E124*1.5 -> 13.50
A126: 4F008F | B126: L2A | C126: ENCINALES ACOSTA | E126: 5.00 | F126: =+IF(ISNUMBER(F127),$E126*1.5,IF(F127="","",F127)) ->  | AK126: =+SUM(F127:AJ127)/24 -> 0.00 | AL126: =+AK126*E126*1.5*86.4 -> 0.00
C127: STELLA | AK127: LT= | AL127: =+E126*1.5 -> 7.50
A128: 4F008E | B128: L2A | C128: CASTILLO ARIAS | E128: 3.28 | F128: =+IF(ISNUMBER(F129),$E128*1.5,IF(F129="","",F129)) ->  | AK128: =+SUM(F129:AJ129)/24 -> 0.00 | AL128: =+AK128*E128*1.5*86.4 -> 0.00
C129: GLADYS ELENA | AK129: LT= | AL129: =+E128*1.5 -> 4.92
A130: 4F008D | B130: L2A | C130: SILVA CARRILLO | E130: 8.00 | F130: =+IF(ISNUMBER(F131),$E130*1.5,IF(F131="","",F131)) ->  | AK130: =+SUM(F131:AJ131)/24 -> 0.00 | AL130: =+AK130*E130*1.5*86.4 -> 0.00
C131: DORA BETTY | AK131: LT= | AL131: =+E130*1.5 -> 12.00
A132: 4F008B | B132: L2A | C132: OBESO VARGAS | E132: 6.50 | F132: =+IF(ISNUMBER(F133),$E132*1.5,IF(F133="","",F133)) ->  | AK132: =+SUM(F133:AJ133)/24 -> 0.00 | AL132: =+AK132*E132*1.5*86.4 -> 0.00
C133: BENJAMIN Y OTRO | AK133: LT= | AL133: =+E132*1.5 -> 9.75
A134: 4F008G | B134: L2A | C134: OBESO VARGAS | E134: 2.50 | F134: =+IF(ISNUMBER(F135),$E134*1.5,IF(F135="","",F135)) ->  | AK134: =+SUM(F135:AJ135)/24 -> 0.00 | AL134: =+AK134*E134*1.5*86.4 -> 0.00
C135: BENJAMIN Y OTRO | AK135: LT= | AL135: =+E134*1.5 -> 3.75
A136: 4F005 | B136: PR | C136: CONTRERAS MONTES | E136: 10.00 | F136: =+IF(ISNUMBER(F137),$E136*1.5,IF(F137="","",F137)) ->  | AK136: =+SUM(F137:AJ137)/24 -> 0.00 | AL136: =+AK136*E136*1.5*86.4 -> 0.00
C137: ANIANO | AK137: LT= | AL137: =+E136*1.5 -> 15.00
A138: 4F366 | B138: PR | C138: OROZCO ALTAMIRANDA | E138: 7.00 | F138: =+IF(ISNUMBER(F139),$E138*1.5,IF(F139="","",F139)) ->  | AK138: =+SUM(F139:AJ139)/24 -> 0.00 | AL138: =+AK138*E138*1.5*86.4 -> 0.00
C139: ALBERTO E. | AK139: LT= | AL139: =+E138*1.5 -> 10.50
A140: 4F009 | B140: PR | C140: ANAYA VARGAS | E140: 11.23 | F140: =+IF(ISNUMBER(F141),$E140*1.5,IF(F141="","",F141)) ->  | AK140: =+SUM(F141:AJ141)/24 -> 0.00 | AL140: =+AK140*E140*1.5*86.4 -> 0.00
C141: FERMINA | AK141: LT= | AL141: =+E140*1.5 -> 16.85
A142: 4F009C | B142: PR | C142: ORDUZ LANDINEZ | E142: 11.00 | F142: =+IF(ISNUMBER(F143),$E142*1.5,IF(F143="","",F143)) ->  | AK142: =+SUM(F143:AJ143)/24 -> 0.00 | AL142: =+AK142*E142*1.5*86.4 -> 0.00
C143: EVELIA | AK143: LT= | AL143: =+E142*1.5 -> 16.50
A144: 4F009A | B144: PR | C144: VALENCIA MEJIA | E144: 11.13 | F144: =+IF(ISNUMBER(F145),$E144*1.5,IF(F145="","",F145)) ->  | AK144: =+SUM(F145:AJ145)/24 -> 0.00 | AL144: =+AK144*E144*1.5*86.4 -> 0.00
C145: WILSON | AK145: LT= | AL145: =+E144*1.5 -> 16.70
A146: 4F009B | B146: PR | C146: CONTRERAS ORTEGA | E146: 11.12 | F146: =+IF(ISNUMBER(F147),$E146*1.5,IF(F147="","",F147)) ->  | AK146: =+SUM(F147:AJ147)/24 -> 0.00 | AL146: =+AK146*E146*1.5*86.4 -> 0.00
C147: PEDRO ANTONIO | AK147: LT= | AL147: =+E146*1.5 -> 16.68
A148: 4F361 | B148: PR | C148: OROZCO ALTAMIRANDA | E148: 7.27 | F148: =+IF(ISNUMBER(F149),$E148*1.5,IF(F149="","",F149)) ->  | AK148: =+SUM(F149:AJ149)/24 -> 0.00 | AL148: =+AK148*E148*1.5*86.4 -> 0.00
C149: ALBERTO E. | AK149: LT= | AL149: =+E148*1.5 -> 10.91
A150: 4F013 | B150: PR | C150: CONTRERAS | E150: 17.30 | F150: =+IF(ISNUMBER(F151),$E150*1.5,IF(F151="","",F151)) ->  | AK150: =+SUM(F151:AJ151)/24 -> 0.00 | AL150: =+AK150*E150*1.5*86.4 -> 0.00
A151: E | C151: MONTES ANIANO | AK151: LT= | AL151: =+E150*1.5 -> 25.95
A152: 4F014C | B152: L3 | C152: AGUILAR REYES | E152: 7.00 | F152: =+IF(ISNUMBER(F153),$E152*1.5,IF(F153="","",F153)) ->  | AK152: =+SUM(F153:AJ153)/24 -> 0.00 | AL152: =+AK152*E152*1.5*86.4 -> 0.00
C153: DANIEL ALEXANDER | AK153: LT= | AL153: =+E152*1.5 -> 10.50
A154: 4F014A | B154: L3 | C154: UMAÑA PEREZ | E154: 8.58 | F154: =+IF(ISNUMBER(F155),$E154*1.5,IF(F155="","",F155)) ->  | AK154: =+SUM(F155:AJ155)/24 -> 0.00 | AL154: =+AK154*E154*1.5*86.4 -> 0.00
C155: CESAR AUGUSTO | AK155: LT= | AL155: =+E154*1.5 -> 12.87
A156: 4F010 | B156: L3 | C156: CARRILLO MARTINEZ | E156: 20.00 | F156: =+IF(ISNUMBER(F157),$E156*1.5,IF(F157="","",F157)) ->  | AK156: =+SUM(F157:AJ157)/24 -> 0.00 | AL156: =+AK156*E156*1.5*86.4 -> 0.00
C157: SAMUEL | AK157: LT= | AL157: =+E156*1.5 -> 30.00
A158: 4F010A | B158: L3 | C158: CARRILLO MARTINEZ | E158: 11.00 | F158: =+IF(ISNUMBER(F159),$E158*1.5,IF(F159="","",F159)) ->  | AK158: =+SUM(F159:AJ159)/24 -> 0.00 | AL158: =+AK158*E158*1.5*86.4 -> 0.00
C159: SAMUEL | AK159: LT= | AL159: =+E158*1.5 -> 16.50
A160: 4F010A | B160: L3 | C160: CARRILLO MARTINEZ | E160: 11.10 | F160: =+IF(ISNUMBER(F161),$E160*1.5,IF(F161="","",F161)) ->  | AK160: =+SUM(F161:AJ161)/24 -> 0.00 | AL160: =+AK160*E160*1.5*86.4 -> 0.00
C161: SAMUEL | AK161: LT= | AL161: =+E160*1.5 -> 16.65
A162: 4F014D | B162: L3 | C162: AGUILAR BARRIENTOS | E162: 7.00 | F162: =+IF(ISNUMBER(F163),$E162*1.5,IF(F163="","",F163)) ->  | AK162: =+SUM(F163:AJ163)/24 -> 0.00 | AL162: =+AK162*E162*1.5*86.4 -> 0.00
C163: OMAR | AK163: LT= | AL163: =+E162*1.5 -> 10.50
A164: 4F014B | B164: L3 | C164: BABILONIA RAMOS | E164: 8.00 | F164: =+IF(ISNUMBER(F165),$E164*1.5,IF(F165="","",F165)) ->  | AK164: =+SUM(F165:AJ165)/24 -> 0.00 | AL164: =+AK164*E164*1.5*86.4 -> 0.00
C165: INDULFO MANUEL | AK165: LT= | AL165: =+E164*1.5 -> 12.00
A166: 4F011 | B166: L3 | C166: PALENCIA DE GARCIA | E166: 7.00 | F166: =+IF(ISNUMBER(F167),$E166*1.5,IF(F167="","",F167)) ->  | AK166: =+SUM(F167:AJ167)/24 -> 0.00 | AL166: =+AK166*E166*1.5*86.4 -> 0.00
C167: ALIX MARIA | AK167: LT= | AL167: =+E166*1.5 -> 10.50
A168: 4F011A | B168: L3 | C168: PALENCIA DE GARCIA | E168: 33.00 | F168: =+IF(ISNUMBER(F169),$E168*1.5,IF(F169="","",F169)) ->  | AK168: =+SUM(F169:AJ169)/24 -> 0.00 | AL168: =+AK168*E168*1.5*86.4 -> 0.00
C169: ALIX MARIA | AK169: LT= | AL169: =+E168*1.5 -> 49.50
A170: 4F014E | B170: L3 | C170: FORI MONCADA | E170: 6.90 | F170: =+IF(ISNUMBER(F171),$E170*1.5,IF(F171="","",F171)) ->  | AK170: =+SUM(F171:AJ171)/24 -> 0.00 | AL170: =+AK170*E170*1.5*86.4 -> 0.00
C171: JOSE ALFREDO Y OT | AK171: LT= | AL171: =+E170*1.5 -> 10.35
A172: 4F029 | B172: L3 | C172: RUIZ RAMIREZ | E172: 18.63 | F172: =+IF(ISNUMBER(F173),$E172*1.5,IF(F173="","",F173)) ->  | AK172: =+SUM(F173:AJ173)/24 -> 0.00 | AL172: =+AK172*E172*1.5*86.4 -> 0.00
C173: NELSON ENRRIQUE | AK173: LT= | AL173: =+E172*1.5 -> 27.95
A174: 4F014F | B174: L3 | C174: RIVERO GONZALEZ | E174: 1.00 | F174: =+IF(ISNUMBER(F175),$E174*1.5,IF(F175="","",F175)) ->  | AK174: =+SUM(F175:AJ175)/24 -> 0.00 | AL174: =+AK174*E174*1.5*86.4 -> 0.00
C175: HERIBERTO | AK175: LT= | AL175: =+E174*1.5 -> 1.50
A176: 4F030 | B176: L3 | C176: VARGAS RIVERA | E176: 4.96 | F176: =+IF(ISNUMBER(F177),$E176*1.5,IF(F177="","",F177)) ->  | AK176: =+SUM(F177:AJ177)/24 -> 0.00 | AL176: =+AK176*E176*1.5*86.4 -> 0.00
C177: RAMIRO ANTONIO | AK177: LT= | AL177: =+E176*1.5 -> 7.44
A178: 4F015 | B178: L3 | C178: PALENCIA DE GARCIA | E178: 25.00 | F178: =+IF(ISNUMBER(F179),$E178*1.5,IF(F179="","",F179)) ->  | AK178: =+SUM(F179:AJ179)/24 -> 0.00 | AL178: =+AK178*E178*1.5*86.4 -> 0.00
C179: ALIX MARIA | AK179: LT= | AL179: =+E178*1.5 -> 37.50
A180: 4F015A | B180: L3 | C180: PALENCIA DE GARCIA | E180: 31.00 | F180: =+IF(ISNUMBER(F181),$E180*1.5,IF(F181="","",F181)) ->  | AK180: =+SUM(F181:AJ181)/24 -> 0.00 | AL180: =+AK180*E180*1.5*86.4 -> 0.00
C181: ALIX MARIA | AK181: LT= | AL181: =+E180*1.5 -> 46.50
A182: 4F012A | B182: L3 | C182: GOMEZ AGREDO | E182: 7.12 | F182: =+IF(ISNUMBER(F183),$E182*1.5,IF(F183="","",F183)) ->  | AK182: =+SUM(F183:AJ183)/24 -> 0.00 | AL182: =+AK182*E182*1.5*86.4 -> 0.00
C183: HERIBERTO | AK183: LT= | AL183: =+E182*1.5 -> 10.68
A184: 4F012C | B184: L3 | C184: CONTRERAS ROJAS | E184: 7.33 | F184: =+IF(ISNUMBER(F185),$E184*1.5,IF(F185="","",F185)) ->  | AK184: =+SUM(F185:AJ185)/24 -> 0.00 | AL184: =+AK184*E184*1.5*86.4 -> 0.00
C185: CARMEN | AK185: LT= | AL185: =+E184*1.5 -> 11.00
A186: 4F012B | B186: L3 | C186: ROJAS SANTOS | E186: 6.00 | F186: =+IF(ISNUMBER(F187),$E186*1.5,IF(F187="","",F187)) ->  | AK186: =+SUM(F187:AJ187)/24 -> 0.00 | AL186: =+AK186*E186*1.5*86.4 -> 0.00
C187: ELIODORO | AK187: LT= | AL187: =+E186*1.5 -> 9.00
A188: 4F020 | B188: L3A | C188: OROZCO ALTAMIRANDA | E188: 10.46 | F188: =+IF(ISNUMBER(F189),$E188*1.5,IF(F189="","",F189)) ->  | AK188: =+SUM(F189:AJ189)/24 -> 0.00 | AL188: =+AK188*E188*1.5*86.4 -> 0.00
C189: ALBERTO E. | AK189: LT= | AL189: =+E188*1.5 -> 15.69
A190: 4F019 | B190: L3A | C190: RUIZ RAMIREZ | E190: 10.25 | F190: =+IF(ISNUMBER(F191),$E190*1.5,IF(F191="","",F191)) ->  | AK190: =+SUM(F191:AJ191)/24 -> 0.00 | AL190: =+AK190*E190*1.5*86.4 -> 0.00
C191: NELSON ENRRIQUE | AK191: LT= | AL191: =+E190*1.5 -> 15.38
A192: 4F017 | B192: L3A | C192: BAUTISTA OSORIO | E192: 10.60 | F192: =+IF(ISNUMBER(F193),$E192*1.5,IF(F193="","",F193)) ->  | AK192: =+SUM(F193:AJ193)/24 -> 0.00 | AL192: =+AK192*E192*1.5*86.4 -> 0.00
C193: GLADYS CECILIA | AK193: LT= | AL193: =+E192*1.5 -> 15.90
A194: 4F028 | B194: L3A | C194: MARQUEZ CARDENAS | E194: 13.06 | F194: =+IF(ISNUMBER(F195),$E194*1.5,IF(F195="","",F195)) ->  | AK194: =+SUM(F195:AJ195)/24 -> 0.00 | AL194: =+AK194*E194*1.5*86.4 -> 0.00
C195: MARTHA CECILIA | AK195: LT= | AL195: =+E194*1.5 -> 19.59
A196: 4F027 | B196: L3A | C196: REYES VILLALTA | E196: 6.00 | F196: =+IF(ISNUMBER(F197),$E196*1.5,IF(F197="","",F197)) ->  | AK196: =+SUM(F197:AJ197)/24 -> 0.00 | AL196: =+AK196*E196*1.5*86.4 -> 0.00
C197: MARIELA | AK197: LT= | AL197: =+E196*1.5 -> 9.00
A198: 4F027A | B198: L3A | C198: REYES VILLALTA | E198: 8.36 | F198: =+IF(ISNUMBER(F199),$E198*1.5,IF(F199="","",F199)) ->  | AK198: =+SUM(F199:AJ199)/24 -> 0.00 | AL198: =+AK198*E198*1.5*86.4 -> 0.00
C199: MARIELA | AK199: LT= | AL199: =+E198*1.5 -> 12.54
A200: 4F036 | B200: PR | C200: SANABRIA OMAÑA | E200: 0.50 | F200: =+IF(ISNUMBER(F201),$E200*1.5,IF(F201="","",F201)) ->  | AK200: =+SUM(F201:AJ201)/24 -> 0.00 | AL200: =+AK200*E200*1.5*86.4 -> 0.00
C201: MARIA DEL ROSARIO | AK201: LT= | AL201: =+E200*1.5 -> 0.75
... 46 more rows

Sheet AGOSTO
A1: ASOCIACION DE USUARIOS DISTRITO DE ADECUACION DE TIERRAS DE GRAN ESCALA DEL RIO ZULIA ASOZULIA NIT 800,168,858-6 | AJ1: CODIGO: DTE-OPER-FR-01
AJ2: VERSION: 01
A3: CONTROL DIARIO DE RIEGO POR PREDIO Y CANAL | AJ3: FECHA: 16/06/2023
A5: ZONA | B5: RESTAURACIÓN | E5: AUXILIAR DE RIEGO | J5: EDWIN JAIR ZAMORA CHACON | S5: CANAL | AF5: MES | AG5: AGOSTO | AK5: AÑO | AL5: 2023
A6: CAUDAL DIARIO DERIVADO | E6: DIAS | F6: 1 | G6: 2 | H6: 3 | I6: 4 | J6: 5 | K6: 6 | L6: 7 | M6: 8 | N6: 9 | O6: 10 | P6: 11 | Q6: 12 | R6: 13 | S6: 14 | T6: 15 | U6: 16 | V6: 17 | W6: 18 | X6: 19 | Y6: 20 | Z6: 21 | AA6: 22 | AB6: 23 | AC6: 24 | AD6: 25 | AE6: 26 | AF6: 27 | AG6: 28 | AH6: 29 | AI6: 30 | AJ6: 31 | AK6: TOTAL DIAS | AL6: TOTAL M3
A7: CODIGO | B7: RAMAL | C7: USUARIO | D7: T.CULT | E7: AREA
A8: 4F300 | B8: PR | C8: BELTRAN GARCIA | D8: CA | E8: 30.00 | F8: =+IF(ISNUMBER(F9),$E8*1.5,IF(F9="","",F9)) ->  | G8: =+IF(ISNUMBER(G9),$E8*1.5,IF(G9="","",G9)) ->  | H8: FR | I8: 45.0 | J8: 45.0 | K8: 45.0 | L8: 45.0 | M8: 45.0 | N8: IC | Q8: =+IF(ISNUMBER(Q9),$E8*1.5,IF(Q9="","",Q9)) ->  | AK8: =+SUM(F9:AJ9)/24 -> 0.83 | AL8: =+AK8*E8*1.5*86.4 -> 3240.00 | AN8: FC
C9: LUIS | H9: FR | I9: 1 | J9: 2 | K9: 3 | L9: 4 | M9: 10 | N9: IC | AK9: LT= | AL9: =+E8*1.5 -> 45.00 | AN9: IC
A10: 4F350 | B10: PR | C10: VILLARREAL OSORIO | E10: 17.53 | F10: =+IF(ISNUMBER(F11),$E10*1.5,IF(F11="","",F11)) ->  | AK10: =+SUM(F11:AJ11)/24 -> 0.00 | AL10: =+AK10*E10*1.5*86.4 -> 0.00 | AN10: FR
C11: CLEMENTE | AK11: LT= | AL11: =+E10*1.5 -> 26.30 | AN11: IR
A12: 4F340 | B12: PR | C12: SANTANA CORTES | E12: 8.00 | F12: =+IF(ISNUMBER(F13),$E12*1.5,IF(F13="","",F13)) ->  | X12: 12.0 | Y12: 12.0 | Z12: 12.0 | AA12: FC | AC12: IC1 | AK12: =+SUM(F13:AJ13)/24 -> 1.25 | AL12: =+AK12*E12*1.5*86.4 -> 1296.00 | AN12: SR
C13: JOSE DOMINGO | X13: 10 | Y13: 10 | Z13: 10 | AA13: FC | AC13: IC1 | AK13: LT= | AL13: =+E12*1.5 -> 12.00 | AN13: RR
A14: 4F338 | B14: PR | C14: RIOS SUESCUN | E14: 8.75 | F14: =+IF(ISNUMBER(F15),$E14*1.5,IF(F15="","",F15)) ->  | AK14: =+SUM(F15:AJ15)/24 -> 0.00 | AL14: =+AK14*E14*1.5*86.4 -> 0.00 | AN14: ID
C15: MARIA LUCIA | AK15: LT= | AL15: =+E14*1.5 -> 13.13 | AN15: IC1
A16: 4F330 | B16: PR | C16: RIAÑO RAMIREZ | E16: 12.06 | F16: =+IF(ISNUMBER(F17),$E16*1.5,IF(F17="","",F17)) ->  | AK16: =+SUM(F17:AJ17)/24 -> 0.00 | AL16: =+AK16*E16*1.5*86.4 -> 0.00
C17: MARIA VICTORIA | AK17: LT= | AL17: =+E16*1.5 -> 18.09
A18: 4F320 | B18: PR | C18: RIAÑO VALDERRAMA | E18: 5.29 | F18: =+IF(ISNUMBER(F19),$E18*1.5,IF(F19="","",F19)) ->  | AK18: =+SUM(F19:AJ19)/24 -> 0.00 | AL18: =+AK18*E18*1.5*86.4 -> 0.00
C19: FREDDY ALEXANDER | AK19: LT= | AL19: =+E18*1.5 -> 7.94
A20: 4F320A | B20: PR | C20: RIAÑO VALDERRAMA | E20: 5.29 | F20: =+IF(ISNUMBER(F21),$E20*1.5,IF(F21="","",F21)) ->  | AK20: =+SUM(F21:AJ21)/24 -> 0.00 | AL20: =+AK20*E20*1.5*86.4 -> 0.00
C21: JENNY MARITZA | AK21: LT= | AL21: =+E20*1.5 -> 7.94
A22: 4F320B | B22: PR | C22: RIAÑO VALDERRAMA | E22: 4.14 | F22: =+IF(ISNUMBER(F23),$E22*1.5,IF(F23="","",F23)) ->  | AK22: =+SUM(F23:AJ23)/24 -> 0.00 | AL22: =+AK22*E22*1.5*86.4 -> 0.00
C23: FLOR LILIANA | AK23: LT= | AL23: =+E22*1.5 -> 6.21
A24: 4F320C | B24: PR | C24: RIAÑO VALDERRAMA | E24: 4.14 | F24: =+IF(ISNUMBER(F25),$E24*1.5,IF(F25="","",F25)) ->  | AK24: =+SUM(F25:AJ25)/24 -> 0.00 | AL24: =+AK24*E24*1.5*86.4 -> 0.00
C25: CIRO PASTOR | AK25: LT= | AL25: =+E24*1.5 -> 6.21
A26: 4F341 | B26: PR | C26: ORTEGA MORA | E26: 8.46 | F26: =+IF(ISNUMBER(F27),$E26*1.5,IF(F27="","",F27)) ->  | AK26: =+SUM(F27:AJ27)/24 -> 0.00 | AL26: =+AK26*E26*1.5*86.4 -> 0.00
C27: JOSE DEL CARMEN | AK27: LT= | AL27: =+E26*1.5 -> 12.69
A28: 4F319 | B28: PR | C28: SANTANA CORTES | E28: 26.50 | F28: =+IF(ISNUMBER(F29),$E28*1.5,IF(F29="","",F29)) ->  | AK28: =+SUM(F29:AJ29)/24 -> 0.00 | AL28: =+AK28*E28*1.5*86.4 -> 0.00
C29: ELVIA Y OTROS | AK29: LT= | AL29: =+E28*1.5 -> 39.75
A30: 4F314 | B30: PR | C30: GONZALEZ GIRON | E30: 3.00 | F30: =+IF(ISNUMBER(F31),$E30*1.5,IF(F31="","",F31)) ->  | AK30: =+SUM(F31:AJ31)/24 -> 0.00 | AL30: =+AK30*E30*1.5*86.4 -> 0.00
C31: EVELIO | AK31: LT= | AL31: =+E30*1.5 -> 4.50
A32: 4F035 | B32: PR | C32: VALDERRAMA CARDENAS | E32: 11.54 | F32: =+IF(ISNUMBER(F33),$E32*1.5,IF(F33="","",F33)) ->  | AK32: =+SUM(F33:AJ33)/24 -> 0.00 | AL32: =+AK32*E32*1.5*86.4 -> 0.00
C33: GUILLERMO Y OTROS | AK33: LT= | AL33: =+E32*1.5 -> 17.31
A34: 4F329B | B34: PR | C34: MARIN ZAPATA | E34: 7.00 | F34: =+IF(ISNUMBER(F35),$E34*1.5,IF(F35="","",F35)) ->  | AK34: =+SUM(F35:AJ35)/24 -> 0.00 | AL34: =+AK34*E34*1.5*86.4 -> 0.00
C35: ABELARDO ANTONIO | AK35: LT= | AL35: =+E34*1.5 -> 10.50
A36: 4F346 | B36: PR | C36: CASTELLANOS TARAZONA | E36: 10.00 | F36: =+IF(ISNUMBER(F37),$E36*1.5,IF(F37="","",F37)) ->  | AK36: =+SUM(F37:AJ37)/24 -> 0.00 | AL36: =+AK36*E36*1.5*86.4 -> 0.00
C37: JOSE DARIO | AK37: LT= | AL37: =+E36*1.5 -> 15.00
A38: 4F315 | B38: PR | C38: VILLARREAL OSORIO | E38: 12.23 | F38: =+IF(ISNUMBER(F39),$E38*1.5,IF(F39="","",F39)) ->  | AK38: =+SUM(F39:AJ39)/24 -> 0.00 | AL38: =+AK38*E38*1.5*86.4 -> 0.00
C39: EDILSON | AK39: LT= | AL39: =+E38*1.5 -> 18.35
A40: 4F001A | B40: L2 | C40: MARQUEZ CARDENAS | E40: 12.00 | F40: =+IF(ISNUMBER(F41),$E40*1.5,IF(F41="","",F41)) ->  | AK40: =+SUM(F41:AJ41)/24 -> 0.00 | AL40: =+AK40*E40*1.5*86.4 -> 0.00
C41: MARTHA CECILIA | AK41: LT= | AL41: =+E40*1.5 -> 18.00
A42: 4F001 | B42: L2 | C42: MARQUEZ CARDENAS | E42: 13.00 | F42: =+IF(ISNUMBER(F43),$E42*1.5,IF(F43="","",F43)) ->  | AK42: =+SUM(F43:AJ43)/24 -> 0.00 | AL42: =+AK42*E42*1.5*86.4 -> 0.00
C43: MARTHA CECILIA | AK43: LT= | AL43: =+E42*1.5 -> 19.50
A44: 4F031 | B44: L2 | C44: LERMA DIAZ | E44: 4.70 | F44: =+IF(ISNUMBER(F45),$E44*1.5,IF(F45="","",F45)) ->  | AK44: =+SUM(F45:AJ45)/24 -> 0.00 | AL44: =+AK44*E44*1.5*86.4 -> 0.00
C45: RAFAEL JULIO | AK45: LT= | AL45: =+E44*1.5 -> 7.05
A46: 4F031A | B46: L2 | C46: RIAÑO RAMIREZ | E46: 2.90 | F46: =+IF(ISNUMBER(F47),$E46*1.5,IF(F47="","",F47)) ->  | AK46: =+SUM(F47:AJ47)/24 -> 0.00 | AL46: =+AK46*E46*1.5*86.4 -> 0.00
C47: MARIA VICTORIA | AK47: LT= | AL47: =+E46*1.5 -> 4.35
A48: 4F031B | B48: L2 | C48: AREVALO ACEVEDO | E48: 2.30 | F48: =+IF(ISNUMBER(F49),$E48*1.5,IF(F49="","",F49)) ->  | AK48: =+SUM(F49:AJ49)/24 -> 0.00 | AL48: =+AK48*E48*1.5*86.4 -> 0.00
C49: RAMIRO Y OTRO | AK49: LT= | AL49: =+E48*1.5 -> 3.45
A50: 4F031C | B50: L2 | C50: BUSTAMANTE | E50: 3.20 | F50: =+IF(ISNUMBER(F51),$E50*1.5,IF(F51="","",F51)) ->  | AK50: =+SUM(F51:AJ51)/24 -> 0.00 | AL50: =+AK50*E50*1.5*86.4 -> 0.00
C51: JAIME DE J. Y OTRO | AK51: LT= | AL51: =+E50*1.5 -> 4.80
A52: 4F031D | B52: L2 | C52: AREVALO ACEVEDO | E52: 2.80 | F52: =+IF(ISNUMBER(F53),$E52*1.5,IF(F53="","",F53)) ->  | AK52: =+SUM(F53:AJ53)/24 -> 0.00 | AL52: =+AK52*E52*1.5*86.4 -> 0.00
C53: RAMIRO Y OTRO | AK53: LT= | AL53: =+E52*1.5 -> 4.20
A54: 4F031E | B54: L2 | C54: VILLAMIZAR | E54: 2.60 | F54: =+IF(ISNUMBER(F55),$E54*1.5,IF(F55="","",F55)) ->  | AK54: =+SUM(F55:AJ55)/24 -> 0.00 | AL54: =+AK54*E54*1.5*86.4 -> 0.00
C55: MARITZA | AK55: LT= | AL55: =+E54*1.5 -> 3.90
A56: 4F031F | B56: L2 | C56: VILLAMIZAR | E56: 1.50 | F56: =+IF(ISNUMBER(F57),$E56*1.5,IF(F57="","",F57)) ->  | AK56: =+SUM(F57:AJ57)/24 -> 0.00 | AL56: =+AK56*E56*1.5*86.4 -> 0.00
C57: MARITZA | AK57: LT= | AL57: =+E56*1.5 -> 2.25
A58: 4F031G | B58: L2 | C58: SANABRIA | E58: 0.58 | F58: =+IF(ISNUMBER(F59),$E58*1.5,IF(F59="","",F59)) ->  | AK58: =+SUM(F59:AJ59)/24 -> 0.00 | AL58: =+AK58*E58*1.5*86.4 -> 0.00
C59: MIGUEL ANTONIO | AK59: LT= | AL59: =+E58*1.5 -> 0.87
A60: 4F031H | B60: L2 | C60: DIAZ LERMA | E60: 4.00 | F60: =+IF(ISNUMBER(F61),$E60*1.5,IF(F61="","",F61)) ->  | AK60: =+SUM(F61:AJ61)/24 -> 0.00 | AL60: =+AK60*E60*1.5*86.4 -> 0.00
C61: LUIS ADAN | AK61: LT= | AL61: =+E60*1.5 -> 6.00
A62: 4F031I | B62: L2 | C62: CAICEDO GALVIS | E62: 8.60 | F62: =+IF(ISNUMBER(F63),$E62*1.5,IF(F63="","",F63)) ->  | AK62: =+SUM(F63:AJ63)/24 -> 0.00 | AL62: =+AK62*E62*1.5*86.4 -> 0.00
C63: ELIECER Y OTROS | AK63: LT= | AL63: =+E62*1.5 -> 12.90
A64: 4F003 | B64: L2 | C64: MENESES | E64: 9.46 | F64: =+IF(ISNUMBER(F65),$E64*1.5,IF(F65="","",F65)) ->  | AK64: =+SUM(F65:AJ65)/24 -> 0.00 | AL64: =+AK64*E64*1.5*86.4 -> 0.00
C65: POLICARPO | AK65: LT= | AL65: =+E64*1.5 -> 14.19
A66: 4F003A | B66: L2 | C66: ORTEGA RIVERA | E66: 8.26 | F66: =+IF(ISNUMBER(F67),$E66*1.5,IF(F67="","",F67)) ->  | AK66: =+SUM(F67:AJ67)/24 -> 0.00 | AL66: =+AK66*E66*1.5*86.4 -> 0.00
C67: PEDRO MIGUEL | AK67: LT= | AL67: =+E66*1.5 -> 12.39
A68: 4F329A | B68: PR | C68: DIAZ | E68: 3.80 | F68: =+IF(ISNUMBER(F69),$E68*1.5,IF(F69="","",F69)) ->  | AK68: =+SUM(F69:AJ69)/24 -> 0.00 | AL68: =+AK68*E68*1.5*86.4 -> 0.00
C69: ROSALBINA | AK69: LT= | AL69: =+E68*1.5 -> 5.70
A70: 4F329A | B70: PR | C70: DIAZ | E70: 2.00 | F70: =+IF(ISNUMBER(F71),$E70*1.5,IF(F71="","",F71)) ->  | AK70: =+SUM(F71:AJ71)/24 -> 0.00 | AL70: =+AK70*E70*1.5*86.4 -> 0.00
C71: ROSALBINA | AK71: LT= | AL71: =+E70*1.5 -> 3.00
A72: 4F329D | B72: PR | C72: RUBIO | E72: 7.24 | F72: =+IF(ISNUMBER(F73),$E72*1.5,IF(F73="","",F73)) ->  | AK72: =+SUM(F73:AJ73)/24 -> 0.00 | AL72: =+AK72*E72*1.5*86.4 -> 0.00
C73: MARIA EDELMIRA | AK73: LT= | AL73: =+E72*1.5 -> 10.86
A74: 4F329C | B74: PR | C74: MARTINEZ ALARCON | E74: 6.00 | F74: =+IF(ISNUMBER(F75),$E74*1.5,IF(F75="","",F75)) ->  | AK74: =+SUM(F75:AJ75)/24 -> 0.00 | AL74: =+AK74*E74*1.5*86.4 -> 0.00
C75: LUIS ALBERTO | AK75: LT= | AL75: =+E74*1.5 -> 9.00
A76: 4F004D | B76: PR | C76: DUARTE ACEVEDO | E76: 8.33 | F76: =+IF(ISNUMBER(F77),$E76*1.5,IF(F77="","",F77)) ->  | AK76: =+SUM(F77:AJ77)/24 -> 0.00 | AL76: =+AK76*E76*1.5*86.4 -> 0.00
C77: PEDRO Y OTROS | AK77: LT= | AL77: =+E76*1.5 -> 12.50
A78: 4F004A | B78: PR | C78: GARCIA CHONA | E78: 8.92 | F78: =+IF(ISNUMBER(F79),$E78*1.5,IF(F79="","",F79)) ->  | AK78: =+SUM(F79:AJ79)/24 -> 0.00 | AL78: =+AK78*E78*1.5*86.4 -> 0.00
C79: CRUZ DELINA | AK79: LT= | AL79: =+E78*1.5 -> 13.38
A80: 4F004E | B80: PR | C80: ROZO RICO | E80: 5.35 | F80: =+IF(ISNUMBER(F81),$E80*1.5,IF(F81="","",F81)) ->  | AK80: =+SUM(F81:AJ81)/24 -> 0.00 | AL80: =+AK80*E80*1.5*86.4 -> 0.00
C81: JOSE RAMON | AK81: LT= | AL81: =+E80*1.5 -> 8.03
A82: 4F004 | B82: PR | C82: QUINTERO M. | E82: 4.09 | F82: =+IF(ISNUMBER(F83),$E82*1.5,IF(F83="","",F83)) ->  | AK82: =+SUM(F83:AJ83)/24 -> 0.00 | AL82: =+AK82*E82*1.5*86.4 -> 0.00
C83: MIGUEL ANGEL/ OTRO | AK83: LT= | AL83: =+E82*1.5 -> 6.14
A84: 4F004C | B84: PR | C84: MARTINEZ RUBIO | E84: 9.74 | F84: =+IF(ISNUMBER(F85),$E84*1.5,IF(F85="","",F85)) ->  | AK84: =+SUM(F85:AJ85)/24 -> 0.00 | AL84: =+AK84*E84*1.5*86.4 -> 0.00
C85: JOSE LEONSO | AK85: LT= | AL85: =+E84*1.5 -> 14.61
A86: 4F328 | B86: PR | C86: GARCIA CHONA | E86: 9.65 | F86: =+IF(ISNUMBER(F87),$E86*1.5,IF(F87="","",F87)) ->  | AK86: =+SUM(F87:AJ87)/24 -> 0.00 | AL86: =+AK86*E86*1.5*86.4 -> 0.00
C87: CRUZ DELINA | AK87: LT= | AL87: =+E86*1.5 -> 14.48
A88: 4F004B | B88: L2A | C88: PAVA | E88: 8.90 | F88: =+IF(ISNUMBER(F89),$E88*1.5,IF(F89="","",F89)) ->  | AK88: =+SUM(F89:AJ89)/24 -> 0.00 | AL88: =+AK88*E88*1.5*86.4 -> 0.00
C89: LUIS JAVIER Y OTRO | AK89: LT= | AL89: =+E88*1.5 -> 13.35
A90: 4F006 | B90: L2A | C90: GARCIA | E90: 4.00 | F90: =+IF(ISNUMBER(F91),$E90*1.5,IF(F91="","",F91)) ->  | AK90: =+SUM(F91:AJ91)/24 -> 0.00 | AL90: =+AK90*E90*1.5*86.4 -> 0.00
C91: LINA ROSA Y OTROS | AK91: LT= | AL91: =+E90*1.5 -> 6.00
A92: 4F006A | B92: L2A | C92: CARDENAS HEREDIA | E92: 5.00 | F92: =+IF(ISNUMBER(F93),$E92*1.5,IF(F93="","",F93)) ->  | AK92: =+SUM(F93:AJ93)/24 -> 0.00 | AL92: =+AK92*E92*1.5*86.4 -> 0.00
C93: PAULINO | AK93: LT= | AL93: =+E92*1.5 -> 7.50
A94: 4F006B | B94: L2A | C94: RAMIREZ MAYORGA | E94: 5.08 | F94: =+IF(ISNUMBER(F95),$E94*1.5,IF(F95="","",F95)) ->  | AK94: =+SUM(F95:AJ95)/24 -> 0.00 | AL94: =+AK94*E94*1.5*86.4 -> 0.00
C95: CRISTINIANO | AK95: LT= | AL95: =+E94*1.5 -> 7.62
A96: 4F006C | B96: L2A | C96: ATUESTA ORTEGA | E96: 5.00 | F96: =+IF(ISNUMBER(F97),$E96*1.5,IF(F97="","",F97)) ->  | AK96: =+SUM(F97:AJ97)/24 -> 0.00 | AL96: =+AK96*E96*1.5*86.4 -> 0.00
C97: MIGUEL ANGEL | AK97: LT= | AL97: =+E96*1.5 -> 7.50
A98: 4F006D | B98: L2A | C98: SERNA GARCIA | E98: 5.00 | F98: =+IF(ISNUMBER(F99),$E98*1.5,IF(F99="","",F99)) ->  | AK98: =+SUM(F99:AJ99)/24 -> 0.00 | AL98: =+AK98*E98*1.5*86.4 -> 0.00
C99: CESARIO ANTONIO | AK99: LT= | AL99: =+E98*1.5 -> 7.50
A100: 4F006E | B100: L2A | C100: SERNA GARCIA | E100: 5.00 | F100: =+IF(ISNUMBER(F101),$E100*1.5,IF(F101="","",F101)) ->  | AK100: =+SUM(F101:AJ101)/24 -> 0.00 | AL100: =+AK100*E100*1.5*86.4 -> 0.00
C101: CESARIO ANTONIO | AK101: LT= | AL101: =+E100*1.5 -> 7.50
A102: 4F006F | B102: L2A | C102: CAICEDO GALVIS | E102: 5.00 | F102: =+IF(ISNUMBER(F103),$E102*1.5,IF(F103="","",F103)) ->  | AK102: =+SUM(F103:AJ103)/24 -> 0.00 | AL102: =+AK102*E102*1.5*86.4 -> 0.00
C103: ELIECER Y OTRO | AK103: LT= | AL103: =+E102*1.5 -> 7.50
A104: 4F006G | B104: L2A | C104: GARCIA | E104: 5.00 | F104: =+IF(ISNUMBER(F105),$E104*1.5,IF(F105="","",F105)) ->  | AK104: =+SUM(F105:AJ105)/24 -> 0.00 | AL104: =+AK104*E104*1.5*86.4 -> 0.00
C105: LINA ROSA Y OTROS | AK105: LT= | AL105: =+E104*1.5 -> 7.50
A106: 4F006H | B106: L2A | C106: VALENCIA MEJIA | E106: 4.50 | F106: =+IF(ISNUMBER(F107),$E106*1.5,IF(F107="","",F107)) ->  | AK106: =+SUM(F107:AJ107)/24 -> 0.00 | AL106: =+AK106*E106*1.5*86.4 -> 0.00
C107: WILSON | AK107: LT= | AL107: =+E106*1.5 -> 6.75
A108: 4F006I | B108: L2A | C108: BALLESTEROS | E108: 4.70 | F108: =+IF(ISNUMBER(F109),$E108*1.5,IF(F109="","",F109)) ->  | AK108: =+SUM(F109:AJ109)/24 -> 0.00 | AL108: =+AK108*E108*1.5*86.4 -> 0.00
C109: LUCIANO | AK109: LT= | AL109: =+E108*1.5 -> 7.05
A110: 4F006J | B110: L2A | C110: CUERO PEREZ | E110: 5.00 | F110: =+IF(ISNUMBER(F111),$E110*1.5,IF(F111="","",F111)) ->  | AK110: =+SUM(F111:AJ111)/24 -> 0.00 | AL110: =+AK110*E110*1.5*86.4 -> 0.00
C111: YESENIA | AK111: LT= | AL111: =+E110*1.5 -> 7.50
A112: 4F006L | B112: L2A | C112: FLOREZ FLOREZ | E112: 4.75 | F112: =+IF(ISNUMBER(F113),$E112*1.5,IF(F113="","",F113)) ->  | AK112: =+SUM(F113:AJ113)/24 -> 0.00 | AL112: =+AK112*E112*1.5*86.4 -> 0.00
C113: MANUEL | AK113: LT= | AL113: =+E112*1.5 -> 7.13
A114: 4F006K | B114: L2A | C114: GUARIN | E114: 5.00 | F114: =+IF(ISNUMBER(F115),$E114*1.5,IF(F115="","",F115)) ->  | AK114: =+SUM(F115:AJ115)/24 -> 0.00 | AL114: =+AK114*E114*1.5*86.4 -> 0.00
C115: LUIS ENRIQUE | AK115: LT= | AL115: =+E114*1.5 -> 7.50
A116: 4F006N | B116: L2A | C116: ATUESTA ORTEGA | E116: 5.00 | F116: =+IF(ISNUMBER(F117),$E116*1.5,IF(F117="","",F117)) ->  | AK116: =+SUM(F117:AJ117)/24 -> 0.00 | AL116: =+AK116*E116*1.5*86.4 -> 0.00
C117: MIGUEL ANGEL | AK117: LT= | AL117: =+E116*1.5 -> 7.50
A118: 4F006O | B118: L2A | C118: GUZMAN NIETO | E118: 5.18 | F118: =+IF(ISNUMBER(F119),$E118*1.5,IF(F119="","",F119)) ->  | AK118: =+SUM(F119:AJ119)/24 -> 0.00 | AL118: =+AK118*E118*1.5*86.4 -> 0.00
C119: JULIO CESAR | AK119: LT= | AL119: =+E118*1.5 -> 7.77
A120: 4F006M | B120: L2A | C120: FIGUEROA PINZON | E120: 5.00 | F120: =+IF(ISNUMBER(F121),$E120*1.5,IF(F121="","",F121)) ->  | AK120: =+SUM(F121:AJ121)/24 -> 0.00 | AL120: =+AK120*E120*1.5*86.4 -> 0.00
C121: FLORENTINO | AK121: LT= | AL121: =+E120*1.5 -> 7.50
A122: 4F008A | B122: L2A | C122: RIVERA MORENO | E122: 8.25 | F122: =+IF(ISNUMBER(F123),$E122*1.5,IF(F123="","",F123)) ->  | AK122: =+SUM(F123:AJ123)/24 -> 0.00 | AL122: =+AK122*E122*1.5*86.4 -> 0.00
C123: VICTOR EDUARDO | AK123: LT= | AL123: =+E122*1.5 -> 12.38
A124: 4F008C | B124: L2A | C124: GARCIA CACERES | E124: 9.00 | F124: =+IF(ISNUMBER(F125),$E124*1.5,IF(F125="","",F125)) ->  | AK124: =+SUM(F125:AJ125)/24 -> 0.00 | AL124: =+AK124*E124*1.5*86.4 -> 0.00
C125: PEDRO ENOG | AK125: LT= | AL125: =+E124*1.5 -> 13.50
A126: 4F008F | B126: L2A | C126: ENCINALES ACOSTA | E126: 5.00 | F126: =+IF(ISNUMBER(F127),$E126*1.5,IF(F127="","",F127)) ->  | AK126: =+SUM(F127:AJ127)/24 -> 0.00 | AL126: =+AK126*E126*1.5*86.4 -> 0.00
C127: STELLA | AK127: LT= | AL127: =+E126*1.5 -> 7.50
A128: 4F008E | B128: L2A | C128: CASTILLO ARIAS | E128: 3.28 | F128: =+IF(ISNUMBER(F129),$E128*1.5,IF(F129="","",F129)) ->  | AK128: =+SUM(F129:AJ129)/24 -> 0.00 | AL128: =+AK128*E128*1.5*86.4 -> 0.00
C129: GLADYS ELENA | AK129: LT= | AL129: =+E128*1.5 -> 4.92
A130: 4F008D | B130: L2A | C130: SILVA CARRILLO | E130: 8.00 | F130: =+IF(ISNUMBER(F131),$E130*1.5,IF(F131="","",F131)) ->  | AK130: =+SUM(F131:AJ131)/24 -> 0.00 | AL130: =+AK130*E130*1.5*86.4 -> 0.00
C131: DORA BETTY | AK131: LT= | AL131: =+E130*1.5 -> 12.00
A132: 4F008B | B132: L2A | C132: OBESO VARGAS | E132: 6.50 | F132: =+IF(ISNUMBER(F133),$E132*1.5,IF(F133="","",F133)) ->  | AK132: =+SUM(F133:AJ133)/24 -> 0.00 | AL132: =+AK132*E132*1.5*86.4 -> 0.00
C133: BENJAMIN Y OTRO | AK133: LT= | AL133: =+E132*1.5 -> 9.75
A134: 4F008G | B134: L2A | C134: OBESO VARGAS | E134: 2.50 | F134: =+IF(ISNUMBER(F135),$E134*1.5,IF(F135="","",F135)) ->  | AK134: =+SUM(F135:AJ135)/24 -> 0.00 | AL134: =+AK134*E134*1.5*86.4 -> 0.00
C135: BENJAMIN Y OTRO | AK135: LT= | AL135: =+E134*1.5 -> 3.75
A136: 4F005 | B136: PR | C136: CONTRERAS MONTES | E136: 10.00 | F136: =+IF(ISNUMBER(F137),$E136*1.5,IF(F137="","",F137)) ->  | AK136: =+SUM(F137:AJ137)/24 -> 0.00 | AL136: =+AK136*E136*1.5*86.4 -> 0.00
C137: ANIANO | AK137: LT= | AL137: =+E136*1.5 -> 15.00
A138: 4F366 | B138: PR | C138: OROZCO ALTAMIRANDA | E138: 7.00 | F138: =+IF(ISNUMBER(F139),$E138*1.5,IF(F139="","",F139)) ->  | AK138: =+SUM(F139:AJ139)/24 -> 0.00 | AL138: =+AK138*E138*1.5*86.4 -> 0.00
C139: ALBERTO E. | AK139: LT= | AL139: =+E138*1.5 -> 10.50
A140: 4F009 | B140: PR | C140: ANAYA VARGAS | E140: 11.23 | F140: =+IF(ISNUMBER(F141),$E140*1.5,IF(F141="","",F141)) ->  | AK140: =+SUM(F141:AJ141)/24 -> 0.00 | AL140: =+AK140*E140*1.5*86.4 -> 0.00
C141: FERMINA | AK141: LT= | AL141: =+E140*1.5 -> 16.85
A142: 4F009C | B142: PR | C142: ORDUZ LANDINEZ | E142: 11.00 | F142: =+IF(ISNUMBER(F143),$E142*1.5,IF(F143="","",F143)) ->  | AK142: =+SUM(F143:AJ143)/24 -> 0.00 | AL142: =+AK142*E142*1.5*86.4 -> 0.00
C143: EVELIA | AK143: LT= | AL143: =+E142*1.5 -> 16.50
A144: 4F009A | B144: PR | C144: VALENCIA MEJIA | E144: 11.13 | F144: =+IF(ISNUMBER(F145),$E144*1.5,IF(F145="","",F145)) ->  | AK144: =+SUM(F145:AJ145)/24 -> 0.00 | AL144: =+AK144*E144*1.5*86.4 -> 0.00
C145: WILSON | AK145: LT= | AL145: =+E144*1.5 -> 16.70
A146: 4F009B | B146: PR | C146: CONTRERAS ORTEGA | E146: 11.12 | F146: =+IF(ISNUMBER(F147),$E146*1.5,IF(F147="","",F147)) ->  | AK146: =+SUM(F147:AJ147)/24 -> 0.00 | AL146: =+AK146*E146*1.5*86.4 -> 0.00
C147: PEDRO ANTONIO | AK147: LT= | AL147: =+E146*1.5 -> 16.68
A148: 4F361 | B148: PR | C148: OROZCO ALTAMIRANDA | E148: 7.27 | F148: =+IF(ISNUMBER(F149),$E148*1.5,IF(F149="","",F149)) ->  | AK148: =+SUM(F149:AJ149)/24 -> 0.00 | AL148: =+AK148*E148*1.5*86.4 -> 0.00
C149: ALBERTO E. | AK149: LT= | AL149: =+E148*1.5 -> 10.91
A150: 4F013 | B150: PR | C150: CONTRERAS | E150: 17.30 | F150: =+IF(ISNUMBER(F151),$E150*1.5,IF(F151="","",F151)) ->  | AK150: =+SUM(F151:AJ151)/24 -> 0.00 | AL150: =+AK150*E150*1.5*86.4 -> 0.00
A151: E | C151: MONTES ANIANO | AK151: LT= | AL151: =+E150*1.5 -> 25.95
A152: 4F014C | B152: L3 | C152: AGUILAR REYES | E152: 7.00 | F152: =+IF(ISNUMBER(F153),$E152*1.5,IF(F153="","",F153)) ->  | AK152: =+SUM(F153:AJ153)/24 -> 0.00 | AL152: =+AK152*E152*1.5*86.4 -> 0.00
C153: DANIEL ALEXANDER | AK153: LT= | AL153: =+E152*1.5 -> 10.50
A154: 4F014A | B154: L3 | C154: UMAÑA PEREZ | E154: 8.58 | F154: =+IF(ISNUMBER(F155),$E154*1.5,IF(F155="","",F155)) ->  | AK154: =+SUM(F155:AJ155)/24 -> 0.00 | AL154: =+AK154*E154*1.5*86.4 -> 0.00
C155: CESAR AUGUSTO | AK155: LT= | AL155: =+E154*1.5 -> 12.87
A156: 4F010 | B156: L3 | C156: CARRILLO MARTINEZ | E156: 20.00 | F156: =+IF(ISNUMBER(F157),$E156*1.5,IF(F157="","",F157)) ->  | AK156: =+SUM(F157:AJ157)/24 -> 0.00 | AL156: =+AK156*E156*1.5*86.4 -> 0.00
C157: SAMUEL | AK157: LT= | AL157: =+E156*1.5 -> 30.00
A158: 4F010A | B158: L3 | C158: CARRILLO MARTINEZ | E158: 11.00 | F158: =+IF(ISNUMBER(F159),$E158*1.5,IF(F159="","",F159)) ->  | AK158: =+SUM(F159:AJ159)/24 -> 0.00 | AL158: =+AK158*E158*1.5*86.4 -> 0.00
C159: SAMUEL | AK159: LT= | AL159: =+E158*1.5 -> 16.50
A160: 4F010A | B160: L3 | C160: CARRILLO MARTINEZ | E160: 11.10 | F160: =+IF(ISNUMBER(F161),$E160*1.5,IF(F161="","",F161)) ->  | AK160: =+SUM(F161:AJ161)/24 -> 0.00 | AL160: =+AK160*E160*1.5*86.4 -> 0.00
C161: SAMUEL | AK161: LT= | AL161: =+E160*1.5 -> 16.65
A162: 4F014D | B162: L3 | C162: AGUILAR BARRIENTOS | E162: 7.00 | F162: =+IF(ISNUMBER(F163),$E162*1.5,IF(F163="","",F163)) ->  | AK162: =+SUM(F163:AJ163)/24 -> 0.00 | AL162: =+AK162*E162*1.5*86.4 -> 0.00
C163: OMAR | AK163: LT= | AL163: =+E162*1.5 -> 10.50
A164: 4F014B | B164: L3 | C164: BABILONIA RAMOS | E164: 8.00 | F164: =+IF(ISNUMBER(F165),$E164*1.5,IF(F165="","",F165)) ->  | AK164: =+SUM(F165:AJ165)/24 -> 0.00 | AL164: =+AK164*E164*1.5*86.4 -> 0.00
C165: INDULFO MANUEL | AK165: LT= | AL165: =+E164*1.5 -> 12.00
A166: 4F011 | B166: L3 | C166: PALENCIA DE GARCIA | E166: 7.00 | F166: =+IF(ISNUMBER(F167),$E166*1.5,IF(F167="","",F167)) ->  | AK166: =+SUM(F167:AJ167)/24 -> 0.00 | AL166: =+AK166*E166*1.5*86.4 -> 0.00
C167: ALIX MARIA | AK167: LT= | AL167: =+E166*1.5 -> 10.50
A168: 4F011A | B168: L3 | C168: PALENCIA DE GARCIA | E168: 33.00 | F168: =+IF(ISNUMBER(F169),$E168*1.5,IF(F169="","",F169)) ->  | AK168: =+SUM(F169:AJ169)/24 -> 0.00 | AL168: =+AK168*E168*1.5*86.4 -> 0.00
C169: ALIX MARIA | AK169: LT= | AL169: =+E168*1.5 -> 49.50
A170: 4F014E | B170: L3 | C170: FORI MONCADA | E170: 6.90 | F170: =+IF(ISNUMBER(F171),$E170*1.5,IF(F171="","",F171)) ->  | AK170: =+SUM(F171:AJ171)/24 -> 0.00 | AL170: =+AK170*E170*1.5*86.4 -> 0.00
C171: JOSE ALFREDO Y OT | AK171: LT= | AL171: =+E170*1.5 -> 10.35
A172: 4F029 | B172: L3 | C172: RUIZ RAMIREZ | E172: 18.63 | F172: =+IF(ISNUMBER(F173),$E172*1.5,IF(F173="","",F173)) ->  | AK172: =+SUM(F173:AJ173)/24 -> 0.00 | AL172: =+AK172*E172*1.5*86.4 -> 0.00
C173: NELSON ENRRIQUE | AK173: LT= | AL173: =+E172*1.5 -> 27.95
A174: 4F014F | B174: L3 | C174: RIVERO GONZALEZ | E174: 1.00 | F174: =+IF(ISNUMBER(F175),$E174*1.5,IF(F175="","",F175)) ->  | AK174: =+SUM(F175:AJ175)/24 -> 0.00 | AL174: =+AK174*E174*1.5*86.4 -> 0.00
C175: HERIBERTO | AK175: LT= | AL175: =+E174*1.5 -> 1.50
A176: 4F030 | B176: L3 | C176: VARGAS RIVERA | E176: 4.96 | F176: =+IF(ISNUMBER(F177),$E176*1.5,IF(F177="","",F177)) ->  | AK176: =+SUM(F177:AJ177)/24 -> 0.00 | AL176: =+AK176*E176*1.5*86.4 -> 0.00
C177: RAMIRO ANTONIO | AK177: LT= | AL177: =+E176*1.5 -> 7.44
A178: 4F015 | B178: L3 | C178: PALENCIA DE GARCIA | E178: 25.00 | F178: =+IF(ISNUMBER(F179),$E178*1.5,IF(F179="","",F179)) ->  | AK178: =+SUM(F179:AJ179)/24 -> 0.00 | AL178: =+AK178*E178*1.5*86.4 -> 0.00
C179: ALIX MARIA | AK179: LT= | AL179: =+E178*1.5 -> 37.50
A180: 4F015A | B180: L3 | C180: PALENCIA DE GARCIA | E180: 31.00 | F180: =+IF(ISNUMBER(F181),$E180*1.5,IF(F181="","",F181)) ->  | AK180: =+SUM(F181:AJ181)/24 -> 0.00 | AL180: =+AK180*E180*1.5*86.4 -> 0.00
C181: ALIX MARIA | AK181: LT= | AL181: =+E180*1.5 -> 46.50
A182: 4F012A | B182: L3 | C182: GOMEZ AGREDO | E182: 7.12 | F182: =+IF(ISNUMBER(F183),$E182*1.5,IF(F183="","",F183)) ->  | AK182: =+SUM(F183:AJ183)/24 -> 0.00 | AL182: =+AK182*E182*1.5*86.4 -> 0.00
C183: HERIBERTO | AK183: LT= | AL183: =+E182*1.5 -> 10.68
A184: 4F012C | B184: L3 | C184: CONTRERAS ROJAS | E184: 7.33 | F184: =+IF(ISNUMBER(F185),$E184*1.5,IF(F185="","",F185)) ->  | AK184: =+SUM(F185:AJ185)/24 -> 0.00 | AL184: =+AK184*E184*1.5*86.4 -> 0.00
C185: CARMEN | AK185: LT= | AL185: =+E184*1.5 -> 11.00
A186: 4F012B | B186: L3 | C186: ROJAS SANTOS | E186: 6.00 | F186: =+IF(ISNUMBER(F187),$E186*1.5,IF(F187="","",F187)) ->  | AK186: =+SUM(F187:AJ187)/24 -> 0.00 | AL186: =+AK186*E186*1.5*86.4 -> 0.00
C187: ELIODORO | AK187: LT= | AL187: =+E186*1.5 -> 9.00
A188: 4F020 | B188: L3A | C188: OROZCO ALTAMIRANDA | E188: 10.46 | F188: =+IF(ISNUMBER(F189),$E188*1.5,IF(F189="","",F189)) ->  | AK188: =+SUM(F189:AJ189)/24 -> 0.00 | AL188: =+AK188*E188*1.5*86.4 -> 0.00
C189: ALBERTO E. | AK189: LT= | AL189: =+E188*1.5 -> 15.69
A190: 4F019 | B190: L3A | C190: RUIZ RAMIREZ | E190: 10.25 | F190: =+IF(ISNUMBER(F191),$E190*1.5,IF(F191="","",F191)) ->  | AK190: =+SUM(F191:AJ191)/24 -> 0.00 | AL190: =+AK190*E190*1.5*86.4 -> 0.00
C191: NELSON ENRRIQUE | AK191: LT= | AL191: =+E190*1.5 -> 15.38
A192: 4F017 | B192: L3A | C192: BAUTISTA OSORIO | E192: 10.60 | F192: =+IF(ISNUMBER(F193),$E192*1.5,IF(F193="","",F193)) ->  | AK192: =+SUM(F193:AJ193)/24 -> 0.00 | AL192: =+AK192*E192*1.5*86.4 -> 0.00
C193: GLADYS CECILIA | AK193: LT= | AL193: =+E192*1.5 -> 15.90
A194: 4F028 | B194: L3A | C194: MARQUEZ CARDENAS | E194: 13.06 | F194: =+IF(ISNUMBER(F195),$E194*1.5,IF(F195="","",F195)) ->  | AK194: =+SUM(F195:AJ195)/24 -> 0.00 | AL194: =+AK194*E194*1.5*86.4 -> 0.00
C195: MARTHA CECILIA | AK195: LT= | AL195: =+E194*1.5 -> 19.59
A196: 4F027 | B196: L3A | C196: REYES VILLALTA | E196: 6.00 | F196: =+IF(ISNUMBER(F197),$E196*1.5,IF(F197="","",F197)) ->  | AK196: =+SUM(F197:AJ197)/24 -> 0.00 | AL196: =+AK196*E196*1.5*86.4 -> 0.00
C197: MARIELA | AK197: LT= | AL197: =+E196*1.5 -> 9.00
A198: 4F027A | B198: L3A | C198: REYES VILLALTA | E198: 8.36 | F198: =+IF(ISNUMBER(F199),$E198*1.5,IF(F199="","",F199)) ->  | AK198: =+SUM(F199:AJ199)/24 -> 0.00 | AL198: =+AK198*E198*1.5*86.4 -> 0.00
C199: MARIELA | AK199: LT= | AL199: =+E198*1.5 -> 12.54
A200: 4F036 | B200: PR | C200: SANABRIA OMAÑA | E200: 0.50 | F200: =+IF(ISNUMBER(F201),$E200*1.5,IF(F201="","",F201)) ->  | AK200: =+SUM(F201:AJ201)/24 -> 0.00 | AL200: =+AK200*E200*1.5*86.4 -> 0.00
C201: MARIA DEL ROSARIO | AK201: LT= | AL201: =+E200*1.5 -> 0.75
... 46 more rows

Sheet SEPTIEMBRE
A1: ASOCIACION DE USUARIOS DISTRITO DE ADECUACION DE TIERRAS DE GRAN ESCALA DEL RIO ZULIA ASOZULIA NIT 800,168,858-6 | AI1: CODIGO: DTE-OPER-FR-01
AI2: VERSION: 01
A3: CONTROL DIARIO DE RIEGO POR PREDIO Y CANAL | AI3: FECHA: 16/06/2023
A5: ZONA | B5: RESTAURACIÓN | E5: AUXILIAR DE RIEGO | J5: EDWIN JAIR ZAMORA CHACON | S5: CANAL | AF5: MES | AG5: SEPTIEMBRE | AJ5: AÑO | AK5: 2023
A6: CAUDAL DIARIO DERIVADO | E6: DIAS | F6: 1 | G6: 2 | H6: 3 | I6: 4 | J6: 5 | K6: 6 | L6: 7 | M6: 8 | N6: 9 | O6: 10 | P6: 11 | Q6: 12 | R6: 13 | S6: 14 | T6: 15 | U6: 16 | V6: 17 | W6: 18 | X6: 19 | Y6: 20 | Z6: 21 | AA6: 22 | AB6: 23 | AC6: 24 | AD6: 25 | AE6: 26 | AF6: 27 | AG6: 28 | AH6: 29 | AI6: 30 | AJ6: TOTAL DIAS | AK6: TOTAL M3
A7: CODIGO | B7: RAMAL | C7: USUARIO | D7: T.CULT | E7: AREA
A8: 4F300 | B8: PR | C8: BELTRAN GARCIA | D8: CA | E8: 30.00 | F8: =+IF(ISNUMBER(F9),$E8*1.5,IF(F9="","",F9)) ->  | G8: =+IF(ISNUMBER(G9),$E8*1.5,IF(G9="","",G9)) ->  | H8: FR | I8: 45.0 | J8: 45.0 | K8: 45.0 | L8: 45.0 | M8: 45.0 | N8: IC | Q8: =+IF(ISNUMBER(Q9),$E8*1.5,IF(Q9="","",Q9)) ->  | AJ8: =+SUM(F9:AI9)/24 -> 0.83 | AK8: =+AJ8*E8*1.5*86.4 -> 3240.00 | AM8: FC
C9: LUIS | H9: FR | I9: 1 | J9: 2 | K9: 3 | L9: 4 | M9: 10 | N9: IC | AJ9: LT= | AK9: =+E8*1.5 -> 45.00 | AM9: IC
A10: 4F350 | B10: PR | C10: VILLARREAL OSORIO | E10: 17.53 | F10: =+IF(ISNUMBER(F11),$E10*1.5,IF(F11="","",F11)) ->  | AJ10: =+SUM(F11:AI11)/24 -> 0.00 | AK10: =+AJ10*E10*1.5*86.4 -> 0.00 | AM10: FR
C11: CLEMENTE | AJ11: LT= | AK11: =+E10*1.5 -> 26.30 | AM11: IR
A12: 4F340 | B12: PR | C12: SANTANA CORTES | E12: 8.00 | F12: =+IF(ISNUMBER(F13),$E12*1.5,IF(F13="","",F13)) ->  | X12: 12.0 | Y12: 12.0 | Z12: 12.0 | AA12: FC | AC12: IC1 | AJ12: =+SUM(F13:AI13)/24 -> 1.25 | AK12: =+AJ12*E12*1.5*86.4 -> 1296.00 | AM12: SR
C13: JOSE DOMINGO | X13: 10 | Y13: 10 | Z13: 10 | AA13: FC | AC13: IC1 | AJ13: LT= | AK13: =+E12*1.5 -> 12.00 | AM13: RR
A14: 4F338 | B14: PR | C14: RIOS SUESCUN | E14: 8.75 | F14: =+IF(ISNUMBER(F15),$E14*1.5,IF(F15="","",F15)) ->  | AJ14: =+SUM(F15:AI15)/24 -> 0.00 | AK14: =+AJ14*E14*1.5*86.4 -> 0.00 | AM14: ID
C15: MARIA LUCIA | AJ15: LT= | AK15: =+E14*1.5 -> 13.13 | AM15: IC1
A16: 4F330 | B16: PR | C16: RIAÑO RAMIREZ | E16: 12.06 | F16: =+IF(ISNUMBER(F17),$E16*1.5,IF(F17="","",F17)) ->  | AJ16: =+SUM(F17:AI17)/24 -> 0.00 | AK16: =+AJ16*E16*1.5*86.4 -> 0.00
C17: MARIA VICTORIA | AJ17: LT= | AK17: =+E16*1.5 -> 18.09
A18: 4F320 | B18: PR | C18: RIAÑO VALDERRAMA | E18: 5.29 | F18: =+IF(ISNUMBER(F19),$E18*1.5,IF(F19="","",F19)) ->  | AJ18: =+SUM(F19:AI19)/24 -> 0.00 | AK18: =+AJ18*E18*1.5*86.4 -> 0.00
C19: FREDDY ALEXANDER | AJ19: LT= | AK19: =+E18*1.5 -> 7.94
A20: 4F320A | B20: PR | C20: RIAÑO VALDERRAMA | E20: 5.29 | F20: =+IF(ISNUMBER(F21),$E20*1.5,IF(F21="","",F21)) ->  | AJ20: =+SUM(F21:AI21)/24 -> 0.00 | AK20: =+AJ20*E20*1.5*86.4 -> 0.00
C21: JENNY MARITZA | AJ21: LT= | AK21: =+E20*1.5 -> 7.94
A22: 4F320B | B22: PR | C22: RIAÑO VALDERRAMA | E22: 4.14 | F22: =+IF(ISNUMBER(F23),$E22*1.5,IF(F23="","",F23)) ->  | AJ22: =+SUM(F23:AI23)/24 -> 0.00 | AK22: =+AJ22*E22*1.5*86.4 -> 0.00
C23: FLOR LILIANA | AJ23: LT= | AK23: =+E22*1.5 -> 6.21
A24: 4F320C | B24: PR | C24: RIAÑO VALDERRAMA | E24: 4.14 | F24: =+IF(ISNUMBER(F25),$E24*1.5,IF(F25="","",F25)) ->  | AJ24: =+SUM(F25:AI25)/24 -> 0.00 | AK24: =+AJ24*E24*1.5*86.4 -> 0.00
C25: CIRO PASTOR | AJ25: LT= | AK25: =+E24*1.5 -> 6.21
A26: 4F341 | B26: PR | C26: ORTEGA MORA | E26: 8.46 | F26: =+IF(ISNUMBER(F27),$E26*1.5,IF(F27="","",F27)) ->  | AJ26: =+SUM(F27:AI27)/24 -> 0.00 | AK26: =+AJ26*E26*1.5*86.4 -> 0.00
C27: JOSE DEL CARMEN | AJ27: LT= | AK27: =+E26*1.5 -> 12.69
A28: 4F319 | B28: PR | C28: SANTANA CORTES | E28: 26.50 | F28: =+IF(ISNUMBER(F29),$E28*1.5,IF(F29="","",F29)) ->  | AJ28: =+SUM(F29:AI29)/24 -> 0.00 | AK28: =+AJ28*E28*1.5*86.4 -> 0.00
C29: ELVIA Y OTROS | AJ29: LT= | AK29: =+E28*1.5 -> 39.75
A30: 4F314 | B30: PR | C30: GONZALEZ GIRON | E30: 3.00 | F30: =+IF(ISNUMBER(F31),$E30*1.5,IF(F31="","",F31)) ->  | AJ30: =+SUM(F31:AI31)/24 -> 0.00 | AK30: =+AJ30*E30*1.5*86.4 -> 0.00
C31: EVELIO | AJ31: LT= | AK31: =+E30*1.5 -> 4.50
A32: 4F035 | B32: PR | C32: VALDERRAMA CARDENAS | E32: 11.54 | F32: =+IF(ISNUMBER(F33),$E32*1.5,IF(F33="","",F33)) ->  | AJ32: =+SUM(F33:AI33)/24 -> 0.00 | AK32: =+AJ32*E32*1.5*86.4 -> 0.00
C33: GUILLERMO Y OTROS | AJ33: LT= | AK33: =+E32*1.5 -> 17.31
A34: 4F329B | B34: PR | C34: MARIN ZAPATA | E34: 7.00 | F34: =+IF(ISNUMBER(F35),$E34*1.5,IF(F35="","",F35)) ->  | AJ34: =+SUM(F35:AI35)/24 -> 0.00 | AK34: =+AJ34*E34*1.5*86.4 -> 0.00
C35: ABELARDO ANTONIO | AJ35: LT= | AK35: =+E34*1.5 -> 10.50
A36: 4F346 | B36: PR | C36: CASTELLANOS TARAZONA | E36: 10.00 | F36: =+IF(ISNUMBER(F37),$E36*1.5,IF(F37="","",F37)) ->  | AJ36: =+SUM(F37:AI37)/24 -> 0.00 | AK36: =+AJ36*E36*1.5*86.4 -> 0.00
C37: JOSE DARIO | AJ37: LT= | AK37: =+E36*1.5 -> 15.00
A38: 4F315 | B38: PR | C38: VILLARREAL OSORIO | E38: 12.23 | F38: =+IF(ISNUMBER(F39),$E38*1.5,IF(F39="","",F39)) ->  | AJ38: =+SUM(F39:AI39)/24 -> 0.00 | AK38: =+AJ38*E38*1.5*86.4 -> 0.00
C39: EDILSON | AJ39: LT= | AK39: =+E38*1.5 -> 18.35
A40: 4F001A | B40: L2 | C40: MARQUEZ CARDENAS | E40: 12.00 | F40: =+IF(ISNUMBER(F41),$E40*1.5,IF(F41="","",F41)) ->  | AJ40: =+SUM(F41:AI41)/24 -> 0.00 | AK40: =+AJ40*E40*1.5*86.4 -> 0.00
C41: MARTHA CECILIA | AJ41: LT= | AK41: =+E40*1.5 -> 18.00
A42: 4F001 | B42: L2 | C42: MARQUEZ CARDENAS | E42: 13.00 | F42: =+IF(ISNUMBER(F43),$E42*1.5,IF(F43="","",F43)) ->  | AJ42: =+SUM(F43:AI43)/24 -> 0.00 | AK42: =+AJ42*E42*1.5*86.4 -> 0.00
C43: MARTHA CECILIA | AJ43: LT= | AK43: =+E42*1.5 -> 19.50
A44: 4F031 | B44: L2 | C44: LERMA DIAZ | E44: 4.70 | F44: =+IF(ISNUMBER(F45),$E44*1.5,IF(F45="","",F45)) ->  | AJ44: =+SUM(F45:AI45)/24 -> 0.00 | AK44: =+AJ44*E44*1.5*86.4 -> 0.00
C45: RAFAEL JULIO | AJ45: LT= | AK45: =+E44*1.5 -> 7.05
A46: 4F031A | B46: L2 | C46: RIAÑO RAMIREZ | E46: 2.90 | F46: =+IF(ISNUMBER(F47),$E46*1.5,IF(F47="","",F47)) ->  | AJ46: =+SUM(F47:AI47)/24 -> 0.00 | AK46: =+AJ46*E46*1.5*86.4 -> 0.00
C47: MARIA VICTORIA | AJ47: LT= | AK47: =+E46*1.5 -> 4.35
A48: 4F031B | B48: L2 | C48: AREVALO ACEVEDO | E48: 2.30 | F48: =+IF(ISNUMBER(F49),$E48*1.5,IF(F49="","",F49)) ->  | AJ48: =+SUM(F49:AI49)/24 -> 0.00 | AK48: =+AJ48*E48*1.5*86.4 -> 0.00
C49: RAMIRO Y OTRO | AJ49: LT= | AK49: =+E48*1.5 -> 3.45
A50: 4F031C | B50: L2 | C50: BUSTAMANTE | E50: 3.20 | F50: =+IF(ISNUMBER(F51),$E50*1.5,IF(F51="","",F51)) ->  | AJ50: =+SUM(F51:AI51)/24 -> 0.00 | AK50: =+AJ50*E50*1.5*86.4 -> 0.00
C51: JAIME DE J. Y OTRO | AJ51: LT= | AK51: =+E50*1.5 -> 4.80
A52: 4F031D | B52: L2 | C52: AREVALO ACEVEDO | E52: 2.80 | F52: =+IF(ISNUMBER(F53),$E52*1.5,IF(F53="","",F53)) ->  | AJ52: =+SUM(F53:AI53)/24 -> 0.00 | AK52: =+AJ52*E52*1.5*86.4 -> 0.00
C53: RAMIRO Y OTRO | AJ53: LT= | AK53: =+E52*1.5 -> 4.20
A54: 4F031E | B54: L2 | C54: VILLAMIZAR | E54: 2.60 | F54: =+IF(ISNUMBER(F55),$E54*1.5,IF(F55="","",F55)) ->  | AJ54: =+SUM(F55:AI55)/24 -> 0.00 | AK54: =+AJ54*E54*1.5*86.4 -> 0.00
C55: MARITZA | AJ55: LT= | AK55: =+E54*1.5 -> 3.90
A56: 4F031F | B56: L2 | C56: VILLAMIZAR | E56: 1.50 | F56: =+IF(ISNUMBER(F57),$E56*1.5,IF(F57="","",F57)) ->  | AJ56: =+SUM(F57:AI57)/24 -> 0.00 | AK56: =+AJ56*E56*1.5*86.4 -> 0.00
C57: MARITZA | AJ57: LT= | AK57: =+E56*1.5 -> 2.25
A58: 4F031G | B58: L2 | C58: SANABRIA | E58: 0.58 | F58: =+IF(ISNUMBER(F59),$E58*1.5,IF(F59="","",F59)) ->  | AJ58: =+SUM(F59:AI59)/24 -> 0.00 | AK58: =+AJ58*E58*1.5*86.4 -> 0.00
C59: MIGUEL ANTONIO | AJ59: LT= | AK59: =+E58*1.5 -> 0.87
A60: 4F031H | B60: L2 | C60: DIAZ LERMA | E60: 4.00 | F60: =+IF(ISNUMBER(F61),$E60*1.5,IF(F61="","",F61)) ->  | AJ60: =+SUM(F61:AI61)/24 -> 0.00 | AK60: =+AJ60*E60*1.5*86.4 -> 0.00
C61: LUIS ADAN | AJ61: LT= | AK61: =+E60*1.5 -> 6.00
A62: 4F031I | B62: L2 | C62: CAICEDO GALVIS | E62: 8.60 | F62: =+IF(ISNUMBER(F63),$E62*1.5,IF(F63="","",F63)) ->  | AJ62: =+SUM(F63:AI63)/24 -> 0.00 | AK62: =+AJ62*E62*1.5*86.4 -> 0.00
C63: ELIECER Y OTROS | AJ63: LT= | AK63: =+E62*1.5 -> 12.90
A64: 4F003 | B64: L2 | C64: MENESES | E64: 9.46 | F64: =+IF(ISNUMBER(F65),$E64*1.5,IF(F65="","",F65)) ->  | AJ64: =+SUM(F65:AI65)/24 -> 0.00 | AK64: =+AJ64*E64*1.5*86.4 -> 0.00
C65: POLICARPO | AJ65: LT= | AK65: =+E64*1.5 -> 14.19
A66: 4F003A | B66: L2 | C66: ORTEGA RIVERA | E66: 8.26 | F66: =+IF(ISNUMBER(F67),$E66*1.5,IF(F67="","",F67)) ->  | AJ66: =+SUM(F67:AI67)/24 -> 0.00 | AK66: =+AJ66*E66*1.5*86.4 -> 0.00
C67: PEDRO MIGUEL | AJ67: LT= | AK67: =+E66*1.5 -> 12.39
A68: 4F329A | B68: PR | C68: DIAZ | E68: 3.80 | F68: =+IF(ISNUMBER(F69),$E68*1.5,IF(F69="","",F69)) ->  | AJ68: =+SUM(F69:AI69)/24 -> 0.00 | AK68: =+AJ68*E68*1.5*86.4 -> 0.00
C69: ROSALBINA | AJ69: LT= | AK69: =+E68*1.5 -> 5.70
A70: 4F329A | B70: PR | C70: DIAZ | E70: 2.00 | F70: =+IF(ISNUMBER(F71),$E70*1.5,IF(F71="","",F71)) ->  | AJ70: =+SUM(F71:AI71)/24 -> 0.00 | AK70: =+AJ70*E70*1.5*86.4 -> 0.00
C71: ROSALBINA | AJ71: LT= | AK71: =+E70*1.5 -> 3.00
A72: 4F329D | B72: PR | C72: RUBIO | E72: 7.24 | F72: =+IF(ISNUMBER(F73),$E72*1.5,IF(F73="","",F73)) ->  | AJ72: =+SUM(F73:AI73)/24 -> 0.00 | AK72: =+AJ72*E72*1.5*86.4 -> 0.00
C73: MARIA EDELMIRA | AJ73: LT= | AK73: =+E72*1.5 -> 10.86
A74: 4F329C | B74: PR | C74: MARTINEZ ALARCON | E74: 6.00 | F74: =+IF(ISNUMBER(F75),$E74*1.5,IF(F75="","",F75)) ->  | AJ74: =+SUM(F75:AI75)/24 -> 0.00 | AK74: =+AJ74*E74*1.5*86.4 -> 0.00
C75: LUIS ALBERTO | AJ75: LT= | AK75: =+E74*1.5 -> 9.00
A76: 4F004D | B76: PR | C76: DUARTE ACEVEDO | E76: 8.33 | F76: =+IF(ISNUMBER(F77),$E76*1.5,IF(F77="","",F77)) ->  | AJ76: =+SUM(F77:AI77)/24 -> 0.00 | AK76: =+AJ76*E76*1.5*86.4 -> 0.00
C77: PEDRO Y OTROS | AJ77: LT= | AK77: =+E76*1.5 -> 12.50
A78: 4F004A | B78: PR | C78: GARCIA CHONA | E78: 8.92 | F78: =+IF(ISNUMBER(F79),$E78*1.5,IF(F79="","",F79)) ->  | AJ78: =+SUM(F79:AI79)/24 -> 0.00 | AK78: =+AJ78*E78*1.5*86.4 -> 0.00
C79: CRUZ DELINA | AJ79: LT= | AK79: =+E78*1.5 -> 13.38
A80: 4F004E | B80: PR | C80: ROZO RICO | E80: 5.35 | F80: =+IF(ISNUMBER(F81),$E80*1.5,IF(F81="","",F81)) ->  | AJ80: =+SUM(F81:AI81)/24 -> 0.00 | AK80: =+AJ80*E80*1.5*86.4 -> 0.00
C81: JOSE RAMON | AJ81: LT= | AK81: =+E80*1.5 -> 8.03
A82: 4F004 | B82: PR | C82: QUINTERO M. | E82: 4.09 | F82: =+IF(ISNUMBER(F83),$E82*1.5,IF(F83="","",F83)) ->  | AJ82: =+SUM(F83:AI83)/24 -> 0.00 | AK82: =+AJ82*E82*1.5*86.4 -> 0.00
C83: MIGUEL ANGEL/ OTRO | AJ83: LT= | AK83: =+E82*1.5 -> 6.14
A84: 4F004C | B84: PR | C84: MARTINEZ RUBIO | E84: 9.74 | F84: =+IF(ISNUMBER(F85),$E84*1.5,IF(F85="","",F85)) ->  | AJ84: =+SUM(F85:AI85)/24 -> 0.00 | AK84: =+AJ84*E84*1.5*86.4 -> 0.00
C85: JOSE LEONSO | AJ85: LT= | AK85: =+E84*1.5 -> 14.61
A86: 4F328 | B86: PR | C86: GARCIA CHONA | E86: 9.65 | F86: =+IF(ISNUMBER(F87),$E86*1.5,IF(F87="","",F87)) ->  | AJ86: =+SUM(F87:AI87)/24 -> 0.00 | AK86: =+AJ86*E86*1.5*86.4 -> 0.00
C87: CRUZ DELINA | AJ87: LT= | AK87: =+E86*1.5 -> 14.48
A88: 4F004B | B88: L2A | C88: PAVA | E88: 8.90 | F88: =+IF(ISNUMBER(F89),$E88*1.5,IF(F89="","",F89)) ->  | AJ88: =+SUM(F89:AI89)/24 -> 0.00 | AK88: =+AJ88*E88*1.5*86.4 -> 0.00
C89: LUIS JAVIER Y OTRO | AJ89: LT= | AK89: =+E88*1.5 -> 13.35
A90: 4F006 | B90: L2A | C90: GARCIA | E90: 4.00 | F90: =+IF(ISNUMBER(F91),$E90*1.5,IF(F91="","",F91)) ->  | AJ90: =+SUM(F91:AI91)/24 -> 0.00 | AK90: =+AJ90*E90*1.5*86.4 -> 0.00
C91: LINA ROSA Y OTROS | AJ91: LT= | AK91: =+E90*1.5 -> 6.00
A92: 4F006A | B92: L2A | C92: CARDENAS HEREDIA | E92: 5.00 | F92: =+IF(ISNUMBER(F93),$E92*1.5,IF(F93="","",F93)) ->  | AJ92: =+SUM(F93:AI93)/24 -> 0.00 | AK92: =+AJ92*E92*1.5*86.4 -> 0.00
C93: PAULINO | AJ93: LT= | AK93: =+E92*1.5 -> 7.50
A94: 4F006B | B94: L2A | C94: RAMIREZ MAYORGA | E94: 5.08 | F94: =+IF(ISNUMBER(F95),$E94*1.5,IF(F95="","",F95)) ->  | AJ94: =+SUM(F95:AI95)/24 -> 0.00 | AK94: =+AJ94*E94*1.5*86.4 -> 0.00
C95: CRISTINIANO | AJ95: LT= | AK95: =+E94*1.5 -> 7.62
A96: 4F006C | B96: L2A | C96: ATUESTA ORTEGA | E96: 5.00 | F96: =+IF(ISNUMBER(F97),$E96*1.5,IF(F97="","",F97)) ->  | AJ96: =+SUM(F97:AI97)/24 -> 0.00 | AK96: =+AJ96*E96*1.5*86.4 -> 0.00
C97: MIGUEL ANGEL | AJ97: LT= | AK97: =+E96*1.5 -> 7.50
A98: 4F006D | B98: L2A | C98: SERNA GARCIA | E98: 5.00 | F98: =+IF(ISNUMBER(F99),$E98*1.5,IF(F99="","",F99)) ->  | AJ98: =+SUM(F99:AI99)/24 -> 0.00 | AK98: =+AJ98*E98*1.5*86.4 -> 0.00
C99: CESARIO ANTONIO | AJ99: LT= | AK99: =+E98*1.5 -> 7.50
A100: 4F006E | B100: L2A | C100: SERNA GARCIA | E100: 5.00 | F100: =+IF(ISNUMBER(F101),$E100*1.5,IF(F101="","",F101)) ->  | AJ100: =+SUM(F101:AI101)/24 -> 0.00 | AK100: =+AJ100*E100*1.5*86.4 -> 0.00
C101: CESARIO ANTONIO | AJ101: LT= | AK101: =+E100*1.5 -> 7.50
A102: 4F006F | B102: L2A | C102: CAICEDO GALVIS | E102: 5.00 | F102: =+IF(ISNUMBER(F103),$E102*1.5,IF(F103="","",F103)) ->  | AJ102: =+SUM(F103:AI103)/24 -> 0.00 | AK102: =+AJ102*E102*1.5*86.4 -> 0.00
C103: ELIECER Y OTRO | AJ103: LT= | AK103: =+E102*1.5 -> 7.50
A104: 4F006G | B104: L2A | C104: GARCIA | E104: 5.00 | F104: =+IF(ISNUMBER(F105),$E104*1.5,IF(F105="","",F105)) ->  | AJ104: =+SUM(F105:AI105)/24 -> 0.00 | AK104: =+AJ104*E104*1.5*86.4 -> 0.00
C105: LINA ROSA Y OTROS | AJ105: LT= | AK105: =+E104*1.5 -> 7.50
A106: 4F006H | B106: L2A | C106: VALENCIA MEJIA | E106: 4.50 | F106: =+IF(ISNUMBER(F107),$E106*1.5,IF(F107="","",F107)) ->  | AJ106: =+SUM(F107:AI107)/24 -> 0.00 | AK106: =+AJ106*E106*1.5*86.4 -> 0.00
C107: WILSON | AJ107: LT= | AK107: =+E106*1.5 -> 6.75
A108: 4F006I | B108: L2A | C108: BALLESTEROS | E108: 4.70 | F108: =+IF(ISNUMBER(F109),$E108*1.5,IF(F109="","",F109)) ->  | AJ108: =+SUM(F109:AI109)/24 -> 0.00 | AK108: =+AJ108*E108*1.5*86.4 -> 0.00
C109: LUCIANO | AJ109: LT= | AK109: =+E108*1.5 -> 7.05
A110: 4F006J | B110: L2A | C110: CUERO PEREZ | E110: 5.00 | F110: =+IF(ISNUMBER(F111),$E110*1.5,IF(F111="","",F111)) ->  | AJ110: =+SUM(F111:AI111)/24 -> 0.00 | AK110: =+AJ110*E110*1.5*86.4 -> 0.00
C111: YESENIA | AJ111: LT= | AK111: =+E110*1.5 -> 7.50
A112: 4F006L | B112: L2A | C112: FLOREZ FLOREZ | E112: 4.75 | F112: =+IF(ISNUMBER(F113),$E112*1.5,IF(F113="","",F113)) ->  | AJ112: =+SUM(F113:AI113)/24 -> 0.00 | AK112: =+AJ112*E112*1.5*86.4 -> 0.00
C113: MANUEL | AJ113: LT= | AK113: =+E112*1.5 -> 7.13
A114: 4F006K | B114: L2A | C114: GUARIN | E114: 5.00 | F114: =+IF(ISNUMBER(F115),$E114*1.5,IF(F115="","",F115)) ->  | AJ114: =+SUM(F115:AI115)/24 -> 0.00 | AK114: =+AJ114*E114*1.5*86.4 -> 0.00
C115: LUIS ENRIQUE | AJ115: LT= | AK115: =+E114*1.5 -> 7.50
A116: 4F006N | B116: L2A | C116: ATUESTA ORTEGA | E116: 5.00 | F116: =+IF(ISNUMBER(F117),$E116*1.5,IF(F117="","",F117)) ->  | AJ116: =+SUM(F117:AI117)/24 -> 0.00 | AK116: =+AJ116*E116*1.5*86.4 -> 0.00
C117: MIGUEL ANGEL | AJ117: LT= | AK117: =+E116*1.5 -> 7.50
A118: 4F006O | B118: L2A | C118: GUZMAN NIETO | E118: 5.18 | F118: =+IF(ISNUMBER(F119),$E118*1.5,IF(F119="","",F119)) ->  | AJ118: =+SUM(F119:AI119)/24 -> 0.00 | AK118: =+AJ118*E118*1.5*86.4 -> 0.00
C119: JULIO CESAR | AJ119: LT= | AK119: =+E118*1.5 -> 7.77
A120: 4F006M | B120: L2A | C120: FIGUEROA PINZON | E120: 5.00 | F120: =+IF(ISNUMBER(F121),$E120*1.5,IF(F121="","",F121)) ->  | AJ120: =+SUM(F121:AI121)/24 -> 0.00 | AK120: =+AJ120*E120*1.5*86.4 -> 0.00
C121: FLORENTINO | AJ121: LT= | AK121: =+E120*1.5 -> 7.50
A122: 4F008A | B122: L2A | C122: RIVERA MORENO | E122: 8.25 | F122: =+IF(ISNUMBER(F123),$E122*1.5,IF(F123="","",F123)) ->  | AJ122: =+SUM(F123:AI123)/24 -> 0.00 | AK122: =+AJ122*E122*1.5*86.4 -> 0.00
C123: VICTOR EDUARDO | AJ123: LT= | AK123: =+E122*1.5 -> 12.38
A124: 4F008C | B124: L2A | C124: GARCIA CACERES | E124: 9.00 | F124: =+IF(ISNUMBER(F125),$E124*1.5,IF(F125="","",F125)) ->  | AJ124: =+SUM(F125:AI125)/24 -> 0.00 | AK124: =+AJ124*E124*1.5*86.4 -> 0.00
C125: PEDRO ENOG | AJ125: LT= | AK125: =+E124*1.5 -> 13.50
A126: 4F008F | B126: L2A | C126: ENCINALES ACOSTA | E126: 5.00 | F126: =+IF(ISNUMBER(F127),$E126*1.5,IF(F127="","",F127)) ->  | AJ126: =+SUM(F127:AI127)/24 -> 0.00 | AK126: =+AJ126*E126*1.5*86.4 -> 0.00
C127: STELLA | AJ127: LT= | AK127: =+E126*1.5 -> 7.50
A128: 4F008E | B128: L2A | C128: CASTILLO ARIAS | E128: 3.28 | F128: =+IF(ISNUMBER(F129),$E128*1.5,IF(F129="","",F129)) ->  | AJ128: =+SUM(F129:AI129)/24 -> 0.00 | AK128: =+AJ128*E128*1.5*86.4 -> 0.00
C129: GLADYS ELENA | AJ129: LT= | AK129: =+E128*1.5 -> 4.92
A130: 4F008D | B130: L2A | C130: SILVA CARRILLO | E130: 8.00 | F130: =+IF(ISNUMBER(F131),$E130*1.5,IF(F131="","",F131)) ->  | AJ130: =+SUM(F131:AI131)/24 -> 0.00 | AK130: =+AJ130*E130*1.5*86.4 -> 0.00
C131: DORA BETTY | AJ131: LT= | AK131: =+E130*1.5 -> 12.00
A132: 4F008B | B132: L2A | C132: OBESO VARGAS | E132: 6.50 | F132: =+IF(ISNUMBER(F133),$E132*1.5,IF(F133="","",F133)) ->  | AJ132: =+SUM(F133:AI133)/24 -> 0.00 | AK132: =+AJ132*E132*1.5*86.4 -> 0.00
C133: BENJAMIN Y OTRO | AJ133: LT= | AK133: =+E132*1.5 -> 9.75
A134: 4F008G | B134: L2A | C134: OBESO VARGAS | E134: 2.50 | F134: =+IF(ISNUMBER(F135),$E134*1.5,IF(F135="","",F135)) ->  | AJ134: =+SUM(F135:AI135)/24 -> 0.00 | AK134: =+AJ134*E134*1.5*86.4 -> 0.00
C135: BENJAMIN Y OTRO | AJ135: LT= | AK135: =+E134*1.5 -> 3.75
A136: 4F005 | B136: PR | C136: CONTRERAS MONTES | E136: 10.00 | F136: =+IF(ISNUMBER(F137),$E136*1.5,IF(F137="","",F137)) ->  | AJ136: =+SUM(F137:AI137)/24 -> 0.00 | AK136: =+AJ136*E136*1.5*86.4 -> 0.00
C137: ANIANO | AJ137: LT= | AK137: =+E136*1.5 -> 15.00
A138: 4F366 | B138: PR | C138: OROZCO ALTAMIRANDA | E138: 7.00 | F138: =+IF(ISNUMBER(F139),$E138*1.5,IF(F139="","",F139)) ->  | AJ138: =+SUM(F139:AI139)/24 -> 0.00 | AK138: =+AJ138*E138*1.5*86.4 -> 0.00
C139: ALBERTO E. | AJ139: LT= | AK139: =+E138*1.5 -> 10.50
A140: 4F009 | B140: PR | C140: ANAYA VARGAS | E140: 11.23 | F140: =+IF(ISNUMBER(F141),$E140*1.5,IF(F141="","",F141)) ->  | AJ140: =+SUM(F141:AI141)/24 -> 0.00 | AK140: =+AJ140*E140*1.5*86.4 -> 0.00
C141: FERMINA | AJ141: LT= | AK141: =+E140*1.5 -> 16.85
A142: 4F009C | B142: PR | C142: ORDUZ LANDINEZ | E142: 11.00 | F142: =+IF(ISNUMBER(F143),$E142*1.5,IF(F143="","",F143)) ->  | AJ142: =+SUM(F143:AI143)/24 -> 0.00 | AK142: =+AJ142*E142*1.5*86.4 -> 0.00
C143: EVELIA | AJ143: LT= | AK143: =+E142*1.5 -> 16.50
A144: 4F009A | B144: PR | C144: VALENCIA MEJIA | E144: 11.13 | F144: =+IF(ISNUMBER(F145),$E144*1.5,IF(F145="","",F145)) ->  | AJ144: =+SUM(F145:AI145)/24 -> 0.00 | AK144: =+AJ144*E144*1.5*86.4 -> 0.00
C145: WILSON | AJ145: LT= | AK145: =+E144*1.5 -> 16.70
A146: 4F009B | B146: PR | C146: CONTRERAS ORTEGA | E146: 11.12 | F146: =+IF(ISNUMBER(F147),$E146*1.5,IF(F147="","",F147)) ->  | AJ146: =+SUM(F147:AI147)/24 -> 0.00 | AK146: =+AJ146*E146*1.5*86.4 -> 0.00
C147: PEDRO ANTONIO | AJ147: LT= | AK147: =+E146*1.5 -> 16.68
A148: 4F361 | B148: PR | C148: OROZCO ALTAMIRANDA | E148: 7.27 | F148: =+IF(ISNUMBER(F149),$E148*1.5,IF(F149="","",F149)) ->  | AJ148: =+SUM(F149:AI149)/24 -> 0.00 | AK148: =+AJ148*E148*1.5*86.4 -> 0.00
C149: ALBERTO E. | AJ149: LT= | AK149: =+E148*1.5 -> 10.91
A150: 4F013 | B150: PR | C150: CONTRERAS | E150: 17.30 | F150: =+IF(ISNUMBER(F151),$E150*1.5,IF(F151="","",F151)) ->  | AJ150: =+SUM(F151:AI151)/24 -> 0.00 | AK150: =+AJ150*E150*1.5*86.4 -> 0.00
A151: E | C151: MONTES ANIANO | AJ151: LT= | AK151: =+E150*1.5 -> 25.95
A152: 4F014C | B152: L3 | C152: AGUILAR REYES | E152: 7.00 | F152: =+IF(ISNUMBER(F153),$E152*1.5,IF(F153="","",F153)) ->  | AJ152: =+SUM(F153:AI153)/24 -> 0.00 | AK152: =+AJ152*E152*1.5*86.4 -> 0.00
C153: DANIEL ALEXANDER | AJ153: LT= | AK153: =+E152*1.5 -> 10.50
A154: 4F014A | B154: L3 | C154: UMAÑA PEREZ | E154: 8.58 | F154: =+IF(ISNUMBER(F155),$E154*1.5,IF(F155="","",F155)) ->  | AJ154: =+SUM(F155:AI155)/24 -> 0.00 | AK154: =+AJ154*E154*1.5*86.4 -> 0.00
C155: CESAR AUGUSTO | AJ155: LT= | AK155: =+E154*1.5 -> 12.87
A156: 4F010 | B156: L3 | C156: CARRILLO MARTINEZ | E156: 20.00 | F156: =+IF(ISNUMBER(F157),$E156*1.5,IF(F157="","",F157)) ->  | AJ156: =+SUM(F157:AI157)/24 -> 0.00 | AK156: =+AJ156*E156*1.5*86.4 -> 0.00
C157: SAMUEL | AJ157: LT= | AK157: =+E156*1.5 -> 30.00
A158: 4F010A | B158: L3 | C158: CARRILLO MARTINEZ | E158: 11.00 | F158: =+IF(ISNUMBER(F159),$E158*1.5,IF(F159="","",F159)) ->  | AJ158: =+SUM(F159:AI159)/24 -> 0.00 | AK158: =+AJ158*E158*1.5*86.4 -> 0.00
C159: SAMUEL | AJ159: LT= | AK159: =+E158*1.5 -> 16.50
A160: 4F010A | B160: L3 | C160: CARRILLO MARTINEZ | E160: 11.10 | F160: =+IF(ISNUMBER(F161),$E160*1.5,IF(F161="","",F161)) ->  | AJ160: =+SUM(F161:AI161)/24 -> 0.00 | AK160: =+AJ160*E160*1.5*86.4 -> 0.00
C161: SAMUEL | AJ161: LT= | AK161: =+E160*1.5 -> 16.65
A162: 4F014D | B162: L3 | C162: AGUILAR BARRIENTOS | E162: 7.00 | F162: =+IF(ISNUMBER(F163),$E162*1.5,IF(F163="","",F163)) ->  | AJ162: =+SUM(F163:AI163)/24 -> 0.00 | AK162: =+AJ162*E162*1.5*86.4 -> 0.00
C163: OMAR | AJ163: LT= | AK163: =+E162*1.5 -> 10.50
A164: 4F014B | B164: L3 | C164: BABILONIA RAMOS | E164: 8.00 | F164: =+IF(ISNUMBER(F165),$E164*1.5,IF(F165="","",F165)) ->  | AJ164: =+SUM(F165:AI165)/24 -> 0.00 | AK164: =+AJ164*E164*1.5*86.4 -> 0.00
C165: INDULFO MANUEL | AJ165: LT= | AK165: =+E164*1.5 -> 12.00
A166: 4F011 | B166: L3 | C166: PALENCIA DE GARCIA | E166: 7.00 | F166: =+IF(ISNUMBER(F167),$E166*1.5,IF(F167="","",F167)) ->  | AJ166: =+SUM(F167:AI167)/24 -> 0.00 | AK166: =+AJ166*E166*1.5*86.4 -> 0.00
C167: ALIX MARIA | AJ167: LT= | AK167: =+E166*1.5 -> 10.50
A168: 4F011A | B168: L3 | C168: PALENCIA DE GARCIA | E168: 33.00 | F168: =+IF(ISNUMBER(F169),$E168*1.5,IF(F169="","",F169)) ->  | AJ168: =+SUM(F169:AI169)/24 -> 0.00 | AK168: =+AJ168*E168*1.5*86.4 -> 0.00
C169: ALIX MARIA | AJ169: LT= | AK169: =+E168*1.5 -> 49.50
A170: 4F014E | B170: L3 | C170: FORI MONCADA | E170: 6.90 | F170: =+IF(ISNUMBER(F171),$E170*1.5,IF(F171="","",F171)) ->  | AJ170: =+SUM(F171:AI171)/24 -> 0.00 | AK170: =+AJ170*E170*1.5*86.4 -> 0.00
C171: JOSE ALFREDO Y OT | AJ171: LT= | AK171: =+E170*1.5 -> 10.35
A172: 4F029 | B172: L3 | C172: RUIZ RAMIREZ | E172: 18.63 | F172: =+IF(ISNUMBER(F173),$E172*1.5,IF(F173="","",F173)) ->  | AJ172: =+SUM(F173:AI173)/24 -> 0.00 | AK172: =+AJ172*E172*1.5*86.4 -> 0.00
C173: NELSON ENRRIQUE | AJ173: LT= | AK173: =+E172*1.5 -> 27.95
A174: 4F014F | B174: L3 | C174: RIVERO GONZALEZ | E174: 1.00 | F174: =+IF(ISNUMBER(F175),$E174*1.5,IF(F175="","",F175)) ->  | AJ174: =+SUM(F175:AI175)/24 -> 0.00 | AK174: =+AJ174*E174*1.5*86.4 -> 0.00
C175: HERIBERTO | AJ175: LT= | AK175: =+E174*1.5 -> 1.50
A176: 4F030 | B176: L3 | C176: VARGAS RIVERA | E176: 4.96 | F176: =+IF(ISNUMBER(F177),$E176*1.5,IF(F177="","",F177)) ->  | AJ176: =+SUM(F177:AI177)/24 -> 0.00 | AK176: =+AJ176*E176*1.5*86.4 -> 0.00
C177: RAMIRO ANTONIO | AJ177: LT= | AK177: =+E176*1.5 -> 7.44
A178: 4F015 | B178: L3 | C178: PALENCIA DE GARCIA | E178: 25.00 | F178: =+IF(ISNUMBER(F179),$E178*1.5,IF(F179="","",F179)) ->  | AJ178: =+SUM(F179:AI179)/24 -> 0.00 | AK178: =+AJ178*E178*1.5*86.4 -> 0.00
C179: ALIX MARIA | AJ179: LT= | AK179: =+E178*1.5 -> 37.50
A180: 4F015A | B180: L3 | C180: PALENCIA DE GARCIA | E180: 31.00 | F180: =+IF(ISNUMBER(F181),$E180*1.5,IF(F181="","",F181)) ->  | AJ180: =+SUM(F181:AI181)/24 -> 0.00 | AK180: =+AJ180*E180*1.5*86.4 -> 0.00
C181: ALIX MARIA | AJ181: LT= | AK181: =+E180*1.5 -> 46.50
A182: 4F012A | B182: L3 | C182: GOMEZ AGREDO | E182: 7.12 | F182: =+IF(ISNUMBER(F183),$E182*1.5,IF(F183="","",F183)) ->  | AJ182: =+SUM(F183:AI183)/24 -> 0.00 | AK182: =+AJ182*E182*1.5*86.4 -> 0.00
C183: HERIBERTO | AJ183: LT= | AK183: =+E182*1.5 -> 10.68
A184: 4F012C | B184: L3 | C184: CONTRERAS ROJAS | E184: 7.33 | F184: =+IF(ISNUMBER(F185),$E184*1.5,IF(F185="","",F185)) ->  | AJ184: =+SUM(F185:AI185)/24 -> 0.00 | AK184: =+AJ184*E184*1.5*86.4 -> 0.00
C185: CARMEN | AJ185: LT= | AK185: =+E184*1.5 -> 11.00
A186: 4F012B | B186: L3 | C186: ROJAS SANTOS | E186: 6.00 | F186: =+IF(ISNUMBER(F187),$E186*1.5,IF(F187="","",F187)) ->  | AJ186: =+SUM(F187:AI187)/24 -> 0.00 | AK186: =+AJ186*E186*1.5*86.4 -> 0.00
C187: ELIODORO | AJ187: LT= | AK187: =+E186*1.5 -> 9.00
A188: 4F020 | B188: L3A | C188: OROZCO ALTAMIRANDA | E188: 10.46 | F188: =+IF(ISNUMBER(F189),$E188*1.5,IF(F189="","",F189)) ->  | AJ188: =+SUM(F189:AI189)/24 -> 0.00 | AK188: =+AJ188*E188*1.5*86.4 -> 0.00
C189: ALBERTO E. | AJ189: LT= | AK189: =+E188*1.5 -> 15.69
A190: 4F019 | B190: L3A | C190: RUIZ RAMIREZ | E190: 10.25 | F190: =+IF(ISNUMBER(F191),$E190*1.5,IF(F191="","",F191)) ->  | AJ190: =+SUM(F191:AI191)/24 -> 0.00 | AK190: =+AJ190*E190*1.5*86.4 -> 0.00
C191: NELSON ENRRIQUE | AJ191: LT= | AK191: =+E190*1.5 -> 15.38
A192: 4F017 | B192: L3A | C192: BAUTISTA OSORIO | E192: 10.60 | F192: =+IF(ISNUMBER(F193),$E192*1.5,IF(F193="","",F193)) ->  | AJ192: =+SUM(F193:AI193)/24 -> 0.00 | AK192: =+AJ192*E192*1.5*86.4 -> 0.00
C193: GLADYS CECILIA | AJ193: LT= | AK193: =+E192*1.5 -> 15.90
A194: 4F028 | B194: L3A | C194: MARQUEZ CARDENAS | E194: 13.06 | F194: =+IF(ISNUMBER(F195),$E194*1.5,IF(F195="","",F195)) ->  | AJ194: =+SUM(F195:AI195)/24 -> 0.00 | AK194: =+AJ194*E194*1.5*86.4 -> 0.00
C195: MARTHA CECILIA | AJ195: LT= | AK195: =+E194*1.5 -> 19.59
A196: 4F027 | B196: L3A | C196: REYES VILLALTA | E196: 6.00 | F196: =+IF(ISNUMBER(F197),$E196*1.5,IF(F197="","",F197)) ->  | AJ196: =+SUM(F197:AI197)/24 -> 0.00 | AK196: =+AJ196*E196*1.5*86.4 -> 0.00
C197: MARIELA | AJ197: LT= | AK197: =+E196*1.5 -> 9.00
A198: 4F027A | B198: L3A | C198: REYES VILLALTA | E198: 8.36 | F198: =+IF(ISNUMBER(F199),$E198*1.5,IF(F199="","",F199)) ->  | AJ198: =+SUM(F199:AI199)/24 -> 0.00 | AK198: =+AJ198*E198*1.5*86.4 -> 0.00
C199: MARIELA | AJ199: LT= | AK199: =+E198*1.5 -> 12.54
A200: 4F036 | B200: PR | C200: SANABRIA OMAÑA | E200: 0.50 | F200: =+IF(ISNUMBER(F201),$E200*1.5,IF(F201="","",F201)) ->  | AJ200: =+SUM(F201:AI201)/24 -> 0.00 | AK200: =+AJ200*E200*1.5*86.4 -> 0.00
C201: MARIA DEL ROSARIO | AJ201: LT= | AK201: =+E200*1.5 -> 0.75
... 46 more rows

Sheet OCTUBRE
A1: ASOCIACION DE USUARIOS DISTRITO DE ADECUACION DE TIERRAS DE GRAN ESCALA DEL RIO ZULIA ASOZULIA NIT 800,168,858-6 | AJ1: CODIGO: DTE-OPER-FR-01
AJ2: VERSION: 01
A3: CONTROL DIARIO DE RIEGO POR PREDIO Y CANAL | AJ3: FECHA: 16/06/2023
A5: ZONA | B5: RESTAURACIÓN | E5: AUXILIAR DE RIEGO | J5: EDWIN JAIR ZAMORA CHACON | S5: CANAL | AF5: MES | AG5: OCTUBRE | AK5: AÑO | AL5: 2023
A6: CAUDAL DIARIO DERIVADO | E6: DIAS | F6: 1 | G6: 2 | H6: 3 | I6: 4 | J6: 5 | K6: 6 | L6: 7 | M6: 8 | N6: 9 | O6: 10 | P6: 11 | Q6: 12 | R6: 13 | S6: 14 | T6: 15 | U6: 16 | V6: 17 | W6: 18 | X6: 19 | Y6: 20 | Z6: 21 | AA6: 22 | AB6: 23 | AC6: 24 | AD6: 25 | AE6: 26 | AF6: 27 | AG6: 28 | AH6: 29 | AI6: 30 | AJ6: 31 | AK6: TOTAL DIAS | AL6: TOTAL M3
A7: CODIGO | B7: RAMAL | C7: USUARIO | D7: T.CULT | E7: AREA
A8: 4F300 | B8: PR | C8: BELTRAN GARCIA | D8: CA | E8: 30.00 | F8: =+IF(ISNUMBER(F9),$E8*1.5,IF(F9="","",F9)) ->  | G8: =+IF(ISNUMBER(G9),$E8*1.5,IF(G9="","",G9)) ->  | H8: FR | I8: 45.0 | J8: 45.0 | K8: 45.0 | L8: 45.0 | M8: 45.0 | N8: IC | Q8: =+IF(ISNUMBER(Q9),$E8*1.5,IF(Q9="","",Q9)) ->  | AK8: =+SUM(F9:AJ9)/24 -> 0.83 | AL8: =+AK8*E8*1.5*86.4 -> 3240.00 | AN8: FC
C9: LUIS | H9: FR | I9: 1 | J9: 2 | K9: 3 | L9: 4 | M9: 10 | N9: IC | AK9: LT= | AL9: =+E8*1.5 -> 45.00 | AN9: IC
A10: 4F350 | B10: PR | C10: VILLARREAL OSORIO | E10: 17.53 | F10: =+IF(ISNUMBER(F11),$E10*1.5,IF(F11="","",F11)) ->  | AK10: =+SUM(F11:AJ11)/24 -> 0.00 | AL10: =+AK10*E10*1.5*86.4 -> 0.00 | AN10: FR
C11: CLEMENTE | AK11: LT= | AL11: =+E10*1.5 -> 26.30 | AN11: IR
A12: 4F340 | B12: PR | C12: SANTANA CORTES | E12: 8.00 | F12: =+IF(ISNUMBER(F13),$E12*1.5,IF(F13="","",F13)) ->  | X12: 12.0 | Y12: 12.0 | Z12: 12.0 | AA12: FC | AC12: IC1 | AK12: =+SUM(F13:AJ13)/24 -> 1.25 | AL12: =+AK12*E12*1.5*86.4 -> 1296.00 | AN12: SR
C13: JOSE DOMINGO | X13: 10 | Y13: 10 | Z13: 10 | AA13: FC | AC13: IC1 | AK13: LT= | AL13: =+E12*1.5 -> 12.00 | AN13: RR
A14: 4F338 | B14: PR | C14: RIOS SUESCUN | E14: 8.75 | F14: =+IF(ISNUMBER(F15),$E14*1.5,IF(F15="","",F15)) ->  | AK14: =+SUM(F15:AJ15)/24 -> 0.00 | AL14: =+AK14*E14*1.5*86.4 -> 0.00 | AN14: ID
C15: MARIA LUCIA | AK15: LT= | AL15: =+E14*1.5 -> 13.13 | AN15: IC1
A16: 4F330 | B16: PR | C16: RIAÑO RAMIREZ | E16: 12.06 | F16: =+IF(ISNUMBER(F17),$E16*1.5,IF(F17="","",F17)) ->  | AK16: =+SUM(F17:AJ17)/24 -> 0.00 | AL16: =+AK16*E16*1.5*86.4 -> 0.00
C17: MARIA VICTORIA | AK17: LT= | AL17: =+E16*1.5 -> 18.09
A18: 4F320 | B18: PR | C18: RIAÑO VALDERRAMA | E18: 5.29 | F18: =+IF(ISNUMBER(F19),$E18*1.5,IF(F19="","",F19)) ->  | AK18: =+SUM(F19:AJ19)/24 -> 0.00 | AL18: =+AK18*E18*1.5*86.4 -> 0.00
C19: FREDDY ALEXANDER | AK19: LT= | AL19: =+E18*1.5 -> 7.94
A20: 4F320A | B20: PR | C20: RIAÑO VALDERRAMA | E20: 5.29 | F20: =+IF(ISNUMBER(F21),$E20*1.5,IF(F21="","",F21)) ->  | AK20: =+SUM(F21:AJ21)/24 -> 0.00 | AL20: =+AK20*E20*1.5*86.4 -> 0.00
C21: JENNY MARITZA | AK21: LT= | AL21: =+E20*1.5 -> 7.94
A22: 4F320B | B22: PR | C22: RIAÑO VALDERRAMA | E22: 4.14 | F22: =+IF(ISNUMBER(F23),$E22*1.5,IF(F23="","",F23)) ->  | AK22: =+SUM(F23:AJ23)/24 -> 0.00 | AL22: =+AK22*E22*1.5*86.4 -> 0.00
C23: FLOR LILIANA | AK23: LT= | AL23: =+E22*1.5 -> 6.21
A24: 4F320C | B24: PR | C24: RIAÑO VALDERRAMA | E24: 4.14 | F24: =+IF(ISNUMBER(F25),$E24*1.5,IF(F25="","",F25)) ->  | AK24: =+SUM(F25:AJ25)/24 -> 0.00 | AL24: =+AK24*E24*1.5*86.4 -> 0.00
C25: CIRO PASTOR | AK25: LT= | AL25: =+E24*1.5 -> 6.21
A26: 4F341 | B26: PR | C26: ORTEGA MORA | E26: 8.46 | F26: =+IF(ISNUMBER(F27),$E26*1.5,IF(F27="","",F27)) ->  | AK26: =+SUM(F27:AJ27)/24 -> 0.00 | AL26: =+AK26*E26*1.5*86.4 -> 0.00
C27: JOSE DEL CARMEN | AK27: LT= | AL27: =+E26*1.5 -> 12.69
A28: 4F319 | B28: PR | C28: SANTANA CORTES | E28: 26.50 | F28: =+IF(ISNUMBER(F29),$E28*1.5,IF(F29="","",F29)) ->  | AK28: =+SUM(F29:AJ29)/24 -> 0.00 | AL28: =+AK28*E28*1.5*86.4 -> 0.00
C29: ELVIA Y OTROS | AK29: LT= | AL29: =+E28*1.5 -> 39.75
A30: 4F314 | B30: PR | C30: GONZALEZ GIRON | E30: 3.00 | F30: =+IF(ISNUMBER(F31),$E30*1.5,IF(F31="","",F31)) ->  | AK30: =+SUM(F31:AJ31)/24 -> 0.00 | AL30: =+AK30*E30*1.5*86.4 -> 0.00
C31: EVELIO | AK31: LT= | AL31: =+E30*1.5 -> 4.50
A32: 4F035 | B32: PR | C32: VALDERRAMA CARDENAS | E32: 11.54 | F32: =+IF(ISNUMBER(F33),$E32*1.5,IF(F33="","",F33)) ->  | AK32: =+SUM(F33:AJ33)/24 -> 0.00 | AL32: =+AK32*E32*1.5*86.4 -> 0.00
C33: GUILLERMO Y OTROS | AK33: LT= | AL33: =+E32*1.5 -> 17.31
A34: 4F329B | B34: PR | C34: MARIN ZAPATA | E34: 7.00 | F34: =+IF(ISNUMBER(F35),$E34*1.5,IF(F35="","",F35)) ->  | AK34: =+SUM(F35:AJ35)/24 -> 0.00 | AL34: =+AK34*E34*1.5*86.4 -> 0.00
C35: ABELARDO ANTONIO | AK35: LT= | AL35: =+E34*1.5 -> 10.50
A36: 4F346 | B36: PR | C36: CASTELLANOS TARAZONA | E36: 10.00 | F36: =+IF(ISNUMBER(F37),$E36*1.5,IF(F37="","",F37)) ->  | AK36: =+SUM(F37:AJ37)/24 -> 0.00 | AL36: =+AK36*E36*1.5*86.4 -> 0.00
C37: JOSE DARIO | AK37: LT= | AL37: =+E36*1.5 -> 15.00
A38: 4F315 | B38: PR | C38: VILLARREAL OSORIO | E38: 12.23 | F38: =+IF(ISNUMBER(F39),$E38*1.5,IF(F39="","",F39)) ->  | AK38: =+SUM(F39:AJ39)/24 -> 0.00 | AL38: =+AK38*E38*1.5*86.4 -> 0.00
C39: EDILSON | AK39: LT= | AL39: =+E38*1.5 -> 18.35
A40: 4F001A | B40: L2 | C40: MARQUEZ CARDENAS | E40: 12.00 | F40: =+IF(ISNUMBER(F41),$E40*1.5,IF(F41="","",F41)) ->  | AK40: =+SUM(F41:AJ41)/24 -> 0.00 | AL40: =+AK40*E40*1.5*86.4 -> 0.00
C41: MARTHA CECILIA | AK41: LT= | AL41: =+E40*1.5 -> 18.00
A42: 4F001 | B42: L2 | C42: MARQUEZ CARDENAS | E42: 13.00 | F42: =+IF(ISNUMBER(F43),$E42*1.5,IF(F43="","",F43)) ->  | AK42: =+SUM(F43:AJ43)/24 -> 0.00 | AL42: =+AK42*E42*1.5*86.4 -> 0.00
C43: MARTHA CECILIA | AK43: LT= | AL43: =+E42*1.5 -> 19.50
A44: 4F031 | B44: L2 | C44: LERMA DIAZ | E44: 4.70 | F44: =+IF(ISNUMBER(F45),$E44*1.5,IF(F45="","",F45)) ->  | AK44: =+SUM(F45:AJ45)/24 -> 0.00 | AL44: =+AK44*E44*1.5*86.4 -> 0.00
C45: RAFAEL JULIO | AK45: LT= | AL45: =+E44*1.5 -> 7.05
A46: 4F031A | B46: L2 | C46: RIAÑO RAMIREZ | E46: 2.90 | F46: =+IF(ISNUMBER(F47),$E46*1.5,IF(F47="","",F47)) ->  | AK46: =+SUM(F47:AJ47)/24 -> 0.00 | AL46: =+AK46*E46*1.5*86.4 -> 0.00
C47: MARIA VICTORIA | AK47: LT= | AL47: =+E46*1.5 -> 4.35
A48: 4F031B | B48: L2 | C48: AREVALO ACEVEDO | E48: 2.30 | F48: =+IF(ISNUMBER(F49),$E48*1.5,IF(F49="","",F49)) ->  | AK48: =+SUM(F49:AJ49)/24 -> 0.00 | AL48: =+AK48*E48*1.5*86.4 -> 0.00
C49: RAMIRO Y OTRO | AK49: LT= | AL49: =+E48*1.5 -> 3.45
A50: 4F031C | B50: L2 | C50: BUSTAMANTE | E50: 3.20 | F50: =+IF(ISNUMBER(F51),$E50*1.5,IF(F51="","",F51)) ->  | AK50: =+SUM(F51:AJ51)/24 -> 0.00 | AL50: =+AK50*E50*1.5*86.4 -> 0.00
C51: JAIME DE J. Y OTRO | AK51: LT= | AL51: =+E50*1.5 -> 4.80
A52: 4F031D | B52: L2 | C52: AREVALO ACEVEDO | E52: 2.80 | F52: =+IF(ISNUMBER(F53),$E52*1.5,IF(F53="","",F53)) ->  | AK52: =+SUM(F53:AJ53)/24 -> 0.00 | AL52: =+AK52*E52*1.5*86.4 -> 0.00
C53: RAMIRO Y OTRO | AK53: LT= | AL53: =+E52*1.5 -> 4.20
A54: 4F031E | B54: L2 | C54: VILLAMIZAR | E54: 2.60 | F54: =+IF(ISNUMBER(F55),$E54*1.5,IF(F55="","",F55)) ->  | AK54: =+SUM(F55:AJ55)/24 -> 0.00 | AL54: =+AK54*E54*1.5*86.4 -> 0.00
C55: MARITZA | AK55: LT= | AL55: =+E54*1.5 -> 3.90
A56: 4F031F | B56: L2 | C56: VILLAMIZAR | E56: 1.50 | F56: =+IF(ISNUMBER(F57),$E56*1.5,IF(F57="","",F57)) ->  | AK56: =+SUM(F57:AJ57)/24 -> 0.00 | AL56: =+AK56*E56*1.5*86.4 -> 0.00
C57: MARITZA | AK57: LT= | AL57: =+E56*1.5 -> 2.25
A58: 4F031G | B58: L2 | C58: SANABRIA | E58: 0.58 | F58: =+IF(ISNUMBER(F59),$E58*1.5,IF(F59="","",F59)) ->  | AK58: =+SUM(F59:AJ59)/24 -> 0.00 | AL58: =+AK58*E58*1.5*86.4 -> 0.00
C59: MIGUEL ANTONIO | AK59: LT= | AL59: =+E58*1.5 -> 0.87
A60: 4F031H | B60: L2 | C60: DIAZ LERMA | E60: 4.00 | F60: =+IF(ISNUMBER(F61),$E60*1.5,IF(F61="","",F61)) ->  | AK60: =+SUM(F61:AJ61)/24 -> 0.00 | AL60: =+AK60*E60*1.5*86.4 -> 0.00
C61: LUIS ADAN | AK61: LT= | AL61: =+E60*1.5 -> 6.00
A62: 4F031I | B62: L2 | C62: CAICEDO GALVIS | E62: 8.60 | F62: =+IF(ISNUMBER(F63),$E62*1.5,IF(F63="","",F63)) ->  | AK62: =+SUM(F63:AJ63)/24 -> 0.00 | AL62: =+AK62*E62*1.5*86.4 -> 0.00
C63: ELIECER Y OTROS | AK63: LT= | AL63: =+E62*1.5 -> 12.90
A64: 4F003 | B64: L2 | C64: MENESES | E64: 9.46 | F64: =+IF(ISNUMBER(F65),$E64*1.5,IF(F65="","",F65)) ->  | AK64: =+SUM(F65:AJ65)/24 -> 0.00 | AL64: =+AK64*E64*1.5*86.4 -> 0.00
C65: POLICARPO | AK65: LT= | AL65: =+E64*1.5 -> 14.19
A66: 4F003A | B66: L2 | C66: ORTEGA RIVERA | E66: 8.26 | F66: =+IF(ISNUMBER(F67),$E66*1.5,IF(F67="","",F67)) ->  | AK66: =+SUM(F67:AJ67)/24 -> 0.00 | AL66: =+AK66*E66*1.5*86.4 -> 0.00
C67: PEDRO MIGUEL | AK67: LT= | AL67: =+E66*1.5 -> 12.39
A68: 4F329A | B68: PR | C68: DIAZ | E68: 3.80 | F68: =+IF(ISNUMBER(F69),$E68*1.5,IF(F69="","",F69)) ->  | AK68: =+SUM(F69:AJ69)/24 -> 0.00 | AL68: =+AK68*E68*1.5*86.4 -> 0.00
C69: ROSALBINA | AK69: LT= | AL69: =+E68*1.5 -> 5.70
A70: 4F329A | B70: PR | C70: DIAZ | E70: 2.00 | F70: =+IF(ISNUMBER(F71),$E70*1.5,IF(F71="","",F71)) ->  | AK70: =+SUM(F71:AJ71)/24 -> 0.00 | AL70: =+AK70*E70*1.5*86.4 -> 0.00
C71: ROSALBINA | AK71: LT= | AL71: =+E70*1.5 -> 3.00
A72: 4F329D | B72: PR | C72: RUBIO | E72: 7.24 | F72: =+IF(ISNUMBER(F73),$E72*1.5,IF(F73="","",F73)) ->  | AK72: =+SUM(F73:AJ73)/24 -> 0.00 | AL72: =+AK72*E72*1.5*86.4 -> 0.00
C73: MARIA EDELMIRA | AK73: LT= | AL73: =+E72*1.5 -> 10.86
A74: 4F329C | B74: PR | C74: MARTINEZ ALARCON | E74: 6.00 | F74: =+IF(ISNUMBER(F75),$E74*1.5,IF(F75="","",F75)) ->  | AK74: =+SUM(F75:AJ75)/24 -> 0.00 | AL74: =+AK74*E74*1.5*86.4 -> 0.00
C75: LUIS ALBERTO | AK75: LT= | AL75: =+E74*1.5 -> 9.00
A76: 4F004D | B76: PR | C76: DUARTE ACEVEDO | E76: 8.33 | F76: =+IF(ISNUMBER(F77),$E76*1.5,IF(F77="","",F77)) ->  | AK76: =+SUM(F77:AJ77)/24 -> 0.00 | AL76: =+AK76*E76*1.5*86.4 -> 0.00
C77: PEDRO Y OTROS | AK77: LT= | AL77: =+E76*1.5 -> 12.50
A78: 4F004A | B78: PR | C78: GARCIA CHONA | E78: 8.92 | F78: =+IF(ISNUMBER(F79),$E78*1.5,IF(F79="","",F79)) ->  | AK78: =+SUM(F79:AJ79)/24 -> 0.00 | AL78: =+AK78*E78*1.5*86.4 -> 0.00
C79: CRUZ DELINA | AK79: LT= | AL79: =+E78*1.5 -> 13.38
A80: 4F004E | B80: PR | C80: ROZO RICO | E80: 5.35 | F80: =+IF(ISNUMBER(F81),$E80*1.5,IF(F81="","",F81)) ->  | AK80: =+SUM(F81:AJ81)/24 -> 0.00 | AL80: =+AK80*E80*1.5*86.4 -> 0.00
C81: JOSE RAMON | AK81: LT= | AL81: =+E80*1.5 -> 8.03
A82: 4F004 | B82: PR | C82: QUINTERO M. | E82: 4.09 | F82: =+IF(ISNUMBER(F83),$E82*1.5,IF(F83="","",F83)) ->  | AK82: =+SUM(F83:AJ83)/24 -> 0.00 | AL82: =+AK82*E82*1.5*86.4 -> 0.00
C83: MIGUEL ANGEL/ OTRO | AK83: LT= | AL83: =+E82*1.5 -> 6.14
A84: 4F004C | B84: PR | C84: MARTINEZ RUBIO | E84: 9.74 | F84: =+IF(ISNUMBER(F85),$E84*1.5,IF(F85="","",F85)) ->  | AK84: =+SUM(F85:AJ85)/24 -> 0.00 | AL84: =+AK84*E84*1.5*86.4 -> 0.00
C85: JOSE LEONSO | AK85: LT= | AL85: =+E84*1.5 -> 14.61
A86: 4F328 | B86: PR | C86: GARCIA CHONA | E86: 9.65 | F86: =+IF(ISNUMBER(F87),$E86*1.5,IF(F87="","",F87)) ->  | AK86: =+SUM(F87:AJ87)/24 -> 0.00 | AL86: =+AK86*E86*1.5*86.4 -> 0.00
C87: CRUZ DELINA | AK87: LT= | AL87: =+E86*1.5 -> 14.48
A88: 4F004B | B88: L2A | C88: PAVA | E88: 8.90 | F88: =+IF(ISNUMBER(F89),$E88*1.5,IF(F89="","",F89)) ->  | AK88: =+SUM(F89:AJ89)/24 -> 0.00 | AL88: =+AK88*E88*1.5*86.4 -> 0.00
C89: LUIS JAVIER Y OTRO | AK89: LT= | AL89: =+E88*1.5 -> 13.35
A90: 4F006 | B90: L2A | C90: GARCIA | E90: 4.00 | F90: =+IF(ISNUMBER(F91),$E90*1.5,IF(F91="","",F91)) ->  | AK90: =+SUM(F91:AJ91)/24 -> 0.00 | AL90: =+AK90*E90*1.5*86.4 -> 0.00
C91: LINA ROSA Y OTROS | AK91: LT= | AL91: =+E90*1.5 -> 6.00
A92: 4F006A | B92: L2A | C92: CARDENAS HEREDIA | E92: 5.00 | F92: =+IF(ISNUMBER(F93),$E92*1.5,IF(F93="","",F93)) ->  | AK92: =+SUM(F93:AJ93)/24 -> 0.00 | AL92: =+AK92*E92*1.5*86.4 -> 0.00
C93: PAULINO | AK93: LT= | AL93: =+E92*1.5 -> 7.50
A94: 4F006B | B94: L2A | C94: RAMIREZ MAYORGA | E94: 5.08 | F94: =+IF(ISNUMBER(F95),$E94*1.5,IF(F95="","",F95)) ->  | AK94: =+SUM(F95:AJ95)/24 -> 0.00 | AL94: =+AK94*E94*1.5*86.4 -> 0.00
C95: CRISTINIANO | AK95: LT= | AL95: =+E94*1.5 -> 7.62
A96: 4F006C | B96: L2A | C96: ATUESTA ORTEGA | E96: 5.00 | F96: =+IF(ISNUMBER(F97),$E96*1.5,IF(F97="","",F97)) ->  | AK96: =+SUM(F97:AJ97)/24 -> 0.00 | AL96: =+AK96*E96*1.5*86.4 -> 0.00
C97: MIGUEL ANGEL | AK97: LT= | AL97: =+E96*1.5 -> 7.50
A98: 4F006D | B98: L2A | C98: SERNA GARCIA | E98: 5.00 | F98: =+IF(ISNUMBER(F99),$E98*1.5,IF(F99="","",F99)) ->  | AK98: =+SUM(F99:AJ99)/24 -> 0.00 | AL98: =+AK98*E98*1.5*86.4 -> 0.00
C99: CESARIO ANTONIO | AK99: LT= | AL99: =+E98*1.5 -> 7.50
A100: 4F006E | B100: L2A | C100: SERNA GARCIA | E100: 5.00 | F100: =+IF(ISNUMBER(F101),$E100*1.5,IF(F101="","",F101)) ->  | AK100: =+SUM(F101:AJ101)/24 -> 0.00 | AL100: =+AK100*E100*1.5*86.4 -> 0.00
C101: CESARIO ANTONIO | AK101: LT= | AL101: =+E100*1.5 -> 7.50
A102: 4F006F | B102: L2A | C102: CAICEDO GALVIS | E102: 5.00 | F102: =+IF(ISNUMBER(F103),$E102*1.5,IF(F103="","",F103)) ->  | AK102: =+SUM(F103:AJ103)/24 -> 0.00 | AL102: =+AK102*E102*1.5*86.4 -> 0.00
C103: ELIECER Y OTRO | AK103: LT= | AL103: =+E102*1.5 -> 7.50
A104: 4F006G | B104: L2A | C104: GARCIA | E104: 5.00 | F104: =+IF(ISNUMBER(F105),$E104*1.5,IF(F105="","",F105)) ->  | AK104: =+SUM(F105:AJ105)/24 -> 0.00 | AL104: =+AK104*E104*1.5*86.4 -> 0.00
C105: LINA ROSA Y OTROS | AK105: LT= | AL105: =+E104*1.5 -> 7.50
A106: 4F006H | B106: L2A | C106: VALENCIA MEJIA | E106: 4.50 | F106: =+IF(ISNUMBER(F107),$E106*1.5,IF(F107="","",F107)) ->  | AK106: =+SUM(F107:AJ107)/24 -> 0.00 | AL106: =+AK106*E106*1.5*86.4 -> 0.00
C107: WILSON | AK107: LT= | AL107: =+E106*1.5 -> 6.75
A108: 4F006I | B108: L2A | C108: BALLESTEROS | E108: 4.70 | F108: =+IF(ISNUMBER(F109),$E108*1.5,IF(F109="","",F109)) ->  | AK108: =+SUM(F109:AJ109)/24 -> 0.00 | AL108: =+AK108*E108*1.5*86.4 -> 0.00
C109: LUCIANO | AK109: LT= | AL109: =+E108*1.5 -> 7.05
A110: 4F006J | B110: L2A | C110: CUERO PEREZ | E110: 5.00 | F110: =+IF(ISNUMBER(F111),$E110*1.5,IF(F111="","",F111)) ->  | AK110: =+SUM(F111:AJ111)/24 -> 0.00 | AL110: =+AK110*E110*1.5*86.4 -> 0.00
C111: YESENIA | AK111: LT= | AL111: =+E110*1.5 -> 7.50
A112: 4F006L | B112: L2A | C112: FLOREZ FLOREZ | E112: 4.75 | F112: =+IF(ISNUMBER(F113),$E112*1.5,IF(F113="","",F113)) ->  | AK112: =+SUM(F113:AJ113)/24 -> 0.00 | AL112: =+AK112*E112*1.5*86.4 -> 0.00
C113: MANUEL | AK113: LT= | AL113: =+E112*1.5 -> 7.13
A114: 4F006K | B114: L2A | C114: GUARIN | E114: 5.00 | F114: =+IF(ISNUMBER(F115),$E114*1.5,IF(F115="","",F115)) ->  | AK114: =+SUM(F115:AJ115)/24 -> 0.00 | AL114: =+AK114*E114*1.5*86.4 -> 0.00
C115: LUIS ENRIQUE | AK115: LT= | AL115: =+E114*1.5 -> 7.50
A116: 4F006N | B116: L2A | C116: ATUESTA ORTEGA | E116: 5.00 | F116: =+IF(ISNUMBER(F117),$E116*1.5,IF(F117="","",F117)) ->  | AK116: =+SUM(F117:AJ117)/24 -> 0.00 | AL116: =+AK116*E116*1.5*86.4 -> 0.00
C117: MIGUEL ANGEL | AK117: LT= | AL117: =+E116*1.5 -> 7.50
A118: 4F006O | B118: L2A | C118: GUZMAN NIETO | E118: 5.18 | F118: =+IF(ISNUMBER(F119),$E118*1.5,IF(F119="","",F119)) ->  | AK118: =+SUM(F119:AJ119)/24 -> 0.00 | AL118: =+AK118*E118*1.5*86.4 -> 0.00
C119: JULIO CESAR | AK119: LT= | AL119: =+E118*1.5 -> 7.77
A120: 4F006M | B120: L2A | C120: FIGUEROA PINZON | E120: 5.00 | F120: =+IF(ISNUMBER(F121),$E120*1.5,IF(F121="","",F121)) ->  | AK120: =+SUM(F121:AJ121)/24 -> 0.00 | AL120: =+AK120*E120*1.5*86.4 -> 0.00
C121: FLORENTINO | AK121: LT= | AL121: =+E120*1.5 -> 7.50
A122: 4F008A | B122: L2A | C122: RIVERA MORENO | E122: 8.25 | F122: =+IF(ISNUMBER(F123),$E122*1.5,IF(F123="","",F123)) ->  | AK122: =+SUM(F123:AJ123)/24 -> 0.00 | AL122: =+AK122*E122*1.5*86.4 -> 0.00
C123: VICTOR EDUARDO | AK123: LT= | AL123: =+E122*1.5 -> 12.38
A124: 4F008C | B124: L2A | C124: GARCIA CACERES | E124: 9.00 | F124: =+IF(ISNUMBER(F125),$E124*1.5,IF(F125="","",F125)) ->  | AK124: =+SUM(F125:AJ125)/24 -> 0.00 | AL124: =+AK124*E124*1.5*86.4 -> 0.00
C125: PEDRO ENOG | AK125: LT= | AL125: =+E124*1.5 -> 13.50
A126: 4F008F | B126: L2A | C126: ENCINALES ACOSTA | E126: 5.00 | F126: =+IF(ISNUMBER(F127),$E126*1.5,IF(F127="","",F127)) ->  | AK126: =+SUM(F127:AJ127)/24 -> 0.00 | AL126: =+AK126*E126*1.5*86.4 -> 0.00
C127: STELLA | AK127: LT= | AL127: =+E126*1.5 -> 7.50
A128: 4F008E | B128: L2A | C128: CASTILLO ARIAS | E128: 3.28 | F128: =+IF(ISNUMBER(F129),$E128*1.5,IF(F129="","",F129)) ->  | AK128: =+SUM(F129:AJ129)/24 -> 0.00 | AL128: =+AK128*E128*1.5*86.4 -> 0.00
C129: GLADYS ELENA | AK129: LT= | AL129: =+E128*1.5 -> 4.92
A130: 4F008D | B130: L2A | C130: SILVA CARRILLO | E130: 8.00 | F130: =+IF(ISNUMBER(F131),$E130*1.5,IF(F131="","",F131)) ->  | AK130: =+SUM(F131:AJ131)/24 -> 0.00 | AL130: =+AK130*E130*1.5*86.4 -> 0.00
C131: DORA BETTY | AK131: LT= | AL131: =+E130*1.5 -> 12.00
A132: 4F008B | B132: L2A | C132: OBESO VARGAS | E132: 6.50 | F132: =+IF(ISNUMBER(F133),$E132*1.5,IF(F133="","",F133)) ->  | AK132: =+SUM(F133:AJ133)/24 -> 0.00 | AL132: =+AK132*E132*1.5*86.4 -> 0.00
C133: BENJAMIN Y OTRO | AK133: LT= | AL133: =+E132*1.5 -> 9.75
A134: 4F008G | B134: L2A | C134: OBESO VARGAS | E134: 2.50 | F134: =+IF(ISNUMBER(F135),$E134*1.5,IF(F135="","",F135)) ->  | AK134: =+SUM(F135:AJ135)/24 -> 0.00 | AL134: =+AK134*E134*1.5*86.4 -> 0.00
C135: BENJAMIN Y OTRO | AK135: LT= | AL135: =+E134*1.5 -> 3.75
A136: 4F005 | B136: PR | C136: CONTRERAS MONTES | E136: 10.00 | F136: =+IF(ISNUMBER(F137),$E136*1.5,IF(F137="","",F137)) ->  | AK136: =+SUM(F137:AJ137)/24 -> 0.00 | AL136: =+AK136*E136*1.5*86.4 -> 0.00
C137: ANIANO | AK137: LT= | AL137: =+E136*1.5 -> 15.00
A138: 4F366 | B138: PR | C138: OROZCO ALTAMIRANDA | E138: 7.00 | F138: =+IF(ISNUMBER(F139),$E138*1.5,IF(F139="","",F139)) ->  | AK138: =+SUM(F139:AJ139)/24 -> 0.00 | AL138: =+AK138*E138*1.5*86.4 -> 0.00
C139: ALBERTO E. | AK139: LT= | AL139: =+E138*1.5 -> 10.50
A140: 4F009 | B140: PR | C140: ANAYA VARGAS | E140: 11.23 | F140: =+IF(ISNUMBER(F141),$E140*1.5,IF(F141="","",F141)) ->  | AK140: =+SUM(F141:AJ141)/24 -> 0.00 | AL140: =+AK140*E140*1.5*86.4 -> 0.00
C141: FERMINA | AK141: LT= | AL141: =+E140*1.5 -> 16.85
A142: 4F009C | B142: PR | C142: ORDUZ LANDINEZ | E142: 11.00 | F142: =+IF(ISNUMBER(F143),$E142*1.5,IF(F143="","",F143)) ->  | AK142: =+SUM(F143:AJ143)/24 -> 0.00 | AL142: =+AK142*E142*1.5*86.4 -> 0.00
C143: EVELIA | AK143: LT= | AL143: =+E142*1.5 -> 16.50
A144: 4F009A | B144: PR | C144: VALENCIA MEJIA | E144: 11.13 | F144: =+IF(ISNUMBER(F145),$E144*1.5,IF(F145="","",F145)) ->  | AK144: =+SUM(F145:AJ145)/24 -> 0.00 | AL144: =+AK144*E144*1.5*86.4 -> 0.00
C145: WILSON | AK145: LT= | AL145: =+E144*1.5 -> 16.70
A146: 4F009B | B146: PR | C146: CONTRERAS ORTEGA | E146: 11.12 | F146: =+IF(ISNUMBER(F147),$E146*1.5,IF(F147="","",F147)) ->  | AK146: =+SUM(F147:AJ147)/24 -> 0.00 | AL146: =+AK146*E146*1.5*86.4 -> 0.00
C147: PEDRO ANTONIO | AK147: LT= | AL147: =+E146*1.5 -> 16.68
A148: 4F361 | B148: PR | C148: OROZCO ALTAMIRANDA | E148: 7.27 | F148: =+IF(ISNUMBER(F149),$E148*1.5,IF(F149="","",F149)) ->  | AK148: =+SUM(F149:AJ149)/24 -> 0.00 | AL148: =+AK148*E148*1.5*86.4 -> 0.00
C149: ALBERTO E. | AK149: LT= | AL149: =+E148*1.5 -> 10.91
A150: 4F013 | B150: PR | C150: CONTRERAS | E150: 17.30 | F150: =+IF(ISNUMBER(F151),$E150*1.5,IF(F151="","",F151)) ->  | AK150: =+SUM(F151:AJ151)/24 -> 0.00 | AL150: =+AK150*E150*1.5*86.4 -> 0.00
A151: E | C151: MONTES ANIANO | AK151: LT= | AL151: =+E150*1.5 -> 25.95
A152: 4F014C | B152: L3 | C152: AGUILAR REYES | E152: 7.00 | F152: =+IF(ISNUMBER(F153),$E152*1.5,IF(F153="","",F153)) ->  | AK152: =+SUM(F153:AJ153)/24 -> 0.00 | AL152: =+AK152*E152*1.5*86.4 -> 0.00
C153: DANIEL ALEXANDER | AK153: LT= | AL153: =+E152*1.5 -> 10.50
A154: 4F014A | B154: L3 | C154: UMAÑA PEREZ | E154: 8.58 | F154: =+IF(ISNUMBER(F155),$E154*1.5,IF(F155="","",F155)) ->  | AK154: =+SUM(F155:AJ155)/24 -> 0.00 | AL154: =+AK154*E154*1.5*86.4 -> 0.00
C155: CESAR AUGUSTO | AK155: LT= | AL155: =+E154*1.5 -> 12.87
A156: 4F010 | B156: L3 | C156: CARRILLO MARTINEZ | E156: 20.00 | F156: =+IF(ISNUMBER(F157),$E156*1.5,IF(F157="","",F157)) ->  | AK156: =+SUM(F157:AJ157)/24 -> 0.00 | AL156: =+AK156*E156*1.5*86.4 -> 0.00
C157: SAMUEL | AK157: LT= | AL157: =+E156*1.5 -> 30.00
A158: 4F010A | B158: L3 | C158: CARRILLO MARTINEZ | E158: 11.00 | F158: =+IF(ISNUMBER(F159),$E158*1.5,IF(F159="","",F159)) ->  | AK158: =+SUM(F159:AJ159)/24 -> 0.00 | AL158: =+AK158*E158*1.5*86.4 -> 0.00
C159: SAMUEL | AK159: LT= | AL159: =+E158*1.5 -> 16.50
A160: 4F010A | B160: L3 | C160: CARRILLO MARTINEZ | E160: 11.10 | F160: =+IF(ISNUMBER(F161),$E160*1.5,IF(F161="","",F161)) ->  | AK160: =+SUM(F161:AJ161)/24 -> 0.00 | AL160: =+AK160*E160*1.5*86.4 -> 0.00
C161: SAMUEL | AK161: LT= | AL161: =+E160*1.5 -> 16.65
A162: 4F014D | B162: L3 | C162: AGUILAR BARRIENTOS | E162: 7.00 | F162: =+IF(ISNUMBER(F163),$E162*1.5,IF(F163="","",F163)) ->  | AK162: =+SUM(F163:AJ163)/24 -> 0.00 | AL162: =+AK162*E162*1.5*86.4 -> 0.00
C163: OMAR | AK163: LT= | AL163: =+E162*1.5 -> 10.50
A164: 4F014B | B164: L3 | C164: BABILONIA RAMOS | E164: 8.00 | F164: =+IF(ISNUMBER(F165),$E164*1.5,IF(F165="","",F165)) ->  | AK164: =+SUM(F165:AJ165)/24 -> 0.00 | AL164: =+AK164*E164*1.5*86.4 -> 0.00
C165: INDULFO MANUEL | AK165: LT= | AL165: =+E164*1.5 -> 12.00
A166: 4F011 | B166: L3 | C166: PALENCIA DE GARCIA | E166: 7.00 | F166: =+IF(ISNUMBER(F167),$E166*1.5,IF(F167="","",F167)) ->  | AK166: =+SUM(F167:AJ167)/24 -> 0.00 | AL166: =+AK166*E166*1.5*86.4 -> 0.00
C167: ALIX MARIA | AK167: LT= | AL167: =+E166*1.5 -> 10.50
A168: 4F011A | B168: L3 | C168: PALENCIA DE GARCIA | E168: 33.00 | F168: =+IF(ISNUMBER(F169),$E168*1.5,IF(F169="","",F169)) ->  | AK168: =+SUM(F169:AJ169)/24 -> 0.00 | AL168: =+AK168*E168*1.5*86.4 -> 0.00
C169: ALIX MARIA | AK169: LT= | AL169: =+E168*1.5 -> 49.50
A170: 4F014E | B170: L3 | C170: FORI MONCADA | E170: 6.90 | F170: =+IF(ISNUMBER(F171),$E170*1.5,IF(F171="","",F171)) ->  | AK170: =+SUM(F171:AJ171)/24 -> 0.00 | AL170: =+AK170*E170*1.5*86.4 -> 0.00
C171: JOSE ALFREDO Y OT | AK171: LT= | AL171: =+E170*1.5 -> 10.35
A172: 4F029 | B172: L3 | C172: RUIZ RAMIREZ | E172: 18.63 | F172: =+IF(ISNUMBER(F173),$E172*1.5,IF(F173="","",F173)) ->  | AK172: =+SUM(F173:AJ173)/24 -> 0.00 | AL172: =+AK172*E172*1.5*86.4 -> 0.00
C173: NELSON ENRRIQUE | AK173: LT= | AL173: =+E172*1.5 -> 27.95
A174: 4F014F | B174: L3 | C174: RIVERO GONZALEZ | E174: 1.00 | F174: =+IF(ISNUMBER(F175),$E174*1.5,IF(F175="","",F175)) ->  | AK174: =+SUM(F175:AJ175)/24 -> 0.00 | AL174: =+AK174*E174*1.5*86.4 -> 0.00
C175: HERIBERTO | AK175: LT= | AL175: =+E174*1.5 -> 1.50
A176: 4F030 | B176: L3 | C176: VARGAS RIVERA | E176: 4.96 | F176: =+IF(ISNUMBER(F177),$E176*1.5,IF(F177="","",F177)) ->  | AK176: =+SUM(F177:AJ177)/24 -> 0.00 | AL176: =+AK176*E176*1.5*86.4 -> 0.00
C177: RAMIRO ANTONIO | AK177: LT= | AL177: =+E176*1.5 -> 7.44
A178: 4F015 | B178: L3 | C178: PALENCIA DE GARCIA | E178: 25.00 | F178: =+IF(ISNUMBER(F179),$E178*1.5,IF(F179="","",F179)) ->  | AK178: =+SUM(F179:AJ179)/24 -> 0.00 | AL178: =+AK178*E178*1.5*86.4 -> 0.00
C179: ALIX MARIA | AK179: LT= | AL179: =+E178*1.5 -> 37.50
A180: 4F015A | B180: L3 | C180: PALENCIA DE GARCIA | E180: 31.00 | F180: =+IF(ISNUMBER(F181),$E180*1.5,IF(F181="","",F181)) ->  | AK180: =+SUM(F181:AJ181)/24 -> 0.00 | AL180: =+AK180*E180*1.5*86.4 -> 0.00
C181: ALIX MARIA | AK181: LT= | AL181: =+E180*1.5 -> 46.50
A182: 4F012A | B182: L3 | C182: GOMEZ AGREDO | E182: 7.12 | F182: =+IF(ISNUMBER(F183),$E182*1.5,IF(F183="","",F183)) ->  | AK182: =+SUM(F183:AJ183)/24 -> 0.00 | AL182: =+AK182*E182*1.5*86.4 -> 0.00
C183: HERIBERTO | AK183: LT= | AL183: =+E182*1.5 -> 10.68
A184: 4F012C | B184: L3 | C184: CONTRERAS ROJAS | E184: 7.33 | F184: =+IF(ISNUMBER(F185),$E184*1.5,IF(F185="","",F185)) ->  | AK184: =+SUM(F185:AJ185)/24 -> 0.00 | AL184: =+AK184*E184*1.5*86.4 -> 0.00
C185: CARMEN | AK185: LT= | AL185: =+E184*1.5 -> 11.00
A186: 4F012B | B186: L3 | C186: ROJAS SANTOS | E186: 6.00 | F186: =+IF(ISNUMBER(F187),$E186*1.5,IF(F187="","",F187)) ->  | AK186: =+SUM(F187:AJ187)/24 -> 0.00 | AL186: =+AK186*E186*1.5*86.4 -> 0.00
C187: ELIODORO | AK187: LT= | AL187: =+E186*1.5 -> 9.00
A188: 4F020 | B188: L3A | C188: OROZCO ALTAMIRANDA | E188: 10.46 | F188: =+IF(ISNUMBER(F189),$E188*1.5,IF(F189="","",F189)) ->  | AK188: =+SUM(F189:AJ189)/24 -> 0.00 | AL188: =+AK188*E188*1.5*86.4 -> 0.00
C189: ALBERTO E. | AK189: LT= | AL189: =+E188*1.5 -> 15.69
A190: 4F019 | B190: L3A | C190: RUIZ RAMIREZ | E190: 10.25 | F190: =+IF(ISNUMBER(F191),$E190*1.5,IF(F191="","",F191)) ->  | AK190: =+SUM(F191:AJ191)/24 -> 0.00 | AL190: =+AK190*E190*1.5*86.4 -> 0.00
C191: NELSON ENRRIQUE | AK191: LT= | AL191: =+E190*1.5 -> 15.38
A192: 4F017 | B192: L3A | C192: BAUTISTA OSORIO | E192: 10.60 | F192: =+IF(ISNUMBER(F193),$E192*1.5,IF(F193="","",F193)) ->  | AK192: =+SUM(F193:AJ193)/24 -> 0.00 | AL192: =+AK192*E192*1.5*86.4 -> 0.00
C193: GLADYS CECILIA | AK193: LT= | AL193: =+E192*1.5 -> 15.90
A194: 4F028 | B194: L3A | C194: MARQUEZ CARDENAS | E194: 13.06 | F194: =+IF(ISNUMBER(F195),$E194*1.5,IF(F195="","",F195)) ->  | AK194: =+SUM(F195:AJ195)/24 -> 0.00 | AL194: =+AK194*E194*1.5*86.4 -> 0.00
C195: MARTHA CECILIA | AK195: LT= | AL195: =+E194*1.5 -> 19.59
A196: 4F027 | B196: L3A | C196: REYES VILLALTA | E196: 6.00 | F196: =+IF(ISNUMBER(F197),$E196*1.5,IF(F197="","",F197)) ->  | AK196: =+SUM(F197:AJ197)/24 -> 0.00 | AL196: =+AK196*E196*1.5*86.4 -> 0.00
C197: MARIELA | AK197: LT= | AL197: =+E196*1.5 -> 9.00
A198: 4F027A | B198: L3A | C198: REYES VILLALTA | E198: 8.36 | F198: =+IF(ISNUMBER(F199),$E198*1.5,IF(F199="","",F199)) ->  | AK198: =+SUM(F199:AJ199)/24 -> 0.00 | AL198: =+AK198*E198*1.5*86.4 -> 0.00
C199: MARIELA | AK199: LT= | AL199: =+E198*1.5 -> 12.54
A200: 4F036 | B200: PR | C200: SANABRIA OMAÑA | E200: 0.50 | F200: =+IF(ISNUMBER(F201),$E200*1.5,IF(F201="","",F201)) ->  | AK200: =+SUM(F201:AJ201)/24 -> 0.00 | AL200: =+AK200*E200*1.5*86.4 -> 0.00
C201: MARIA DEL ROSARIO | AK201: LT= | AL201: =+E200*1.5 -> 0.75
... 46 more rows

Sheet NOVIEMBRE
A1: ASOCIACION DE USUARIOS DISTRITO DE ADECUACION DE TIERRAS DE GRAN ESCALA DEL RIO ZULIA ASOZULIA NIT 800,168,858-6 | AI1: CODIGO: DTE-OPER-FR-01
AI2: VERSION: 01
A3: CONTROL DIARIO DE RIEGO POR PREDIO Y CANAL | AI3: FECHA: 16/06/2023
A5: ZONA | B5: RESTAURACIÓN | E5: AUXILIAR DE RIEGO | J5: EDWIN JAIR ZAMORA CHACON | S5: CANAL | AF5: MES | AG5: NOVIEMBRE | AJ5: AÑO | AK5: 2023
A6: CAUDAL DIARIO DERIVADO | E6: DIAS | F6: 1 | G6: 2 | H6: 3 | I6: 4 | J6: 5 | K6: 6 | L6: 7 | M6: 8 | N6: 9 | O6: 10 | P6: 11 | Q6: 12 | R6: 13 | S6: 14 | T6: 15 | U6: 16 | V6: 17 | W6: 18 | X6: 19 | Y6: 20 | Z6: 21 | AA6: 22 | AB6: 23 | AC6: 24 | AD6: 25 | AE6: 26 | AF6: 27 | AG6: 28 | AH6: 29 | AI6: 30 | AJ6: TOTAL DIAS | AK6: TOTAL M3
A7: CODIGO | B7: RAMAL | C7: USUARIO | D7: T.CULT | E7: AREA
A8: 4F300 | B8: PR | C8: BELTRAN GARCIA | D8: CA | E8: 30.00 | F8: =+IF(ISNUMBER(F9),$E8*1.5,IF(F9="","",F9)) ->  | G8: =+IF(ISNUMBER(G9),$E8*1.5,IF(G9="","",G9)) ->  | H8: FR | I8: 45.0 | J8: 45.0 | K8: 45.0 | L8: 45.0 | M8: 45.0 | N8: IC | Q8: =+IF(ISNUMBER(Q9),$E8*1.5,IF(Q9="","",Q9)) ->  | AJ8: =+SUM(F9:AI9)/24 -> 0.83 | AK8: =+AJ8*E8*1.5*86.4 -> 3240.00 | AM8: FC
C9: LUIS | H9: FR | I9: 1 | J9: 2 | K9: 3 | L9: 4 | M9: 10 | N9: IC | AJ9: LT= | AK9: =+E8*1.5 -> 45.00 | AM9: IC
A10: 4F350 | B10: PR | C10: VILLARREAL OSORIO | E10: 17.53 | F10: =+IF(ISNUMBER(F11),$E10*1.5,IF(F11="","",F11)) ->  | AJ10: =+SUM(F11:AI11)/24 -> 0.00 | AK10: =+AJ10*E10*1.5*86.4 -> 0.00 | AM10: FR
C11: CLEMENTE | AJ11: LT= | AK11: =+E10*1.5 -> 26.30 | AM11: IR
A12: 4F340 | B12: PR | C12: SANTANA CORTES | E12: 8.00 | F12: =+IF(ISNUMBER(F13),$E12*1.5,IF(F13="","",F13)) ->  | X12: 12.0 | Y12: 12.0 | Z12: 12.0 | AA12: FC | AC12: IC1 | AJ12: =+SUM(F13:AI13)/24 -> 1.25 | AK12: =+AJ12*E12*1.5*86.4 -> 1296.00 | AM12: SR
C13: JOSE DOMINGO | X13: 10 | Y13: 10 | Z13: 10 | AA13: FC | AC13: IC1 | AJ13: LT= | AK13: =+E12*1.5 -> 12.00 | AM13: RR
A14: 4F338 | B14: PR | C14: RIOS SUESCUN | E14: 8.75 | F14: =+IF(ISNUMBER(F15),$E14*1.5,IF(F15="","",F15)) ->  | AJ14: =+SUM(F15:AI15)/24 -> 0.00 | AK14: =+AJ14*E14*1.5*86.4 -> 0.00 | AM14: ID
C15: MARIA LUCIA | AJ15: LT= | AK15: =+E14*1.5 -> 13.13 | AM15: IC1
A16: 4F330 | B16: PR | C16: RIAÑO RAMIREZ | E16: 12.06 | F16: =+IF(ISNUMBER(F17),$E16*1.5,IF(F17="","",F17)) ->  | AJ16: =+SUM(F17:AI17)/24 -> 0.00 | AK16: =+AJ16*E16*1.5*86.4 -> 0.00
C17: MARIA VICTORIA | AJ17: LT= | AK17: =+E16*1.5 -> 18.09
A18: 4F320 | B18: PR | C18: RIAÑO VALDERRAMA | E18: 5.29 | F18: =+IF(ISNUMBER(F19),$E18*1.5,IF(F19="","",F19)) ->  | AJ18: =+SUM(F19:AI19)/24 -> 0.00 | AK18: =+AJ18*E18*1.5*86.4 -> 0.00
C19: FREDDY ALEXANDER | AJ19: LT= | AK19: =+E18*1.5 -> 7.94
A20: 4F320A | B20: PR | C20: RIAÑO VALDERRAMA | E20: 5.29 | F20: =+IF(ISNUMBER(F21),$E20*1.5,IF(F21="","",F21)) ->  | AJ20: =+SUM(F21:AI21)/24 -> 0.00 | AK20: =+AJ20*E20*1.5*86.4 -> 0.00
C21: JENNY MARITZA | AJ21: LT= | AK21: =+E20*1.5 -> 7.94
A22: 4F320B | B22: PR | C22: RIAÑO VALDERRAMA | E22: 4.14 | F22: =+IF(ISNUMBER(F23),$E22*1.5,IF(F23="","",F23)) ->  | AJ22: =+SUM(F23:AI23)/24 -> 0.00 | AK22: =+AJ22*E22*1.5*86.4 -> 0.00
C23: FLOR LILIANA | AJ23: LT= | AK23: =+E22*1.5 -> 6.21
A24: 4F320C | B24: PR | C24: RIAÑO VALDERRAMA | E24: 4.14 | F24: =+IF(ISNUMBER(F25),$E24*1.5,IF(F25="","",F25)) ->  | AJ24: =+SUM(F25:AI25)/24 -> 0.00 | AK24: =+AJ24*E24*1.5*86.4 -> 0.00
C25: CIRO PASTOR | AJ25: LT= | AK25: =+E24*1.5 -> 6.21
A26: 4F341 | B26: PR | C26: ORTEGA MORA | E26: 8.46 | F26: =+IF(ISNUMBER(F27),$E26*1.5,IF(F27="","",F27)) ->  | AJ26: =+SUM(F27:AI27)/24 -> 0.00 | AK26: =+AJ26*E26*1.5*86.4 -> 0.00
C27: JOSE DEL CARMEN | AJ27: LT= | AK27: =+E26*1.5 -> 12.69
A28: 4F319 | B28: PR | C28: SANTANA CORTES | E28: 26.50 | F28: =+IF(ISNUMBER(F29),$E28*1.5,IF(F29="","",F29)) ->  | AJ28: =+SUM(F29:AI29)/24 -> 0.00 | AK28: =+AJ28*E28*1.5*86.4 -> 0.00
C29: ELVIA Y OTROS | AJ29: LT= | AK29: =+E28*1.5 -> 39.75
A30: 4F314 | B30: PR | C30: GONZALEZ GIRON | E30: 3.00 | F30: =+IF(ISNUMBER(F31),$E30*1.5,IF(F31="","",F31)) ->  | AJ30: =+SUM(F31:AI31)/24 -> 0.00 | AK30: =+AJ30*E30*1.5*86.4 -> 0.00
C31: EVELIO | AJ31: LT= | AK31: =+E30*1.5 -> 4.50
A32: 4F035 | B32: PR | C32: VALDERRAMA CARDENAS | E32: 11.54 | F32: =+IF(ISNUMBER(F33),$E32*1.5,IF(F33="","",F33)) ->  | AJ32: =+SUM(F33:AI33)/24 -> 0.00 | AK32: =+AJ32*E32*1.5*86.4 -> 0.00
C33: GUILLERMO Y OTROS | AJ33: LT= | AK33: =+E32*1.5 -> 17.31
A34: 4F329B | B34: PR | C34: MARIN ZAPATA | E34: 7.00 | F34: =+IF(ISNUMBER(F35),$E34*1.5,IF(F35="","",F35)) ->  | AJ34: =+SUM(F35:AI35)/24 -> 0.00 | AK34: =+AJ34*E34*1.5*86.4 -> 0.00
C35: ABELARDO ANTONIO | AJ35: LT= | AK35: =+E34*1.5 -> 10.50
A36: 4F346 | B36: PR | C36: CASTELLANOS TARAZONA | E36: 10.00 | F36: =+IF(ISNUMBER(F37),$E36*1.5,IF(F37="","",F37)) ->  | AJ36: =+SUM(F37:AI37)/24 -> 0.00 | AK36: =+AJ36*E36*1.5*86.4 -> 0.00
C37: JOSE DARIO | AJ37: LT= | AK37: =+E36*1.5 -> 15.00
A38: 4F315 | B38: PR | C38: VILLARREAL OSORIO | E38: 12.23 | F38: =+IF(ISNUMBER(F39),$E38*1.5,IF(F39="","",F39)) ->  | AJ38: =+SUM(F39:AI39)/24 -> 0.00 | AK38: =+AJ38*E38*1.5*86.4 -> 0.00
C39: EDILSON | AJ39: LT= | AK39: =+E38*1.5 -> 18.35
A40: 4F001A | B40: L2 | C40: MARQUEZ CARDENAS | E40: 12.00 | F40: =+IF(ISNUMBER(F41),$E40*1.5,IF(F41="","",F41)) ->  | AJ40: =+SUM(F41:AI41)/24 -> 0.00 | AK40: =+AJ40*E40*1.5*86.4 -> 0.00
C41: MARTHA CECILIA | AJ41: LT= | AK41: =+E40*1.5 -> 18.00
A42: 4F001 | B42: L2 | C42: MARQUEZ CARDENAS | E42: 13.00 | F42: =+IF(ISNUMBER(F43),$E42*1.5,IF(F43="","",F43)) ->  | AJ42: =+SUM(F43:AI43)/24 -> 0.00 | AK42: =+AJ42*E42*1.5*86.4 -> 0.00
C43: MARTHA CECILIA | AJ43: LT= | AK43: =+E42*1.5 -> 19.50
A44: 4F031 | B44: L2 | C44: LERMA DIAZ | E44: 4.70 | F44: =+IF(ISNUMBER(F45),$E44*1.5,IF(F45="","",F45)) ->  | AJ44: =+SUM(F45:AI45)/24 -> 0.00 | AK44: =+AJ44*E44*1.5*86.4 -> 0.00
C45: RAFAEL JULIO | AJ45: LT= | AK45: =+E44*1.5 -> 7.05
A46: 4F031A | B46: L2 | C46: RIAÑO RAMIREZ | E46: 2.90 | F46: =+IF(ISNUMBER(F47),$E46*1.5,IF(F47="","",F47)) ->  | AJ46: =+SUM(F47:AI47)/24 -> 0.00 | AK46: =+AJ46*E46*1.5*86.4 -> 0.00
C47: MARIA VICTORIA | AJ47: LT= | AK47: =+E46*1.5 -> 4.35
A48: 4F031B | B48: L2 | C48: AREVALO ACEVEDO | E48: 2.30 | F48: =+IF(ISNUMBER(F49),$E48*1.5,IF(F49="","",F49)) ->  | AJ48: =+SUM(F49:AI49)/24 -> 0.00 | AK48: =+AJ48*E48*1.5*86.4 -> 0.00
C49: RAMIRO Y OTRO | AJ49: LT= | AK49: =+E48*1.5 -> 3.45
A50: 4F031C | B50: L2 | C50: BUSTAMANTE | E50: 3.20 | F50: =+IF(ISNUMBER(F51),$E50*1.5,IF(F51="","",F51)) ->  | AJ50: =+SUM(F51:AI51)/24 -> 0.00 | AK50: =+AJ50*E50*1.5*86.4 -> 0.00
C51: JAIME DE J. Y OTRO | AJ51: LT= | AK51: =+E50*1.5 -> 4.80
A52: 4F031D | B52: L2 | C52: AREVALO ACEVEDO | E52: 2.80 | F52: =+IF(ISNUMBER(F53),$E52*1.5,IF(F53="","",F53)) ->  | AJ52: =+SUM(F53:AI53)/24 -> 0.00 | AK52: =+AJ52*E52*1.5*86.4 -> 0.00
C53: RAMIRO Y OTRO | AJ53: LT= | AK53: =+E52*1.5 -> 4.20
A54: 4F031E | B54: L2 | C54: VILLAMIZAR | E54: 2.60 | F54: =+IF(ISNUMBER(F55),$E54*1.5,IF(F55="","",F55)) ->  | AJ54: =+SUM(F55:AI55)/24 -> 0.00 | AK54: =+AJ54*E54*1.5*86.4 -> 0.00
C55: MARITZA | AJ55: LT= | AK55: =+E54*1.5 -> 3.90
A56: 4F031F | B56: L2 | C56: VILLAMIZAR | E56: 1.50 | F56: =+IF(ISNUMBER(F57),$E56*1.5,IF(F57="","",F57)) ->  | AJ56: =+SUM(F57:AI57)/24 -> 0.00 | AK56: =+AJ56*E56*1.5*86.4 -> 0.00
C57: MARITZA | AJ57: LT= | AK57: =+E56*1.5 -> 2.25
A58: 4F031G | B58: L2 | C58: SANABRIA | E58: 0.58 | F58: =+IF(ISNUMBER(F59),$E58*1.5,IF(F59="","",F59)) ->  | AJ58: =+SUM(F59:AI59)/24 -> 0.00 | AK58: =+AJ58*E58*1.5*86.4 -> 0.00
C59: MIGUEL ANTONIO | AJ59: LT= | AK59: =+E58*1.5 -> 0.87
A60: 4F031H | B60: L2 | C60: DIAZ LERMA | E60: 4.00 | F60: =+IF(ISNUMBER(F61),$E60*1.5,IF(F61="","",F61)) ->  | AJ60: =+SUM(F61:AI61)/24 -> 0.00 | AK60: =+AJ60*E60*1.5*86.4 -> 0.00
C61: LUIS ADAN | AJ61: LT= | AK61: =+E60*1.5 -> 6.00
A62: 4F031I | B62: L2 | C62: CAICEDO GALVIS | E62: 8.60 | F62: =+IF(ISNUMBER(F63),$E62*1.5,IF(F63="","",F63)) ->  | AJ62: =+SUM(F63:AI63)/24 -> 0.00 | AK62: =+AJ62*E62*1.5*86.4 -> 0.00
C63: ELIECER Y OTROS | AJ63: LT= | AK63: =+E62*1.5 -> 12.90
A64: 4F003 | B64: L2 | C64: MENESES | E64: 9.46 | F64: =+IF(ISNUMBER(F65),$E64*1.5,IF(F65="","",F65)) ->  | AJ64: =+SUM(F65:AI65)/24 -> 0.00 | AK64: =+AJ64*E64*1.5*86.4 -> 0.00
C65: POLICARPO | AJ65: LT= | AK65: =+E64*1.5 -> 14.19
A66: 4F003A | B66: L2 | C66: ORTEGA RIVERA | E66: 8.26 | F66: =+IF(ISNUMBER(F67),$E66*1.5,IF(F67="","",F67)) ->  | AJ66: =+SUM(F67:AI67)/24 -> 0.00 | AK66: =+AJ66*E66*1.5*86.4 -> 0.00
C67: PEDRO MIGUEL | AJ67: LT= | AK67: =+E66*1.5 -> 12.39
A68: 4F329A | B68: PR | C68: DIAZ | E68: 3.80 | F68: =+IF(ISNUMBER(F69),$E68*1.5,IF(F69="","",F69)) ->  | AJ68: =+SUM(F69:AI69)/24 -> 0.00 | AK68: =+AJ68*E68*1.5*86.4 -> 0.00
C69: ROSALBINA | AJ69: LT= | AK69: =+E68*1.5 -> 5.70
A70: 4F329A | B70: PR | C70: DIAZ | E70: 2.00 | F70: =+IF(ISNUMBER(F71),$E70*1.5,IF(F71="","",F71)) ->  | AJ70: =+SUM(F71:AI71)/24 -> 0.00 | AK70: =+AJ70*E70*1.5*86.4 -> 0.00
C71: ROSALBINA | AJ71: LT= | AK71: =+E70*1.5 -> 3.00
A72: 4F329D | B72: PR | C72: RUBIO | E72: 7.24 | F72: =+IF(ISNUMBER(F73),$E72*1.5,IF(F73="","",F73)) ->  | AJ72: =+SUM(F73:AI73)/24 -> 0.00 | AK72: =+AJ72*E72*1.5*86.4 -> 0.00
C73: MARIA EDELMIRA | AJ73: LT= | AK73: =+E72*1.5 -> 10.86
A74: 4F329C | B74: PR | C74: MARTINEZ ALARCON | E74: 6.00 | F74: =+IF(ISNUMBER(F75),$E74*1.5,IF(F75="","",F75)) ->  | AJ74: =+SUM(F75:AI75)/24 -> 0.00 | AK74: =+AJ74*E74*1.5*86.4 -> 0.00
C75: LUIS ALBERTO | AJ75: LT= | AK75: =+E74*1.5 -> 9.00
A76: 4F004D | B76: PR | C76: DUARTE ACEVEDO | E76: 8.33 | F76: =+IF(ISNUMBER(F77),$E76*1.5,IF(F77="","",F77)) ->  | AJ76: =+SUM(F77:AI77)/24 -> 0.00 | AK76: =+AJ76*E76*1.5*86.4 -> 0.00
C77: PEDRO Y OTROS | AJ77: LT= | AK77: =+E76*1.5 -> 12.50
A78: 4F004A | B78: PR | C78: GARCIA CHONA | E78: 8.92 | F78: =+IF(ISNUMBER(F79),$E78*1.5,IF(F79="","",F79)) ->  | AJ78: =+SUM(F79:AI79)/24 -> 0.00 | AK78: =+AJ78*E78*1.5*86.4 -> 0.00
C79: CRUZ DELINA | AJ79: LT= | AK79: =+E78*1.5 -> 13.38
A80: 4F004E | B80: PR | C80: ROZO RICO | E80: 5.35 | F80: =+IF(ISNUMBER(F81),$E80*1.5,IF(F81="","",F81)) ->  | AJ80: =+SUM(F81:AI81)/24 -> 0.00 | AK80: =+AJ80*E80*1.5*86.4 -> 0.00
C81: JOSE RAMON | AJ81: LT= | AK81: =+E80*1.5 -> 8.03
A82: 4F004 | B82: PR | C82: QUINTERO M. | E82: 4.09 | F82: =+IF(ISNUMBER(F83),$E82*1.5,IF(F83="","",F83)) ->  | AJ82: =+SUM(F83:AI83)/24 -> 0.00 | AK82: =+AJ82*E82*1.5*86.4 -> 0.00
C83: MIGUEL ANGEL/ OTRO | AJ83: LT= | AK83: =+E82*1.5 -> 6.14
A84: 4F004C | B84: PR | C84: MARTINEZ RUBIO | E84: 9.74 | F84: =+IF(ISNUMBER(F85),$E84*1.5,IF(F85="","",F85)) ->  | AJ84: =+SUM(F85:AI85)/24 -> 0.00 | AK84: =+AJ84*E84*1.5*86.4 -> 0.00
C85: JOSE LEONSO | AJ85: LT= | AK85: =+E84*1.5 -> 14.61
A86: 4F328 | B86: PR | C86: GARCIA CHONA | E86: 9.65 | F86: =+IF(ISNUMBER(F87),$E86*1.5,IF(F87="","",F87)) ->  | AJ86: =+SUM(F87:AI87)/24 -> 0.00 | AK86: =+AJ86*E86*1.5*86.4 -> 0.00
C87: CRUZ DELINA | AJ87: LT= | AK87: =+E86*1.5 -> 14.48
A88: 4F004B | B88: L2A | C88: PAVA | E88: 8.90 | F88: =+IF(ISNUMBER(F89),$E88*1.5,IF(F89="","",F89)) ->  | AJ88: =+SUM(F89:AI89)/24 -> 0.00 | AK88: =+AJ88*E88*1.5*86.4 -> 0.00
C89: LUIS JAVIER Y OTRO | AJ89: LT= | AK89: =+E88*1.5 -> 13.35
A90: 4F006 | B90: L2A | C90: GARCIA | E90: 4.00 | F90: =+IF(ISNUMBER(F91),$E90*1.5,IF(F91="","",F91)) ->  | AJ90: =+SUM(F91:AI91)/24 -> 0.00 | AK90: =+AJ90*E90*1.5*86.4 -> 0.00
C91: LINA ROSA Y OTROS | AJ91: LT= | AK91: =+E90*1.5 -> 6.00
A92: 4F006A | B92: L2A | C92: CARDENAS HEREDIA | E92: 5.00 | F92: =+IF(ISNUMBER(F93),$E92*1.5,IF(F93="","",F93)) ->  | AJ92: =+SUM(F93:AI93)/24 -> 0.00 | AK92: =+AJ92*E92*1.5*86.4 -> 0.00
C93: PAULINO | AJ93: LT= | AK93: =+E92*1.5 -> 7.50
A94: 4F006B | B94: L2A | C94: RAMIREZ MAYORGA | E94: 5.08 | F94: =+IF(ISNUMBER(F95),$E94*1.5,IF(F95="","",F95)) ->  | AJ94: =+SUM(F95:AI95)/24 -> 0.00 | AK94: =+AJ94*E94*1.5*86.4 -> 0.00
C95: CRISTINIANO | AJ95: LT= | AK95: =+E94*1.5 -> 7.62
A96: 4F006C | B96: L2A | C96: ATUESTA ORTEGA | E96: 5.00 | F96: =+IF(ISNUMBER(F97),$E96*1.5,IF(F97="","",F97)) ->  | AJ96: =+SUM(F97:AI97)/24 -> 0.00 | AK96: =+AJ96*E96*1.5*86.4 -> 0.00
C97: MIGUEL ANGEL | AJ97: LT= | AK97: =+E96*1.5 -> 7.50
A98: 4F006D | B98: L2A | C98: SERNA GARCIA | E98: 5.00 | F98: =+IF(ISNUMBER(F99),$E98*1.5,IF(F99="","",F99)) ->  | AJ98: =+SUM(F99:AI99)/24 -> 0.00 | AK98: =+AJ98*E98*1.5*86.4 -> 0.00
C99: CESARIO ANTONIO | AJ99: LT= | AK99: =+E98*1.5 -> 7.50
A100: 4F006E | B100: L2A | C100: SERNA GARCIA | E100: 5.00 | F100: =+IF(ISNUMBER(F101),$E100*1.5,IF(F101="","",F101)) ->  | AJ100: =+SUM(F101:AI101)/24 -> 0.00 | AK100: =+AJ100*E100*1.5*86.4 -> 0.00
C101: CESARIO ANTONIO | AJ101: LT= | AK101: =+E100*1.5 -> 7.50
A102: 4F006F | B102: L2A | C102: CAICEDO GALVIS | E102: 5.00 | F102: =+IF(ISNUMBER(F103),$E102*1.5,IF(F103="","",F103)) ->  | AJ102: =+SUM(F103:AI103)/24 -> 0.00 | AK102: =+AJ102*E102*1.5*86.4 -> 0.00
C103: ELIECER Y OTRO | AJ103: LT= | AK103: =+E102*1.5 -> 7.50
A104: 4F006G | B104: L2A | C104: GARCIA | E104: 5.00 | F104: =+IF(ISNUMBER(F105),$E104*1.5,IF(F105="","",F105)) ->  | AJ104: =+SUM(F105:AI105)/24 -> 0.00 | AK104: =+AJ104*E104*1.5*86.4 -> 0.00
C105: LINA ROSA Y OTROS | AJ105: LT= | AK105: =+E104*1.5 -> 7.50
A106: 4F006H | B106: L2A | C106: VALENCIA MEJIA | E106: 4.50 | F106: =+IF(ISNUMBER(F107),$E106*1.5,IF(F107="","",F107)) ->  | AJ106: =+SUM(F107:AI107)/24 -> 0.00 | AK106: =+AJ106*E106*1.5*86.4 -> 0.00
C107: WILSON | AJ107: LT= | AK107: =+E106*1.5 -> 6.75
A108: 4F006I | B108: L2A | C108: BALLESTEROS | E108: 4.70 | F108: =+IF(ISNUMBER(F109),$E108*1.5,IF(F109="","",F109)) ->  | AJ108: =+SUM(F109:AI109)/24 -> 0.00 | AK108: =+AJ108*E108*1.5*86.4 -> 0.00
C109: LUCIANO | AJ109: LT= | AK109: =+E108*1.5 -> 7.05
A110: 4F006J | B110: L2A | C110: CUERO PEREZ | E110: 5.00 | F110: =+IF(ISNUMBER(F111),$E110*1.5,IF(F111="","",F111)) ->  | AJ110: =+SUM(F111:AI111)/24 -> 0.00 | AK110: =+AJ110*E110*1.5*86.4 -> 0.00
C111: YESENIA | AJ111: LT= | AK111: =+E110*1.5 -> 7.50
A112: 4F006L | B112: L2A | C112: FLOREZ FLOREZ | E112: 4.75 | F112: =+IF(ISNUMBER(F113),$E112*1.5,IF(F113="","",F113)) ->  | AJ112: =+SUM(F113:AI113)/24 -> 0.00 | AK112: =+AJ112*E112*1.5*86.4 -> 0.00
C113: MANUEL | AJ113: LT= | AK113: =+E112*1.5 -> 7.13
A114: 4F006K | B114: L2A | C114: GUARIN | E114: 5.00 | F114: =+IF(ISNUMBER(F115),$E114*1.5,IF(F115="","",F115)) ->  | AJ114: =+SUM(F115:AI115)/24 -> 0.00 | AK114: =+AJ114*E114*1.5*86.4 -> 0.00
C115: LUIS ENRIQUE | AJ115: LT= | AK115: =+E114*1.5 -> 7.50
A116: 4F006N | B116: L2A | C116: ATUESTA ORTEGA | E116: 5.00 | F116: =+IF(ISNUMBER(F117),$E116*1.5,IF(F117="","",F117)) ->  | AJ116: =+SUM(F117:AI117)/24 -> 0.00 | AK116: =+AJ116*E116*1.5*86.4 -> 0.00
C117: MIGUEL ANGEL | AJ117: LT= | AK117: =+E116*1.5 -> 7.50
A118: 4F006O | B118: L2A | C118: GUZMAN NIETO | E118: 5.18 | F118: =+IF(ISNUMBER(F119),$E118*1.5,IF(F119="","",F119)) ->  | AJ118: =+SUM(F119:AI119)/24 -> 0.00 | AK118: =+AJ118*E118*1.5*86.4 -> 0.00
C119: JULIO CESAR | AJ119: LT= | AK119: =+E118*1.5 -> 7.77
A120: 4F006M | B120: L2A | C120: FIGUEROA PINZON | E120: 5.00 | F120: =+IF(ISNUMBER(F121),$E120*1.5,IF(F121="","",F121)) ->  | AJ120: =+SUM(F121:AI121)/24 -> 0.00 | AK120: =+AJ120*E120*1.5*86.4 -> 0.00
C121: FLORENTINO | AJ121: LT= | AK121: =+E120*1.5 -> 7.50
A122: 4F008A | B122: L2A | C122: RIVERA MORENO | E122: 8.25 | F122: =+IF(ISNUMBER(F123),$E122*1.5,IF(F123="","",F123)) ->  | AJ122: =+SUM(F123:AI123)/24 -> 0.00 | AK122: =+AJ122*E122*1.5*86.4 -> 0.00
C123: VICTOR EDUARDO | AJ123: LT= | AK123: =+E122*1.5 -> 12.38
A124: 4F008C | B124: L2A | C124: GARCIA CACERES | E124: 9.00 | F124: =+IF(ISNUMBER(F125),$E124*1.5,IF(F125="","",F125)) ->  | AJ124: =+SUM(F125:AI125)/24 -> 0.00 | AK124: =+AJ124*E124*1.5*86.4 -> 0.00
C125: PEDRO ENOG | AJ125: LT= | AK125: =+E124*1.5 -> 13.50
A126: 4F008F | B126: L2A | C126: ENCINALES ACOSTA | E126: 5.00 | F126: =+IF(ISNUMBER(F127),$E126*1.5,IF(F127="","",F127)) ->  | AJ126: =+SUM(F127:AI127)/24 -> 0.00 | AK126: =+AJ126*E126*1.5*86.4 -> 0.00
C127: STELLA | AJ127: LT= | AK127: =+E126*1.5 -> 7.50
A128: 4F008E | B128: L2A | C128: CASTILLO ARIAS | E128: 3.28 | F128: =+IF(ISNUMBER(F129),$E128*1.5,IF(F129="","",F129)) ->  | AJ128: =+SUM(F129:AI129)/24 -> 0.00 | AK128: =+AJ128*E128*1.5*86.4 -> 0.00
C129: GLADYS ELENA | AJ129: LT= | AK129: =+E128*1.5 -> 4.92
A130: 4F008D | B130: L2A | C130: SILVA CARRILLO | E130: 8.00 | F130: =+IF(ISNUMBER(F131),$E130*1.5,IF(F131="","",F131)) ->  | AJ130: =+SUM(F131:AI131)/24 -> 0.00 | AK130: =+AJ130*E130*1.5*86.4 -> 0.00
C131: DORA BETTY | AJ131: LT= | AK131: =+E130*1.5 -> 12.00
A132: 4F008B | B132: L2A | C132: OBESO VARGAS | E132: 6.50 | F132: =+IF(ISNUMBER(F133),$E132*1.5,IF(F133="","",F133)) ->  | AJ132: =+SUM(F133:AI133)/24 -> 0.00 | AK132: =+AJ132*E132*1.5*86.4 -> 0.00
C133: BENJAMIN Y OTRO | AJ133: LT= | AK133: =+E132*1.5 -> 9.75
A134: 4F008G | B134: L2A | C134: OBESO VARGAS | E134: 2.50 | F134: =+IF(ISNUMBER(F135),$E134*1.5,IF(F135="","",F135)) ->  | AJ134: =+SUM(F135:AI135)/24 -> 0.00 | AK134: =+AJ134*E134*1.5*86.4 -> 0.00
C135: BENJAMIN Y OTRO | AJ135: LT= | AK135: =+E134*1.5 -> 3.75
A136: 4F005 | B136: PR | C136: CONTRERAS MONTES | E136: 10.00 | F136: =+IF(ISNUMBER(F137),$E136*1.5,IF(F137="","",F137)) ->  | AJ136: =+SUM(F137:AI137)/24 -> 0.00 | AK136: =+AJ136*E136*1.5*86.4 -> 0.00
C137: ANIANO | AJ137: LT= | AK137: =+E136*1.5 -> 15.00
A138: 4F366 | B138: PR | C138: OROZCO ALTAMIRANDA | E138: 7.00 | F138: =+IF(ISNUMBER(F139),$E138*1.5,IF(F139="","",F139)) ->  | AJ138: =+SUM(F139:AI139)/24 -> 0.00 | AK138: =+AJ138*E138*1.5*86.4 -> 0.00
C139: ALBERTO E. | AJ139: LT= | AK139: =+E138*1.5 -> 10.50
A140: 4F009 | B140: PR | C140: ANAYA VARGAS | E140: 11.23 | F140: =+IF(ISNUMBER(F141),$E140*1.5,IF(F141="","",F141)) ->  | AJ140: =+SUM(F141:AI141)/24 -> 0.00 | AK140: =+AJ140*E140*1.5*86.4 -> 0.00
C141: FERMINA | AJ141: LT= | AK141: =+E140*1.5 -> 16.85
A142: 4F009C | B142: PR | C142: ORDUZ LANDINEZ | E142: 11.00 | F142: =+IF(ISNUMBER(F143),$E142*1.5,IF(F143="","",F143)) ->  | AJ142: =+SUM(F143:AI143)/24 -> 0.00 | AK142: =+AJ142*E142*1.5*86.4 -> 0.00
C143: EVELIA | AJ143: LT= | AK143: =+E142*1.5 -> 16.50
A144: 4F009A | B144: PR | C144: VALENCIA MEJIA | E144: 11.13 | F144: =+IF(ISNUMBER(F145),$E144*1.5,IF(F145="","",F145)) ->  | AJ144: =+SUM(F145:AI145)/24 -> 0.00 | AK144: =+AJ144*E144*1.5*86.4 -> 0.00
C145: WILSON | AJ145: LT= | AK145: =+E144*1.5 -> 16.70
A146: 4F009B | B146: PR | C146: CONTRERAS ORTEGA | E146: 11.12 | F146: =+IF(ISNUMBER(F147),$E146*1.5,IF(F147="","",F147)) ->  | AJ146: =+SUM(F147:AI147)/24 -> 0.00 | AK146: =+AJ146*E146*1.5*86.4 -> 0.00
C147: PEDRO ANTONIO | AJ147: LT= | AK147: =+E146*1.5 -> 16.68
A148: 4F361 | B148: PR | C148: OROZCO ALTAMIRANDA | E148: 7.27 | F148: =+IF(ISNUMBER(F149),$E148*1.5,IF(F149="","",F149)) ->  | AJ148: =+SUM(F149:AI149)/24 -> 0.00 | AK148: =+AJ148*E148*1.5*86.4 -> 0.00
C149: ALBERTO E. | AJ149: LT= | AK149: =+E148*1.5 -> 10.91
A150: 4F013 | B150: PR | C150: CONTRERAS | E150: 17.30 | F150: =+IF(ISNUMBER(F151),$E150*1.5,IF(F151="","",F151)) ->  | AJ150: =+SUM(F151:AI151)/24 -> 0.00 | AK150: =+AJ150*E150*1.5*86.4 -> 0.00
A151: E | C151: MONTES ANIANO | AJ151: LT= | AK151: =+E150*1.5 -> 25.95
A152: 4F014C | B152: L3 | C152: AGUILAR REYES | E152: 7.00 | F152: =+IF(ISNUMBER(F153),$E152*1.5,IF(F153="","",F153)) ->  | AJ152: =+SUM(F153:AI153)/24 -> 0.00 | AK152: =+AJ152*E152*1.5*86.4 -> 0.00
C153: DANIEL ALEXANDER | AJ153: LT= | AK153: =+E152*1.5 -> 10.50
A154: 4F014A | B154: L3 | C154: UMAÑA PEREZ | E154: 8.58 | F154: =+IF(ISNUMBER(F155),$E154*1.5,IF(F155="","",F155)) ->  | AJ154: =+SUM(F155:AI155)/24 -> 0.00 | AK154: =+AJ154*E154*1.5*86.4 -> 0.00
C155: CESAR AUGUSTO | AJ155: LT= | AK155: =+E154*1.5 -> 12.87
A156: 4F010 | B156: L3 | C156: CARRILLO MARTINEZ | E156: 20.00 | F156: =+IF(ISNUMBER(F157),$E156*1.5,IF(F157="","",F157)) ->  | AJ156: =+SUM(F157:AI157)/24 -> 0.00 | AK156: =+AJ156*E156*1.5*86.4 -> 0.00
C157: SAMUEL | AJ157: LT= | AK157: =+E156*1.5 -> 30.00
A158: 4F010A | B158: L3 | C158: CARRILLO MARTINEZ | E158: 11.00 | F158: =+IF(ISNUMBER(F159),$E158*1.5,IF(F159="","",F159)) ->  | AJ158: =+SUM(F159:AI159)/24 -> 0.00 | AK158: =+AJ158*E158*1.5*86.4 -> 0.00
C159: SAMUEL | AJ159: LT= | AK159: =+E158*1.5 -> 16.50
A160: 4F010A | B160: L3 | C160: CARRILLO MARTINEZ | E160: 11.10 | F160: =+IF(ISNUMBER(F161),$E160*1.5,IF(F161="","",F161)) ->  | AJ160: =+SUM(F161:AI161)/24 -> 0.00 | AK160: =+AJ160*E160*1.5*86.4 -> 0.00
C161: SAMUEL | AJ161: LT= | AK161: =+E160*1.5 -> 16.65
A162: 4F014D | B162: L3 | C162: AGUILAR BARRIENTOS | E162: 7.00 | F162: =+IF(ISNUMBER(F163),$E162*1.5,IF(F163="","",F163)) ->  | AJ162: =+SUM(F163:AI163)/24 -> 0.00 | AK162: =+AJ162*E162*1.5*86.4 -> 0.00
C163: OMAR | AJ163: LT= | AK163: =+E162*1.5 -> 10.50
A164: 4F014B | B164: L3 | C164: BABILONIA RAMOS | E164: 8.00 | F164: =+IF(ISNUMBER(F165),$E164*1.5,IF(F165="","",F165)) ->  | AJ164: =+SUM(F165:AI165)/24 -> 0.00 | AK164: =+AJ164*E164*1.5*86.4 -> 0.00
C165: INDULFO MANUEL | AJ165: LT= | AK165: =+E164*1.5 -> 12.00
A166: 4F011 | B166: L3 | C166: PALENCIA DE GARCIA | E166: 7.00 | F166: =+IF(ISNUMBER(F167),$E166*1.5,IF(F167="","",F167)) ->  | AJ166: =+SUM(F167:AI167)/24 -> 0.00 | AK166: =+AJ166*E166*1.5*86.4 -> 0.00
C167: ALIX MARIA | AJ167: LT= | AK167: =+E166*1.5 -> 10.50
A168: 4F011A | B168: L3 | C168: PALENCIA DE GARCIA | E168: 33.00 | F168: =+IF(ISNUMBER(F169),$E168*1.5,IF(F169="","",F169)) ->  | AJ168: =+SUM(F169:AI169)/24 -> 0.00 | AK168: =+AJ168*E168*1.5*86.4 -> 0.00
C169: ALIX MARIA | AJ169: LT= | AK169: =+E168*1.5 -> 49.50
A170: 4F014E | B170: L3 | C170: FORI MONCADA | E170: 6.90 | F170: =+IF(ISNUMBER(F171),$E170*1.5,IF(F171="","",F171)) ->  | AJ170: =+SUM(F171:AI171)/24 -> 0.00 | AK170: =+AJ170*E170*1.5*86.4 -> 0.00
C171: JOSE ALFREDO Y OT | AJ171: LT= | AK171: =+E170*1.5 -> 10.35
A172: 4F029 | B172: L3 | C172: RUIZ RAMIREZ | E172: 18.63 | F172: =+IF(ISNUMBER(F173),$E172*1.5,IF(F173="","",F173)) ->  | AJ172: =+SUM(F173:AI173)/24 -> 0.00 | AK172: =+AJ172*E172*1.5*86.4 -> 0.00
C173: NELSON ENRRIQUE | AJ173: LT= | AK173: =+E172*1.5 -> 27.95
A174: 4F014F | B174: L3 | C174: RIVERO GONZALEZ | E174: 1.00 | F174: =+IF(ISNUMBER(F175),$E174*1.5,IF(F175="","",F175)) ->  | AJ174: =+SUM(F175:AI175)/24 -> 0.00 | AK174: =+AJ174*E174*1.5*86.4 -> 0.00
C175: HERIBERTO | AJ175: LT= | AK175: =+E174*1.5 -> 1.50
A176: 4F030 | B176: L3 | C176: VARGAS RIVERA | E176: 4.96 | F176: =+IF(ISNUMBER(F177),$E176*1.5,IF(F177="","",F177)) ->  | AJ176: =+SUM(F177:AI177)/24 -> 0.00 | AK176: =+AJ176*E176*1.5*86.4 -> 0.00
C177: RAMIRO ANTONIO | AJ177: LT= | AK177: =+E176*1.5 -> 7.44
A178: 4F015 | B178: L3 | C178: PALENCIA DE GARCIA | E178: 25.00 | F178: =+IF(ISNUMBER(F179),$E178*1.5,IF(F179="","",F179)) ->  | AJ178: =+SUM(F179:AI179)/24 -> 0.00 | AK178: =+AJ178*E178*1.5*86.4 -> 0.00
C179: ALIX MARIA | AJ179: LT= | AK179: =+E178*1.5 -> 37.50
A180: 4F015A | B180: L3 | C180: PALENCIA DE GARCIA | E180: 31.00 | F180: =+IF(ISNUMBER(F181),$E180*1.5,IF(F181="","",F181)) ->  | AJ180: =+SUM(F181:AI181)/24 -> 0.00 | AK180: =+AJ180*E180*1.5*86.4 -> 0.00
C181: ALIX MARIA | AJ181: LT= | AK181: =+E180*1.5 -> 46.50
A182: 4F012A | B182: L3 | C182: GOMEZ AGREDO | E182: 7.12 | F182: =+IF(ISNUMBER(F183),$E182*1.5,IF(F183="","",F183)) ->  | AJ182: =+SUM(F183:AI183)/24 -> 0.00 | AK182: =+AJ182*E182*1.5*86.4 -> 0.00
C183: HERIBERTO | AJ183: LT= | AK183: =+E182*1.5 -> 10.68
A184: 4F012C | B184: L3 | C184: CONTRERAS ROJAS | E184: 7.33 | F184: =+IF(ISNUMBER(F185),$E184*1.5,IF(F185="","",F185)) ->  | AJ184: =+SUM(F185:AI185)/24 -> 0.00 | AK184: =+AJ184*E184*1.5*86.4 -> 0.00
C185: CARMEN | AJ185: LT= | AK185: =+E184*1.5 -> 11.00
A186: 4F012B | B186: L3 | C186: ROJAS SANTOS | E186: 6.00 | F186: =+IF(ISNUMBER(F187),$E186*1.5,IF(F187="","",F187)) ->  | AJ186: =+SUM(F187:AI187)/24 -> 0.00 | AK186: =+AJ186*E186*1.5*86.4 -> 0.00
C187: ELIODORO | AJ187: LT= | AK187: =+E186*1.5 -> 9.00
A188: 4F020 | B188: L3A | C188: OROZCO ALTAMIRANDA | E188: 10.46 | F188: =+IF(ISNUMBER(F189),$E188*1.5,IF(F189="","",F189)) ->  | AJ188: =+SUM(F189:AI189)/24 -> 0.00 | AK188: =+AJ188*E188*1.5*86.4 -> 0.00
C189: ALBERTO E. | AJ189: LT= | AK189: =+E188*1.5 -> 15.69
A190: 4F019 | B190: L3A | C190: RUIZ RAMIREZ | E190: 10.25 | F190: =+IF(ISNUMBER(F191),$E190*1.5,IF(F191="","",F191)) ->  | AJ190: =+SUM(F191:AI191)/24 -> 0.00 | AK190: =+AJ190*E190*1.5*86.4 -> 0.00
C191: NELSON ENRRIQUE | AJ191: LT= | AK191: =+E190*1.5 -> 15.38
A192: 4F017 | B192: L3A | C192: BAUTISTA OSORIO | E192: 10.60 | F192: =+IF(ISNUMBER(F193),$E192*1.5,IF(F193="","",F193)) ->  | AJ192: =+SUM(F193:AI193)/24 -> 0.00 | AK192: =+AJ192*E192*1.5*86.4 -> 0.00
C193: GLADYS CECILIA | AJ193: LT= | AK193: =+E192*1.5 -> 15.90
A194: 4F028 | B194: L3A | C194: MARQUEZ CARDENAS | E194: 13.06 | F194: =+IF(ISNUMBER(F195),$E194*1.5,IF(F195="","",F195)) ->  | AJ194: =+SUM(F195:AI195)/24 -> 0.00 | AK194: =+AJ194*E194*1.5*86.4 -> 0.00
C195: MARTHA CECILIA | AJ195: LT= | AK195: =+E194*1.5 -> 19.59
A196: 4F027 | B196: L3A | C196: REYES VILLALTA | E196: 6.00 | F196: =+IF(ISNUMBER(F197),$E196*1.5,IF(F197="","",F197)) ->  | AJ196: =+SUM(F197:AI197)/24 -> 0.00 | AK196: =+AJ196*E196*1.5*86.4 -> 0.00
C197: MARIELA | AJ197: LT= | AK197: =+E196*1.5 -> 9.00
A198: 4F027A | B198: L3A | C198: REYES VILLALTA | E198: 8.36 | F198: =+IF(ISNUMBER(F199),$E198*1.5,IF(F199="","",F199)) ->  | AJ198: =+SUM(F199:AI199)/24 -> 0.00 | AK198: =+AJ198*E198*1.5*86.4 -> 0.00
C199: MARIELA | AJ199: LT= | AK199: =+E198*1.5 -> 12.54
A200: 4F036 | B200: PR | C200: SANABRIA OMAÑA | E200: 0.50 | F200: =+IF(ISNUMBER(F201),$E200*1.5,IF(F201="","",F201)) ->  | AJ200: =+SUM(F201:AI201)/24 -> 0.00 | AK200: =+AJ200*E200*1.5*86.4 -> 0.00
C201: MARIA DEL ROSARIO | AJ201: LT= | AK201: =+E200*1.5 -> 0.75
... 46 more rows

Sheet DICIEMBRE
A1: ASOCIACION DE USUARIOS DISTRITO DE ADECUACION DE TIERRAS DE GRAN ESCALA DEL RIO ZULIA ASOZULIA NIT 800,168,858-6 | AJ1: CODIGO: DTE-OPER-FR-01
AJ2: VERSION: 01
A3: CONTROL DIARIO DE RIEGO POR PREDIO Y CANAL | AJ3: FECHA: 16/06/2023
A5: ZONA | B5: RESTAURACIÓN | E5: AUXILIAR DE RIEGO | J5: EDWIN JAIR ZAMORA CHACON | S5: CANAL | AF5: MES | AG5: DICIEMBRE | AK5: AÑO | AL5: 2023
A6: CAUDAL DIARIO DERIVADO | E6: DIAS | F6: 1 | G6: 2 | H6: 3 | I6: 4 | J6: 5 | K6: 6 | L6: 7 | M6: 8 | N6: 9 | O6: 10 | P6: 11 | Q6: 12 | R6: 13 | S6: 14 | T6: 15 | U6: 16 | V6: 17 | W6: 18 | X6: 19 | Y6: 20 | Z6: 21 | AA6: 22 | AB6: 23 | AC6: 24 | AD6: 25 | AE6: 26 | AF6: 27 | AG6: 28 | AH6: 29 | AI6: 30 | AJ6: 31 | AK6: TOTAL DIAS | AL6: TOTAL M3
A7: CODIGO | B7: RAMAL | C7: USUARIO | D7: T.CULT | E7: AREA
A8: 4F300 | B8: PR | C8: BELTRAN GARCIA | D8: CA | E8: 30.00 | F8: =+IF(ISNUMBER(F9),$E8*1.5,IF(F9="","",F9)) ->  | G8: =+IF(ISNUMBER(G9),$E8*1.5,IF(G9="","",G9)) ->  | H8: FR | I8: 45.0 | J8: 45.0 | K8: 45.0 | L8: 45.0 | M8: 45.0 | N8: IC | Q8: =+IF(ISNUMBER(Q9),$E8*1.5,IF(Q9="","",Q9)) ->  | AK8: =+SUM(F9:AJ9)/24 -> 0.83 | AL8: =+AK8*E8*1.5*86.4 -> 3240.00 | AN8: FC
C9: LUIS | H9: FR | I9: 1 | J9: 2 | K9: 3 | L9: 4 | M9: 10 | N9: IC | AK9: LT= | AL9: =+E8*1.5 -> 45.00 | AN9: IC
A10: 4F350 | B10: PR | C10: VILLARREAL OSORIO | E10: 17.53 | F10: =+IF(ISNUMBER(F11),$E10*1.5,IF(F11="","",F11)) ->  | AK10: =+SUM(F11:AJ11)/24 -> 0.00 | AL10: =+AK10*E10*1.5*86.4 -> 0.00 | AN10: FR
C11: CLEMENTE | AK11: LT= | AL11: =+E10*1.5 -> 26.30 | AN11: IR
A12: 4F340 | B12: PR | C12: SANTANA CORTES | E12: 8.00 | F12: =+IF(ISNUMBER(F13),$E12*1.5,IF(F13="","",F13)) ->  | X12: 12.0 | Y12: 12.0 | Z12: 12.0 | AA12: FC | AC12: IC1 | AK12: =+SUM(F13:AJ13)/24 -> 1.25 | AL12: =+AK12*E12*1.5*86.4 -> 1296.00 | AN12: SR
C13: JOSE DOMINGO | X13: 10 | Y13: 10 | Z13: 10 | AA13: FC | AC13: IC1 | AK13: LT= | AL13: =+E12*1.5 -> 12.00 | AN13: RR
A14: 4F338 | B14: PR | C14: RIOS SUESCUN | E14: 8.75 | F14: =+IF(ISNUMBER(F15),$E14*1.5,IF(F15="","",F15)) ->  | AK14: =+SUM(F15:AJ15)/24 -> 0.00 | AL14: =+AK14*E14*1.5*86.4 -> 0.00 | AN14: ID
C15: MARIA LUCIA | AK15: LT= | AL15: =+E14*1.5 -> 13.13 | AN15: IC1
A16: 4F330 | B16: PR | C16: RIAÑO RAMIREZ | E16: 12.06 | F16: =+IF(ISNUMBER(F17),$E16*1.5,IF(F17="","",F17)) ->  | AK16: =+SUM(F17:AJ17)/24 -> 0.00 | AL16: =+AK16*E16*1.5*86.4 -> 0.00
C17: MARIA VICTORIA | AK17: LT= | AL17: =+E16*1.5 -> 18.09
A18: 4F320 | B18: PR | C18: RIAÑO VALDERRAMA | E18: 5.29 | F18: =+IF(ISNUMBER(F19),$E18*1.5,IF(F19="","",F19)) ->  | AK18: =+SUM(F19:AJ19)/24 -> 0.00 | AL18: =+AK18*E18*1.5*86.4 -> 0.00
C19: FREDDY ALEXANDER | AK19: LT= | AL19: =+E18*1.5 -> 7.94
A20: 4F320A | B20: PR | C20: RIAÑO VALDERRAMA | E20: 5.29 | F20: =+IF(ISNUMBER(F21),$E20*1.5,IF(F21="","",F21)) ->  | AK20: =+SUM(F21:AJ21)/24 -> 0.00 | AL20: =+AK20*E20*1.5*86.4 -> 0.00
C21: JENNY MARITZA | AK21: LT= | AL21: =+E20*1.5 -> 7.94
A22: 4F320B | B22: PR | C22: RIAÑO VALDERRAMA | E22: 4.14 | F22: =+IF(ISNUMBER(F23),$E22*1.5,IF(F23="","",F23)) ->  | AK22: =+SUM(F23:AJ23)/24 -> 0.00 | AL22: =+AK22*E22*1.5*86.4 -> 0.00
C23: FLOR LILIANA | AK23: LT= | AL23: =+E22*1.5 -> 6.21
A24: 4F320C | B24: PR | C24: RIAÑO VALDERRAMA | E24: 4.14 | F24: =+IF(ISNUMBER(F25),$E24*1.5,IF(F25="","",F25)) ->  | AK24: =+SUM(F25:AJ25)/24 -> 0.00 | AL24: =+AK24*E24*1.5*86.4 -> 0.00
C25: CIRO PASTOR | AK25: LT= | AL25: =+E24*1.5 -> 6.21
A26: 4F341 | B26: PR | C26: ORTEGA MORA | E26: 8.46 | F26: =+IF(ISNUMBER(F27),$E26*1.5,IF(F27="","",F27)) ->  | AK26: =+SUM(F27:AJ27)/24 -> 0.00 | AL26: =+AK26*E26*1.5*86.4 -> 0.00
C27: JOSE DEL CARMEN | AK27: LT= | AL27: =+E26*1.5 -> 12.69
A28: 4F319 | B28: PR | C28: SANTANA CORTES | E28: 26.50 | F28: =+IF(ISNUMBER(F29),$E28*1.5,IF(F29="","",F29)) ->  | AK28: =+SUM(F29:AJ29)/24 -> 0.00 | AL28: =+AK28*E28*1.5*86.4 -> 0.00
C29: ELVIA Y OTROS | AK29: LT= | AL29: =+E28*1.5 -> 39.75
A30: 4F314 | B30: PR | C30: GONZALEZ GIRON | E30: 3.00 | F30: =+IF(ISNUMBER(F31),$E30*1.5,IF(F31="","",F31)) ->  | AK30: =+SUM(F31:AJ31)/24 -> 0.00 | AL30: =+AK30*E30*1.5*86.4 -> 0.00
C31: EVELIO | AK31: LT= | AL31: =+E30*1.5 -> 4.50
A32: 4F035 | B32: PR | C32: VALDERRAMA CARDENAS | E32: 11.54 | F32: =+IF(ISNUMBER(F33),$E32*1.5,IF(F33="","",F33)) ->  | AK32: =+SUM(F33:AJ33)/24 -> 0.00 | AL32: =+AK32*E32*1.5*86.4 -> 0.00
C33: GUILLERMO Y OTROS | AK33: LT= | AL33: =+E32*1.5 -> 17.31
A34: 4F329B | B34: PR | C34: MARIN ZAPATA | E34: 7.00 | F34: =+IF(ISNUMBER(F35),$E34*1.5,IF(F35="","",F35)) ->  | AK34: =+SUM(F35:AJ35)/24 -> 0.00 | AL34: =+AK34*E34*1.5*86.4 -> 0.00
C35: ABELARDO ANTONIO | AK35: LT= | AL35: =+E34*1.5 -> 10.50
A36: 4F346 | B36: PR | C36: CASTELLANOS TARAZONA | E36: 10.00 | F36: =+IF(ISNUMBER(F37),$E36*1.5,IF(F37="","",F37)) ->  | AK36: =+SUM(F37:AJ37)/24 -> 0.00 | AL36: =+AK36*E36*1.5*86.4 -> 0.00
C37: JOSE DARIO | AK37: LT= | AL37: =+E36*1.5 -> 15.00
A38: 4F315 | B38: PR | C38: VILLARREAL OSORIO | E38: 12.23 | F38: =+IF(ISNUMBER(F39),$E38*1.5,IF(F39="","",F39)) ->  | AK38: =+SUM(F39:AJ39)/24 -> 0.00 | AL38: =+AK38*E38*1.5*86.4 -> 0.00
C39: EDILSON | AK39: LT= | AL39: =+E38*1.5 -> 18.35
A40: 4F001A | B40: L2 | C40: MARQUEZ CARDENAS | E40: 12.00 | F40: =+IF(ISNUMBER(F41),$E40*1.5,IF(F41="","",F41)) ->  | AK40: =+SUM(F41:AJ41)/24 -> 0.00 | AL40: =+AK40*E40*1.5*86.4 -> 0.00
C41: MARTHA CECILIA | AK41: LT= | AL41: =+E40*1.5 -> 18.00
A42: 4F001 | B42: L2 | C42: MARQUEZ CARDENAS | E42: 13.00 | F42: =+IF(ISNUMBER(F43),$E42*1.5,IF(F43="","",F43)) ->  | AK42: =+SUM(F43:AJ43)/24 -> 0.00 | AL42: =+AK42*E42*1.5*86.4 -> 0.00
C43: MARTHA CECILIA | AK43: LT= | AL43: =+E42*1.5 -> 19.50
A44: 4F031 | B44: L2 | C44: LERMA DIAZ | E44: 4.70 | F44: =+IF(ISNUMBER(F45),$E44*1.5,IF(F45="","",F45)) ->  | AK44: =+SUM(F45:AJ45)/24 -> 0.00 | AL44: =+AK44*E44*1.5*86.4 -> 0.00
C45: RAFAEL JULIO | AK45: LT= | AL45: =+E44*1.5 -> 7.05
A46: 4F031A | B46: L2 | C46: RIAÑO RAMIREZ | E46: 2.90 | F46: =+IF(ISNUMBER(F47),$E46*1.5,IF(F47="","",F47)) ->  | AK46: =+SUM(F47:AJ47)/24 -> 0.00 | AL46: =+AK46*E46*1.5*86.4 -> 0.00
C47: MARIA VICTORIA | AK47: LT= | AL47: =+E46*1.5 -> 4.35
A48: 4F031B | B48: L2 | C48: AREVALO ACEVEDO | E48: 2.30 | F48: =+IF(ISNUMBER(F49),$E48*1.5,IF(F49="","",F49)) ->  | AK48: =+SUM(F49:AJ49)/24 -> 0.00 | AL48: =+AK48*E48*1.5*86.4 -> 0.00
C49: RAMIRO Y OTRO | AK49: LT= | AL49: =+E48*1.5 -> 3.45
A50: 4F031C | B50: L2 | C50: BUSTAMANTE | E50: 3.20 | F50: =+IF(ISNUMBER(F51),$E50*1.5,IF(F51="","",F51)) ->  | AK50: =+SUM(F51:AJ51)/24 -> 0.00 | AL50: =+AK50*E50*1.5*86.4 -> 0.00
C51: JAIME DE J. Y OTRO | AK51: LT= | AL51: =+E50*1.5 -> 4.80
A52: 4F031D | B52: L2 | C52: AREVALO ACEVEDO | E52: 2.80 | F52: =+IF(ISNUMBER(F53),$E52*1.5,IF(F53="","",F53)) ->  | AK52: =+SUM(F53:AJ53)/24 -> 0.00 | AL52: =+AK52*E52*1.5*86.4 -> 0.00
C53: RAMIRO Y OTRO | AK53: LT= | AL53: =+E52*1.5 -> 4.20
A54: 4F031E | B54: L2 | C54: VILLAMIZAR | E54: 2.60 | F54: =+IF(ISNUMBER(F55),$E54*1.5,IF(F55="","",F55)) ->  | AK54: =+SUM(F55:AJ55)/24 -> 0.00 | AL54: =+AK54*E54*1.5*86.4 -> 0.00
C55: MARITZA | AK55: LT= | AL55: =+E54*1.5 -> 3.90
A56: 4F031F | B56: L2 | C56: VILLAMIZAR | E56: 1.50 | F56: =+IF(ISNUMBER(F57),$E56*1.5,IF(F57="","",F57)) ->  | AK56: =+SUM(F57:AJ57)/24 -> 0.00 | AL56: =+AK56*E56*1.5*86.4 -> 0.00
C57: MARITZA | AK57: LT= | AL57: =+E56*1.5 -> 2.25
A58: 4F031G | B58: L2 | C58: SANABRIA | E58: 0.58 | F58: =+IF(ISNUMBER(F59),$E58*1.5,IF(F59="","",F59)) ->  | AK58: =+SUM(F59:AJ59)/24 -> 0.00 | AL58: =+AK58*E58*1.5*86.4 -> 0.00
C59: MIGUEL ANTONIO | AK59: LT= | AL59: =+E58*1.5 -> 0.87
A60: 4F031H | B60: L2 | C60: DIAZ LERMA | E60: 4.00 | F60: =+IF(ISNUMBER(F61),$E60*1.5,IF(F61="","",F61)) ->  | AK60: =+SUM(F61:AJ61)/24 -> 0.00 | AL60: =+AK60*E60*1.5*86.4 -> 0.00
C61: LUIS ADAN | AK61: LT= | AL61: =+E60*1.5 -> 6.00
A62: 4F031I | B62: L2 | C62: CAICEDO GALVIS | E62: 8.60 | F62: =+IF(ISNUMBER(F63),$E62*1.5,IF(F63="","",F63)) ->  | AK62: =+SUM(F63:AJ63)/24 -> 0.00 | AL62: =+AK62*E62*1.5*86.4 -> 0.00
C63: ELIECER Y OTROS | AK63: LT= | AL63: =+E62*1.5 -> 12.90
A64: 4F003 | B64: L2 | C64: MENESES | E64: 9.46 | F64: =+IF(ISNUMBER(F65),$E64*1.5,IF(F65="","",F65)) ->  | AK64: =+SUM(F65:AJ65)/24 -> 0.00 | AL64: =+AK64*E64*1.5*86.4 -> 0.00
C65: POLICARPO | AK65: LT= | AL65: =+E64*1.5 -> 14.19
A66: 4F003A | B66: L2 | C66: ORTEGA RIVERA | E66: 8.26 | F66: =+IF(ISNUMBER(F67),$E66*1.5,IF(F67="","",F67)) ->  | AK66: =+SUM(F67:AJ67)/24 -> 0.00 | AL66: =+AK66*E66*1.5*86.4 -> 0.00
C67: PEDRO MIGUEL | AK67: LT= | AL67: =+E66*1.5 -> 12.39
A68: 4F329A | B68: PR | C68: DIAZ | E68: 3.80 | F68: =+IF(ISNUMBER(F69),$E68*1.5,IF(F69="","",F69)) ->  | AK68: =+SUM(F69:AJ69)/24 -> 0.00 | AL68: =+AK68*E68*1.5*86.4 -> 0.00
C69: ROSALBINA | AK69: LT= | AL69: =+E68*1.5 -> 5.70
A70: 4F329A | B70: PR | C70: DIAZ | E70: 2.00 | F70: =+IF(ISNUMBER(F71),$E70*1.5,IF(F71="","",F71)) ->  | AK70: =+SUM(F71:AJ71)/24 -> 0.00 | AL70: =+AK70*E70*1.5*86.4 -> 0.00
C71: ROSALBINA | AK71: LT= | AL71: =+E70*1.5 -> 3.00
A72: 4F329D | B72: PR | C72: RUBIO | E72: 7.24 | F72: =+IF(ISNUMBER(F73),$E72*1.5,IF(F73="","",F73)) ->  | AK72: =+SUM(F73:AJ73)/24 -> 0.00 | AL72: =+AK72*E72*1.5*86.4 -> 0.00
C73: MARIA EDELMIRA | AK73: LT= | AL73: =+E72*1.5 -> 10.86
A74: 4F329C | B74: PR | C74: MARTINEZ ALARCON | E74: 6.00 | F74: =+IF(ISNUMBER(F75),$E74*1.5,IF(F75="","",F75)) ->  | AK74: =+SUM(F75:AJ75)/24 -> 0.00 | AL74: =+AK74*E74*1.5*86.4 -> 0.00
C75: LUIS ALBERTO | AK75: LT= | AL75: =+E74*1.5 -> 9.00
A76: 4F004D | B76: PR | C76: DUARTE ACEVEDO | E76: 8.33 | F76: =+IF(ISNUMBER(F77),$E76*1.5,IF(F77="","",F77)) ->  | AK76: =+SUM(F77:AJ77)/24 -> 0.00 | AL76: =+AK76*E76*1.5*86.4 -> 0.00
C77: PEDRO Y OTROS | AK77: LT= | AL77: =+E76*1.5 -> 12.50
A78: 4F004A | B78: PR | C78: GARCIA CHONA | E78: 8.92 | F78: =+IF(ISNUMBER(F79),$E78*1.5,IF(F79="","",F79)) ->  | AK78: =+SUM(F79:AJ79)/24 -> 0.00 | AL78: =+AK78*E78*1.5*86.4 -> 0.00
C79: CRUZ DELINA | AK79: LT= | AL79: =+E78*1.5 -> 13.38
A80: 4F004E | B80: PR | C80: ROZO RICO | E80: 5.35 | F80: =+IF(ISNUMBER(F81),$E80*1.5,IF(F81="","",F81)) ->  | AK80: =+SUM(F81:AJ81)/24 -> 0.00 | AL80: =+AK80*E80*1.5*86.4 -> 0.00
C81: JOSE RAMON | AK81: LT= | AL81: =+E80*1.5 -> 8.03
A82: 4F004 | B82: PR | C82: QUINTERO M. | E82: 4.09 | F82: =+IF(ISNUMBER(F83),$E82*1.5,IF(F83="","",F83)) ->  | AK82: =+SUM(F83:AJ83)/24 -> 0.00 | AL82: =+AK82*E82*1.5*86.4 -> 0.00
C83: MIGUEL ANGEL/ OTRO | AK83: LT= | AL83: =+E82*1.5 -> 6.14
A84: 4F004C | B84: PR | C84: MARTINEZ RUBIO | E84: 9.74 | F84: =+IF(ISNUMBER(F85),$E84*1.5,IF(F85="","",F85)) ->  | AK84: =+SUM(F85:AJ85)/24 -> 0.00 | AL84: =+AK84*E84*1.5*86.4 -> 0.00
C85: JOSE LEONSO | AK85: LT= | AL85: =+E84*1.5 -> 14.61
A86: 4F328 | B86: PR | C86: GARCIA CHONA | E86: 9.65 | F86: =+IF(ISNUMBER(F87),$E86*1.5,IF(F87="","",F87)) ->  | AK86: =+SUM(F87:AJ87)/24 -> 0.00 | AL86: =+AK86*E86*1.5*86.4 -> 0.00
C87: CRUZ DELINA | AK87: LT= | AL87: =+E86*1.5 -> 14.48
A88: 4F004B | B88: L2A | C88: PAVA | E88: 8.90 | F88: =+IF(ISNUMBER(F89),$E88*1.5,IF(F89="","",F89)) ->  | AK88: =+SUM(F89:AJ89)/24 -> 0.00 | AL88: =+AK88*E88*1.5*86.4 -> 0.00
C89: LUIS JAVIER Y OTRO | AK89: LT= | AL89: =+E88*1.5 -> 13.35
A90: 4F006 | B90: L2A | C90: GARCIA | E90: 4.00 | F90: =+IF(ISNUMBER(F91),$E90*1.5,IF(F91="","",F91)) ->  | AK90: =+SUM(F91:AJ91)/24 -> 0.00 | AL90: =+AK90*E90*1.5*86.4 -> 0.00
C91: LINA ROSA Y OTROS | AK91: LT= | AL91: =+E90*1.5 -> 6.00
A92: 4F006A | B92: L2A | C92: CARDENAS HEREDIA | E92: 5.00 | F92: =+IF(ISNUMBER(F93),$E92*1.5,IF(F93="","",F93)) ->  | AK92: =+SUM(F93:AJ93)/24 -> 0.00 | AL92: =+AK92*E92*1.5*86.4 -> 0.00
C93: PAULINO | AK93: LT= | AL93: =+E92*1.5 -> 7.50
A94: 4F006B | B94: L2A | C94: RAMIREZ MAYORGA | E94: 5.08 | F94: =+IF(ISNUMBER(F95),$E94*1.5,IF(F95="","",F95)) ->  | AK94: =+SUM(F95:AJ95)/24 -> 0.00 | AL94: =+AK94*E94*1.5*86.4 -> 0.00
C95: CRISTINIANO | AK95: LT= | AL95: =+E94*1.5 -> 7.62
A96: 4F006C | B96: L2A | C96: ATUESTA ORTEGA | E96: 5.00 | F96: =+IF(ISNUMBER(F97),$E96*1.5,IF(F97="","",F97)) ->  | AK96: =+SUM(F97:AJ97)/24 -> 0.00 | AL96: =+AK96*E96*1.5*86.4 -> 0.00
C97: MIGUEL ANGEL | AK97: LT= | AL97: =+E96*1.5 -> 7.50
A98: 4F006D | B98: L2A | C98: SERNA GARCIA | E98: 5.00 | F98: =+IF(ISNUMBER(F99),$E98*1.5,IF(F99="","",F99)) ->  | AK98: =+SUM(F99:AJ99)/24 -> 0.00 | AL98: =+AK98*E98*1.5*86.4 -> 0.00
C99: CESARIO ANTONIO | AK99: LT= | AL99: =+E98*1.5 -> 7.50
A100: 4F006E | B100: L2A | C100: SERNA GARCIA | E100: 5.00 | F100: =+IF(ISNUMBER(F101),$E100*1.5,IF(F101="","",F101)) ->  | AK100: =+SUM(F101:AJ101)/24 -> 0.00 | AL100: =+AK100*E100*1.5*86.4 -> 0.00
C101: CESARIO ANTONIO | AK101: LT= | AL101: =+E100*1.5 -> 7.50
A102: 4F006F | B102: L2A | C102: CAICEDO GALVIS | E102: 5.00 | F102: =+IF(ISNUMBER(F103),$E102*1.5,IF(F103="","",F103)) ->  | AK102: =+SUM(F103:AJ103)/24 -> 0.00 | AL102: =+AK102*E102*1.5*86.4 -> 0.00
C103: ELIECER Y OTRO | AK103: LT= | AL103: =+E102*1.5 -> 7.50
A104: 4F006G | B104: L2A | C104: GARCIA | E104: 5.00 | F104: =+IF(ISNUMBER(F105),$E104*1.5,IF(F105="","",F105)) ->  | AK104: =+SUM(F105:AJ105)/24 -> 0.00 | AL104: =+AK104*E104*1.5*86.4 -> 0.00
C105: LINA ROSA Y OTROS | AK105: LT= | AL105: =+E104*1.5 -> 7.50
A106: 4F006H | B106: L2A | C106: VALENCIA MEJIA | E106: 4.50 | F106: =+IF(ISNUMBER(F107),$E106*1.5,IF(F107="","",F107)) ->  | AK106: =+SUM(F107:AJ107)/24 -> 0.00 | AL106: =+AK106*E106*1.5*86.4 -> 0.00
C107: WILSON | AK107: LT= | AL107: =+E106*1.5 -> 6.75
A108: 4F006I | B108: L2A | C108: BALLESTEROS | E108: 4.70 | F108: =+IF(ISNUMBER(F109),$E108*1.5,IF(F109="","",F109)) ->  | AK108: =+SUM(F109:AJ109)/24 -> 0.00 | AL108: =+AK108*E108*1.5*86.4 -> 0.00
C109: LUCIANO | AK109: LT= | AL109: =+E108*1.5 -> 7.05
A110: 4F006J | B110: L2A | C110: CUERO PEREZ | E110: 5.00 | F110: =+IF(ISNUMBER(F111),$E110*1.5,IF(F111="","",F111)) ->  | AK110: =+SUM(F111:AJ111)/24 -> 0.00 | AL110: =+AK110*E110*1.5*86.4 -> 0.00
C111: YESENIA | AK111: LT= | AL111: =+E110*1.5 -> 7.50
A112: 4F006L | B112: L2A | C112: FLOREZ FLOREZ | E112: 4.75 | F112: =+IF(ISNUMBER(F113),$E112*1.5,IF(F113="","",F113)) ->  | AK112: =+SUM(F113:AJ113)/24 -> 0.00 | AL112: =+AK112*E112*1.5*86.4 -> 0.00
C113: MANUEL | AK113: LT= | AL113: =+E112*1.5 -> 7.13
A114: 4F006K | B114: L2A | C114: GUARIN | E114: 5.00 | F114: =+IF(ISNUMBER(F115),$E114*1.5,IF(F115="","",F115)) ->  | AK114: =+SUM(F115:AJ115)/24 -> 0.00 | AL114: =+AK114*E114*1.5*86.4 -> 0.00
C115: LUIS ENRIQUE | AK115: LT= | AL115: =+E114*1.5 -> 7.50
A116: 4F006N | B116: L2A | C116: ATUESTA ORTEGA | E116: 5.00 | F116: =+IF(ISNUMBER(F117),$E116*1.5,IF(F117="","",F117)) ->  | AK116: =+SUM(F117:AJ117)/24 -> 0.00 | AL116: =+AK116*E116*1.5*86.4 -> 0.00
C117: MIGUEL ANGEL | AK117: LT= | AL117: =+E116*1.5 -> 7.50
A118: 4F006O | B118: L2A | C118: GUZMAN NIETO | E118: 5.18 | F118: =+IF(ISNUMBER(F119),$E118*1.5,IF(F119="","",F119)) ->  | AK118: =+SUM(F119:AJ119)/24 -> 0.00 | AL118: =+AK118*E118*1.5*86.4 -> 0.00
C119: JULIO CESAR | AK119: LT= | AL119: =+E118*1.5 -> 7.77
A120: 4F006M | B120: L2A | C120: FIGUEROA PINZON | E120: 5.00 | F120: =+IF(ISNUMBER(F121),$E120*1.5,IF(F121="","",F121)) ->  | AK120: =+SUM(F121:AJ121)/24 -> 0.00 | AL120: =+AK120*E120*1.5*86.4 -> 0.00
C121: FLORENTINO | AK121: LT= | AL121: =+E120*1.5 -> 7.50
A122: 4F008A | B122: L2A | C122: RIVERA MORENO | E122: 8.25 | F122: =+IF(ISNUMBER(F123),$E122*1.5,IF(F123="","",F123)) ->  | AK122: =+SUM(F123:AJ123)/24 -> 0.00 | AL122: =+AK122*E122*1.5*86.4 -> 0.00
C123: VICTOR EDUARDO | AK123: LT= | AL123: =+E122*1.5 -> 12.38
A124: 4F008C | B124: L2A | C124: GARCIA CACERES | E124: 9.00 | F124: =+IF(ISNUMBER(F125),$E124*1.5,IF(F125="","",F125)) ->  | AK124: =+SUM(F125:AJ125)/24 -> 0.00 | AL124: =+AK124*E124*1.5*86.4 -> 0.00
C125: PEDRO ENOG | AK125: LT= | AL125: =+E124*1.5 -> 13.50
A126: 4F008F | B126: L2A | C126: ENCINALES ACOSTA | E126: 5.00 | F126: =+IF(ISNUMBER(F127),$E126*1.5,IF(F127="","",F127)) ->  | AK126: =+SUM(F127:AJ127)/24 -> 0.00 | AL126: =+AK126*E126*1.5*86.4 -> 0.00
C127: STELLA | AK127: LT= | AL127: =+E126*1.5 -> 7.50
A128: 4F008E | B128: L2A | C128: CASTILLO ARIAS | E128: 3.28 | F128: =+IF(ISNUMBER(F129),$E128*1.5,IF(F129="","",F129)) ->  | AK128: =+SUM(F129:AJ129)/24 -> 0.00 | AL128: =+AK128*E128*1.5*86.4 -> 0.00
C129: GLADYS ELENA | AK129: LT= | AL129: =+E128*1.5 -> 4.92
A130: 4F008D | B130: L2A | C130: SILVA CARRILLO | E130: 8.00 | F130: =+IF(ISNUMBER(F131),$E130*1.5,IF(F131="","",F131)) ->  | AK130: =+SUM(F131:AJ131)/24 -> 0.00 | AL130: =+AK130*E130*1.5*86.4 -> 0.00
C131: DORA BETTY | AK131: LT= | AL131: =+E130*1.5 -> 12.00
A132: 4F008B | B132: L2A | C132: OBESO VARGAS | E132: 6.50 | F132: =+IF(ISNUMBER(F133),$E132*1.5,IF(F133="","",F133)) ->  | AK132: =+SUM(F133:AJ133)/24 -> 0.00 | AL132: =+AK132*E132*1.5*86.4 -> 0.00
C133: BENJAMIN Y OTRO | AK133: LT= | AL133: =+E132*1.5 -> 9.75
A134: 4F008G | B134: L2A | C134: OBESO VARGAS | E134: 2.50 | F134: =+IF(ISNUMBER(F135),$E134*1.5,IF(F135="","",F135)) ->  | AK134: =+SUM(F135:AJ135)/24 -> 0.00 | AL134: =+AK134*E134*1.5*86.4 -> 0.00
C135: BENJAMIN Y OTRO | AK135: LT= | AL135: =+E134*1.5 -> 3.75
A136: 4F005 | B136: PR | C136: CONTRERAS MONTES | E136: 10.00 | F136: =+IF(ISNUMBER(F137),$E136*1.5,IF(F137="","",F137)) ->  | AK136: =+SUM(F137:AJ137)/24 -> 0.00 | AL136: =+AK136*E136*1.5*86.4 -> 0.00
C137: ANIANO | AK137: LT= | AL137: =+E136*1.5 -> 15.00
A138: 4F366 | B138: PR | C138: OROZCO ALTAMIRANDA | E138: 7.00 | F138: =+IF(ISNUMBER(F139),$E138*1.5,IF(F139="","",F139)) ->  | AK138: =+SUM(F139:AJ139)/24 -> 0.00 | AL138: =+AK138*E138*1.5*86.4 -> 0.00
C139: ALBERTO E. | AK139: LT= | AL139: =+E138*1.5 -> 10.50
A140: 4F009 | B140: PR | C140: ANAYA VARGAS | E140: 11.23 | F140: =+IF(ISNUMBER(F141),$E140*1.5,IF(F141="","",F141)) ->  | AK140: =+SUM(F141:AJ141)/24 -> 0.00 | AL140: =+AK140*E140*1.5*86.4 -> 0.00
C141: FERMINA | AK141: LT= | AL141: =+E140*1.5 -> 16.85
A142: 4F009C | B142: PR | C142: ORDUZ LANDINEZ | E142: 11.00 | F142: =+IF(ISNUMBER(F143),$E142*1.5,IF(F143="","",F143)) ->  | AK142: =+SUM(F143:AJ143)/24 -> 0.00 | AL142: =+AK142*E142*1.5*86.4 -> 0.00
C143: EVELIA | AK143: LT= | AL143: =+E142*1.5 -> 16.50
A144: 4F009A | B144: PR | C144: VALENCIA MEJIA | E144: 11.13 | F144: =+IF(ISNUMBER(F145),$E144*1.5,IF(F145="","",F145)) ->  | AK144: =+SUM(F145:AJ145)/24 -> 0.00 | AL144: =+AK144*E144*1.5*86.4 -> 0.00
C145: WILSON | AK145: LT= | AL145: =+E144*1.5 -> 16.70
A146: 4F009B | B146: PR | C146: CONTRERAS ORTEGA | E146: 11.12 | F146: =+IF(ISNUMBER(F147),$E146*1.5,IF(F147="","",F147)) ->  | AK146: =+SUM(F147:AJ147)/24 -> 0.00 | AL146: =+AK146*E146*1.5*86.4 -> 0.00
C147: PEDRO ANTONIO | AK147: LT= | AL147: =+E146*1.5 -> 16.68
A148: 4F361 | B148: PR | C148: OROZCO ALTAMIRANDA | E148: 7.27 | F148: =+IF(ISNUMBER(F149),$E148*1.5,IF(F149="","",F149)) ->  | AK148: =+SUM(F149:AJ149)/24 -> 0.00 | AL148: =+AK148*E148*1.5*86.4 -> 0.00
C149: ALBERTO E. | AK149: LT= | AL149: =+E148*1.5 -> 10.91
A150: 4F013 | B150: PR | C150: CONTRERAS | E150: 17.30 | F150: =+IF(ISNUMBER(F151),$E150*1.5,IF(F151="","",F151)) ->  | AK150: =+SUM(F151:AJ151)/24 -> 0.00 | AL150: =+AK150*E150*1.5*86.4 -> 0.00
A151: E | C151: MONTES ANIANO | AK151: LT= | AL151: =+E150*1.5 -> 25.95
